Workbook

Sheet Visual Guidance
A1: DEFAULT SLOPE RATES
A2: FLAT: | B2: 6H:1V
A3: ROLLING: | B3: 4H:1V
A4: MOUNTAINOUS: | B4: 3H:1V
A5: HEAVY MOUNTAINOUS: | B5: 2H:1V

Sheet Tool
S1: 0
M2: 0 | R2: 2 | S2: 0.05
M3: 0.1 | R3: 3 | S3: 0.1
M4: 0.2 | R4: 4 | S4: 0.15
M5: 0.3 | R5: 5 | S5: 0.2
M6: 0.4 | R6: 6 | S6: 0.25 | U6: None | V6: Tier 1 - Very Low Impacts | X6: Detour/New Location
B7: Rural/Ditch | C7: Both Sides | D7: Yes | E7: Flat | F7: 8" | G7: Local | H7: Box Bridge | I7: Land Only | J7: Depressed Grass (RD11-TS-3A&5) | K7: 1 | L7: None | M7: 0.5 | N7: 6H:1V | O7: 5 | P7: 2 | Q7: 1 | R7: 7 | S7: 0.3 | T7: 1 | U7: Low | V7: Tier 2 - Low Impacts | X7: ABC/CMGC
B8: Urban/C&G | C8: One Side | D8: No | E8: Rolling | F8: 9" | G8: SIA | H8: Concrete I-Beam & Bulb-T | I8: Residential | J8: Raised Median (RD11-TS-6) | K8: 2 | L8: One Side | M8: 0.6 | N8: 5H:1V | O8: 6 | P8: >=3 | Q8: =Q7+1 -> 2 | R8: 8 | S8: 0.35 | T8: 2 | U8: Moderate | V8: Tier 3 - Moderate Impacts | X8: Stage Construction
E9: Mountainous | F9: 10" | G9: Collector | H9: Concrete Box Beam | I9: Commercial Industrial | J9: Barrier Wall (RD11-TS-5B) | K9: 3 | L9: Both Sides | M9: 0.7 | N9: 4H:1V | O9: 7 | Q9: 3 | R9: 9 | S9: 0.4 | T9: 3 | U9: High | V9: Tier 4 - High Impacts
E10: Heavy Mountainous | F10: 11" | G10: Arterial | H10: Steel Beam | K10: 4 | M10: 0.8 | N10: 3H:1V | O10: 8 | Q10: 4 | R10: 10 | S10: 0.45 | T10: 4 | V10: Tier 5 - Very High Impacts | X10: Bridge Construction
G11: Freeway | K11: 5 | M11: 0.9 | N11: 2H:1V | O11: 9 | Q11: 5 | R11: 11 | S11: 0.5 | T11: Statewide | X11: Grade and Drain
G12: Concrete | K12: 6 | M12: 1 | N12: 1H:1V | O12: 10 | Q12: 6 | R12: 12 | S12: 0.55 | X12: Safety
K13: 7 | O13: 11 | Q13: 7 | R13: 13 | S13: 0.6 | X13: Resurfacing
K14: 8 | O14: 12 | Q14: 8 | R14: 14 | S14: 0.65
K15: 9 | O15: 13 | Q15: 9 | R15: 15 | S15: 0.7 | X15: Average
K16: 10 | O16: 14 | Q16: 10 | R16: 16 | S16: 0.75 | X16: High
R17: 17 | S17: 0.8
R18: 18 | S18: 0.85
R19: 19 | S19: 0.9
R20: 20 | S20: 0.95
S21: 1
B22: COST ESTIMATE TOOL - 2026
C24: Project Cost Summary | H24: Pavement Calculator
C25: Description | E25: Estimate | F25: Contingency | H25: Area (SQFT):
C26: Construction: | E26: ='Cost Estimate'!J39 -> 0 | F26: 0.15 | H26: TRAVELED-WAY
C27: Right-of-Way: | E27: ='Cost Estimate'!J51 -> 0 | H27: 415-01.02 | I27: COLD PLANE | J27: SqYd = | K27: =I25/9 -> 0 | L27: <- Resurfacing
C28: Utility Relocation: | E28: ='Cost Estimate'!J52 -> 0 | H28: Item # | I28: Description | J28: Thickness (in) | K28: Tons
C29: Interchanges & Roundabouts: | E29: ='Cost Estimate'!J47+'Cost Estimate'!J48 -> 0 | H29: 411-03.10 | I29: "D" mix | J29: 2 | K29: =Roadway!AK55 -> 0 | L29: <- Resurfacing
C30: Preliminary Engineering: | E30: ='Cost Estimate'!J55 -> 0 | H30: 403-01 | I30: 1st Layer - Tack | J30: N/A | K30: =Roadway!AK56 -> 0 | L30: <- Resurfacing
C31: Construction Engineering: | E31: ='Cost Estimate'!J38 -> 0 | F31: 0.1 | H31: 307-02.08 | I31: "BM-2" mix | J31: 2 | K31: =Roadway!AK57 -> 0
C32: Total Estimated Project Cost: | E32: ='Cost Estimate'!J58 -> 0 | H32: 403-01 | I32: 2nd Layer - Tack | J32: N/A | K32: =Roadway!AK58 -> 0
H33: 307-02.01 | I33: "A" mix | J33: 3.5 | K33: =Roadway!AK59 -> 0
C34: Additional Specifications | H34: 403-01 | I34: 3rd Layer - Tack | J34: N/A | K34: =Roadway!AK60 -> 0
C35: Graded Solid Rock: | F35: None | H35: 307-02.21 | I35: GR "A-S" Mix | J35: 3 | K35: =Roadway!AK61 -> 0
C36: Number of Traffic Signals: | H36: 402-01 | I36: Prime Coat | J36: N/A | K36: =Roadway!AK63 -> 0
C37: Length of ITS Installation: | H37: 402-02 | I37: Agg. Cover | J37: N/A | K37: =Roadway!AK64 -> 0
C38: Include Tool Generated Guardrail Quantities? | F38: No | H38: 303-01 | I38: Base Stone | J38: 4 | K38: =Roadway!AK65 -> 0
H39: SHOULDERS
H40: Area (SQFT):
C41: Notifications | H41: Item # | I41: Description | J41: Thickness | K41: Tons
C42: Roadway: | D42: =IF(OR('Cost Estimate'!C5='Cost Estimate'!D117,'Cost Estimate'!C5='Cost Estimate'!D118),"No Errors",IF(OR(K52="Enter Begin L.M.",K54="Enter End L.M."),"Location Info Missing",IF(D64<J52,"Beginning Segment Doesn't Match Project Begin",IF(AND(J52="",J54=""),"No Errors",IF(SUM(T64:T93)>0,"Data Missing, See Roadway Table",IF(SUM(E64:E93)=0,"Enter Roadway Information",IF(MAX(E64:E93)=J54,"No Errors","End Segment Does NOT Equal Project End (See Cell H55)"))))))) -> Location Info Missing | H42: 411-01 | I42: "E" mix | J42: 1.5 | K42: =Roadway!AK69 -> 0
C43: Median: | D43: =IF(SUM(S98:S117)>(J54-J52),"Median Length is Greater than the Project Limits","No Errors") -> No Errors | H43: 403-01 | I43: Tack | J43: N/A | K43: =Roadway!AK70 -> 0
C44: Right-of-Way: | D44: =IF(H53="","Enter County, If using Tool for ROW Estimate","No Errors") -> Enter County, If using Tool for ROW Estimate | H44: 307-02.08 | I44: "BM-2" mix | J44: 2 | K44: =Roadway!AK71 -> 0
C45: Contingency: | D45: =IF(F26>0.5,"Contingency Greater than 50%",IF(F26<0.15,"Contingency Less than 15%","Default")) -> Default | H45: 402-01 | I45: Prime Coat | J45: N/A | K45: =Roadway!AK72 -> 0
C46: General: | D46: =IF(OR('Cost Estimate'!C5='Cost Estimate'!D117,'Cost Estimate'!C5='Cost Estimate'!D118),"No Errors",IF(D42<>"No Errors","Invalid Inputs","No Errors")) -> Invalid Inputs | H46: 402-02 | I46: Agg. Cover | J46: N/A | K46: =Roadway!AK73 -> 0
H47: 303-01 | I47: Base Stone | J47: 20.25 | K47: =Roadway!AK74 -> 0
B49: Project Location and Termini
G51: Location Information
G52: Route: | I52: Project Begin (mi): | K52: =IF(J52="","Enter Begin L.M.",IF(J52>J54,"Beginning L.M. Greater than End L.M.","")) -> Enter Begin L.M.
F53: =IF(H53="","Enter County ->","") -> Enter County -> | G53: County:
G54: Project Type: | H54: Statewide | I54: Project End (mi): | K54: =IF(J54="","Enter End L.M.","") -> Enter End L.M.
F55: =IF(H55="","Enter PIN ->","") -> Enter PIN -> | G55: PIN:
H56: .
B57: ROADWAY DESIGN
C59: INPUT ROAD SEGMENT CHARACTERISTICS
C60: PAVEMENT | K60: ROADSIDE DESIGN | N60: TERRAIN
C61: Construction Estimate: | G61: =E26 -> 0 | H61: How Many Segments (1-30)? | J61: 1 | K61: Rural or Urban Drainage | L61: Sidewalk Width (ft): | M61: 6 | N61: Terrain Type | O61: Widen to One Side or Both? | P61: Foreslope H:V Rate
C62: Total Estimated Project Cost: | G62: ='Cost Estimate'!J58 -> 0 | L62: Grass Strip Width (ft): | M62: 2.5
C63: Segment | D63: Begin (mi) | E63: End (mi) | F63: Pavement Design (ft) | G63: Proposed Full Depth Pavement Width (ft) | H63: Outside Shldr Width (ft) | I63: Existing Pavement Width | J63: Replace Existing Full Depth Pavement? | L63: Urban Drainage on one side or both? | M63: Sidewalk on One Side or Both Sides | R63: 1 | S63: Urban Additional Info Check | U63: =IFERROR(IF(OR(C64="",N64=""),"",IF(N64="Flat",$K$122,IF(N64="Rolling",$K$123,IF(N64="Mountainous",$K$124,IF(N64="Heavy Mountainous",$K$125))))),"") ->  | V63: <- Backup Formula
B64: =IF(OR($J$52="",$J$54=""),"",IF(E64=$J$54,"Complete - Last Segment",IF(AND(E64<>"",E65="",E64<$J$54),"Not Complete - Enter More Segments",""))) ->  | C64: =IF(AND(J61>=1,J61<=30),1,"") -> 1 | Q64: =IF(S64<>"","Data Missing",IF(OR($J$52="",$J$54=""),"Location Info Missing",IF(AND(E64<>"",OR(F64="",G64="",H64="",I64="",N64="",J64="",O64="",K64="",P64="")),"Data Missing",""))) -> Location Info Missing | R64: =IF(C64<>"",1,0) -> 1 | S64: =IF(K64=$B$8,IF(OR(L64="",M64=""),"Data Missing",""),"") ->  | T64: =IF(Q64="Data Missing",1,0) -> 0 | U64: =IFERROR(IF(OR(C64="",N64=""),"",IF(N64="Flat",$K$122,IF(N64="Rolling",$K$123,IF(N64="Mountainous",$K$124,IF(N64="Heavy Mountainous",$K$125))))),"") -> 
B65: =IF(OR($J$52="",$J$54=""),"",IF(E65=$J$54,"Complete - Last Segment",IF(AND(E65<>"",E66="",E65<$J$54),"Not Complete - Enter More Segments",""))) ->  | C65: =IF(AND(J61>=2,J61<=30),2,"") ->  | D65: =IF(E64="","",E64) ->  | Q65: =IF(S65<>"","Data Missing",IF(OR($J$52="",$J$54=""),"Location Info Missing",IF(AND(E65<>"",OR(F65="",G65="",H65="",I65="",N65="",J65="",O65="",K65="",P65="")),"Data Missing",""))) -> Location Info Missing | R65: 0 | S65: =IF(K65=$B$8,IF(OR(L65="",M65=""),"Data Missing",""),"") ->  | T65: =IF(Q65="Data Missing",1,0) -> 0 | U65: =IFERROR(IF(OR(C65="",N65=""),"",IF(N65="Flat",$K$122,IF(N65="Rolling",$K$123,IF(N65="Mountainous",$K$124,IF(N65="Heavy Mountainous",$K$125))))),"") -> 
C66: =IF(AND(J61>=3,J61<=30),3,"") ->  | D66: =IF(E65="","",E65) ->  | Q66: Location Info Missing | R66: 0 | S66: =IF(K66=$B$8,IF(OR(L66="",M66=""),"Data Missing",""),"") ->  | T66: 0
C67: =IF(AND(J61>=4,J61<=30),4,"") ->  | Q67: Location Info Missing | R67: 0 | S67: =IF(K67=$B$8,IF(OR(L67="",M67=""),"Data Missing",""),"") ->  | T67: 0
C68: =IF(AND(J61>=5,J61<=30),5,"") ->  | Q68: Location Info Missing | R68: 0 | T68: 0
C69: =IF(AND(J61>=6,J61<=30),6,"") ->  | Q69: Location Info Missing | R69: 0 | T69: 0
C70: =IF(AND(J61>=7,J61<=30),7,"") ->  | Q70: Location Info Missing | R70: 0 | T70: 0
C71: =IF(AND(J61>=8,J61<=30),8,"") ->  | Q71: Location Info Missing | R71: 0 | T71: 0
C72: =IF(AND(J61>=9,J61<=30),9,"") ->  | Q72: Location Info Missing | R72: 0 | T72: 0
C73: =IF(AND(J61>=10,J61<=30),10,"") ->  | K73: Rural/Ditch | Q73: Location Info Missing | R73: 0 | T73: 0
C74: =IF(AND(J61>=11,J61<=30),11,"") ->  | K74: Rural/Ditch | Q74: Location Info Missing | R74: 0 | T74: 0
C75: =IF(AND(J61>=12,J61<=30),12,"") ->  | K75: Rural/Ditch | Q75: Location Info Missing | R75: 0 | T75: 0
C76: =IF(AND(J61>=13,J61<=30),13,"") ->  | K76: Rural/Ditch | Q76: Location Info Missing | R76: 0 | T76: 0
C77: =IF(AND(J61>=14,J61<=30),14,"") ->  | K77: Rural/Ditch | Q77: Location Info Missing | R77: 0 | T77: 0
C78: =IF(AND(J61>=15,J61<=30),15,"") ->  | K78: Rural/Ditch | Q78: Location Info Missing | R78: 0 | T78: 0
C79: =IF(AND(J61>=16,J61<=30),16,"") ->  | K79: Rural/Ditch | Q79: Location Info Missing | R79: 0 | T79: 0
C80: =IF(AND(J61>=17,J61<=30),17,"") ->  | K80: Rural/Ditch | Q80: Location Info Missing | R80: 0 | T80: 0
C81: =IF(AND(J61>=18,J61<=30),18,"") ->  | K81: Rural/Ditch | Q81: Location Info Missing | R81: 0 | T81: 0
C82: =IF(AND(J61>=19,J61<=30),19,"") ->  | K82: Rural/Ditch | Q82: Location Info Missing | R82: 0 | T82: 0
C83: =IF(AND(J61>=20,J61<=30),20,"") ->  | K83: Rural/Ditch | Q83: Location Info Missing | R83: 0 | T83: 0
C84: =IF(AND(J61>=21,J61<=30),21,"") ->  | K84: Rural/Ditch | Q84: Location Info Missing | R84: 0 | T84: 0
C85: =IF(AND(J61>=22,J61<=30),22,"") ->  | K85: Rural/Ditch | Q85: Location Info Missing | R85: 0 | T85: 0
C86: =IF(AND(J61>=23,J61<=30),23,"") ->  | K86: Rural/Ditch | Q86: Location Info Missing | R86: 0 | T86: 0
C87: =IF(AND(J61>=24,J61<=30),24,"") ->  | K87: Rural/Ditch | Q87: Location Info Missing | R87: 0 | T87: 0
C88: =IF(AND(J61>=25,J61<=30),25,"") ->  | K88: Rural/Ditch | Q88: Location Info Missing | R88: 0 | T88: 0
C89: =IF(AND(J61>=26,J61<=30),26,"") ->  | K89: Rural/Ditch | Q89: Location Info Missing | R89: 0 | T89: 0
C90: =IF(AND(J61>=27,J61<=30),27,"") ->  | K90: Rural/Ditch | Q90: Location Info Missing | R90: 0 | T90: 0
C91: =IF(AND(J61>=28,J61<=30),28,"") ->  | K91: Rural/Ditch | Q91: Location Info Missing | R91: 0 | T91: 0
C92: =IF(AND(J61>=29,J61<=30),29,"") ->  | K92: Rural/Ditch | Q92: Location Info Missing | R92: 0 | T92: 0
C93: =IF(AND(J61=30),30,"") ->  | K93: Rural/Ditch | Q93: Location Info Missing | R93: 0 | T93: 0
C95: MEDIAN INPUTS
C96: How Many Segments (1-20)? | J96: 1
C97: Segments | D97: Begin (mi) | E97: End (mi) | F97: Median Type | G97: # Travel Lanes in Each Direction | H97: Terrain Type | I97: Inside Shldr. Width (ft) | J97: Interior Width (ft) | R97: 1
C98: =IF(AND(J96>=1,J96<=20),1,"") -> 1 | I98: =IF(AND(F98=$J$7,G98=$P$7),4,IF(AND(F98=$J$7,G98=$P$8),10,IF(F98=$J$8,0,IF(F98=$J$9,0,"")))) ->  | J98: =IF(AND(F98=$J$7,G98=$P$7),48-I98*2,IF(AND(F98=$J$7,G98=$P$8),68-I98*2,IF(F98=$J$8,14,IF(F98=$J$9,0,"")))) ->  | K98: =IF(AND(D98<>"",E98<>"",OR(F98="",I98="",J98="",H98="")),"Data Missing","") ->  | R98: =IF(AND(J96>=1,J96<=20),1,0) -> 1 | T98: =IF(AND(D98<>"",E98<>""),E98-D98,0) -> 0
C99: =IF(AND(J96>=2,J96<=20),2,"") ->  | D99: =IF(E98="","",E98) ->  | I99: =IF(AND(F99=$J$7,G99=$P$7),4,IF(AND(F99=$J$7,G99=$P$8),10,IF(F99=$J$8,0,IF(F99=$J$9,0,"")))) ->  | J99: =IF(AND(F99=$J$7,G99=$P$7),48-I99*2,IF(AND(F99=$J$7,G99=$P$8),68-I99*2,IF(F99=$J$8,14,IF(F99=$J$9,0,"")))) ->  | R99: =IF(AND(J96>=2,J96<=20),1,0) -> 0 | S99: =IF(AND(D99<>"",E99<>""),E99-D99,0) -> 0
C100: =IF(AND(J96>=3,J96<=20),3,"") ->  | D100: =IF(E99="","",E99) ->  | R100: =IF(AND(J96>=3,J96<=20),1,0) -> 0 | S100: 0
C101: =IF(AND(J96>=4,J96<=20),4,"") ->  | R101: =IF(AND(J96>=4,J96<=20),1,0) -> 0 | S101: 0
C102: =IF(AND(J96>=5,J96<=20),5,"") ->  | R102: =IF(AND(J96>=5,J96<=20),1,0) -> 0 | S102: 0
C103: =IF(AND(J96>=6,J96<=20),6,"") ->  | R103: =IF(AND(J96>=6,J96<=20),1,0) -> 0 | S103: 0
C104: =IF(AND(J96>=7,J96<=20),7,"") ->  | R104: =IF(AND(J96>=7,J96<=20),1,0) -> 0 | S104: 0
C105: =IF(AND(J96>=8,J96<=20),8,"") ->  | R105: =IF(AND(J96>=8,J96<=20),1,0) -> 0 | S105: 0
C106: =IF(AND(J96>=9,J96<=20),9,"") ->  | R106: =IF(AND(J96>=9,J96<=20),1,0) -> 0 | S106: 0
C107: =IF(AND(J96>=10,J96<=20),10,"") ->  | R107: =IF(AND(J96>=10,J96<=20),1,0) -> 0 | S107: 0
C108: =IF(AND(J96>=11,J96<=20),11,"") ->  | R108: =IF(AND(J96>=11,J96<=20),1,0) -> 0 | S108: 0
C109: =IF(AND(J96>=12,J96<=20),12,"") ->  | R109: =IF(AND(J96>=12,J96<=20),1,0) -> 0 | S109: 0
C110: =IF(AND(J96>=13,J96<=20),13,"") ->  | R110: =IF(AND(J96>=13,J96<=20),1,0) -> 0 | S110: 0
C111: =IF(AND(J96>=14,J96<=20),14,"") ->  | R111: =IF(AND(J96>=14,J96<=20),1,0) -> 0 | S111: 0
C112: =IF(AND(J96>=15,J96<=20),15,"") ->  | R112: =IF(AND(J96>=15,J96<=20),1,0) -> 0 | S112: 0
C113: =IF(AND(J96>=16,J96<=20),16,"") ->  | R113: =IF(AND(J96>=16,J96<=20),1,0) -> 0 | S113: 0
C114: =IF(AND(J96>=17,J96<=20),17,"") ->  | R114: =IF(AND(J96>=17,J96<=20),1,0) -> 0 | S114: 0
C115: =IF(AND(J96>=18,J96<=20),18,"") ->  | R115: =IF(AND(J96>=18,J96<=20),1,0) -> 0 | S115: 0
C116: =IF(AND(J96>=19,J96<=20),19,"") ->  | R116: =IF(AND(J96>=19,J96<=20),1,0) -> 0 | S116: 0
C117: =IF(AND(J96=20),20,"") ->  | R117: =IF(AND(J96=20),1,0) -> 0 | S117: 0
C120: Pavement Removal | F120: Concrete Islands | I120: Terrain Assumptions | M120: Shared Use Path
C121: AREA OF PAVEMENT REMOVAL (SF) | F121: Total Concrete Island Area (SF) | I121: Terrain Type | J121: Cut/Fill Depth | K121: Foreslope Rate | M121: Terrain Type | N121: Length (mi) | O121: Grass Strip Width (ft) | P121: Pav Width (8 - 12 ft)
C122: Asphalt: | F122: SQFT: | I122: Flat (1 - 3ft): | J122: 1 | K122: 6H:1V | M122: Flat :
C123: Concrete: | I123: Rolling (4 - 7 ft): | J123: 4.980469158 | K123: 4H:1V | M123: Rolling:
I124: Mountainous (8 - 11 ft): | J124: 9 | K124: 3H:1V | M124: Mountainous:
I125: Heavy Mountainous (12 - 25 ft): | J125: 16.01803925 | K125: 2H:1V | M125: Heavy Mountainous:
B127: BRIDGES AND STRUCTURES
C130: Structure Removal
C131: How Many (1-20)? | F131: 1
C132: Number | D132: Length | E132: Width | F132: Type | R132: 1
C133: =IF(AND(F131>=1,F131<=20),1,"") -> 1 | R133: =IF(AND(F131>=1,F131<=20),1,0) -> 1
C134: =IF(AND(F131>=2,F131<=20),2,"") ->  | R134: =IF(AND(F131>=2,F131<=20),1,0) -> 0
C135: =IF(AND(F131>=3,F131<=20),3,"") ->  | R135: =IF(AND(F131>=3,F131<=20),1,0) -> 0
C136: =IF(AND(F131>=4,F131<=20),4,"") ->  | R136: =IF(AND(F131>=4,F131<=20),1,0) -> 0
C137: =IF(AND(F131>=5,F131<=20),5,"") ->  | R137: =IF(AND(F131>=5,F131<=20),1,0) -> 0
C138: =IF(AND(F131>=6,F131<=20),6,"") ->  | R138: =IF(AND(F131>=6,F131<=20),1,0) -> 0
C139: =IF(AND(F131>=7,F131<=20),7,"") ->  | R139: =IF(AND(F131>=7,F131<=20),1,0) -> 0
C140: =IF(AND(F131>=8,F131<=20),8,"") ->  | R140: =IF(AND(F131>=8,F131<=20),1,0) -> 0
C141: =IF(AND(F131>=9,F131<=20),9,"") ->  | R141: =IF(AND(F131>=9,F131<=20),1,0) -> 0
C142: =IF(AND(F131>=10,F131<=20),10,"") ->  | R142: =IF(AND(F131>=10,F131<=20),1,0) -> 0
C143: =IF(AND(F131>=11,F131<=20),11,"") ->  | R143: =IF(AND(F131>=11,F131<=20),1,0) -> 0
C144: =IF(AND(F131>=12,F131<=20),12,"") ->  | R144: =IF(AND(F131>=12,F131<=20),1,0) -> 0
C145: =IF(AND(F131>=13,F131<=20),13,"") ->  | R145: =IF(AND(F131>=13,F131<=20),1,0) -> 0
C146: =IF(AND(F131>=14,F131<=20),14,"") ->  | R146: =IF(AND(F131>=14,F131<=20),1,0) -> 0
C147: =IF(AND(F131>=15,F131<=20),15,"") ->  | R147: =IF(AND(F131>=15,F131<=20),1,0) -> 0
C148: =IF(AND(F131>=16,F131<=20),16,"") ->  | R148: =IF(AND(F131>=16,F131<=20),1,0) -> 0
C149: =IF(AND(F131>=17,F131<=20),17,"") ->  | R149: =IF(AND(F131>=17,F131<=20),1,0) -> 0
C150: =IF(AND(F131>=18,F131<=20),18,"") ->  | R150: =IF(AND(F131>=18,F131<=20),1,0) -> 0
C151: =IF(AND(F131>=19,F131<=20),19,"") ->  | R151: =IF(AND(F131>=19,F131<=20),1,0) -> 0
C152: =IF(AND(F131=20),20,"") ->  | R152: =IF(AND(F131>=20,E138<=20),1,0) -> 0
C154: New Structures | L154: New Structure Contingencies
C155: How Many (1-20)? | G155: 1 | L155: Box Bridge | M155: Concrete I-Beam & Bulb-T | N155: Concrete Box Beam | O155: Steel Bridge
C156: Number | D156: Length | E156: Width | F156: Type | G156: Construction Method | H156: Foundation Contingency | I156: Bridge Contingency | J156: Feature Crossed / No Spans | L156: =Bridges!E18 -> 0 | M156: =Bridges!E19 -> 0 | N156: =Bridges!E20 -> 0 | O156: =Bridges!E21 -> 0 | R156: 1
C157: =IF(AND(G155>=1,G155<=20),1,"") -> 1 | I157: =IF(OR(D157="",E157="",F157="",G157="",H157=""),"",IF(OR(Bridges!AT65="",Bridges!AT65=0),0,Bridges!AT65)) ->  | R157: =IF(AND(G155>=1,G155<=20),1,0) -> 1
C158: =IF(AND(G155>=2,G155<=20),2,"") ->  | I158: =IF(OR(D158="",E158="",F158="",G158="",H158=""),"",IF(OR(Bridges!AT66="",Bridges!AT66=0),0,Bridges!AT66)) ->  | R158: =IF(AND(G155>=2,G155<=20),1,0) -> 0
C159: =IF(AND(G155>=3,G155<=20),3,"") ->  | I159: =IF(OR(D159="",E159="",F159="",G159="",H159=""),"",IF(OR(Bridges!AT67="",Bridges!AT67=0),0,Bridges!AT67)) ->  | R159: =IF(AND(G155>=3,G155<=20),1,0) -> 0
C160: =IF(AND(G155>=4,G155<=20),4,"") ->  | I160: =IF(OR(D160="",E160="",F160="",G160="",H160=""),"",IF(OR(Bridges!AT68="",Bridges!AT68=0),0,Bridges!AT68)) ->  | R160: =IF(AND(G155>=4,G155<=20),1,0) -> 0
C161: =IF(AND(G155>=5,G155<=20),5,"") ->  | I161: =IF(OR(D161="",E161="",F161="",G161="",H161=""),"",IF(OR(Bridges!AT69="",Bridges!AT69=0),0,Bridges!AT69)) ->  | R161: =IF(AND(G155>=5,G155<=20),1,0) -> 0
C162: =IF(AND(G155>=6,G155<=20),6,"") ->  | I162: =IF(OR(D162="",E162="",F162="",G162="",H162=""),"",IF(OR(Bridges!AT70="",Bridges!AT70=0),0,Bridges!AT70)) ->  | R162: =IF(AND(G155>=6,G155<=20),1,0) -> 0
C163: =IF(AND(G155>=7,G155<=20),7,"") ->  | I163: =IF(OR(D163="",E163="",F163="",G163="",H163=""),"",IF(OR(Bridges!AT71="",Bridges!AT71=0),0,Bridges!AT71)) ->  | R163: =IF(AND(G155>=7,G155<=20),1,0) -> 0
C164: =IF(AND(G155>=8,G155<=20),8,"") ->  | I164: =IF(OR(D164="",E164="",F164="",G164="",H164=""),"",IF(OR(Bridges!AT72="",Bridges!AT72=0),0,Bridges!AT72)) ->  | R164: =IF(AND(G155>=8,G155<=20),1,0) -> 0
C165: =IF(AND(G155>=9,G155<=20),9,"") ->  | I165: =IF(OR(D165="",E165="",F165="",G165="",H165=""),"",IF(OR(Bridges!AT73="",Bridges!AT73=0),0,Bridges!AT73)) ->  | R165: =IF(AND(G155>=9,G155<=20),1,0) -> 0
C166: =IF(AND(G155>=10,G155<=20),10,"") ->  | I166: =IF(OR(D166="",E166="",F166="",G166="",H166=""),"",IF(OR(Bridges!AT74="",Bridges!AT74=0),0,Bridges!AT74)) ->  | R166: =IF(AND(G155>=10,G155<=20),1,0) -> 0
C167: =IF(AND(G155>=11,G155<=20),11,"") ->  | I167: =IF(OR(D167="",E167="",F167="",G167="",H167=""),"",IF(OR(Bridges!AT75="",Bridges!AT75=0),0,Bridges!AT75)) ->  | R167: =IF(AND(G155>=11,G155<=20),1,0) -> 0
C168: =IF(AND(G155>=12,G155<=20),12,"") ->  | I168: =IF(OR(D168="",E168="",F168="",G168="",H168=""),"",IF(OR(Bridges!AT76="",Bridges!AT76=0),0,Bridges!AT76)) ->  | R168: =IF(AND(G155>=12,G155<=20),1,0) -> 0
C169: =IF(AND(G155>=13,G155<=20),13,"") ->  | I169: =IF(OR(D169="",E169="",F169="",G169="",H169=""),"",IF(OR(Bridges!AT77="",Bridges!AT77=0),0,Bridges!AT77)) ->  | R169: =IF(AND(G155>=13,G155<=20),1,0) -> 0
C170: =IF(AND(G155>=14,G155<=20),14,"") ->  | I170: =IF(OR(D170="",E170="",F170="",G170="",H170=""),"",IF(OR(Bridges!AT78="",Bridges!AT78=0),0,Bridges!AT78)) ->  | R170: =IF(AND(G155>=14,G155<=20),1,0) -> 0
C171: =IF(AND(G155>=15,G155<=20),15,"") ->  | I171: =IF(OR(D171="",E171="",F171="",G171="",H171=""),"",IF(OR(Bridges!AT79="",Bridges!AT79=0),0,Bridges!AT79)) ->  | R171: =IF(AND(G155>=15,G155<=20),1,0) -> 0
C172: =IF(AND(G155>=16,G155<=20),16,"") ->  | I172: =IF(OR(D172="",E172="",F172="",G172="",H172=""),"",IF(OR(Bridges!AT80="",Bridges!AT80=0),0,Bridges!AT80)) ->  | R172: =IF(AND(G155>=16,G155<=20),1,0) -> 0
C173: =IF(AND(G155>=17,G155<=20),17,"") ->  | I173: =IF(OR(D173="",E173="",F173="",G173="",H173=""),"",IF(OR(Bridges!AT81="",Bridges!AT81=0),0,Bridges!AT81)) ->  | R173: =IF(AND(G155>=17,G155<=20),1,0) -> 0
C174: =IF(AND(G155>=18,G155<=20),18,"") ->  | I174: =IF(OR(D174="",E174="",F174="",G174="",H174=""),"",IF(OR(Bridges!AT82="",Bridges!AT82=0),0,Bridges!AT82)) ->  | R174: =IF(AND(G155>=18,G155<=20),1,0) -> 0
C175: =IF(AND(G155>=19,G155<=20),19,"") ->  | I175: =IF(OR(D175="",E175="",F175="",G175="",H175=""),"",IF(OR(Bridges!AT83="",Bridges!AT83=0),0,Bridges!AT83)) ->  | R175: =IF(AND(G155>=19,G155<=20),1,0) -> 0
C176: =IF(AND(G155=20),20,"") ->  | I176: =IF(OR(D176="",E176="",F176="",G176="",H176=""),"",IF(OR(Bridges!AT84="",Bridges!AT84=0),0,Bridges!AT84)) ->  | R176: =IF(AND(G155>=20,G155<=20),1,0) -> 0
C178: Structure Rehabilitation & Widenings
C179: How Many (1-20)? | H179: 1
C180: Number | D180: Length (ft) | E180: Width (ft) | F180: Type | G180: Add'l Width | H180: Construction Method | I180: Foundation Risk | J180: Bridge Contingency | K180: Bridge Location | R180: 1
C181: =IF(AND(H179>=1,H179<=20),1,"") -> 1 | J181: =IF(OR(D181="",E181="",F181="",G181="",H181="",I181=""),"",IF(Bridges!AU35=0,0,Bridges!AU35)) ->  | R181: =IF(AND(H179>=1,H179<=20),1,0) -> 1
C182: =IF(AND(H179>=2,H179<=20),2,"") ->  | J182: =IF(OR(D182="",E182="",F182="",G182="",H182="",I182=""),"",IF(Bridges!AU36=0,0,Bridges!AU36)) ->  | R182: =IF(AND(H179>=2,H179<=20),1,0) -> 0
C183: =IF(AND(H179>=3,H179<=20),3,"") ->  | J183: =IF(OR(D183="",E183="",F183="",G183="",H183="",I183=""),"",IF(Bridges!AU37=0,0,Bridges!AU37)) ->  | R183: =IF(AND(H179>=3,H179<=20),1,0) -> 0
C184: =IF(AND(H179>=4,H179<=20),4,"") ->  | J184: =IF(OR(D184="",E184="",F184="",G184="",H184="",I184=""),"",IF(Bridges!AU38=0,0,Bridges!AU38)) ->  | R184: =IF(AND(H179>=4,H179<=20),1,0) -> 0
C185: =IF(AND(H179>=5,H179<=20),5,"") ->  | J185: =IF(OR(D185="",E185="",F185="",G185="",H185="",I185=""),"",IF(Bridges!AU39=0,0,Bridges!AU39)) ->  | R185: =IF(AND(H179>=5,H179<=20),1,0) -> 0
C186: =IF(AND(H179>=6,H179<=20),6,"") ->  | J186: =IF(OR(D186="",E186="",F186="",G186="",H186="",I186=""),"",IF(Bridges!AU40=0,0,Bridges!AU40)) ->  | R186: =IF(AND(H179>=6,H179<=20),1,0) -> 0
C187: =IF(AND(H179>=7,H179<=20),7,"") ->  | J187: =IF(OR(D187="",E187="",F187="",G187="",H187="",I187=""),"",IF(Bridges!AU41=0,0,Bridges!AU41)) ->  | R187: =IF(AND(H179>=7,H179<=20),1,0) -> 0
C188: =IF(AND(H179>=8,H179<=20),8,"") ->  | J188: =IF(OR(D188="",E188="",F188="",G188="",H188="",I188=""),"",IF(Bridges!AU42=0,0,Bridges!AU42)) ->  | R188: =IF(AND(H179>=8,H179<=20),1,0) -> 0
C189: =IF(AND(H179>=9,H179<=20),9,"") ->  | J189: =IF(OR(D189="",E189="",F189="",G189="",H189="",I189=""),"",IF(Bridges!AU43=0,0,Bridges!AU43)) ->  | R189: =IF(AND(H179>=9,H179<=20),1,0) -> 0
C190: =IF(AND(H179>=10,H179<=20),10,"") ->  | J190: =IF(OR(D190="",E190="",F190="",G190="",H190="",I190=""),"",IF(Bridges!AU44=0,0,Bridges!AU44)) ->  | R190: =IF(AND(H179>=10,H179<=20),1,0) -> 0
C191: =IF(AND(H179>=11,H179<=20),11,"") ->  | J191: =IF(OR(D191="",E191="",F191="",G191="",H191="",I191=""),"",IF(Bridges!AU45=0,0,Bridges!AU45)) ->  | R191: =IF(AND(H179>=11,H179<=20),1,0) -> 0
C192: =IF(AND(H179>=12,H179<=20),12,"") ->  | J192: =IF(OR(D192="",E192="",F192="",G192="",H192="",I192=""),"",IF(Bridges!AU46=0,0,Bridges!AU46)) ->  | R192: =IF(AND(H179>=12,H179<=20),1,0) -> 0
C193: =IF(AND(H179>=13,H179<=20),13,"") ->  | J193: =IF(OR(D193="",E193="",F193="",G193="",H193="",I193=""),"",IF(Bridges!AU47=0,0,Bridges!AU47)) ->  | R193: =IF(AND(H179>=13,H179<=20),1,0) -> 0
C194: =IF(AND(H179>=14,H179<=20),14,"") ->  | J194: =IF(OR(D194="",E194="",F194="",G194="",H194="",I194=""),"",IF(Bridges!AU48=0,0,Bridges!AU48)) ->  | R194: =IF(AND(H179>=14,H179<=20),1,0) -> 0
C195: =IF(AND(H179>=15,H179<=20),15,"") ->  | J195: =IF(OR(D195="",E195="",F195="",G195="",H195="",I195=""),"",IF(Bridges!AU49=0,0,Bridges!AU49)) ->  | R195: =IF(AND(H179>=15,H179<=20),1,0) -> 0
C196: =IF(AND(H179>=16,H179<=20),16,"") ->  | J196: =IF(OR(D196="",E196="",F196="",G196="",H196="",I196=""),"",IF(Bridges!AU50=0,0,Bridges!AU50)) ->  | R196: =IF(AND(H179>=16,H179<=20),1,0) -> 0
C197: =IF(AND(H179>=17,H179<=20),17,"") ->  | J197: =IF(OR(D197="",E197="",F197="",G197="",H197="",I197=""),"",IF(Bridges!AU51=0,0,Bridges!AU51)) ->  | R197: =IF(AND(H179>=17,H179<=20),1,0) -> 0
C198: =IF(AND(H179>=18,H179<=20),18,"") ->  | J198: =IF(OR(D198="",E198="",F198="",G198="",H198="",I198=""),"",IF(Bridges!AU52=0,0,Bridges!AU52)) ->  | R198: =IF(AND(H179>=18,H179<=20),1,0) -> 0
C199: =IF(AND(H179>=19,H179<=20),19,"") ->  | J199: =IF(OR(D199="",E199="",F199="",G199="",H199="",I199=""),"",IF(Bridges!AU53=0,0,Bridges!AU53)) ->  | R199: =IF(AND(H179>=19,H179<=20),1,0) -> 0
C200: =IF(AND(H179=20),20,"") ->  | J200: =IF(OR(D200="",E200="",F200="",G200="",H200="",I200=""),"",IF(Bridges!AU54=0,0,Bridges!AU54)) ->  | R200: =IF(AND(H179>=20,H179<=20),1,0) -> 0
C202: Retaining Walls | E202: If Conceptual Level Retaining Wall Information is known, then use the RETAINING WALL PROBABLE BID PRICE ESTIMATING TOOL
C203: Average Height:
C204: Total Length:
B206: RIGHT-OF-WAY AND UTILTIES | L206: MISCELLANEOUS
C209: Utility Relocation | F209: Additional ROW & Utilities Cost | M209: Clearing and Grubbing Assumptions | AQ209: PLANNING LEVEL INTERCHANGE COSTS
C210: Overhead | F210: Right-of-Way: | M210: LENGTH OF IMPACTS (MILE):
C211: Distribution (mi): | F211: Utilities: | M211: TYPE OF IMPACTS | AQ211: New Interchanges
C212: Transmission (mi): | M212: Very Low | O212: 1 | P212: =$O$212*$O$210*'Clr&Grb'!N2 -> 0 | AR212: Diamond | AS212: Par-Clo | AT212: Cloverleaf
C213: Underground | M213: Low | O213: 0 | P213: =$O213*$O$210*'Clr&Grb'!N3 -> 0 | AQ213: Rural
C214: Power (mi): | M214: Moderate | O214: 0 | P214: =$O214*$O$210*'Clr&Grb'!N4 -> 0 | AR214: Diamond | AS214: TUDI | AT214: SPUI
C215: Water (mi): | M215: High | O215: 0 | P215: =$O215*$O$210*'Clr&Grb'!N5 -> 0 | AQ215: Urban
C216: Gas (mi): | M216: Very High | O216: 0 | P216: =$O216*$O$210*'Clr&Grb'!N6 -> 0
... 24 more rows

Sheet Haul Road (hidden)
A4: Haul #1 Road Cost Estimation | D4: *enter data in grey cells*
A6: Total Length | B6: =Tool!O231 -> 0
A8: Top Layer | D8: Bottom Layer
A9: Slope | B9: 2 | C9: :1 | D9: Slope | E9: =B9 -> 2 | F9: :1
A10: Height | B10: =Tool!O229 -> 0 | C10: ft | D10: Height | E10: =Tool!O230 -> 0 | F10: ft
A11: Top Width | B11: 22 | C11: ft | D11: Top Width | E11: =B12 -> 22 | F11: ft
A12: Bottom Width | B12: =(2*(B9*B10))+B11 -> 22 | C12: ft | D12: Bottom Width | E12: =(2*(E9*E10))+E11 -> 22 | F12: ft
A13: Volume | B13: =(B6*(0.5*B10*(B11+B12)))/27 -> 0 | C13: CY | D13: Volume | E13: =(B6*(0.5*E10*(E11+E12)))/27 -> 0 | F13: CY
A14: Density | B14: 1.75 | C14: ton/CY | D14: Density | E14: 1.8 | F14: ton/CY
A15: Cost | B15: 64.22 | C15: /ton | D15: Cost | E15: 62 | F15: /ton
A17: Geotextile | B17: 2.91 | C17: /SY
A19: Removal Factor | B19: 1.5
A21: Totals (Installation)
A22: Top Layer | B22: =(B13*B14)*B15 -> 0
A23: Bottom Layer | B23: =(E13*E14)*E15 -> 0
A24: Geo | B24: =((B6*E12)/9)*B17 -> 0
B25: =SUM(B22:C24) -> 0
A26: w/Removal | B26: =B25*B19 -> 0
B27: =B26 -> 0

Sheet Finalize Items
A1: 0 | B1: TN - 2005
A2: 0 | B2: TN -2006
A3: 0 | B3: TN - 2007
A4: 0 | B4: TN - 2008
A5: 0 | B5: TN - 2009
A6: 0 | B6: TN - 2010
A7: 0 | B7: TN - 2011
A8: 0 | B8: TN - 2012
A9: 0 | B9: TN - 2013
A10: 0 | B10: TN - 2014
A11: 0 | B11: Region 1 - 2016
A12: 0 | B12: Region 2 - 2016
A13: 0 | B13: Region 3 - 2016
A14: 0 | B14: Region 4 - 2016
A15: 0 | B15: Statewide - 2016
A16: 1 | D16: ** DO NOT ADJUST COLUMN E **
A17: 1 | D17: ** MAKE ALL ADJUSTMENTS TO QUANTITIES IN COLUMN F **
A18: 1
A19: 1 | B19: TDOT PAY ITEM | C19: Item Class | D19: TDOT DESCRIPTION | E19: UNIT | F19: TOOL QUANTITIES | G19: ADDITIONAL QUANTITIES | H19: TOOL QUANTITIES + ADDITIONAL QUANTITIES | I19: Average Unit Price | J19: Cost w/ AUP | K19: Unit Prices | L19: Cost w/ Qty Adjustments
A20: 1
A21: 1 | B21: Earthwork
A22: =IF(H22>0,1,0) -> 0 | B22: 202-03.01 | C22: Earthwork | D22: REMOVAL OF ASPHALT PAVEMENT | E22: SY | F22: =IF(Tool!$D$46="No Errors",Roadway!O22,0) -> 0 | H22: =F22+G22 -> 0 | I22: =IFERROR(VLOOKUP(B22,'All AUP'!A:E,5,0),0) -> 15.99161601 | J22: =IF(H22<>"",H22*I22,"") -> 0 | K22: =IFERROR(VLOOKUP('Finalize Items'!B22,'Qty UP'!B:G,6,0),I22) -> 15.99161601 | L22: =H22*K22 -> 0
A23: =IF(H23>0,1,0) -> 0 | B23: 202-03 | C23: Earthwork | D23: REMOVAL OF RIGID PAVEMENT | E23: CY | F23: =IF(Tool!$D$46="No Errors",Roadway!O23,0) -> 0 | H23: =F23+G23 -> 0 | I23: =IFERROR(VLOOKUP(B23,'All AUP'!A:E,5,0),0) -> 32.88765324 | J23: =IF(H23<>"",H23*I23,"") -> 0 | K23: =IFERROR(VLOOKUP('Finalize Items'!B23,'Qty UP'!B:G,6,0),I23) -> 32.88765324 | L23: 0
A24: 0 | B24: 203-01 | C24: Earthwork | D24: ROAD & DRAINAGE EXCAVATION (UNCLASSIFIED) | E24: CY | F24: =IF(Tool!$D$46="No Errors",Terrain!AC10,0) -> 0 | H24: =F24+G24 -> 0 | I24: =IFERROR(VLOOKUP(B24,'All AUP'!A:E,5,0),0) -> 13.81848779 | J24: =H24*I24 -> 0 | K24: =IFERROR(VLOOKUP('Finalize Items'!B24,'Qty UP'!B:G,6,0),I24) -> 13.81848779 | L24: 0
A25: 0 | B25: 203-02.01 | C25: Earthwork | D25: BORROW EXCAVATION (GRADED SOLID ROCK) | E25: TON | F25: =IF(Tool!$D$46="No Errors",Terrain!AC12,0)*1.7636 -> 0 | H25: =G25+F25 -> 0 | I25: =IFERROR(VLOOKUP(B25,'All AUP'!A:E,5,0),0) -> 27.98593736 | J25: 0 | K25: =IFERROR(VLOOKUP('Finalize Items'!B25,'Qty UP'!B:G,6,0),I25) -> 27.98593736 | L25: 0
A26: 0 | B26: 203-03 | C26: Earthwork | D26: BORROW EXCAVATION (UNCLASSIFIED) | E26: CY | F26: =IF(Tool!$D$46="No Errors",Terrain!AC11,0) -> 0 | H26: =F26+G26 -> 0 | I26: =IFERROR(VLOOKUP(B26,'All AUP'!A:E,5,0),0) -> 11.72425543 | J26: 0 | K26: =IFERROR(VLOOKUP('Finalize Items'!B26,'Qty UP'!B:G,6,0),I26) -> 11.72425543 | L26: 0
A27: 1 | B27: 203-50 | C27: Earthwork | D27: CONSTRUCTION OF HAUL ROAD | E27: LS | F27: 1 | H27: =F27+G27 -> 1 | I27: =Tool!O232 -> 0 | J27: 0 | K27: =Tool!O232 -> 0 | L27: 0
A28: 0 | B28: 203-07 | C28: Earthwork | D28: FURNISHING & SPREADING TOPSOIL | E28: CY | H28: =F28+G28 -> 0 | I28: =IFERROR(VLOOKUP(B28,'All AUP'!A:E,5,0),0) -> 35.15757968 | J28: 0 | K28: =IFERROR(VLOOKUP('Finalize Items'!B28,'Qty UP'!B:G,6,0),I28) -> 35.15757968 | L28: 0
A29: 1 | B29: 201-01 | C29: Earthwork | D29: Clearing and Grubbing | E29: LS | F29: 1 | H29: =G29+1 -> 1 | I29: =Tool!P217 -> 0 | J29: 0 | K29: =Tool!P217 -> 0 | L29: 0
A30: 0
A31: 1 | I31: EARTHWORK TOTAL (ROUNDED) | J31: =IF(ROUNDUP(SUM(J22:J30),-2)<0,0,ROUNDUP(SUM(J22:J30),-2)) -> 0 | L31: =IF(ROUNDUP(SUM(L22:L30),-2)<0,0,ROUNDUP(SUM(L22:L30),-2)) -> 0
A32: 1
A33: 1 | B33: Base Course
A34: 0 | B34: 303-01 | C34: Base Course | D34: MINERAL AGGREGATE, TYPE A BASE, GRADING D | E34: TON | F34: =IF(Tool!$D$46="No Errors",(Roadway!O17+Median!M13+Drainage!L19+Roadway!S14),0) -> 0 | H34: =F34+G34 -> 0 | I34: =IFERROR(VLOOKUP(B34,'All AUP'!A:E,5,0),"") -> 37.07696121 | J34: =H34*I34 -> 0 | K34: =IFERROR(VLOOKUP('Finalize Items'!B34,'Qty UP'!B:G,6,0),I34) -> 37.07696121 | L34: =H34*K34 -> 0
A35: 0
A36: 1 | I36: BASE COURSE TOTAL (ROUNDED) | J36: =IF(ROUNDUP(SUM(J34:J35),-2)<0,0,ROUNDUP(SUM(J34:J35),-2)) -> 0 | L36: =IF(ROUNDUP(SUM(L34:L35),-2)<0,0,ROUNDUP(SUM(L34:L35),-2)) -> 0
A37: 1
A38: 1 | B38: Asphalt Roads
A39: 0 | B39: 415-01.02 | C39: Asphalt | D39: COLD PLANING BITUMINOUS PAVEMENT | E39: SY | F39: =IF(Tool!$D$46="No Errors",Roadway!O21,0) -> 0 | H39: =F39+G39 -> 0 | I39: =VLOOKUP(B39,'Asphalt AUP'!A:E,5,0) -> 8.591324735 | J39: =IF(H39<>"",H39*I39,"") -> 0 | K39: =IFERROR(VLOOKUP(B39,'Asphalt AUP'!A:G,6,0),I39) -> 8.591324735 | L39: =H39*K39 -> 0
A40: 0 | B40: 307-(01, 02, 03).01 | C40: Asphalt | D40: ASPHALT CONCRETE MIX (All Grades) (BPMB-HM) GRADING A | E40: TON | F40: =IF(Tool!$D$46="No Errors",Roadway!O11,0) -> 0 | H40: 0 | I40: =VLOOKUP(B40,'Asphalt AUP'!A:E,5,0) -> 120.7959429 | J40: =IF(H40<>"",H40*I40,"") -> 0 | K40: =IFERROR(VLOOKUP(B40,'Asphalt AUP'!A:G,6,0),I40) -> 120.7959429 | L40: =H40*K40 -> 0
A41: 0 | B41: 307-01.(20 & 21 & 22) | C41: Asphalt | D41: AGGREGATE (BPMB-HM) GRADING A-S MIX | E41: TON | F41: =IF(Tool!$D$46="No Errors",Roadway!O12,0) -> 0 | H41: 0 | I41: =VLOOKUP(B41,'Asphalt AUP'!A:E,5,0) -> 117.5344894 | J41: 0 | K41: =IFERROR(VLOOKUP(B41,'Asphalt AUP'!A:G,6,0),I41) -> 117.5344894 | L41: 0
A42: 0 | B42: 307-(01 & 02 & 03).08 | C42: Asphalt | D42: ASPHALT CONCRETE MIX (ALL GRADES) (BPMB-HM) GRADING B-M2 | E42: TON | F42: =IF(Tool!$D$46="No Errors",Roadway!O10+Median!M10+Roadway!S11,0) -> 0 | H42: 0 | I42: =VLOOKUP(B42,'Asphalt AUP'!A:E,5,0) -> 121.9791887 | J42: 0 | K42: =IFERROR(VLOOKUP(B42,'Asphalt AUP'!A:G,6,0),I42) -> 121.9791887 | L42: 0
A43: 0 | B43: 402-01 | C43: Asphalt | D43: BITUMINOUS MATERIAL FOR PRIME COAT (PC) | E43: TON | F43: =IF(Tool!$D$46="No Errors",Roadway!O15+Median!M11+Roadway!S12,0) -> 0 | H43: 0 | I43: =VLOOKUP(B43,'Asphalt AUP'!A:E,5,0) -> 624.4519965 | J43: 0 | K43: =IFERROR(VLOOKUP(B43,'Asphalt AUP'!A:G,6,0),I43) -> 624.4519965 | L43: 0
A44: 0 | B44: 402-02 | C44: Asphalt | D44: AGGREGATE FOR COVER MATERIAL (PC) | E44: TON | F44: =IF(Tool!$D$46="No Errors",Roadway!O16+Median!M12+Roadway!S13,0) -> 0 | H44: 0 | I44: =VLOOKUP(B44,'Asphalt AUP'!A:E,5,0) -> 74.59023316 | J44: 0 | K44: =IFERROR(VLOOKUP(B44,'Asphalt AUP'!A:G,6,0),I44) -> 74.59023316 | L44: 0
A45: 0 | B45: 403-01 | C45: Asphalt | D45: BITUMINOUS MATERIAL FOR TACK COAT (TC) | E45: TON | F45: =IF(Tool!$D$46="No Errors",Roadway!O14+Median!M9+Roadway!S10,0) -> 0 | H45: 0 | I45: =VLOOKUP(B45,'Asphalt AUP'!A:E,5,0) -> 883.8853521 | J45: 0 | K45: =IFERROR(VLOOKUP(B45,'Asphalt AUP'!A:G,6,0),I45) -> 883.8853521 | L45: 0
A46: 0 | B46: 411-01.07 | C46: Asphalt | D46: ACS MIX (PG64-22) GRADING E SHOULDER | E46: TON | F46: =IF(Tool!$D$46="No Errors",Median!M8+Roadway!S9,0) -> 0 | H46: 0 | I46: =VLOOKUP(B46,'Asphalt AUP'!A:E,5,0) -> 122.6110214 | J46: 0 | K46: =IFERROR(VLOOKUP(B46,'Asphalt AUP'!A:G,6,0),I46) -> 122.6110214 | L46: 0 | M46: =IFERROR(VLOOKUP(B46,'Asphalt AUP'!A:G,5,0)*INDEX(#REF!,MATCH('Cost Estimate'!#REF!,#REF!,0),MATCH('Finalize Items'!$C30,#REF!,0)),"") -> 
A47: 0 | B47: 411-(01 & 02 & 03).10 | C47: Asphalt | D47: ACS MIX(ALL GRADES) GRADING D | E47: TON | F47: =IF(Tool!$D$46="No Errors",Roadway!O9,0) -> 0 | H47: 0 | I47: =VLOOKUP(B47,'Asphalt AUP'!A:E,5,0) -> 139.2672469 | J47: 0 | K47: =IFERROR(VLOOKUP(B47,'Asphalt AUP'!A:G,6,0),I47) -> 139.2672469 | L47: 0
A48: 0 | B48: 313-03 | C48: Asphalt | D48: TREATED PERMEABLE BASE | E48: SY | F48: =IF(Tool!$D$46="No Errors",Roadway!O19+Roadway!S16,0) -> 0 | H48: 0 | I48: =VLOOKUP(B48,'Asphalt AUP'!A:E,5,0) -> 31.92460521 | J48: 0 | K48: =IFERROR(VLOOKUP(B48,'Asphalt AUP'!A:G,6,0),I48) -> 31.92460521 | L48: 0
A49: 0 | B49: 406-04.02 | C49: Asphalt | D49: HIGH FRICTION SURFACE TREATMENT | E49: SY | H49: =G49 -> 0 | I49: =IFERROR(VLOOKUP(B49,'All AUP'!A:E,5,0),"") -> 40.75084545 | J49: 0 | K49: =IFERROR(VLOOKUP('Finalize Items'!B49,'Qty UP'!B:G,6,0),I49) -> 40.75084545 | L49: 0
A50: 0 | I50: =IFERROR(VLOOKUP(B50,'Asphalt AUP'!A:G,5,0)*INDEX(#REF!,MATCH('Cost Estimate'!#REF!,#REF!,0),MATCH($C50,#REF!,0)),"") -> 
A51: 1 | I51: ASPHALT TOTAL (ROUNDED) | J51: =IF(ROUNDUP(SUM(J39:J50),-2)<0,0,ROUNDUP(SUM(J39:J50),-2)) -> 0 | L51: =IF(ROUNDUP(SUM(L39:L50),-2)<0,0,ROUNDUP(SUM(L39:L50),-2)) -> 0
A52: 1
A53: 1 | B53: Portland Cement Concrete
A54: 0 | B54: 501-01.03 | C54: Portland Cement Concrete | D54: PORTLAND CEMENT CONCRETE PAVEMENT (PLAIN) 10" | E54: SY | F54: =IF(Tool!$D$46="No Errors",Roadway!O18+Roadway!S15,0) -> 0 | H54: =F54+G54 -> 0 | I54: =IFERROR(VLOOKUP(B54,'All AUP'!A:E,5,0),0) -> 147.9668623 | J54: =IF(H54<>"",H54*I54,"") -> 0 | K54: =IFERROR(VLOOKUP('Finalize Items'!B54,'Qty UP'!B:G,6,0),I54) -> 147.9668623 | L54: =H54*K54 -> 0
A55: 0
A56: 1 | I56: PORTLAND CEMENT CONCRETE TOTAL (ROUNDED) | J56: =IF(ROUNDUP(SUM(J54:J54),-2)<0,0,ROUNDUP(SUM(J54:J54),-2)) -> 0 | L56: =IF(ROUNDUP(SUM(L54:L54),-2)<0,0,ROUNDUP(SUM(L54:L54),-2)) -> 0
A57: 1
A58: 1 | B58: Drainage
A59: 0 | B59: 607-05.02 | C59: Drainage | D59: 24" CONCRETE PIPE CULVERT (CLASS III) | E59: LF | F59: =IF(Tool!$D$46="No Errors",Median!M15+Drainage!L13,0) -> 0 | H59: =F59+G59 -> 0 | I59: =IFERROR(VLOOKUP(B59,'All AUP'!A:E,5,0),0) -> 126.6422535 | J59: =IF(H59<>"",H59*I59,"") -> 0 | K59: =IFERROR(VLOOKUP('Finalize Items'!B59,'Qty UP'!B:G,6,0),I59) -> 126.6422535 | L59: =H59*K59 -> 0
A60: 0 | B60: 710-02 | C60: Drainage | D60: Aggregate Underdrains (with pipe) | E60: LF | F60: =IF(Tool!$D$46="No Errors",Roadway!O20,0) -> 0 | H60: =F60+G60 -> 0 | I60: =IFERROR(VLOOKUP(B60,'All AUP'!A:E,5,0),0) -> 11.97462639 | J60: =IF(H60<>"",H60*I60,"") -> 0 | K60: =IFERROR(VLOOKUP('Finalize Items'!B60,'Qty UP'!B:G,6,0),I60) -> 11.97462639 | L60: 0
A61: 0
A62: 1 | I62: DRAINAGE TOTAL (ROUNDED) | J62: =IF(ROUNDUP(SUM(J59:J60),-2)<0,0,ROUNDUP(SUM(J59:J60),-2)) -> 0 | L62: =IF(ROUNDUP(SUM(L59:L60),-2)<0,0,ROUNDUP(SUM(L59:L60),-2)) -> 0
A63: 1
A64: 1 | B64: Structures Drainage
A65: 0 | B65: 611-07.01 | C65: Structures_Drainage | D65: CLASS A CONCRETE (PIPE ENDWALLS) | E65: CY | F65: =IF(Tool!$D$46="No Errors",Drainage!L14,0) -> 0 | H65: =F65+G65 -> 0 | I65: =IFERROR(VLOOKUP(B65,'All AUP'!A:E,5,0),0) -> 1868.128428 | J65: =IF(H65<>"",H65*I65,"") -> 0 | K65: =IFERROR(VLOOKUP('Finalize Items'!B65,'Qty UP'!B:G,6,0),I65) -> 1868.128428 | L65: =H65*K65 -> 0
A66: 0 | B66: 611-07.02 | C66: Structures_Drainage | D66: STEEL BAR REINFORCEMENT (PIPE ENDWALLS) | E66: LB | F66: =IF(Tool!$D$46="No Errors",Drainage!L15,0) -> 0 | H66: 0 | I66: =IFERROR(VLOOKUP(B66,'All AUP'!A:E,5,0),0) -> 3.599742397 | J66: 0 | K66: =IFERROR(VLOOKUP('Finalize Items'!B66,'Qty UP'!B:G,6,0),I66) -> 3.599742397 | L66: 0
A67: 0 | B67: 611-12.02 | C67: Structures_Drainage | D67: CATCH BASINS, TYPE 12, > 4' - 8' DEPTH | E67: EA | F67: =IF(Tool!$D$46="No Errors",Median!M17+Drainage!L10,0) -> 0 | H67: 0 | I67: =IFERROR(VLOOKUP(B67,'All AUP'!A:E,5,0),0) -> 6909.696316 | J67: 0 | K67: =IFERROR(VLOOKUP('Finalize Items'!B67,'Qty UP'!B:G,6,0),I67) -> 6909.696316 | L67: 0
A68: 0 | B68: 611-14.02 | C68: Structures_Drainage | D68: CATCH BASINS, TYPE 14, > 4' - 8' DEPTH | E68: EA | F68: =IF(Tool!$D$46="No Errors",Drainage!L11,0) -> 0 | H68: 0 | I68: =IFERROR(VLOOKUP(B68,'All AUP'!A:E,5,0),0) -> 11265.56542 | J68: 0 | K68: =IFERROR(VLOOKUP('Finalize Items'!B68,'Qty UP'!B:G,6,0),I68) -> 11265.56542 | L68: 0
A69: 0 | B69: 611-42.02 | C69: Structures_Drainage | D69: CATCH BASINS, TYPE 42, > 4' - 8' DEPTH | E69: EA | F69: =IF(Tool!$D$46="No Errors",Drainage!L12,0) -> 0 | H69: 0 | I69: =IFERROR(VLOOKUP(B69,'All AUP'!A:E,5,0),0) -> 6536.342476 | J69: 0 | K69: =IFERROR(VLOOKUP('Finalize Items'!B69,'Qty UP'!B:G,6,0),I69) -> 6536.342476 | L69: 0 | M69: =SUM(H67:H69) -> 0
A70: 0 | B70: 604-01.01 | C70: Structures_Drainage | D70: CLASS A CONCRETE (ROADWAY) | E70: CY | F70: =IF(Tool!$D$46="No Errors",Roadway!S19,0) -> 0 | H70: 0 | I70: =IFERROR(VLOOKUP(B70,'All AUP'!A:E,5,0),0) -> 1141.704416 | J70: 0 | K70: =IFERROR(VLOOKUP('Finalize Items'!B70,'Qty UP'!B:G,6,0),I70) -> 1141.704416 | L70: 0
A71: 0
A72: 1 | I72: STRUCTURES DRAINAGE TOTAL (ROUNDED) | J72: =IF(ROUNDUP(SUM(J65:J71),-2)<0,0,ROUNDUP(SUM(J65:J71),-2)) -> 0 | L72: =IF(ROUNDUP(SUM(L65:L71),-2)<0,0,ROUNDUP(SUM(L65:L71),-2)) -> 0
A73: 1
A74: 1 | B74: Concrete Flatwork
A75: 0 | B75: 701-01.01 | C75: Concrete Flatwork | D75: CONCRETE SIDEWALK (4 ") | E75: SF | F75: =IF(Tool!$D$46="No Errors",Median!M18+Drainage!L8,0) -> 0 | H75: =F75+G75 -> 0 | I75: =IFERROR(VLOOKUP(B75,'All AUP'!A:E,5,0),0) -> 9.427509924 | J75: =IF(H75<>"",H75*I75,"") -> 0 | K75: =IFERROR(VLOOKUP('Finalize Items'!B75,'Qty UP'!B:G,6,0),I75) -> 9.427509924 | L75: =H75*K75 -> 0
A76: 0 | B76: 702-03 | C76: Concrete Flatwork | D76: CONCRETE COMBINED CURB & GUTTER | E76: CY | F76: =IF(Tool!$D$46="No Errors",Median!M16+Drainage!L9,0) -> 0 | H76: =F76+G76 -> 0 | I76: =IFERROR(VLOOKUP(B76,'All AUP'!A:E,5,0),0) -> 564.9938666 | J76: =IF(H76<>"",H76*I76,"") -> 0 | K76: =IFERROR(VLOOKUP('Finalize Items'!B76,'Qty UP'!B:G,6,0),I76) -> 564.9938666 | L76: 0
A77: 0 | B77: 701-02.03 | C77: Concrete Flatwork | D77: CONCRETE CURB RAMP | E77: SF | H77: =G77 -> 0 | I77: =IFERROR(VLOOKUP(B77,'All AUP'!A:E,5,0),0) -> 29.85937438 | J77: =IF(H77<>"",H77*I77,"") -> 0 | K77: =IFERROR(VLOOKUP('Finalize Items'!B77,'Qty UP'!B:G,6,0),I77) -> 29.85937438
A78: 0 | B78: 701-02.01 | C78: Concrete Flatwork | D78: CONCRETE CURB RAMP (RETROFIT) | E78: SF | H78: =G78 -> 0 | I78: =IFERROR(VLOOKUP(B78,'All AUP'!A:E,5,0),0) -> 42.31575572 | J78: 0 | K78: =IFERROR(VLOOKUP('Finalize Items'!B78,'Qty UP'!B:G,6,0),I78) -> 42.31575572
A79: 0 | B79: 702-01 | C79: Concrete Flatwork | D79: CONCRETE CURB | E79: CY | H79: 0 | I79: =IFERROR(VLOOKUP(B79,'All AUP'!A:E,5,0),0) -> 953.4070379 | J79: 0 | K79: =IFERROR(VLOOKUP('Finalize Items'!B79,'Qty UP'!B:G,6,0),I79) -> 953.4070379
A80: 0 | B80: 701-02.06 | C80: Concrete Flatwork | D80: DETECTABLE WARNING SURFACE (REHABILITATION) | E80: SF | H80: 0 | I80: =IFERROR(VLOOKUP(B80,'All AUP'!A:E,5,0),0) -> 58.9684413 | J80: 0 | K80: =IFERROR(VLOOKUP('Finalize Items'!B80,'Qty UP'!B:G,6,0),I80) -> 58.9684413
A81: 0
A82: 1 | I82: ROADWAY AND PAVEMENT APPURTENANCES TOTAL (ROUNDED) | J82: =IF(ROUNDUP(SUM(J75:J81),-2)<0,0,ROUNDUP(SUM(J75:J81),-2)) -> 0 | L82: =IF(ROUNDUP(SUM(L75:L81),-2)<0,0,ROUNDUP(SUM(L75:L81),-2)) -> 0
A83: 1
A84: 1 | B84: Barriers
A85: 0 | B85: 711-05.71 | C85: Barriers | D85: 51IN SINGLE SLOPE CONCRETE BARRIER WALL | E85: LF | F85: =IF(Tool!$D$46="No Errors",Median!M14,0) -> 0 | H85: =G85+F85 -> 0 | I85: =IFERROR(VLOOKUP(B85,'All AUP'!A:E,5,0),0) -> 210.7981708 | J85: =IF(H85<>"",H85*I85,"") -> 0 | K85: =IFERROR(VLOOKUP('Finalize Items'!B85,'Qty UP'!B:G,6,0),I85) -> 210.7981708 | L85: =H85*K85 -> 0
A86: 1 | I86: BARRIERS TOTAL (ROUNDED) | J86: =IF(ROUNDUP(SUM(J85),-2)<0,0,ROUNDUP(SUM(J85),-2)) -> 0 | L86: =IF(ROUNDUP(SUM(L85),-2)<0,0,ROUNDUP(SUM(L85),-2)) -> 0
A87: 1
A88: 1 | B88: Engineering
A89: 1 | B89: 105-01 | C89: Engineering | D89: Construction Lines and Stakes | E89: LS | F89: 1 | H89: =F89 -> 1 | J89: =MROUND(IF(Tool!D46="No Errors",0.00000000004*(M89^2)+0.0096*M89+16594,0),1000) -> 0 | L89: =MROUND(IF(Tool!D46="No Errors",0.00000000004*(N89^2)+0.0096*N89+16594,0),1000) -> 0 | M89: =SUM('Cost Estimate'!N15:N31)+'Cost Estimate'!N35+'Cost Estimate'!N36+'Cost Estimate'!N37 -> 0 | N89: =SUM('Cost Estimate'!O15:O31)+'Cost Estimate'!O35+'Cost Estimate'!O36+'Cost Estimate'!O37 -> 0
A90: 1 | I90: ENGINEERING TOTAL (ROUNDED) | J90: =J89 -> 0 | L90: =L89 -> 0
A91: 1
A92: 1 | B92: Structures_Bridge
A93: =IF(H93>0,1,0) -> 0 | B93: N/A | C93: Structures_Bridge | D93: Widen Existing Bridge (Box): | E93: SF | F93: =Bridges!E10 -> 0 | H93: =F93+G93 -> 0 | I93: =K93 -> 62.58 | J93: =IF(H93<>"",H93*I93,"") -> 0 | K93: =42*(1+0.07*7) -> 62.58 | L93: =J93 -> 0
A94: 0 | B94: N/A | C94: Structures_Bridge | D94: Widen Existing Bridge (Concrete I-Beam & Bulb-T): | E94: SF | F94: =Bridges!E11 -> 0 | H94: 0 | I94: =K94 -> 71.52 | J94: 0 | K94: =48*(1+0.07*7) -> 71.52 | L94: 0
A95: 0 | B95: N/A | C95: Structures_Bridge | D95: Widen Existing Bridge (Concrete Box Beam): | E95: SF | F95: =Bridges!E12 -> 0 | H95: 0 | I95: =K95 -> 71.52 | J95: 0 | K95: =48*(1+0.07*7) -> 71.52 | L95: 0
A96: 0 | B96: N/A | C96: Structures_Bridge | D96: Widen Existing Bridge (Steel Girder): | E96: SF | F96: =Bridges!E13 -> 0 | H96: 0 | I96: 89.4 | J96: 0 | K96: =60*(1+0.07*7) -> 89.4 | L96: 0
A97: 0 | B97: N/A | C97: Structures_Bridge | D97: New Bridge (Box): | E97: SF | F97: =Bridges!E14 -> 0 | H97: 0 | I97: 175 | J97: 0 | K97: 175 | L97: 0
A98: 0 | B98: N/A | C98: Structures_Bridge | D98: New Bridge (Concrete I-Beam & Bulb-T): | E98: SF | F98: =Bridges!E15 -> 0 | H98: 0 | I98: 240 | J98: 0 | K98: 240 | L98: 0
A99: 0 | B99: N/A | C99: Structures_Bridge | D99: New Bridge (Concrete Box Beam): | E99: SF | F99: =Bridges!E16 -> 0 | H99: 0 | I99: 300 | J99: 0 | K99: 300 | L99: 0
A100: 0 | B100: N/A | C100: Structures_Bridge | D100: New Bridge (Steel Girder): | E100: SF | F100: =Bridges!E17 -> 0 | H100: 0 | I100: 350 | J100: 0 | K100: 350 | L100: 0
A101: 0 | B101: N/A | C101: Structures_Bridge | D101: Contingency - New Bridge (Box): | E101: % | F101: =Bridges!E18 -> 0 | H101: 0 | I101: =F101+G101 -> 0 | J101: =J97*I101 -> 0 | K101: =I101 -> 0 | L101: =J101 -> 0
A102: 0 | B102: N/A | C102: Structures_Bridge | D102: Contingency - New Bridge (Concrete I-Beam & Bulb-T): | E102: % | F102: =Bridges!E19 -> 0 | H102: 0 | I102: =F102+G102 -> 0 | J102: =J98*I102 -> 0 | K102: 0 | L102: =J102 -> 0
A103: 0 | B103: N/A | C103: Structures_Bridge | D103: Contingency - New Bridge (Concrete Box Beam): | E103: % | F103: =Bridges!E20 -> 0 | H103: 0 | I103: 0 | J103: =J99*I103 -> 0 | K103: 0 | L103: 0
A104: 0 | B104: N/A | C104: Structures_Bridge | D104: Contingency - New Bridge (Steel Girder): | E104: % | F104: =Bridges!E21 -> 0 | H104: 0 | I104: 0 | J104: =J100*I104 -> 0 | K104: 0 | L104: 0
A105: 1 | I105: STRUCTURES TOTAL (ROUNDED) | J105: =IF(ROUNDUP(SUM(J93:J104),-2)<0,0,ROUNDUP(SUM(J93:J104),-2)) -> 0 | L105: =IF(ROUNDUP(SUM(L93:L104),-2)<0,0,ROUNDUP(SUM(L93:L104),-2)) -> 0
A106: 1
A107: 1 | B107: Removal
A108: 0 | B108: N/A | C108: Removal | D108: Removal of Bridge | E108: SF | F108: =Bridges!E9 -> 0 | H108: =F108+G108 -> 0 | I108: 30 | J108: =IF(H108<>"",H108*I108,"") -> 0 | K108: =I108 -> 30 | L108: =H108*K108 -> 0
A109: 0 | B109: N/A | C109: Removal | D109: Removal of Walls | E109: SF | H109: =G109 -> 0 | I109: 30 | J109: =H109*I109 -> 0 | K109: =I109 -> 30 | L109: 0
A110: 0 | B110: 202-08.15 | C110: Removal | D110: REMOVAL OF CURB AND GUTTER (DESCRIPTION) | E110: LF | H110: =G110 -> 0
A111: 0
A112: 1 | I112: REMOVAL TOTAL (ROUNDED) | J112: =SUM(J108:J111) -> 0 | L112: =SUM(L108:L111) -> 0
A113: 1
A114: 1 | B114: Walls
A115: 0 | B115: 604-07.01 | C115: Walls | D115: RETAINING WALLS | E115: SF | F115: =Bridges!E22 -> 0 | H115: =F115+G115 -> 0 | I115: 200 | J115: =IF(H115<>"",H115*I115,"") -> 0 | K115: =I115 -> 200 | L115: =H115*K115 -> 0
A116: 0 | B116: 604-07.02 | C116: Walls | D116: RETAINING WALL #1 | E116: SF | H116: =F116+G116 -> 0 | I116: 400 | J116: 0 | K116: =I116 -> 400 | L116: 0
A117: 0 | B117: 604-07.03 | C117: Walls | D117: RETAINING WALL #2 | E117: SF | H117: 0 | I117: 300 | J117: 0 | K117: 300 | L117: 0
A118: 0 | B118: 604-07.04 | C118: Walls | D118: RETAINING WALL #3 | E118: SF | H118: 0 | I118: 250 | J118: 0 | K118: 250 | L118: 0
A119: 0 | B119: 604-07.05 | C119: Walls | D119: RETAINING WALL #4 | E119: SF | H119: 0 | I119: 150 | J119: 0 | K119: 150 | L119: 0
A120: 0 | B120: 604-07.06 | C120: Walls | D120: RETAINING WALL #5 | E120: SF | H120: 0 | I120: 125 | J120: 0 | K120: 125 | L120: 0
A121: 0 | B121: 604-07.07 | C121: Walls | D121: RETAINING WALL #6 | E121: SF | H121: 0 | I121: 100 | J121: 0 | K121: 100 | L121: 0
A122: 1 | I122: WALLS TOTAL (ROUNDED) | J122: =IF(ROUNDUP(SUM(J115:J121),-2)<0,0,ROUNDUP(SUM(J115:J121),-2)) -> 0 | L122: =IF(ROUNDUP(SUM(L115:L121),-2)<0,0,ROUNDUP(SUM(L115:L121),-2)) -> 0
A123: 1
A124: 1 | B124: Temporary Erosion Control
A125: 1 | B125: N/A | C125: Temporary Erosion Control | D125: Erosion Control | E125: LS | H125: 1 | J125: =M125*0.015 -> 0 | L125: =N125*0.015 -> 0 | M125: =SUM('Cost Estimate'!N15:N31)+'Cost Estimate'!N35+'Cost Estimate'!N36+'Cost Estimate'!N37 -> 0 | N125: =SUM('Cost Estimate'!O15:O31)+'Cost Estimate'!O35+'Cost Estimate'!O36+'Cost Estimate'!O37 -> 0
A126: 1 | I126: EROSION CONTROL TOTAL (ROUNDED) | J126: =J125 -> 0 | L126: =L125 -> 0
A127: 1
A128: 1 | B128: Guardrail/Attenuators
A129: 0 | B129: 705-01.01 | C129: Guardrails/Attenuators | D129: GUARDRAIL AT BRIDGE ENDS | E129: LF | F129: =IF(Tool!$D$46="No Errors",25*4*SUM(Bridges!B10:B17),0) -> 0 | H129: =F129+G129 -> 0 | I129: =IFERROR(VLOOKUP(B129,'All AUP'!A:E,5,0),0) -> 103.7481369 | J129: =IF(H129<>"",H129*I129,"") -> 0 | K129: =IFERROR(VLOOKUP('Finalize Items'!B129,'Qty UP'!B:G,6,0),I129) -> 103.7481369 | L129: =H129*K129 -> 0
A130: 0 | B130: 705-02.02 | C130: Guardrails/Attenuators | D130: SINGLE GUARDRAIL (TYPE 2) | E130: LF | H130: =G131 -> 0 | I130: =IFERROR(VLOOKUP(B130,'All AUP'!A:E,5,0),0) -> 33.57054478 | J130: 0 | K130: =IFERROR(VLOOKUP('Finalize Items'!B130,'Qty UP'!B:G,6,0),I130) -> 33.57054478 | L130: 0
A131: 0 | B131: 705-02.10 | C131: Guardrails/Attenuators | D131: GUARDRAIL TRANSITION 27IN TO 31IN | E131: EA | H131: =G132 -> 0 | I131: =IFERROR(VLOOKUP(B131,'All AUP'!A:E,5,0),0) -> 180.2344658 | J131: 0 | K131: =IFERROR(VLOOKUP('Finalize Items'!B131,'Qty UP'!B:G,6,0),I131) -> 180.2344658 | L131: 0
A132: 0 | B132: 705-06.01 | C132: Guardrails/Attenuators | D132: W BEAM GR (TYPE 2) MASH TL-3 | E132: LF | H132: =G133 -> 0 | I132: =IFERROR(VLOOKUP(B132,'All AUP'!A:E,5,0),0) -> 34.02828934 | J132: 0 | K132: =IFERROR(VLOOKUP('Finalize Items'!B132,'Qty UP'!B:G,6,0),I132) -> 34.02828934 | L132: 0
A133: 0 | B133: 705-06.20 | C133: Guardrails/Attenuators | D133: TANGENT ENERGY ABSORBING TERM MASH TL-3 | E133: EA | F133: =IF(Tool!$D$46="No Errors",Terrain!AC14+Bridges!E30,0) -> 0 | H133: =F133+G133 -> 0 | I133: =IFERROR(VLOOKUP(B133,'All AUP'!A:E,5,0),0) -> 3628.873034 | J133: 0 | K133: =IFERROR(VLOOKUP('Finalize Items'!B133,'Qty UP'!B:G,6,0),I133) -> 3628.873034 | L133: 0
A134: 0 | B134: 705-04.09 | C134: Guardrails/Attenuators | D134: EARTH PAD FOR TYPE 38 GR END TREATMENT | E134: EA | H134: =F134+G134 -> 0 | I134: =IFERROR(VLOOKUP(B134,'All AUP'!A:E,5,0),0) -> 1418.335223 | J134: 0 | K134: =VLOOKUP(B134,'All AUP'!A:E,5,0) -> 1418.335223 | L134: 0
A135: 0 | B135: 705-04.10 | C135: Guardrails/Attenuators | D135: EARTH PAD FOR GUARD RAIL END TREATMENT | E135: EA | H135: =G136 -> 0 | I135: =IFERROR(VLOOKUP(B135,'All AUP'!A:E,5,0),0) -> 2025.598854 | J135: 0 | K135: =IFERROR(VLOOKUP('Finalize Items'!B135,'Qty UP'!B:G,6,0),I135) -> 2025.598854 | L135: 0
A136: 0 | B136: 705-04.21 | C136: Guardrails/Attenuators | D136: GUARDRAIL DELINEATION ENHANCEMENT | E136: LF | H136: =G137 -> 0 | I136: =IFERROR(VLOOKUP(B136,'All AUP'!A:E,5,0),0) -> 4.327661864 | J136: 0 | K136: =VLOOKUP(B136,'All AUP'!A:E,5,0) -> 4.327661864 | L136: 0
A137: 0 | B137: 705-04.24 | C137: Guardrails/Attenuators | D137: GUARDRAIL END TERMINAL DELINEATION SHEETING | E137: SF | H137: =G138 -> 0 | I137: =IFERROR(VLOOKUP(B137,'All AUP'!A:E,5,0),0) -> 62.23208511 | J137: 0 | K137: =IFERROR(VLOOKUP('Finalize Items'!B137,'Qty UP'!B:G,6,0),I137) -> 62.23208511 | L137: 0
A138: 0 | B138: 705-06.02 | C138: Guardrails/Attenuators | D138: W BEAM GR (TYPE 2) MASH TL-3 (LONG POST) | E138: LF | H138: 0 | I138: =IFERROR(VLOOKUP(B138,'All AUP'!A:E,5,0),0) -> 39.54608082 | J138: 0 | K138: =IFERROR(VLOOKUP('Finalize Items'!B138,'Qty UP'!B:G,6,0),I138) -> 39.54608082 | L138: 0
A139: 0 | B139: 705-06.30 | C139: Guardrails/Attenuators | D139: GR TERMINAL (ENERGY ABSORBING) MASH TL-2 | E139: EA | H139: 0 | I139: =IFERROR(VLOOKUP(B139,'All AUP'!A:E,5,0),0) -> 3585.378566 | J139: 0 | K139: =IFERROR(VLOOKUP('Finalize Items'!B139,'Qty UP'!B:G,6,0),I139) -> 3585.378566 | L139: 0
A140: 0 | B140: 705-06.40 | C140: Guardrails/Attenuators | D140: CABLE BARRIER (MASH TL-3) | E140: LF | H140: 0 | I140: =IFERROR(VLOOKUP(B140,'All AUP'!A:E,5,0),0) -> 43.97183389 | J140: 0 | K140: =IFERROR(VLOOKUP('Finalize Items'!B140,'Qty UP'!B:G,6,0),I140) -> 43.97183389 | L140: 0
A141: 0 | B141: 705-06.41 | C141: Guardrails/Attenuators | D141: CABLE BARRIER ANCHOR (MASH TL-3) | E141: EA | H141: 0 | I141: =IFERROR(VLOOKUP(B141,'All AUP'!A:E,5,0),0) -> 5074.128144 | J141: 0 | K141: =IFERROR(VLOOKUP('Finalize Items'!B141,'Qty UP'!B:G,6,0),I141) -> 5074.128144 | L141: 0
A142: 0 | B142: 705-08.24 | C142: Guardrails/Attenuators | D142: TAU-II CABLE GUIDE KIT (UNIVERSAL) | E142: EA | H142: 0 | I142: =IFERROR(VLOOKUP(B142,'All AUP'!A:E,5,0),0) -> 592.48 | J142: 0 | K142: =IFERROR(VLOOKUP('Finalize Items'!B142,'Qty UP'!B:G,6,0),I142) -> 592.48 | L142: 0
A143: 0 | B143: 705-08.51 | C143: Guardrails/Attenuators | D143: PORTABLE IMPACT ATTENUATOR NCHRP350 TL-3 | E143: EA | H143: =G143 -> 0 | I143: =IFERROR(VLOOKUP(B143,'All AUP'!A:E,5,0),0) -> 10396.31148 | J143: 0 | K143: =VLOOKUP(B143,'All AUP'!A:E,5,0) -> 10396.31148 | L143: 0
A144: 0 | B144: 705-80.21 | C144: Guardrails/Attenuators | D144: LONGITUDINAL CABLE BARRIER CABLE | E144: LF | H144: 0 | I144: =IFERROR(VLOOKUP(B144,'All AUP'!A:E,5,0),0) -> 1.882618099 | J144: 0 | K144: =VLOOKUP(B144,'All AUP'!A:E,5,0) -> 1.882618099 | L144: 0
A145: 0 | B145: 706-01 | C145: Guardrails/Attenuators | D145: GUARDRAIL REMOVED | E145: LF | H145: 0 | I145: =IFERROR(VLOOKUP(B145,'All AUP'!A:E,5,0),0) -> 2.964656919 | J145: 0 | K145: =VLOOKUP(B145,'All AUP'!A:E,5,0) -> 2.964656919 | L145: 0
A146: 0 | B146: 706-06.03 | C146: Guardrails/Attenuators | D146: RADIUS RAIL | E146: LF | H146: 0 | I146: =IFERROR(VLOOKUP(B146,'All AUP'!A:E,5,0),0) -> 42.18643402 | J146: 0 | K146: =VLOOKUP(B146,'All AUP'!A:E,5,0) -> 42.18643402 | L146: 0
A147: 0 | B147: 706-06.06 | C147: Guardrails/Attenuators | D147: RADIUS RAIL LONG POST (9-12 FT) | E147: LF | H147: 0 | I147: =IFERROR(VLOOKUP(B147,'All AUP'!A:E,5,0),0) -> 44.5546875 | J147: 0 | K147: =VLOOKUP(B147,'All AUP'!A:E,5,0) -> 44.5546875 | L147: 0
A148: 0 | B148: 706-10.26 | C148: Guardrails/Attenuators | D148: ROUNDED END ELEMENT | E148: EA | H148: 0 | I148: =IFERROR(VLOOKUP(B148,'All AUP'!A:E,5,0),0) -> 230.3382936 | J148: 0 | K148: =VLOOKUP(B148,'All AUP'!A:E,5,0) -> 230.3382936 | L148: 0
A149: 0 | B149: 706-10.54 | C149: Guardrails/Attenuators | D149: RE-ALIGN GUARDRAIL | E149: LF | H149: 0 | I149: =IFERROR(VLOOKUP(B149,'All AUP'!A:E,5,0),0) -> 4.903139613 | J149: 0 | K149: =VLOOKUP(B149,'All AUP'!A:E,5,0) -> 4.903139613 | L149: 0
A150: 0 | B150: 705-80.04 | C150: Guardrails/Attenuators | D150: SOCKETED LINE POST W/ALL ACCESSORIES | E150: EA | H150: 0 | I150: =IFERROR(VLOOKUP(B150,'All AUP'!A:E,5,0),0) -> 204.6365213 | J150: 0 | K150: =IFERROR(VLOOKUP('Finalize Items'!B150,'Qty UP'!B:G,6,0),I150) -> 204.6365213 | L150: 0
A151: 0 | B151: 705-80.19 | C151: Guardrails/Attenuators | D151: HARDWARE FOR ATTACHING ALL CABLES TO A SINGLE POST | E151: EA | H151: 0 | I151: =IFERROR(VLOOKUP(B151,'All AUP'!A:E,5,0),0) -> 79.49551084 | J151: 0 | K151: =IFERROR(VLOOKUP('Finalize Items'!B151,'Qty UP'!B:G,6,0),I151) -> 79.49551084 | L151: 0
A152: 0
A153: 1 | I153: GUARDRAIL/ATTENUATORS TOTAL (ROUNDED) | J153: =IF(ROUNDUP(SUM(J129:J152),-2)<0,0,ROUNDUP(SUM(J129:J152),-2)) -> 0 | L153: =IF(ROUNDUP(SUM(L129:L152),-2)<0,0,ROUNDUP(SUM(L129:L152),-2)) -> 0
A154: 1
A155: 1 | B155: Landscaping
A156: 0 | B156: 801-01 | C156: Landscaping | D156: SEEDING (WITH MULCH) | E156: UNIT | F156: =IF(Tool!$D$46="No Errors",Drainage!L16,0) -> 0 | H156: =F156+G156 -> 0 | I156: =IFERROR(VLOOKUP(B156,'All AUP'!A:E,5,0),0) -> 60.22565282 | J156: =IF(H156<>"",H156*I156,"") -> 0 | K156: =IFERROR(VLOOKUP('Finalize Items'!B156,'Qty UP'!B:G,6,0),I156) -> 60.22565282 | L156: =H156*K156 -> 0
A157: 0 | B157: 801-01.07 | C157: Landscaping | D157: TEMPORARY SEEDING (WITH MULCH) | E157: UNIT | F157: =IF(Tool!$D$46="No Errors",Drainage!L17,0) -> 0 | H157: =F157+G157 -> 0 | I157: =IFERROR(VLOOKUP(B157,'All AUP'!A:E,5,0),0) -> 41.21616002 | J157: =IF(H157<>"",H157*I157,"") -> 0 | K157: =IFERROR(VLOOKUP('Finalize Items'!B157,'Qty UP'!B:G,6,0),I157) -> 41.21616002 | L157: 0
A158: 0 | B158: 801-02 | C158: Landscaping | D158: SEEDING (WITHOUT MULCH) | E158: UNIT | F158: =IF(Tool!$D$46="No Errors",Drainage!L18,0) -> 0 | H158: =F158+G158 -> 0 | I158: =IFERROR(VLOOKUP(B158,'All AUP'!A:E,5,0),0) -> 36.31904685 | J158: =IF(H158<>"",H158*I158,"") -> 0 | K158: =IFERROR(VLOOKUP('Finalize Items'!B158,'Qty UP'!B:G,6,0),I158) -> 36.31904685 | L158: 0
A159: 0 | H159: =G159 -> 0 | J159: =IF(H159<>"",H159*I159,"") -> 0
A160: 1 | I160: SODDING TOTAL (ROUNDED) | J160: =IF(ROUNDUP(SUM(J156:J159),-2)<0,0,ROUNDUP(SUM(J156:J159),-2)) -> 0 | L160: =IF(ROUNDUP(SUM(L156:L159),-2)<0,0,ROUNDUP(SUM(L156:L159),-2)) -> 0
A161: 1
A162: 1 | B162: Traffic Control Temporary for Construction
A163: =IF(H163>0,1,0) -> 0 | B163: N/A | C163: Traffic Control_Temporary For Const. | D163: Traffic Control Cost | E163: LS | F163: =IF(Tool!$D$46="No Errors",1,0) -> 0 | H163: =F163+G163 -> 0 | J163: =M163*Tool!P225 -> 0 | L163: =N163*Tool!P225 -> 0 | M163: =SUM('Cost Estimate'!N15:N30, 'Cost Estimate'!N35:N37) -> 0 | N163: =SUM('Cost Estimate'!O15:O30, 'Cost Estimate'!O35:O37) -> 0
A164: 0 | B164: 730-40 | C164: Traffic Control_Temporary For Const. | D164: TEMPORARY TRAFFIC SIGNAL SYSTEM | E164: EA | H164: =G164 -> 0 | I164: =IFERROR(VLOOKUP(B164,'All AUP'!A:E,5,0),0) -> 57612.90292 | J164: =IF(H164<>"",H164*I164,"") -> 0 | K164: =IFERROR(VLOOKUP('Finalize Items'!B164,'Qty UP'!B:G,6,0),I164) -> 57612.90292 | L164: =H164*K164 -> 0
A165: 0
A166: 1 | I166: TRAFFIC CONTROL TEMP. TOTAL (ROUNDED) | J166: =IF(ROUNDUP(SUM(J163:J164),-2)<0,0,ROUNDUP(SUM(J163:J164),-2)) -> 0 | L166: =IF(ROUNDUP(SUM(L163:L164),-2)<0,0,ROUNDUP(SUM(L163:L164),-2)) -> 0
A167: 1
A168: 1 | B168: Traffic Control Permanent
A169: 0 | B169: N/A | C169: Traffic Control_Permanent | D169: Traffic Signal | E169: EA | F169: =Tool!F36 -> 0 | H169: =F169+G169 -> 0 | I169: =250000*(1+0.05*5) -> 312500 | J169: =IF(H169<>"",H169*I169,"") -> 0 | K169: =I169 -> 312500 | L169: =H169*K169 -> 0
A170: 0 | B170: N/A | C170: Traffic Control_Permanent | D170: HIGH MAST INTERCHANGE LIGHTING | E170: LS | H170: =G170 -> 0 | I170: 2000000 | J170: =(H170*I170) -> 0 | K170: =I170 -> 2000000 | L170: 0
A171: 0 | B171: 714-01.38 | C171: Traffic Control_Permanent | D171: Light Pole Relocation | E171: EA | H171: =G171 -> 0 | I171: =VLOOKUP(B171,'All AUP'!A:E,5,0) -> 3740 | J171: =(H171*I171) -> 0 | K171: =VLOOKUP(B171,'All AUP'!A:E,5,0) -> 3740 | L171: 0
A172: 0 | B172: N/A | C172: Traffic Control_Permanent | D172: ITS Installation | E172: Mi | H172: =G172 -> 0 | I172: 1000000 | J172: =(H172*I172) -> 0 | K172: =I172 -> 1000000 | L172: 0
A173: 0 | B173: 713-01.01 | C173: Traffic Control_Permanent | D173: CLASS A CONCRETE (FOUNDATION FOR SIGN SUPPORTS) | E173: Cycl | H173: =G173 -> 0 | I173: =VLOOKUP(B173,'All AUP'!A:E,5,0) -> 648.3835471 | J173: =H173*I173 -> 0 | K173: =VLOOKUP(B173,'All AUP'!A:E,5,0) -> 648.3835471 | L173: 0
A174: 0 | B174: 713-01.02 | C174: Traffic Control_Permanent | D174: STEEL BAR REINFORCEMENT(FOUNDATION FOR SIGN SUPPORTS) | E174: LB | H174: 0 | I174: =VLOOKUP(B174,'All AUP'!A:E,5,0) -> 3.379160665 | J174: 0 | K174: =VLOOKUP(B174,'All AUP'!A:E,5,0) -> 3.379160665 | L174: 0
A175: 0 | B175: 713-02.04 | C175: Traffic Control_Permanent | D175: DELINEATOR (MILE MARKER) & STEEL POST | E175: EA | H175: 0 | I175: =VLOOKUP(B175,'All AUP'!A:E,5,0) -> 245.9529907 | J175: 0 | K175: =VLOOKUP(B175,'All AUP'!A:E,5,0) -> 245.9529907 | L175: 0
A176: 0 | B176: 713-02.11 | C176: Traffic Control_Permanent | D176: REMOVAL OF EXISTING DELINEATORS | E176: EA | H176: 0 | I176: =VLOOKUP(B176,'All AUP'!A:E,5,0) -> 10.94994586 | J176: 0 | K176: =VLOOKUP(B176,'All AUP'!A:E,5,0) -> 10.94994586 | L176: 0
A177: 0 | B177: 713-02.14 | C177: Traffic Control_Permanent | D177: FLEXIBLE DELINEATOR (WHITE) | E177: EA | H177: 0 | I177: =VLOOKUP(B177,'All AUP'!A:E,5,0) -> 50.18848498 | J177: 0 | K177: =VLOOKUP(B177,'All AUP'!A:E,5,0) -> 50.18848498 | L177: 0
A178: 0 | B178: 713-02.15 | C178: Traffic Control_Permanent | D178: FLEXIBLE DELINEATOR (YELLOW) | E178: EA | H178: 0 | I178: =VLOOKUP(B178,'All AUP'!A:E,5,0) -> 49.84822809 | J178: 0 | K178: =VLOOKUP(B178,'All AUP'!A:E,5,0) -> 49.84822809 | L178: 0
A179: 0 | B179: 713-02.16 | C179: Traffic Control_Permanent | D179: Flexible Type II Object Marker | E179: EA | H179: 0 | I179: =VLOOKUP(B179,'All AUP'!A:E,5,0) -> 93.56055046 | J179: 0 | K179: =VLOOKUP(B179,'All AUP'!A:E,5,0) -> 93.56055046 | L179: 0
A180: 0 | B180: 713-02.20 | C180: Traffic Control_Permanent | D180: Roadside Obstacle Delineation | E180: SF | H180: 0 | I180: =VLOOKUP(B180,'All AUP'!A:E,5,0) -> 25.26225745 | J180: 0 | K180: =VLOOKUP(B180,'All AUP'!A:E,5,0) -> 25.26225745 | L180: 0
A181: 0 | B181: 713-02.21 | C181: Traffic Control_Permanent | D181: SIGN POST DELINEATION ENHANCEMENT | E181: LF | H181: 0 | I181: =VLOOKUP(B181,'All AUP'!A:E,5,0) -> 5.866298411 | J181: 0 | K181: =VLOOKUP(B181,'All AUP'!A:E,5,0) -> 5.866298411 | L181: 0
A182: 0 | B182: 713-02.22 | C182: Traffic Control_Permanent | D182: Barrier Wall Delineation Enhancement | E182: LF | H182: 0 | I182: =VLOOKUP(B182,'All AUP'!A:E,5,0) -> 7.408065306 | J182: 0 | K182: =VLOOKUP(B182,'All AUP'!A:E,5,0) -> 7.408065306 | L182: 0
A183: 0 | B183: 713-02.26 | C183: Traffic Control_Permanent | D183: CONCRETE BARRIER/PARAPET DELINEATOR | E183: EA | H183: 0 | I183: =VLOOKUP(B183,'All AUP'!A:E,5,0) -> 20.91340782 | J183: 0 | K183: =VLOOKUP(B183,'All AUP'!A:E,5,0) -> 20.91340782 | L183: 0
A184: 0 | B184: 713-02.34 | C184: Traffic Control_Permanent | D184: DELINEATORS (ALL) | E184: EA | H184: 0 | I184: =VLOOKUP(B184,'All AUP'!A:E,5,0) -> 24.57466784 | J184: 0 | K184: =VLOOKUP(B184,'All AUP'!A:E,5,0) -> 24.57466784 | L184: 0
A185: 0 | B185: 713-04.02 | C185: Traffic Control_Permanent | D185: Steel I-Beams & W-F Beams-Sign Supports | E185: LB | H185: 0 | I185: =VLOOKUP(B185,'All AUP'!A:E,5,0) -> 6.67445316 | J185: 0 | K185: =VLOOKUP(B185,'All AUP'!A:E,5,0) -> 6.67445316 | L185: 0
A186: 0 | B186: 713-05 | C186: Traffic Control_Permanent | D186: STEEL HOLLOW SQUARE POST (BREAKAWAY) SIGN SUPPORTS | E186: LB | H186: 0 | I186: =VLOOKUP(B186,'All AUP'!A:E,5,0) -> 7.843770025 | J186: 0 | K186: =VLOOKUP(B186,'All AUP'!A:E,5,0) -> 7.843770025 | L186: 0
A187: 0 | B187: 713-06 | C187: Traffic Control_Permanent | D187: STEEL I-BEAMS & WF-BEAMS(BREAKAWAY) SIGN SUPPORT | E187: LB | H187: 0 | I187: =VLOOKUP(B187,'All AUP'!A:E,5,0) -> 6.402223475 | J187: 0 | K187: =VLOOKUP(B187,'All AUP'!A:E,5,0) -> 6.402223475 | L187: 0
A188: 0 | B188: 713-09.01 | C188: Traffic Control_Permanent | D188: STEEL OVERHEAD SIGN STRUCTURE (SPAN 96' - 6") | E188: EA | H188: 0 | I188: =VLOOKUP(B188,'All AUP'!A:E,5,0) -> 149712.702 | J188: 0 | K188: =VLOOKUP(B188,'All AUP'!A:E,5,0) -> 149712.702 | L188: 0
A189: 0 | B189: 713-09.02 | C189: Traffic Control_Permanent | D189: STEEL OVERHEAD SIGN STRUCTURE (SPAN 83' - 0") | E189: EA | H189: 0 | I189: =VLOOKUP(B189,'All AUP'!A:E,5,0) -> 138956.84 | J189: 0 | K189: =VLOOKUP(B189,'All AUP'!A:E,5,0) -> 138956.84 | L189: 0
A190: 0 | B190: 713-09.03 | C190: Traffic Control_Permanent | D190: STEEL OVERHEAD SIGN STRUCTURE (SPAN 90' - 0") | E190: EA | H190: 0 | I190: =VLOOKUP(B190,'All AUP'!A:E,5,0) -> 78721.67714 | J190: 0 | K190: =VLOOKUP(B190,'All AUP'!A:E,5,0) -> 78721.67714 | L190: 0
A191: 0 | B191: 713-09.04 | C191: Traffic Control_Permanent | D191: STEEL OVERHEAD SIGN STRUCTURE (SPAN 60' - 0") | E191: EA | H191: 0 | I191: =VLOOKUP(B191,'All AUP'!A:E,5,0) -> 139879.398 | J191: 0 | K191: =VLOOKUP(B191,'All AUP'!A:E,5,0) -> 139879.398 | L191: 0
A192: 0 | B192: 713-09.05 | C192: Traffic Control_Permanent | D192: STEEL OVERHEAD SIGN STRUCTURE (SPAN 62' - 6") | E192: EA | H192: 0 | I192: =VLOOKUP(B192,'All AUP'!A:E,5,0) -> 165613.96 | J192: 0 | K192: =VLOOKUP(B192,'All AUP'!A:E,5,0) -> 165613.96 | L192: 0
A193: 0 | B193: 713-09.06 | C193: Traffic Control_Permanent | D193: STEEL OVERHEAD SIGN STRUCTURE (SPAN 81') | E193: EA | H193: 0 | I193: =VLOOKUP(B193,'All AUP'!A:E,5,0) -> 234390.7767 | J193: 0 | K193: =VLOOKUP(B193,'All AUP'!A:E,5,0) -> 234390.7767 | L193: 0
A194: 0 | B194: 713-09.07 | C194: Traffic Control_Permanent | D194: STEEL OVERHEAD SIGN STRUCTURE (SPAN 97') | E194: EA | H194: 0 | I194: =VLOOKUP(B194,'All AUP'!A:E,5,0) -> 192947.65 | J194: 0 | K194: =VLOOKUP(B194,'All AUP'!A:E,5,0) -> 192947.65 | L194: 0
A195: 0 | B195: 713-09.08 | C195: Traffic Control_Permanent | D195: STEEL OVERHEAD SIGN STRUCTURE (SPAN 99.5') | E195: EA | H195: 0 | I195: =VLOOKUP(B195,'All AUP'!A:E,5,0) -> 182653.9333 | J195: 0 | K195: =VLOOKUP(B195,'All AUP'!A:E,5,0) -> 182653.9333 | L195: 0
A196: 0 | B196: 713-09.09 | C196: Traffic Control_Permanent | D196: STEEL OVERHEAD SIGN STRUCTURE (SPAN 92.50') | E196: EA | H196: 0 | I196: =VLOOKUP(B196,'All AUP'!A:E,5,0) -> 141312.15 | J196: 0 | K196: =VLOOKUP(B196,'All AUP'!A:E,5,0) -> 141312.15 | L196: 0
A197: 0 | B197: 713-09.10 | C197: Traffic Control_Permanent | D197: STEEL OVERHEAD SIGN STRUCTURE (SPAN 92.50') | E197: EA | H197: 0 | I197: =VLOOKUP(B197,'All AUP'!A:E,5,0) -> 139786.5 | J197: 0 | K197: =VLOOKUP(B197,'All AUP'!A:E,5,0) -> 139786.5 | L197: 0
A198: 0 | B198: 713-09.11 | C198: Traffic Control_Permanent | D198: STEEL OVERHEAD SIGN STRUCTURE (SPAN 165.50') | E198: EA | H198: 0 | I198: =VLOOKUP(B198,'All AUP'!A:E,5,0) -> 147369.6 | J198: 0 | K198: =VLOOKUP(B198,'All AUP'!A:E,5,0) -> 147369.6 | L198: 0
A199: 0 | B199: 713-11.01 | C199: Traffic Control_Permanent | D199: "U" SECTION STEEL POSTS | E199: LB | H199: =G199 -> 0 | I199: =VLOOKUP(B199,'All AUP'!A:E,5,0) -> 5.107659413 | J199: 0 | K199: =VLOOKUP(B199,'All AUP'!A:E,5,0) -> 5.107659413 | L199: 0
A200: 0 | B200: 713-11.02 | C200: Traffic Control_Permanent | D200: PERFORATED/KNOCKOUT SQUARE TUBE POST | E200: LB | H200: 0 | I200: =VLOOKUP(B200,'All AUP'!A:E,5,0) -> 5.295228759 | J200: 0 | K200: =VLOOKUP(B200,'All AUP'!A:E,5,0) -> 5.295228759 | L200: 0
... 186 more rows

Sheet Cost Estimate
A1: 1 | B1: COST ESTIMATE SUMMARY
A2: 1 | B2: Route:
A3: 1 | B3: Termini:
A4: 1 | B4: Scope of Work:
A5: 1 | B5: Project Type of Work:
A6: 1 | B6: County: | J6: Estimate Developed By
A7: 1 | B7: Length: | C7: =Tool!J54-Tool!J52 -> 0 | D7: Miles | J7: Initial/Organization
A8: 1 | B8: Date: | C8: =TODAY() -> 2026-03-09
A9: 1 | B9: Estimate Type: | C9: Design-Bid-Build
A10: 1 | B10: Years Inflated: | C10: 0
A11: 1
A12: 1 | B12: DESCRIPTION | D12: LOCAL | F12: STATE | H12: FEDERAL | J12: TOTAL | L12: % Class Constributions
A13: 1 | D13: 0 | F13: 0 | H13: 0 | N13: =SUM('Cost Estimate'!N15:N33)+'Cost Estimate'!N35+'Cost Estimate'!N36+'Cost Estimate'!N37 -> 0
A14: 1 | B14: Construction Item Classifications | N14: =(1+'Inflated Cost'!$D$57)^'Cost Estimate'!$C$10 -> 1 | T14: Threshold | U14: Round to
A15: 1 | B15: Earthwork | D15: =MROUND($J15*E15,100) -> 0 | E15: =$D$13 -> 0 | F15: =MROUND($J15*G15,100) -> 0 | G15: =$F$13 -> 0 | H15: =MROUND($J15*I15,100) -> 0 | I15: =$H$13 -> 0 | J15: =IF(O15<$T$15,MROUND(O15,$U$15), IF(AND(O15>=$T$15,O15<$T$16),MROUND(O15,$U$16), IF(AND(O15>=$T$16,O15<$T$17),MROUND(O15,$U$17), IF(AND(O15>=$T$17,O15<$T$18),MROUND(O15,$U$18), IF(AND(O15>=$T$18,O15<$T$19),MROUND(O15,$U$19), IF(AND(O15>=$T$19,O15<$T$20),MROUND(O15,$U$20), IF(O15>=$T$21,MROUND(O15,$U$21)))))))) -> 0 | L15: =IF(SUM($J$15:$J$33)>0,J15/(SUM($J$15:$J$33)+$J$35+$J$36+$J$37),0) -> 0 | N15: ='Finalize Items'!J31 -> 0 | O15: ='Finalize Items'!L31 -> 0 | P15: =N15-O15 -> 0 | R15: TIER 1 | S15: < | T15: 1000 | U15: 1
A16: 1 | B16: Base Course | D16: =MROUND($J16*E16,100) -> 0 | F16: =MROUND($J16*G16,100) -> 0 | H16: =MROUND($J16*I16,100) -> 0 | J16: =IF(O16<$T$15,MROUND(O16,$U$15), IF(AND(O16>=$T$15,O16<$T$16),MROUND(O16,$U$16), IF(AND(O16>=$T$16,O16<$T$17),MROUND(O16,$U$17), IF(AND(O16>=$T$17,O16<$T$18),MROUND(O16,$U$18), IF(AND(O16>=$T$18,O16<$T$19),MROUND(O16,$U$19), IF(AND(O16>=$T$19,O16<$T$20),MROUND(O16,$U$20), IF(O16>=$T$21,MROUND(O16,$U$21)))))))) -> 0 | L16: =IF(SUM($J$15:$J$33)>0,J16/(SUM($J$15:$J$33)+$J$35+$J$36+$J$37),0) -> 0 | N16: ='Finalize Items'!J36 -> 0 | O16: ='Finalize Items'!L36 -> 0 | P16: =N16-O16 -> 0 | R16: TIER 2 | S16: < | T16: 10000 | U16: 10
A17: 1 | B17: Asphalt | D17: 0 | E17: =$D$13 -> 0 | F17: 0 | G17: =$F$13 -> 0 | H17: 0 | I17: =$H$13 -> 0 | J17: 0 | L17: 0 | N17: ='Finalize Items'!J51 -> 0 | O17: ='Finalize Items'!L51 -> 0 | P17: 0 | R17: TIER 3 | S17: < | T17: 100000 | U17: 100
A18: 1 | B18: Portland Cement Concrete | D18: 0 | E18: 0 | F18: 0 | G18: =$F$13 -> 0 | H18: 0 | I18: 0 | J18: 0 | L18: 0 | N18: ='Finalize Items'!J56 -> 0 | O18: ='Finalize Items'!L56 -> 0 | P18: 0 | R18: TIER 4 | S18: < | T18: 1000000 | U18: 1000
A19: 1 | B19: Drainage | D19: 0 | E19: 0 | F19: 0 | G19: 0 | H19: 0 | I19: 0 | J19: 0 | L19: 0 | N19: ='Finalize Items'!J62 -> 0 | O19: ='Finalize Items'!L62 -> 0 | P19: 0 | R19: TIER 5 | S19: < | T19: 10000000 | U19: 10000
A20: 1 | B20: Structures_Drainage | D20: 0 | F20: 0 | H20: 0 | J20: 0 | L20: 0 | N20: ='Finalize Items'!J72 -> 0 | O20: ='Finalize Items'!L72 -> 0 | P20: 0 | R20: TIER 6 | S20: < | T20: 100000000 | U20: 100000
A21: 1 | B21: Concrete Flatwork | D21: 0 | E21: 0 | F21: 0 | G21: 0 | H21: 0 | I21: 0 | J21: 0 | L21: 0 | N21: ='Finalize Items'!J82 -> 0 | O21: ='Finalize Items'!L82 -> 0 | P21: 0 | R21: TIER 7 | S21: > | T21: 100000000 | U21: 1000000
A22: 1 | B22: Barriers | D22: 0 | E22: 0 | F22: 0 | G22: 0 | H22: 0 | I22: 0 | J22: 0 | L22: 0 | N22: ='Finalize Items'!J86 -> 0 | O22: ='Finalize Items'!L86 -> 0 | P22: 0
A23: 1 | B23: Structures_Bridge | D23: 0 | E23: 0 | F23: 0 | G23: 0 | H23: 0 | I23: 0 | J23: 0 | L23: 0 | N23: ='Finalize Items'!J105 -> 0 | O23: ='Finalize Items'!L105 -> 0 | P23: 0
A24: 1 | B24: Removal | D24: 0 | E24: 0 | F24: 0 | G24: 0 | H24: 0 | J24: 0 | L24: 0 | N24: ='Finalize Items'!J112 -> 0 | O24: ='Finalize Items'!L112 -> 0 | P24: 0
A25: 1 | B25: Walls | D25: 0 | E25: 0 | F25: 0 | G25: 0 | H25: 0 | I25: 0 | J25: 0 | L25: 0 | N25: ='Finalize Items'!J122 -> 0 | O25: ='Finalize Items'!L122 -> 0 | P25: 0
A26: 1 | B26: Landscaping | D26: 0 | E26: 0 | F26: 0 | G26: 0 | H26: 0 | I26: 0 | J26: 0 | L26: 0 | N26: ='Finalize Items'!J160 -> 0 | O26: ='Finalize Items'!L160 -> 0 | P26: 0
A27: 1 | B27: Riprap | D27: 0 | E27: 0 | F27: 0 | G27: 0 | H27: 0 | I27: 0 | J27: 0 | L27: 0 | N27: ='Finalize Items'!J364 -> 0 | O27: ='Finalize Items'!L364 -> 0 | P27: 0
A28: 1 | B28: Guardrails/Attenuators | D28: 0 | E28: 0 | F28: 0 | G28: 0 | H28: 0 | I28: 0 | J28: 0 | L28: 0 | N28: ='Finalize Items'!J153 -> 0 | O28: ='Finalize Items'!L153 -> 0 | P28: 0
A29: 1 | B29: Traffic Control_Permanent | D29: 0 | E29: 0 | F29: 0 | G29: 0 | H29: 0 | I29: 0 | J29: 0 | L29: 0 | N29: ='Finalize Items'!J246 -> 0 | O29: ='Finalize Items'!L246 -> 0 | P29: 0
A30: 1 | B30: Pavement Marking | D30: 0 | F30: 0 | H30: 0 | J30: 0 | L30: 0 | N30: ='Finalize Items'!J338 -> 0 | O30: ='Finalize Items'!L338 -> 0 | P30: 0
A31: 1 | B31: Traffic Control_Temporary For Const. | D31: =MROUND($J31*E31,100) -> 0 | E31: 0 | F31: 0 | G31: 0 | H31: 0 | I31: 0 | J31: =IF(O31<$T$15,MROUND(O31,$U$15), IF(AND(O31>=$T$15,O31<$T$16),MROUND(O31,$U$16), IF(AND(O31>=$T$16,O31<$T$17),MROUND(O31,$U$17), IF(AND(O31>=$T$17,O31<$T$18),MROUND(O31,$U$18), IF(AND(O31>=$T$18,O31<$T$19),MROUND(O31,$U$19), IF(AND(O31>=$T$19,O31<$T$20),MROUND(O31,$U$20), IF(O31>=$T$21,MROUND(O31,$U$21)))))))) -> 0 | L31: 0 | N31: ='Finalize Items'!J166 -> 0 | O31: ='Finalize Items'!L166 -> 0 | P31: 0
A32: 1 | B32: Temporary Erosion Control | D32: =MROUND($J32*E32,100) -> 0 | E32: 0 | F32: 0 | G32: 0 | H32: 0 | I32: 0 | J32: =IF(O32<$T$15,MROUND(O32,$U$15), IF(AND(O32>=$T$15,O32<$T$16),MROUND(O32,$U$16), IF(AND(O32>=$T$16,O32<$T$17),MROUND(O32,$U$17), IF(AND(O32>=$T$17,O32<$T$18),MROUND(O32,$U$18), IF(AND(O32>=$T$18,O32<$T$19),MROUND(O32,$U$19), IF(AND(O32>=$T$19,O32<$T$20),MROUND(O32,$U$20), IF(O32>=$T$21,MROUND(O32,$U$21)))))))) -> 0 | L32: 0 | N32: ='Finalize Items'!J126 -> 0 | O32: ='Finalize Items'!L126 -> 0 | P32: 0
A33: 1 | B33: Engineering | D33: 0 | E33: 0 | F33: =MROUND($J33*G33,100) -> 0 | G33: 0 | H33: =MROUND($J33*I33,100) -> 0 | I33: 0 | J33: 0 | L33: 0 | N33: ='Finalize Items'!J90 -> 0 | O33: ='Finalize Items'!L90 -> 0 | P33: 0
A34: =IF($C$9=$H$93,1,IF(OR($C$9=$H$90,$C$9=$H$91),1,0)) -> 1 | B34: DESIGN-BID-BUILD & DESIGN-BUILD PERCENTAGES | P34: 0
A35: 1 | B35: Mobilization | C35: 0.08 | D35: 0 | E35: 0 | F35: 0 | G35: 0 | H35: =MROUND($J35*I35,100) -> 0 | I35: 0 | J35: 0 | N35: =SUM(N15:N30)*C35 -> 0 | O35: =SUM(O15:O30)*C35 -> 0 | P35: 0 | T35: Min PE Percent | U35: =3/100 -> 0.03
A36: 1 | B36: Allowances | C36: 0.1 | D36: 0 | E36: 0 | F36: 0 | G36: 0 | H36: =MROUND($J36*I36,100) -> 0 | I36: 0 | J36: 0 | N36: =(SUM(N15:N22,N25:N29))*C36 -> 0 | O36: =(SUM(O15:O22,O25:O29))*C36 -> 0 | P36: 0 | T36: Max PE Percent | U36: 0.1
A37: 1 | B37: Const. Contingency (Structures Not Included) | C37: 0.15 | D37: 0 | E37: 0 | F37: 0 | G37: 0 | H37: =MROUND($J37*I37,100) -> 0 | I37: 0 | J37: 0 | N37: =(SUM(N15:N22,N26:N30,N35)*$C$37) -> 0 | O37: =(SUM(O15:O22,O26:O30,O35)*$C$37) -> 0 | P37: 0
A38: 1 | B38: Const. Eng. & Inspec. | C38: 0.08 | D38: 0 | E38: =$D$13 -> 0 | F38: 0 | G38: 0 | H38: =MROUND($J38*I38,100) -> 0 | I38: 0 | J38: 0 | N38: =((SUM(J15:J33)+SUM(J35:J37)+SUM(J47:J48))*C38) -> 0 | O38: =((SUM(O15:O33)+SUM(O35:O37)+SUM(O47:O48))*C38) -> 0 | P38: 0
A39: 1 | B39: Construction Estimate - DBB & DB | D39: =L76*E39 -> 0 | E39: 0 | F39: =J39*G39 -> 0 | G39: =$F$13 -> 0 | H39: =MROUND(J39*I39,100) -> 0 | I39: =$H$13 -> 0 | J39: 0 | N39: =SUM(N15:N38) -> 0 | O39: =SUM(O15:O38) -> 0 | P39: =SUM(P15:P38) -> 0 | Q39: 1
A40: =IF($C$9=$H$93,1,IF($C$9=$H$92,1,0)) -> 0 | B40: CMGC (HIGH RISK) PERCENTAGES
A41: 0 | B41: Mobilization & CM/GC Risk Fees | C41: 0.1 | D41: =MROUND($J41*E41,100) -> 0 | E41: 0 | F41: =MROUND($J41*G41,100) -> 0 | G41: =$F$13 -> 0 | H41: =MROUND($J41*I41,100) -> 0 | I41: =$H$13 -> 0 | J41: 0 | M41: =IF((SUM($J$15:$J$33)+SUM($J$41:$J$44))>0,J41/(SUM($J$15:$J$33)+SUM($J$41:$J$44)),0) -> 0 | N41: =SUM(N15:N31)*$C41 -> 0 | O41: =SUM(O15:O31)*$C41 -> 0
A42: 0 | B42: Allowances | C42: 0.2 | D42: =MROUND($J42*E42,100) -> 0 | E42: 0 | F42: =MROUND($J42*G42,100) -> 0 | G42: =$F$13 -> 0 | H42: =MROUND($J42*I42,100) -> 0 | I42: =$H$13 -> 0 | J42: 0 | M42: =IF((SUM($J$15:$J$33)+SUM($J$41:$J$44))>0,J42/(SUM($J$15:$J$33)+SUM($J$41:$J$44)),0) -> 0 | N42: =(SUM(N15:N31))*$C42 -> 0 | O42: =(SUM(O15:O31))*$C42 -> 0
A43: 0 | B43: Const. Contingency (Structures Not Included) | C43: 0.15 | D43: =MROUND($J43*E43,100) -> 0 | E43: 0 | F43: =MROUND($J43*G43,100) -> 0 | G43: =$F$13 -> 0 | H43: =MROUND($J43*I43,100) -> 0 | I43: =$H$13 -> 0 | J43: 0 | M43: =IF((SUM($J$15:$J$33)+SUM($J$41:$J$44))>0,J43/(SUM($J$15:$J$33)+SUM($J$41:$J$44)),0) -> 0 | N43: =(SUM(N15:N21)+SUM(N23:N31)+SUM(N35:N36))*$C43 -> 0 | O43: =(SUM(O15:O21)+SUM(O23:O31)+SUM(O35:O36))*$C43 -> 0
A44: 0 | B44: Const. Eng. & Inspec. | C44: 0.1 | D44: =MROUND($J44*E44,100) -> 0 | E44: =$D$13 -> 0 | F44: =MROUND($J44*G44,100) -> 0 | G44: =$F$13 -> 0 | H44: =MROUND($J44*I44,100) -> 0 | I44: =$H$13 -> 0 | J44: 0 | M44: =IF((SUM($J$15:$J$33)+SUM($J$41:$J$44))>0,J44/(SUM($J$15:$J$33)+SUM($J$41:$J$44)),0) -> 0 | N44: =((SUM(N15:N31)+SUM(N41:N43)+SUM(N47:N48))*$C44) -> 0 | O44: =((SUM(O15:O31)+SUM(O41:O43)+SUM(O47:O48))*$C44) -> 0
A45: 0 | B45: Construction Estimate - CMGC | D45: =L82*E45 -> 0 | E45: 0 | F45: =J45*G45 -> 0 | G45: =$F$13 -> 0 | H45: =MROUND(J45*I45,100) -> 0 | I45: =$H$13 -> 0 | J45: 0 | N45: =(SUM(N15:N33)+SUM(N41:N44)) -> 0 | O45: =(SUM(O15:O33)+SUM(O41:O44)) -> 0
A46: 0 | B46: Interchanges & Unique Intersections
A47: 0 | B47: Roundabouts | D47: =MROUND($J47*$D$13,100) -> 0 | E47: =$D$13 -> 0 | F47: =MROUND($J47*G47,100) -> 0 | G47: =$F$13 -> 0 | H47: =MROUND($J47*I47,100) -> 0 | I47: =$H$13 -> 0 | J47: =IF(N47<$T$15,MROUND(N47,$U$15),IF(AND(N47>=$T$15,N47<$T$16),MROUND(N47,$U$16),IF(AND(N47>=$T$16,N47<$T$17),MROUND(N47,$U$17),IF(AND(N47>=$T$17,N47<$T$18),MROUND(N47,$U$18),IF(AND(N47>=$T$18,N47<$T$19),MROUND(N47,$U$19),IF(AND(N47>=$T$19,N47<$T$20),MROUND(N47,$U$20),IF(N47>=$T$21,MROUND(N47,$U$21)))))))) -> 0 | N47: =IF('Finalize Items'!J115<>"",'Finalize Items'!J115,0)*(1+'Inflated Cost'!$D$57)^'Cost Estimate'!$C$10 -> 0
A48: 0 | B48: Interchanges | D48: =MROUND($J48*$D$13,100) -> 0 | E48: =$D$13 -> 0 | F48: =MROUND($J48*G48,100) -> 0 | G48: =$F$13 -> 0 | H48: =MROUND($J48*I48,100) -> 0 | I48: =$H$13 -> 0 | J48: =IF(N48<$T$15,MROUND(N48,$U$15),IF(AND(N48>=$T$15,N48<$T$16),MROUND(N48,$U$16),IF(AND(N48>=$T$16,N48<$T$17),MROUND(N48,$U$17),IF(AND(N48>=$T$17,N48<$T$18),MROUND(N48,$U$18),IF(AND(N48>=$T$18,N48<$T$19),MROUND(N48,$U$19),IF(AND(N48>=$T$19,N48<$T$20),MROUND(N48,$U$20),IF(N48>=$T$21,MROUND(N48,$U$21)))))))) -> 0 | N48: =SUM('Finalize Items'!J116:J120)*(1+'Inflated Cost'!$D$57)^'Cost Estimate'!$C$10 -> 0
A49: 1 | B49: Right-of-Way & Utilties | D49: LOCAL | F49: STATE | H49: FEDERAL | J49: TOTAL | O49: =O39/N39-1 -> 
A50: 1 | D50: 0 | F50: 0 | H50: 0
A51: 1 | B51: Right-of-Way | D51: =J51*E51 -> 0 | E51: =$D$50 -> 0 | F51: =J51*G51 -> 0 | G51: =$F$50 -> 0 | H51: =J51*I51 -> 0 | I51: =$H$50 -> 0 | J51: =IF(N51<$T$15,MROUND(N51,$U$15),IF(AND(N51>=$T$15,N51<$T$16),MROUND(N51,$U$16),IF(AND(N51>=$T$16,N51<$T$17),MROUND(N51,$U$17),IF(AND(N51>=$T$17,N51<$T$18),MROUND(N51,$U$18),IF(AND(N51>=$T$18,N51<$T$19),MROUND(N51,$U$19),IF(AND(N51>=$T$19,N51<$T$20),MROUND(N51,$U$20),IF(N51>=$T$21,MROUND(N51,$U$21)))))))) -> 0 | N51: ='Finalize Items'!J383 -> 0
A52: 1 | B52: Utilities | D52: =J52*E52 -> 0 | E52: =$D$50 -> 0 | F52: =J52*G52 -> 0 | G52: =$F$50 -> 0 | H52: =J52*I52 -> 0 | I52: =$H$50 -> 0 | J52: =IF(N52<$T$15,MROUND(N52,$U$15),IF(AND(N52>=$T$15,N52<$T$16),MROUND(N52,$U$16),IF(AND(N52>=$T$16,N52<$T$17),MROUND(N52,$U$17),IF(AND(N52>=$T$17,N52<$T$18),MROUND(N52,$U$18),IF(AND(N52>=$T$18,N52<$T$19),MROUND(N52,$U$19),IF(AND(N52>=$T$19,N52<$T$20),MROUND(N52,$U$20),IF(N52>=$T$21,MROUND(N52,$U$21)))))))) -> 0 | N52: ='Finalize Items'!J379 -> 0
A53: 1 | B53: Preliminary Engineering | D53: LOCAL | F53: STATE | H53: FEDERAL | J53: TOTAL
A54: 1 | D54: 0 | F54: 0 | H54: 0
A55: =IF($C$9=$H$93,1,IF($C$9=$H$90,1,0)) -> 1 | B55: Prelim. Eng. | C55: 0.1 | D55: =$J55*D$54 -> 0 | F55: =$J55*F$54 -> 0 | H55: =$J55*H$54 -> 0 | J55: =IF(O55<$T$15,MROUND(O55,$U$15), IF(AND(O55>=$T$15,O55<$T$16),MROUND(O55,$U$16), IF(AND(O55>=$T$16,O55<$T$17),MROUND(O55,$U$17), IF(AND(O55>=$T$17,O55<$T$18),MROUND(O55,$U$18), IF(AND(O55>=$T$18,O55<$T$19),MROUND(O55,$U$19), IF(AND(O55>=$T$19,O55<$T$20),MROUND(O55,$U$20), IF(O55>=$T$21,MROUND(O55,$U$21)))))))) -> 0 | N55: =IF(IF(C5=$D$117,$J$77,IF(C5=$D$118,J78,(SUM(N15:N37))*C55))>R55,R55,(IF(C5=$D$117,$J$77,IF(C5=$D$118,J78,(SUM(N15:N37))*C55)))) -> 0 | O55: =IF(IF(C5=$D$117,$J$77,IF(C5=$D$118,J78,(SUM(O15:O37))*C55))>R55,R55,(IF(C5=$D$117,$J$77,IF(C5=$D$118,J78,(SUM(O15:O37))*C55)))) -> 0 | R55: 8000000 | S55: Design-Bid-Build
A56: =IF($C$9=$H$93,1,IF($C$9=$H$91,1,0)) -> 0 | B56: Prelim. Eng. (Design-Build) | C56: 0.1 | D56: =$J56*D$54 -> 0 | F56: 0 | H56: =$J56*H$54 -> 0 | J56: 0 | L56: =IF(N56>=R56,"Discuss PE Cost w/ Alt Delivery","") ->  | N56: =IF(IF(C5=$D$117,$J$77,IF(C5=$D$118,J78,(SUM(N15:N37))*C56))>R56,R56,IF(C5=$D$117,$J$77,IF(C5=$D$118,J78,(SUM(N15:N37))*C56))) -> 0 | O56: =IF(IF(C5=$D$117,$J$77,IF(C5=$D$118,J78,(SUM(O15:O37))*C56))>R56,R56,IF(C5=$D$117,$J$77,IF(C5=$D$118,J78,(SUM(O15:O37))*C56))) -> 0 | R56: 10000000 | S56: Design-Build
A57: =IF($C$9=$H$93,1,IF($C$9=$H$92,1,0)) -> 0 | B57: Prelim. Eng. (CMGC/PDB) | C57: 0.1 | D57: 0 | F57: 0 | H57: =$J57*H$54 -> 0 | J57: =IF(N57<$T$15,MROUND(N57,$U$15),IF(AND(N57>=$T$15,N57<$T$16),MROUND(N57,$U$16),IF(AND(N57>=$T$16,N57<$T$17),MROUND(N57,$U$17),IF(AND(N57>=$T$17,N57<$T$18),MROUND(N57,$U$18),IF(AND(N57>=$T$18,N57<$T$19),MROUND(N57,$U$19),IF(AND(N57>=$T$19,N57<$T$20),MROUND(N57,$U$20),IF(N57>=$T$21,MROUND(N57,$U$21)))))))) -> 0 | L57: =IF(N57>=R57,"Discuss PE Cost w/ Alt Delivery","") ->  | N57: =IF(IF(C5=$D$117,$J$77,IF(C5=$D$118,J78,(SUM(N15:N33)+SUM(N41:N43))*C57))>R57,R57,IF(C5=$D$117,$J$77,IF(C5=$D$118,J78,(SUM(N15:N33)+SUM(N41:N43))*C57))) -> 0 | O57: =IF(IF(C5=$D$117,$J$77,IF(C5=$D$118,J78,(SUM(O15:O33)+SUM(O41:O43))*C57))>R57,R57,IF(C5=$D$117,$J$77,IF(C5=$D$118,J78,(SUM(O15:O33)+SUM(O41:O43))*C57))) -> 0 | R57: 12000000 | S57: CMGC
A58: =IF($C$9=$H$93,1,IF($C$9=$H$90,1,0)) -> 1 | B58: Design-Bid-Build Project Cost | D58: =$M$77-($M$77-SUM(D39,D47,D48,D51,D52,D55)) -> 0 | F58: =$M$77-($M$77-SUM(F39,F47,F48,F51,F52,F55)) -> 0 | H58: =$M$77-($M$77-SUM(H39,H47,H48,H51,H52,H55)) -> 0 | J58: =MROUND(J55+J39+J51+J52,1000) -> 0 | L58: =IF(J58>0,J58/C7,0) -> 0 | N58: =(N39+SUM(N47:N48)+SUM(N51:N52)+N55) -> 0 | O58: =(O39+SUM(O47:O48)+SUM(O51:O52)+O55) -> 0 | V58: Per Mile Cost
A59: =IF($C$9=$H$93,1,IF($C$9=$H$91,1,0)) -> 0 | B59: Design-Build Project Cost | D59: =$M$77-($M$77-SUM(D39,D47,D48,D51,D52,D56)) -> 0 | F59: =$M$77-($M$77-SUM(F39,F47,F48,F51,F52,F56)) -> 0 | H59: =$M$77-($M$77-SUM(H39,H47,H48,H51,H52,H56)) -> 0 | J59: 0 | L59: =IF(J59>0,J59/C7,0) -> 0 | N59: =(J39+SUM(J47:J48)+SUM(J51:J52)+J56) -> 0 | V59: Per Mile Cost
A60: =IF($C$9=$H$93,1,IF($C$9=$H$92,1,0)) -> 0 | B60: CMGC/PDB Cost | D60: =$M$77-($M$77-SUM(D45,D47,D48,D51,D52,D57)) -> 0 | F60: =$M$77-($M$77-SUM(F45,F47,F48,F51,F52,F57)) -> 0 | H60: =$M$77-($M$77-SUM(H45,H47,H48,H51,H52,H57)) -> 0 | J60: 0 | L60: =IF(J60>0,J60/C7,0) -> 0 | N60: =(J45+SUM(J47:J48)+SUM(J51:J52)+J57) -> 0 | V60: Per Mile Cost
J73: =J39+J55 -> 0
L74: Construction Cost | M74: Total Cost - TEXT Format
L75: =TEXT(SUM(J15:J38)*(1+'Inflated Cost'!$D$57)^'Cost Estimate'!$C$10,"$#,##0") -> $0 | M75: =TEXT((SUM(J15:J38)+J47+J48+J51+J52+J55)*(1+0.05)^C10,"$#,##0") -> $0
D76: Report Type | F76: Report | H76: NEPA | J76: Total | L76: =IF(N46<$T$15,MROUND(N46,$U$15),IF(AND(N46>=$T$15,N46<$T$16),MROUND(N46,$U$16),IF(AND(N46>=$T$16,N46<$T$17),MROUND(N46,$U$17),IF(AND(N46>=$T$17,N46<$T$18),MROUND(N46,$U$18),IF(AND(N46>=$T$18,N46<$T$19),MROUND(N46,$U$19),IF(AND(N46>=$T$19,N46<$T$20),MROUND(N46,$U$20),IF(N46>=$T$21,MROUND(N46,$U$21)))))))) -> 0 | M76: =(SUM(J15:J38)+J47+J48+J51+J52+J55)*(1+0.05)^C10 -> 0
D77: No Plans RSA | F77: 45000 | J77: =F77+H77 -> 45000 | L77: =IF(L76>1000000000,TEXT(L76/1000000000,"$#,##0.0"),IF(AND(L76>=1000000,L76<1000000000),TEXT(L76/1000000,"$#,##0"), IF(L76<1000000,TEXT(L76/1000,"$#,##0"),""))) -> $0 | M77: =IF(M76<$T$15,MROUND(M76,$U$15),IF(AND(M76>=$T$15,M76<$T$16),MROUND(M76,$U$16),IF(AND(M76>=$T$16,M76<$T$17),MROUND(M76,$U$17),IF(AND(M76>=$T$17,M76<$T$18),MROUND(M76,$U$18),IF(AND(M76>=$T$18,M76<$T$19),MROUND(M76,$U$19),IF(AND(M76>=$T$19,M76<$T$20),MROUND(M76,$U$20),IF(M76>=$T$21,MROUND(M76,$U$21)))))))) -> 0
D78: LRSI | F78: 65000 | J78: =F78+H78 -> 65000 | M78: =IF(M77>1000000000,TEXT(MROUND(M77/1000000000,1),"$#,##0"),IF(AND(M77>=1000000,M77<1000000000),TEXT(MROUND(M77/1000000,1),"$#,##0"), IF(M77<1000000,TEXT(MROUND(M77/1000,1),"$#,##0"),""))) -> $0
C89: Filter | D89: List
C90: 1 | D90: Bicycles and Pedestrian Facility | H90: Design-Bid-Build
C91: 1 | D91: Bridge-New Construction | H91: Design-Build
C92: 1 | D92: Intersection Improvements | H92: CMGC
C93: 1 | D93: Intersection Improvements and Signals | H93: Show All
C94: 1 | D94: Modify Interchange
C95: 1 | D95: New Interchange
C96: 1 | D96: New Interchange-Connector
C97: 1 | D97: Bridge Replacement
C98: 1 | D98: Construction-New
C99: 1 | D99: Intelligent Transportation System
C100: 1 | D100: Noise Barrier Walls
C101: 1 | D101: Ramp Improvements
C102: 1 | D102: Realign and Widen
C103: 1 | D103: Realignment
C104: 1 | D104: Reconstruction
C105: 1 | D105: Resurface & Safety
C106: 1 | D106: Mitigation - Rockfall
C107: 1 | D107: RSAR
C108: 1 | D108: Safety
C109: 1 | D109: Sidewalk Improvements
C110: 1 | D110: Signalization
C111: 1 | D111: Truck Climbing Lane(s)
C112: 1 | D112: Widen
C113: 1 | D113: Widen and Resurfacing
C114: 1 | D114: Roundabout
C115: 1 | D115: Turn Lanes
C116: 1 | D116: Turn Lanes with Signal
C117: 1 | D117: No Plans RSA
C118: 1 | D118: LRSI
D119: Culvert Replacement
D120: Demo and Site Preparation
D121: Enhancement (Misc.)
D122: Env Mitigation and Wildlife Connectivity
D123: Environmental Studies
D124: Flashing Beacon
D125: Flashing School Sign
D126: GHSP
D127: Guardrail
D128: Historic Preservation
D129: Historic Rehabilation
D130: Interchange Lighting
D131: Acq of Scenic or Historical Sites
D132: Arch. Planning and Research
D133: Bi-Ped Safety Activities
D134: Bridge Rehabilitation
D135: Bridge Repair
D136: Intermodal Transportation Center
D137: Landscaping and Scenic Beautification
D138: Lighting
D139: Location and Environmental Study
D140: Maintenance
D141: Median Barrier Wall
D142: Microsurface
D143: Miscellaneous Improvements
D144: Miscellaneous Safety Improvements
D145: Mowing/Litter
D146: Other
D147: Outdoor Advertising Control
D148: Pavement Marking
D149: Paving
D150: Preliminary Engineering
D151: Public Transportation
D152: Purchase Hybrid Vehicles
D153: Purchase Vans For Vanpool
D154: Railroad Crossing Improvement
D155: Rail-To or with Trails
D156: Resurfacing
D157: Rideshare
D158: Right-of-Way
D159: Roadscapes
D160: Scenic By-Way
D161: Scenic or Hist Hwy Prog Activities or Vi
D162: Signal Timing Upgrade
D163: Signs
D164: Mitigation - Slide
D165: SPR
D166: Stage Construction-New
D167: Mitigation - Stream
D168: STIP Grouping
D169: Study
D170: Training
D171: TIP Grouping
D172: Transportation Museums
D173: Utilities
D174: Weigh Station or Rest Area Improvements
D175: Resurf, Safety & Br Repair

Sheet Median (hidden)
B2: Project Length: | C2: =IF((Tool!$J$54-Tool!$J$52)>0,(Tool!$J$54-Tool!$J$52),0) -> 0
B4: Depressed Grass
B5: Segments: | D5: =Tool!$J$96 -> 1
B6: Segments | C6: Begin | D6: End | E6: Type | F6: Inside Shldr. Width (ft) | G6: Interior Width (ft) | H6: Length (ft) | K6: Overall Item Summary
B7: =IF(AND(D5>=1,D5<=20),1,"") -> 1 | C7: =IF(Tool!D98<>"",IF(B7<>"",IF(Tool!D98=0,Tool!D98,Tool!D98-Tool!D98),""),"") ->  | D7: =IF(C7="","",IF(Tool!E98<>"",IF(B7=1,IF($C$2<(Tool!E98-Tool!$D$98),$C$2,IF(Tool!D98<>0,(Tool!E98-Tool!D98),Tool!E98)),""))) ->  | E7: =IF(D7<=0,"",IF(AND(B7<>"",D7<>"",Tool!F98="Depressed Grass"),"TRUE","")) ->  | F7: =IF(AND(E7="TRUE",Tool!I98>0),Tool!I98,"") ->  | G7: =IF(AND(E7="TRUE",Tool!$J$98>0),Tool!$J$98,"") ->  | H7: =IF(OR(C7="",D7=""),"",IF(E7="TRUE",D7-C7,"")) ->  | K7: Item # | L7: Description | M7: Quantity
B8: =IF(AND(D5>=2,D5<=20),2,"") ->  | C8: =IF(D7>=$C$2,"",IF(B8<>"",IF($C$2<(Tool!E98-Tool!$D$98),"",IF(Tool!D99<>"",IF(Tool!$D$98<>0,Tool!E98-Tool!$D$98,Tool!E98),"")),"")) ->  | D8: =IF(C8>=$C$2,"",IF(C8="","",IF((Tool!E99-Tool!$D$98)>$C$2,$C$2,IF(C8="","",IF(Tool!E98<>"",IF(AND($C$2>=(Tool!E99-Tool!$D$98),(Tool!E100-Tool!$D$98)>=(Tool!E99-Tool!$D$98)),IF(Tool!$D$98<>"",Tool!E99-Tool!$D$98,Tool!E99),$C$2),""))))) ->  | E8: =IF(AND(B8<>"",D8<>"",Tool!F99="Depressed Grass"),"TRUE","") ->  | F8: =IF(AND(E8="TRUE",Tool!I99>0),Tool!I99,"") ->  | G8: =IF(AND(E8="TRUE",Tool!J99>0),Tool!J99,"") ->  | H8: =IF(OR(C8="",D8=""),"",IF(E8="TRUE",D8-C8,"")) ->  | K8: 411-01 | L8: "E" mix | M8: =U25 -> 0
B9: =IF(AND(D5>=3,D5<=20),3,"") ->  | C9: =IF(D8>=$C$2,"",IF(B9<>"",IF($C$2<(Tool!E99-Tool!$D$98),"",IF(Tool!D100<>"",IF(Tool!$D$98<>0,Tool!E99-Tool!$D$98,Tool!E99),"")),"")) ->  | D9: =IF(C9>=$C$2,"",IF(C9="","",IF((Tool!E100-Tool!$D$98)>$C$2,$C$2,IF(C9="","",IF(Tool!E99<>"",IF(AND($C$2>=(Tool!E100-Tool!$D$98),(Tool!E101-Tool!$D$98)>=(Tool!E100-Tool!$D$98)),IF(Tool!$D$98<>"",Tool!E100-Tool!$D$98,Tool!E100),$C$2),""))))) ->  | E9: =IF(AND(B9<>"",D9<>"",Tool!F100="Depressed Grass"),"TRUE","") ->  | F9: =IF(AND(E9="TRUE",Tool!I100>0),Tool!I100,"") ->  | G9: =IF(AND(E9="TRUE",Tool!J100>0),Tool!J100,"") ->  | K9: 403-01 | L9: Tack | M9: =U26 -> 0
B10: =IF(AND(D5>=4,D5<=20),4,"") ->  | C10: =IF(D9>=$C$2,"",IF(B10<>"",IF($C$2<(Tool!E100-Tool!$D$98),"",IF(Tool!D101<>"",IF(Tool!$D$98<>0,Tool!E100-Tool!$D$98,Tool!E100),"")),"")) ->  | D10: =IF(C10>=$C$2,"",IF(C10="","",IF((Tool!E101-Tool!$D$98)>$C$2,$C$2,IF(C10="","",IF(Tool!E100<>"",IF(AND($C$2>=(Tool!E101-Tool!$D$98),(Tool!E102-Tool!$D$98)>=(Tool!E101-Tool!$D$98)),IF(Tool!$D$98<>"",Tool!E101-Tool!$D$98,Tool!E101),$C$2),""))))) ->  | E10: =IF(AND(B10<>"",D10<>"",Tool!F101="Depressed Grass"),"TRUE","") ->  | F10: =IF(AND(E10="TRUE",Tool!I101>0),Tool!I101,"") ->  | G10: =IF(AND(E10="TRUE",Tool!J101>0),Tool!J101,"") ->  | K10: 307-02.08 | L10: "BM-2" mix | M10: =U27 -> 0
B11: =IF(AND(D5>=5,D5<=20),5,"") ->  | C11: =IF(D10>=$C$2,"",IF(B11<>"",IF($C$2<(Tool!E101-Tool!$D$98),"",IF(Tool!D102<>"",IF(Tool!$D$98<>0,Tool!E101-Tool!$D$98,Tool!E101),"")),"")) ->  | D11: =IF(C11>=$C$2,"",IF(C11="","",IF((Tool!E102-Tool!$D$98)>$C$2,$C$2,IF(C11="","",IF(Tool!E101<>"",IF(AND($C$2>=(Tool!E102-Tool!$D$98),(Tool!E103-Tool!$D$98)>=(Tool!E102-Tool!$D$98)),IF(Tool!$D$98<>"",Tool!E102-Tool!$D$98,Tool!E102),$C$2),""))))) ->  | E11: =IF(AND(B11<>"",D11<>"",Tool!F102="Depressed Grass"),"TRUE","") ->  | F11: =IF(AND(E11="TRUE",Tool!I102>0),Tool!I102,"") ->  | G11: =IF(AND(E11="TRUE",Tool!J102>0),Tool!J102,"") ->  | K11: 402-01 | L11: Prime Coat | M11: =U28 -> 0
B12: =IF(AND(D5>=6,D5<=20),6,"") ->  | C12: =IF(D11>=$C$2,"",IF(B12<>"",IF($C$2<(Tool!E102-Tool!$D$98),"",IF(Tool!D103<>"",IF(Tool!$D$98<>0,Tool!E102-Tool!$D$98,Tool!E102),"")),"")) ->  | D12: =IF(C12>=$C$2,"",IF(C12="","",IF((Tool!E103-Tool!$D$98)>$C$2,$C$2,IF(C12="","",IF(Tool!E102<>"",IF(AND($C$2>=(Tool!E103-Tool!$D$98),(Tool!E104-Tool!$D$98)>=(Tool!E103-Tool!$D$98)),IF(Tool!$D$98<>"",Tool!E103-Tool!$D$98,Tool!E103),$C$2),""))))) ->  | E12: =IF(AND(B12<>"",D12<>"",Tool!F103="Depressed Grass"),"TRUE","") ->  | F12: =IF(AND(E12="TRUE",Tool!I103>0),Tool!I103,"") ->  | G12: =IF(AND(E12="TRUE",Tool!J103>0),Tool!J103,"") ->  | K12: 402-02 | L12: Agg. Cover | M12: =U29 -> 0
B13: =IF(AND(D5>=7,D5<=20),7,"") ->  | C13: =IF(D12>=$C$2,"",IF(B13<>"",IF($C$2<(Tool!E103-Tool!$D$98),"",IF(Tool!D104<>"",IF(Tool!$D$98<>0,Tool!E103-Tool!$D$98,Tool!E103),"")),"")) ->  | D13: =IF(C13>=$C$2,"",IF(C13="","",IF((Tool!E104-Tool!$D$98)>$C$2,$C$2,IF(C13="","",IF(Tool!E103<>"",IF(AND($C$2>=(Tool!E104-Tool!$D$98),(Tool!E105-Tool!$D$98)>=(Tool!E104-Tool!$D$98)),IF(Tool!$D$98<>"",Tool!E104-Tool!$D$98,Tool!E104),$C$2),""))))) ->  | E13: =IF(AND(B13<>"",D13<>"",Tool!F104="Depressed Grass"),"TRUE","") ->  | F13: =IF(AND(E13="TRUE",Tool!I104>0),Tool!I104,"") ->  | G13: =IF(AND(E13="TRUE",Tool!J104>0),Tool!J104,"") ->  | K13: 303-01 | L13: Stone | M13: =U30+T33+T34+P46+M50 -> 0
B14: =IF(AND(D5>=8,D5<=20),8,"") ->  | C14: =IF(D13>=$C$2,"",IF(B14<>"",IF($C$2<(Tool!E104-Tool!$D$98),"",IF(Tool!D105<>"",IF(Tool!$D$98<>0,Tool!E104-Tool!$D$98,Tool!E104),"")),"")) ->  | D14: =IF(C14>=$C$2,"",IF(C14="","",IF((Tool!E105-Tool!$D$98)>$C$2,$C$2,IF(C14="","",IF(Tool!E104<>"",IF(AND($C$2>=(Tool!E105-Tool!$D$98),(Tool!E106-Tool!$D$98)>=(Tool!E105-Tool!$D$98)),IF(Tool!$D$98<>"",Tool!E105-Tool!$D$98,Tool!E105),$C$2),""))))) ->  | E14: =IF(AND(B14<>"",D14<>"",Tool!F105="Depressed Grass"),"TRUE","") ->  | F14: =IF(AND(E14="TRUE",Tool!I105>0),Tool!I105,"") ->  | G14: =IF(AND(E14="TRUE",Tool!J105>0),Tool!J105,"") ->  | K14: 711-05.71 | L14: Barrier Wall | M14: =K50 -> 0
B15: =IF(AND(D5>=9,D5<=20),9,"") ->  | C15: =IF(D14>=$C$2,"",IF(B15<>"",IF($C$2<(Tool!E105-Tool!$D$98),"",IF(Tool!D106<>"",IF(Tool!$D$98<>0,Tool!E105-Tool!$D$98,Tool!E105),"")),"")) ->  | D15: =IF(C15>=$C$2,"",IF(C15="","",IF((Tool!E106-Tool!$D$98)>$C$2,$C$2,IF(C15="","",IF(Tool!E105<>"",IF(AND($C$2>=(Tool!E106-Tool!$D$98),(Tool!E107-Tool!$D$98)>=(Tool!E106-Tool!$D$98)),IF(Tool!$D$98<>"",Tool!E106-Tool!$D$98,Tool!E106),$C$2),""))))) ->  | E15: =IF(AND(B15<>"",D15<>"",Tool!F106="Depressed Grass"),"TRUE","") ->  | F15: =IF(AND(E15="TRUE",Tool!I106>0),Tool!I106,"") ->  | G15: =IF(AND(E15="TRUE",Tool!J106>0),Tool!J106,"") ->  | K15: 607-05.02 | L15: 24" RCP | M15: =N42+R46+K50 -> 0
B16: =IF(AND(D5>=10,D5<=20),10,"") ->  | C16: =IF(D15>=$C$2,"",IF(B16<>"",IF($C$2<(Tool!E106-Tool!$D$98),"",IF(Tool!D107<>"",IF(Tool!$D$98<>0,Tool!E106-Tool!$D$98,Tool!E106),"")),"")) ->  | D16: =IF(C16>=$C$2,"",IF(C16="","",IF((Tool!E107-Tool!$D$98)>$C$2,$C$2,IF(C16="","",IF(Tool!E106<>"",IF(AND($C$2>=(Tool!E107-Tool!$D$98),(Tool!E108-Tool!$D$98)>=(Tool!E107-Tool!$D$98)),IF(Tool!$D$98<>"",Tool!E107-Tool!$D$98,Tool!E107),$C$2),""))))) ->  | E16: =IF(AND(B16<>"",D16<>"",Tool!F107="Depressed Grass"),"TRUE","") ->  | F16: =IF(AND(E16="TRUE",Tool!I107>0),Tool!I107,"") ->  | G16: =IF(AND(E16="TRUE",Tool!J107>0),Tool!J107,"") ->  | H16: =IF(OR(C16="",D16=""),"",IF(E16="TRUE",D16-C16,"")) ->  | K16: 702-03 | L16: Combined C&G | M16: =N42+R46*0.07953 -> 0
B17: =IF(AND(D5>=11,D5<=20),11,"") ->  | C17: =IF(D16>=$C$2,"",IF(B17<>"",IF($C$2<(Tool!E107-Tool!$D$98),"",IF(Tool!D108<>"",IF(Tool!$D$98<>0,Tool!E107-Tool!$D$98,Tool!E107),"")),"")) ->  | D17: =IF(C17>=$C$2,"",IF(C17="","",IF((Tool!E108-Tool!$D$98)>$C$2,$C$2,IF(C17="","",IF(Tool!E107<>"",IF(AND($C$2>=(Tool!E108-Tool!$D$98),(Tool!E109-Tool!$D$98)>=(Tool!E108-Tool!$D$98)),IF(Tool!$D$98<>"",Tool!E108-Tool!$D$98,Tool!E108),$C$2),""))))) ->  | E17: =IF(AND(B17<>"",D17<>"",Tool!F108="Depressed Grass"),"TRUE","") ->  | F17: =IF(AND(E17="TRUE",Tool!I108>0),Tool!I108,"") ->  | G17: =IF(AND(E17="TRUE",Tool!J108>0),Tool!J108,"") ->  | K17: 611-12.02 | L17: CB Type 12 | M17: =O42+S46+(K50/300) -> 0
B18: =IF(AND(D5>=12,D5<=20),12,"") ->  | C18: =IF(D17>=$C$2,"",IF(B18<>"",IF($C$2<(Tool!E108-Tool!$D$98),"",IF(Tool!D109<>"",IF(Tool!$D$98<>0,Tool!E108-Tool!$D$98,Tool!E108),"")),"")) ->  | D18: =IF(C18>=$C$2,"",IF(C18="","",IF((Tool!E109-Tool!$D$98)>$C$2,$C$2,IF(C18="","",IF(Tool!E108<>"",IF(AND($C$2>=(Tool!E109-Tool!$D$98),(Tool!E110-Tool!$D$98)>=(Tool!E109-Tool!$D$98)),IF(Tool!$D$98<>"",Tool!E109-Tool!$D$98,Tool!E109),$C$2),""))))) ->  | E18: =IF(AND(B18<>"",D18<>"",Tool!F109="Depressed Grass"),"TRUE","") ->  | F18: =IF(AND(E18="TRUE",Tool!I109>0),Tool!I109,"") ->  | G18: =IF(AND(E18="TRUE",Tool!J109>0),Tool!J109,"") ->  | K18: 701-01.01 | L18: 4" Concrete | M18: =Q46 -> 0
B19: =IF(AND(D5>=13,D5<=20),13,"") ->  | C19: =IF(D18>=$C$2,"",IF(B19<>"",IF($C$2<(Tool!E109-Tool!$D$98),"",IF(Tool!D110<>"",IF(Tool!$D$98<>0,Tool!E109-Tool!$D$98,Tool!E109),"")),"")) ->  | D19: =IF(C19>=$C$2,"",IF(C19="","",IF((Tool!E110-Tool!$D$98)>$C$2,$C$2,IF(C19="","",IF(Tool!E109<>"",IF(AND($C$2>=(Tool!E110-Tool!$D$98),(Tool!E111-Tool!$D$98)>=(Tool!E110-Tool!$D$98)),IF(Tool!$D$98<>"",Tool!E110-Tool!$D$98,Tool!E110),$C$2),""))))) ->  | E19: =IF(AND(B19<>"",D19<>"",Tool!F110="Depressed Grass"),"TRUE","") ->  | F19: =IF(AND(E19="TRUE",Tool!I110>0),Tool!I110,"") ->  | G19: =IF(AND(E19="TRUE",Tool!J110>0),Tool!J110,"") -> 
B20: =IF(AND(D5>=14,D5<=20),14,"") ->  | C20: =IF(D19>=$C$2,"",IF(B20<>"",IF($C$2<(Tool!E110-Tool!$D$98),"",IF(Tool!D111<>"",IF(Tool!$D$98<>0,Tool!E110-Tool!$D$98,Tool!E110),"")),"")) ->  | D20: =IF(C20>=$C$2,"",IF(C20="","",IF((Tool!E111-Tool!$D$98)>$C$2,$C$2,IF(C20="","",IF(Tool!E110<>"",IF(AND($C$2>=(Tool!E111-Tool!$D$98),(Tool!E112-Tool!$D$98)>=(Tool!E111-Tool!$D$98)),IF(Tool!$D$98<>"",Tool!E111-Tool!$D$98,Tool!E111),$C$2),""))))) ->  | E20: =IF(AND(B20<>"",D20<>"",Tool!F111="Depressed Grass"),"TRUE","") ->  | F20: =IF(AND(E20="TRUE",Tool!I111>0),Tool!I111,"") ->  | G20: =IF(AND(E20="TRUE",Tool!J111>0),Tool!J111,"") ->  | K20: For Drainage Calcs
B21: =IF(AND(D5>=15,D5<=20),15,"") ->  | C21: =IF(D20>=$C$2,"",IF(B21<>"",IF($C$2<(Tool!E111-Tool!$D$98),"",IF(Tool!D112<>"",IF(Tool!$D$98<>0,Tool!E111-Tool!$D$98,Tool!E111),"")),"")) ->  | D21: =IF(C21>=$C$2,"",IF(C21="","",IF((Tool!E112-Tool!$D$98)>$C$2,$C$2,IF(C21="","",IF(Tool!E111<>"",IF(AND($C$2>=(Tool!E112-Tool!$D$98),(Tool!E113-Tool!$D$98)>=(Tool!E112-Tool!$D$98)),IF(Tool!$D$98<>"",Tool!E112-Tool!$D$98,Tool!E112),$C$2),""))))) ->  | E21: =IF(AND(B21<>"",D21<>"",Tool!F112="Depressed Grass"),"TRUE","") ->  | F21: =IF(AND(E21="TRUE",Tool!I112>0),Tool!I112,"") ->  | G21: =IF(AND(E21="TRUE",Tool!J112>0),Tool!J112,"") ->  | K21: Avg Med. Width: | L21: =N59 -> 0
B22: =IF(AND(D5>=16,D5<=20),16,"") ->  | C22: =IF(D21>=$C$2,"",IF(B22<>"",IF($C$2<(Tool!E112-Tool!$D$98),"",IF(Tool!D113<>"",IF(Tool!$D$98<>0,Tool!E112-Tool!$D$98,Tool!E112),"")),"")) ->  | D22: =IF(C22>=$C$2,"",IF(C22="","",IF((Tool!E113-Tool!$D$98)>$C$2,$C$2,IF(C22="","",IF(Tool!E112<>"",IF(AND($C$2>=(Tool!E113-Tool!$D$98),(Tool!E114-Tool!$D$98)>=(Tool!E113-Tool!$D$98)),IF(Tool!$D$98<>"",Tool!E113-Tool!$D$98,Tool!E113),$C$2),""))))) ->  | E22: =IF(AND(B22<>"",D22<>"",Tool!F113="Depressed Grass"),"TRUE","") ->  | F22: =IF(AND(E22="TRUE",Tool!I113>0),Tool!I113,"") ->  | G22: =IF(AND(E22="TRUE",Tool!J113>0),Tool!J113,"") -> 
B23: =IF(AND(D5>=17,D5<=20),17,"") ->  | C23: =IF(D22>=$C$2,"",IF(B23<>"",IF($C$2<(Tool!E113-Tool!$D$98),"",IF(Tool!D114<>"",IF(Tool!$D$98<>0,Tool!E113-Tool!$D$98,Tool!E113),"")),"")) ->  | D23: =IF(C23>=$C$2,"",IF(C23="","",IF((Tool!E114-Tool!$D$98)>$C$2,$C$2,IF(C23="","",IF(Tool!E113<>"",IF(AND($C$2>=(Tool!E114-Tool!$D$98),(Tool!E115-Tool!$D$98)>=(Tool!E114-Tool!$D$98)),IF(Tool!$D$98<>"",Tool!E114-Tool!$D$98,Tool!E114),$C$2),""))))) ->  | E23: =IF(AND(B23<>"",D23<>"",Tool!F114="Depressed Grass"),"TRUE","") ->  | F23: =IF(AND(E23="TRUE",Tool!I114>0),Tool!I114,"") ->  | G23: =IF(AND(E23="TRUE",Tool!J114>0),Tool!J114,"") ->  | K23: Paved Shoulder Calculations
B24: =IF(AND(D5>=18,D5<=20),18,"") ->  | C24: =IF(D23>=$C$2,"",IF(B24<>"",IF($C$2<(Tool!E114-Tool!$D$98),"",IF(Tool!D115<>"",IF(Tool!$D$98<>0,Tool!E114-Tool!$D$98,Tool!E114),"")),"")) ->  | D24: =IF(C24>=$C$2,"",IF(C24="","",IF((Tool!E115-Tool!$D$98)>$C$2,$C$2,IF(C24="","",IF(Tool!E114<>"",IF(AND($C$2>=(Tool!E115-Tool!$D$98),(Tool!E116-Tool!$D$98)>=(Tool!E115-Tool!$D$98)),IF(Tool!$D$98<>"",Tool!E115-Tool!$D$98,Tool!E115),$C$2),""))))) ->  | E24: =IF(AND(B24<>"",D24<>"",Tool!F115="Depressed Grass"),"TRUE","") ->  | F24: =IF(AND(E24="TRUE",Tool!I115>0),Tool!I115,"") ->  | G24: =IF(AND(E24="TRUE",Tool!J115>0),Tool!J115,"") ->  | K24: Pay Item # | L24: Description | M24: Area (s.f.) | N24: Thk (in.) | O24: Thk. (ft.) | P24: CF | Q24: S.Y. | R24: C.Y. | S24: CF | T24: lb/ton | U24: Tons
B25: =IF(AND(D5>=19,D5<=20),19,"") ->  | C25: =IF(D24>=$C$2,"",IF(B25<>"",IF($C$2<(Tool!E115-Tool!$D$98),"",IF(Tool!D116<>"",IF(Tool!$D$98<>0,Tool!E115-Tool!$D$98,Tool!E115),"")),"")) ->  | D25: =IF(C25>=$C$2,"",IF(C25="","",IF((Tool!E116-Tool!$D$98)>$C$2,$C$2,IF(C25="","",IF(Tool!E115<>"",IF(AND($C$2>=(Tool!E116-Tool!$D$98),(Tool!E117-Tool!$D$98)>=(Tool!E116-Tool!$D$98)),IF(Tool!$D$98<>"",Tool!E116-Tool!$D$98,Tool!E116),$C$2),""))))) ->  | E25: =IF(AND(B25<>"",D25<>"",Tool!F116="Depressed Grass"),"TRUE","") ->  | F25: =IF(AND(E25="TRUE",Tool!I116>0),Tool!I116,"") ->  | G25: =IF(AND(E25="TRUE",Tool!J116>0),Tool!J116,"") ->  | K25: 411-01 | L25: "E" mix | M25: =O59*5280*M59*2 -> 0 | N25: 1.5 | O25: =N25/12 -> 0.125 | P25: 27 | R25: =(M25*O25)/P25 -> 0 | S25: 3870 | T25: 2000 | U25: =(R25*S25)/T25 -> 0
B26: =IF(AND(D5=20),20,"") ->  | C26: =IF(D25>=$C$2,"",IF(B26<>"",IF($C$2<(Tool!E116-Tool!$D$98),"",IF(Tool!D117<>"",IF(Tool!$D$98<>0,Tool!E116-Tool!$D$98,Tool!E116),"")),"")) ->  | D26: =IF(C26>=$C$2,"",IF(C26="","",IF((Tool!E117-Tool!$D$98)>$C$2,$C$2,IF(C26="","",IF(Tool!E116<>"",IF(AND($C$2>=(Tool!E117-Tool!$D$98),(Tool!E118-Tool!$D$98)>=(Tool!E117-Tool!$D$98)),IF(Tool!$D$98<>"",Tool!E117-Tool!$D$98,Tool!E117),$C$2),""))))) ->  | E26: =IF(AND(B26<>"",D26<>"",Tool!F117="Depressed Grass"),"TRUE","") ->  | F26: =IF(AND(E26="TRUE",Tool!I117>0),Tool!I117,"") ->  | G26: =IF(AND(E26="TRUE",Tool!J117>0),Tool!J117,"") ->  | K26: 403-01 | L26: Tack | M26: =O59*5280*M59*2 -> 0 | P26: 9 | Q26: =M26/P26 -> 0 | S26: 0.07 | T26: 231 | U26: =(Q26*S26)/T26 -> 0
K27: 307-02.08 | L27: "BM-2" mix | M27: =O59*5280*M59*2 -> 0 | N27: 2 | O27: =N27/12 -> 0.1666666667 | P27: 27 | R27: =(M27*O27)/P27 -> 0 | S27: 4068 | T27: 2000 | U27: =(R27*S27)/T27 -> 0
G28: Average Interior Width: | H28: =IF(AND(SUM(H7:H26)>0,SUM(G7:G26)>0),SUMPRODUCT(G7:G26,H7:H26)/SUM(H7:H26),0) -> 0 | K28: 402-01 | L28: Prime Coat | M28: =O59*5280*M59*2 -> 0 | P28: 9 | Q28: =M28/P28 -> 0 | S28: 0.32 | T28: 231 | U28: =(Q28*S28)/T28 -> 0
G29: Avg. Inside Shoulder: | H29: =IF(SUM(H7:H26)>0,SUMPRODUCT(F7:F26,H7:H26)/SUM(H7:H26),0) -> 0 | K29: 402-02 | L29: Agg. Cover | M29: =O59*5280*M59*2 -> 0 | P29: 9 | Q29: =M29/P29 -> 0 | S29: 10 | T29: 2000 | U29: =(Q29*S29)/T29 -> 0
G30: Length: | H30: =SUM(H7:H26) -> 0 | K30: 303-01 | L30: Stone (Asphalt) | M30: =O59*5280*M59*2 -> 0 | N30: 20.25 | O30: =N30/12 -> 1.6875 | P30: 27 | R30: =(M30*O30)/27 -> 0 | S30: 2.03 | U30: =R30*S30 -> 0
G31: Avg. Interior Area: | H31: =H28*SUM(H7:H26)*5280 -> 0
B32: Raised Grass | K32: Pay Item # | L32: Description | M32: Width (ft.) | N32: Thk (inches) | O32: Thk. (ft.) | P32: Conversion Factor | Q32: S.Y. | R32: C.Y. | S32: Conversion Factor | T32: Tons
B33: Segments: | D33: =Tool!$J$96 -> 1 | K33: 303-01 | L33: Stone (2' Grv. Shldr) | M33: =O33*6*0.5 -> 5.0625 | N33: 20.25 | O33: =N33/12 -> 1.6875 | P33: 27 | R33: =(M33*O33*$L$57)/P33 -> 0 | S33: 2.03 | T33: =R33*S33 -> 0
B34: Segments | C34: Begin | D34: End | E34: Type | F34: Inside Shldr. Width (ft) | G34: Interior Width (ft) | H34: Length (ft) | K34: 303-01 | L34: Stone (6:1 Agg. Slp.) | M34: =O34*6*0.5 -> 5.0625 | N34: 20.25 | O34: =N34/12 -> 1.6875 | P34: 27 | R34: =(M34*O34*$L$57)/P34 -> 0 | S34: 2.03 | T34: =R34*S34 -> 0
B35: =IF(AND(D33>=1,D33<=20),1,"") -> 1 | C35: =IF(Tool!D98<>"",IF(B7<>"",IF(Tool!D98=0,Tool!D98,Tool!D98-Tool!D98),""),"") ->  | D35: =IF(C35="","",IF(Tool!E98<>"",IF(B7=1,IF($C$2<(Tool!E98-Tool!$D$98),$C$2,IF(Tool!D98<>0,(Tool!E98-Tool!D98),Tool!E98)),""))) ->  | E35: =IF(D35<=0,"",IF(AND(B35<>"",Tool!F98="Raised Grass"),"TRUE","")) ->  | F35: =IF(AND(E35="TRUE",Tool!I98>0),Tool!I98,"") ->  | G35: =IF(AND(E35="TRUE",Tool!J98>0),Tool!J98,"") ->  | H35: =IF(OR(C35="",D35=""),"",IF(E35="TRUE",D35-C35,"")) -> 
B36: =IF(AND(D33>=2,D33<=20),2,"") ->  | C36: =IF(D35>=$C$2,"",IF(B36<>"",IF($C$2<(Tool!E98-Tool!$D$98),"",IF(Tool!D99<>"",IF(Tool!$D$98<>0,Tool!E98-Tool!$D$98,Tool!E98),"")),"")) ->  | D36: =IF(C8>=$C$2,"",IF(C8="","",IF((Tool!E99-Tool!$D$98)>$C$2,$C$2,IF(C8="","",IF(Tool!E98<>"",IF(AND($C$2>=(Tool!E99-Tool!$D$98),(Tool!E100-Tool!$D$98)>=(Tool!E99-Tool!$D$98)),IF(Tool!$D$98<>"",Tool!E99-Tool!$D$98,Tool!E99),$C$2),""))))) ->  | E36: =IF(AND(B36<>"",D36<>"",Tool!F99="Raised Grass"),"TRUE","") ->  | F36: =IF(AND(E36="TRUE",Tool!I99>0),Tool!I99,"") ->  | G36: =IF(AND(E36="TRUE",Tool!J99>0),Tool!J99,"") ->  | H36: =IF(OR(C36="",D36=""),"",IF(E36="TRUE",D36-C36,"")) ->  | K36: Depressed Median Calcs.
B37: =IF(AND(D33>=3,D33<=20),3,"") ->  | C37: =IF(D36>=$C$2,"",IF(B37<>"",IF($C$2<(Tool!E99-Tool!$D$98),"",IF(Tool!D100<>"",IF(Tool!$D$98<>0,Tool!E99-Tool!$D$98,Tool!E99),"")),"")) ->  | D37: =IF(C9>=$C$2,"",IF(C9="","",IF((Tool!E100-Tool!$D$98)>$C$2,$C$2,IF(C9="","",IF(Tool!E99<>"",IF(AND($C$2>=(Tool!E100-Tool!$D$98),(Tool!E101-Tool!$D$98)>=(Tool!E100-Tool!$D$98)),IF(Tool!$D$98<>"",Tool!E100-Tool!$D$98,Tool!E100),$C$2),""))))) ->  | E37: =IF(AND(B37<>"",D37<>"",Tool!F100="Raised Grass"),"TRUE","") ->  | F37: =IF(AND(E37="TRUE",Tool!I100>0),Tool!I100,"") ->  | G37: =IF(AND(E37="TRUE",Tool!J100>0),Tool!J100,"") ->  | K37: Length | L37: Width | M37: Depth
B38: =IF(AND(D33>=4,D33<=20),4,"") ->  | C38: =IF(D37>=$C$2,"",IF(B38<>"",IF($C$2<(Tool!E100-Tool!$D$98),"",IF(Tool!D101<>"",IF(Tool!$D$98<>0,Tool!E100-Tool!$D$98,Tool!E100),"")),"")) ->  | D38: =IF(C10>=$C$2,"",IF(C10="","",IF((Tool!E101-Tool!$D$98)>$C$2,$C$2,IF(C10="","",IF(Tool!E100<>"",IF(AND($C$2>=(Tool!E101-Tool!$D$98),(Tool!E102-Tool!$D$98)>=(Tool!E101-Tool!$D$98)),IF(Tool!$D$98<>"",Tool!E101-Tool!$D$98,Tool!E101),$C$2),""))))) ->  | E38: =IF(AND(B38<>"",D38<>"",Tool!F101="Raised Grass"),"TRUE","") ->  | F38: =IF(AND(E38="TRUE",Tool!I101>0),Tool!I101,"") ->  | G38: =IF(AND(E38="TRUE",Tool!J101>0),Tool!J101,"") ->  | K38: =H30*5280 -> 0 | L38: =H28 -> 0 | M38: 3
B39: =IF(AND(D33>=5,D33<=20),5,"") ->  | C39: =IF(D38>=$C$2,"",IF(B39<>"",IF($C$2<(Tool!E101-Tool!$D$98),"",IF(Tool!D102<>"",IF(Tool!$D$98<>0,Tool!E101-Tool!$D$98,Tool!E101),"")),"")) ->  | D39: =IF(C11>=$C$2,"",IF(C11="","",IF((Tool!E102-Tool!$D$98)>$C$2,$C$2,IF(C11="","",IF(Tool!E101<>"",IF(AND($C$2>=(Tool!E102-Tool!$D$98),(Tool!E103-Tool!$D$98)>=(Tool!E102-Tool!$D$98)),IF(Tool!$D$98<>"",Tool!E102-Tool!$D$98,Tool!E102),$C$2),""))))) ->  | E39: =IF(AND(B39<>"",D39<>"",Tool!F102="Raised Grass"),"TRUE","") ->  | F39: =IF(AND(E39="TRUE",Tool!I102>0),Tool!I102,"") ->  | G39: =IF(AND(E39="TRUE",Tool!J102>0),Tool!J102,"") -> 
B40: =IF(AND(D33>=6,D33<=20),6,"") ->  | C40: =IF(D39>=$C$2,"",IF(B40<>"",IF($C$2<(Tool!E102-Tool!$D$98),"",IF(Tool!D103<>"",IF(Tool!$D$98<>0,Tool!E102-Tool!$D$98,Tool!E102),"")),"")) ->  | D40: =IF(C12>=$C$2,"",IF(C12="","",IF((Tool!E103-Tool!$D$98)>$C$2,$C$2,IF(C12="","",IF(Tool!E102<>"",IF(AND($C$2>=(Tool!E103-Tool!$D$98),(Tool!E104-Tool!$D$98)>=(Tool!E103-Tool!$D$98)),IF(Tool!$D$98<>"",Tool!E103-Tool!$D$98,Tool!E103),$C$2),""))))) ->  | E40: =IF(AND(B40<>"",D40<>"",Tool!F103="Raised Grass"),"TRUE","") ->  | F40: =IF(AND(E40="TRUE",Tool!I103>0),Tool!I103,"") ->  | G40: =IF(AND(E40="TRUE",Tool!J103>0),Tool!J103,"") ->  | K40: Raised Grass Median Calcs.
B41: =IF(AND(D33>=7,D33<=20),7,"") ->  | C41: =IF(D40>=$C$2,"",IF(B41<>"",IF($C$2<(Tool!E103-Tool!$D$98),"",IF(Tool!D104<>"",IF(Tool!$D$98<>0,Tool!E103-Tool!$D$98,Tool!E103),"")),"")) ->  | D41: =IF(C13>=$C$2,"",IF(C13="","",IF((Tool!E104-Tool!$D$98)>$C$2,$C$2,IF(C13="","",IF(Tool!E103<>"",IF(AND($C$2>=(Tool!E104-Tool!$D$98),(Tool!E105-Tool!$D$98)>=(Tool!E104-Tool!$D$98)),IF(Tool!$D$98<>"",Tool!E104-Tool!$D$98,Tool!E104),$C$2),""))))) ->  | E41: =IF(AND(B41<>"",D41<>"",Tool!F104="Raised Grass"),"TRUE","") ->  | F41: =IF(AND(E41="TRUE",Tool!I104>0),Tool!I104,"") ->  | G41: =IF(AND(E41="TRUE",Tool!J104>0),Tool!J104,"") ->  | K41: Length | L41: Width | M41: Depth | N41: C/G - RCP Length | O41: Type 12 CB
B42: =IF(AND(D33>=8,D33<=20),8,"") ->  | C42: =IF(D41>=$C$2,"",IF(B42<>"",IF($C$2<(Tool!E104-Tool!$D$98),"",IF(Tool!D105<>"",IF(Tool!$D$98<>0,Tool!E104-Tool!$D$98,Tool!E104),"")),"")) ->  | D42: =IF(C14>=$C$2,"",IF(C14="","",IF((Tool!E105-Tool!$D$98)>$C$2,$C$2,IF(C14="","",IF(Tool!E104<>"",IF(AND($C$2>=(Tool!E105-Tool!$D$98),(Tool!E106-Tool!$D$98)>=(Tool!E105-Tool!$D$98)),IF(Tool!$D$98<>"",Tool!E105-Tool!$D$98,Tool!E105),$C$2),""))))) ->  | E42: =IF(AND(B42<>"",D42<>"",Tool!F105="Raised Grass"),"TRUE","") ->  | F42: =IF(AND(E42="TRUE",Tool!I105>0),Tool!I105,"") ->  | G42: =IF(AND(E42="TRUE",Tool!J105>0),Tool!J105,"") ->  | K42: =H58*5280 -> 0 | L42: =H56 -> 0 | M42: 6 | N42: =H58*2 -> 0 | O42: =(N42/300) -> 0
B43: =IF(AND(D33>=9,D33<=20),9,"") ->  | C43: =IF(D42>=$C$2,"",IF(B43<>"",IF($C$2<(Tool!E105-Tool!$D$98),"",IF(Tool!D106<>"",IF(Tool!$D$98<>0,Tool!E105-Tool!$D$98,Tool!E105),"")),"")) ->  | D43: =IF(C15>=$C$2,"",IF(C15="","",IF((Tool!E106-Tool!$D$98)>$C$2,$C$2,IF(C15="","",IF(Tool!E105<>"",IF(AND($C$2>=(Tool!E106-Tool!$D$98),(Tool!E107-Tool!$D$98)>=(Tool!E106-Tool!$D$98)),IF(Tool!$D$98<>"",Tool!E106-Tool!$D$98,Tool!E106),$C$2),""))))) ->  | E43: =IF(AND(B43<>"",D43<>"",Tool!F106="Raised Grass"),"TRUE","") ->  | F43: =IF(AND(E43="TRUE",Tool!I106>0),Tool!I106,"") ->  | G43: =IF(AND(E43="TRUE",Tool!J106>0),Tool!J106,"") -> 
B44: =IF(AND(D33>=10,D33<=20),10,"") ->  | C44: =IF(D43>=$C$2,"",IF(B44<>"",IF($C$2<(Tool!E106-Tool!$D$98),"",IF(Tool!D107<>"",IF(Tool!$D$98<>0,Tool!E106-Tool!$D$98,Tool!E106),"")),"")) ->  | D44: =IF(C16>=$C$2,"",IF(C16="","",IF((Tool!E107-Tool!$D$98)>$C$2,$C$2,IF(C16="","",IF(Tool!E106<>"",IF(AND($C$2>=(Tool!E107-Tool!$D$98),(Tool!E108-Tool!$D$98)>=(Tool!E107-Tool!$D$98)),IF(Tool!$D$98<>"",Tool!E107-Tool!$D$98,Tool!E107),$C$2),""))))) ->  | E44: =IF(AND(B44<>"",D44<>"",Tool!F107="Raised Grass"),"TRUE","") ->  | F44: =IF(AND(E44="TRUE",Tool!I107>0),Tool!I107,"") ->  | G44: =IF(AND(E44="TRUE",Tool!J107>0),Tool!J107,"") ->  | K44: Raised Concrete Median Calcs
B45: =IF(AND(D33>=11,D33<=20),11,"") ->  | C45: =IF(D44>=$C$2,"",IF(B45<>"",IF($C$2<(Tool!E107-Tool!$D$98),"",IF(Tool!D108<>"",IF(Tool!$D$98<>0,Tool!E107-Tool!$D$98,Tool!E107),"")),"")) ->  | D45: =IF(C17>=$C$2,"",IF(C17="","",IF((Tool!E108-Tool!$D$98)>$C$2,$C$2,IF(C17="","",IF(Tool!E107<>"",IF(AND($C$2>=(Tool!E108-Tool!$D$98),(Tool!E109-Tool!$D$98)>=(Tool!E108-Tool!$D$98)),IF(Tool!$D$98<>"",Tool!E108-Tool!$D$98,Tool!E108),$C$2),""))))) ->  | E45: =IF(AND(B45<>"",D45<>"",Tool!F108="Raised Grass"),"TRUE","") ->  | F45: =IF(AND(E45="TRUE",Tool!I108>0),Tool!I108,"") ->  | G45: =IF(AND(E45="TRUE",Tool!J108>0),Tool!J108,"") ->  | K45: Length | L45: Width (ft) | M45: Interior Width (ft) | N45: Interior Area (sqft) | O45: Stone Depth (10") | P45: Stone (CY) | Q45: Class A Concrete 4" | R45: C/G - RCP Length | S45: Type 12 CB
B46: =IF(AND(D33>=12,D33<=20),12,"") ->  | C46: =IF(D45>=$C$2,"",IF(B46<>"",IF($C$2<(Tool!E108-Tool!$D$98),"",IF(Tool!D109<>"",IF(Tool!$D$98<>0,Tool!E108-Tool!$D$98,Tool!E108),"")),"")) ->  | D46: =IF(C18>=$C$2,"",IF(C18="","",IF((Tool!E109-Tool!$D$98)>$C$2,$C$2,IF(C18="","",IF(Tool!E108<>"",IF(AND($C$2>=(Tool!E109-Tool!$D$98),(Tool!E110-Tool!$D$98)>=(Tool!E109-Tool!$D$98)),IF(Tool!$D$98<>"",Tool!E109-Tool!$D$98,Tool!E109),$C$2),""))))) ->  | E46: =IF(AND(B46<>"",D46<>"",Tool!F109="Raised Grass"),"TRUE","") ->  | F46: =IF(AND(E46="TRUE",Tool!I109>0),Tool!I109,"") ->  | G46: =IF(AND(E46="TRUE",Tool!J109>0),Tool!J109,"") ->  | K46: =H86*5280 -> 0 | L46: =H84 -> 0 | M46: =L46-H85 -> 0 | N46: =M46*K46 -> 0 | O46: =10/12 -> 0.8333333333 | R46: =K46*0.5 -> 0 | S46: =(K46/600) -> 0
B47: =IF(AND(D33>=13,D33<=20),13,"") ->  | C47: =IF(D46>=$C$2,"",IF(B47<>"",IF($C$2<(Tool!E109-Tool!$D$98),"",IF(Tool!D110<>"",IF(Tool!$D$98<>0,Tool!E109-Tool!$D$98,Tool!E109),"")),"")) ->  | D47: =IF(C19>=$C$2,"",IF(C19="","",IF((Tool!E110-Tool!$D$98)>$C$2,$C$2,IF(C19="","",IF(Tool!E109<>"",IF(AND($C$2>=(Tool!E110-Tool!$D$98),(Tool!E111-Tool!$D$98)>=(Tool!E110-Tool!$D$98)),IF(Tool!$D$98<>"",Tool!E110-Tool!$D$98,Tool!E110),$C$2),""))))) ->  | E47: =IF(AND(B47<>"",D47<>"",Tool!F110="Raised Grass"),"TRUE","") ->  | F47: =IF(AND(E47="TRUE",Tool!I110>0),Tool!I110,"") ->  | G47: =IF(AND(E47="TRUE",Tool!J110>0),Tool!J110,"") -> 
B48: =IF(AND(D33>=14,D33<=20),14,"") ->  | C48: =IF(D47>=$C$2,"",IF(B48<>"",IF($C$2<(Tool!E110-Tool!$D$98),"",IF(Tool!D111<>"",IF(Tool!$D$98<>0,Tool!E110-Tool!$D$98,Tool!E110),"")),"")) ->  | D48: =IF(C20>=$C$2,"",IF(C20="","",IF((Tool!E111-Tool!$D$98)>$C$2,$C$2,IF(C20="","",IF(Tool!E110<>"",IF(AND($C$2>=(Tool!E111-Tool!$D$98),(Tool!E112-Tool!$D$98)>=(Tool!E111-Tool!$D$98)),IF(Tool!$D$98<>"",Tool!E111-Tool!$D$98,Tool!E111),$C$2),""))))) ->  | E48: =IF(AND(B48<>"",D48<>"",Tool!F111="Raised Grass"),"TRUE","") ->  | F48: =IF(AND(E48="TRUE",Tool!I111>0),Tool!I111,"") ->  | G48: =IF(AND(E48="TRUE",Tool!J111>0),Tool!J111,"") ->  | K48: Median Barrier Wall Calcs
B49: =IF(AND(D33>=15,D33<=20),15,"") ->  | C49: =IF(D48>=$C$2,"",IF(B49<>"",IF($C$2<(Tool!E111-Tool!$D$98),"",IF(Tool!D112<>"",IF(Tool!$D$98<>0,Tool!E111-Tool!$D$98,Tool!E111),"")),"")) ->  | D49: =IF(C21>=$C$2,"",IF(C21="","",IF((Tool!E112-Tool!$D$98)>$C$2,$C$2,IF(C21="","",IF(Tool!E111<>"",IF(AND($C$2>=(Tool!E112-Tool!$D$98),(Tool!E113-Tool!$D$98)>=(Tool!E112-Tool!$D$98)),IF(Tool!$D$98<>"",Tool!E112-Tool!$D$98,Tool!E112),$C$2),""))))) ->  | E49: =IF(AND(B49<>"",D49<>"",Tool!F112="Raised Grass"),"TRUE","") ->  | F49: =IF(AND(E49="TRUE",Tool!I112>0),Tool!I112,"") ->  | G49: =IF(AND(E49="TRUE",Tool!J112>0),Tool!J112,"") ->  | K49: Length | L49: Width | M49: Stone Depth(20.25")
B50: =IF(AND(D33>=16,D33<=20),16,"") ->  | C50: =IF(D49>=$C$2,"",IF(B50<>"",IF($C$2<(Tool!E112-Tool!$D$98),"",IF(Tool!D113<>"",IF(Tool!$D$98<>0,Tool!E112-Tool!$D$98,Tool!E112),"")),"")) ->  | D50: =IF(C22>=$C$2,"",IF(C22="","",IF((Tool!E113-Tool!$D$98)>$C$2,$C$2,IF(C22="","",IF(Tool!E112<>"",IF(AND($C$2>=(Tool!E113-Tool!$D$98),(Tool!E114-Tool!$D$98)>=(Tool!E113-Tool!$D$98)),IF(Tool!$D$98<>"",Tool!E113-Tool!$D$98,Tool!E113),$C$2),""))))) ->  | E50: =IF(AND(B50<>"",D50<>"",Tool!F113="Raised Grass"),"TRUE","") ->  | F50: =IF(AND(E50="TRUE",Tool!I113>0),Tool!I113,"") ->  | G50: =IF(AND(E50="TRUE",Tool!J113>0),Tool!J113,"") ->  | K50: =H114*5280 -> 0 | L50: 2 | M50: =(K50*L50*O34)/27 -> 0
B51: =IF(AND(D33>=17,D33<=20),17,"") ->  | C51: =IF(D50>=$C$2,"",IF(B51<>"",IF($C$2<(Tool!E113-Tool!$D$98),"",IF(Tool!D114<>"",IF(Tool!$D$98<>0,Tool!E113-Tool!$D$98,Tool!E113),"")),"")) ->  | D51: =IF(C23>=$C$2,"",IF(C23="","",IF((Tool!E114-Tool!$D$98)>$C$2,$C$2,IF(C23="","",IF(Tool!E113<>"",IF(AND($C$2>=(Tool!E114-Tool!$D$98),(Tool!E115-Tool!$D$98)>=(Tool!E114-Tool!$D$98)),IF(Tool!$D$98<>"",Tool!E114-Tool!$D$98,Tool!E114),$C$2),""))))) ->  | E51: =IF(AND(B51<>"",D51<>"",Tool!F114="Raised Grass"),"TRUE","") ->  | F51: =IF(AND(E51="TRUE",Tool!I114>0),Tool!I114,"") ->  | G51: =IF(AND(E51="TRUE",Tool!J114>0),Tool!J114,"") -> 
B52: =IF(AND(D33>=18,D33<=20),18,"") ->  | C52: =IF(D51>=$C$2,"",IF(B52<>"",IF($C$2<(Tool!E114-Tool!$D$98),"",IF(Tool!D115<>"",IF(Tool!$D$98<>0,Tool!E114-Tool!$D$98,Tool!E114),"")),"")) ->  | D52: =IF(C24>=$C$2,"",IF(C24="","",IF((Tool!E115-Tool!$D$98)>$C$2,$C$2,IF(C24="","",IF(Tool!E114<>"",IF(AND($C$2>=(Tool!E115-Tool!$D$98),(Tool!E116-Tool!$D$98)>=(Tool!E115-Tool!$D$98)),IF(Tool!$D$98<>"",Tool!E115-Tool!$D$98,Tool!E115),$C$2),""))))) ->  | E52: =IF(AND(B52<>"",D52<>"",Tool!F115="Raised Grass"),"TRUE","") ->  | F52: =IF(AND(E52="TRUE",Tool!I115>0),Tool!I115,"") ->  | G52: =IF(AND(E52="TRUE",Tool!J115>0),Tool!J115,"") -> 
B53: =IF(AND(D33>=19,D33<=20),19,"") ->  | C53: =IF(D52>=$C$2,"",IF(B53<>"",IF($C$2<(Tool!E115-Tool!$D$98),"",IF(Tool!D116<>"",IF(Tool!$D$98<>0,Tool!E115-Tool!$D$98,Tool!E115),"")),"")) ->  | D53: =IF(C25>=$C$2,"",IF(C25="","",IF((Tool!E116-Tool!$D$98)>$C$2,$C$2,IF(C25="","",IF(Tool!E115<>"",IF(AND($C$2>=(Tool!E116-Tool!$D$98),(Tool!E117-Tool!$D$98)>=(Tool!E116-Tool!$D$98)),IF(Tool!$D$98<>"",Tool!E116-Tool!$D$98,Tool!E116),$C$2),""))))) ->  | E53: =IF(AND(B53<>"",D53<>"",Tool!F116="Raised Grass"),"TRUE","") ->  | F53: =IF(AND(E53="TRUE",Tool!I116>0),Tool!I116,"") ->  | G53: =IF(AND(E53="TRUE",Tool!J116>0),Tool!J116,"") ->  | K53: Median Properties Table
B54: =IF(AND(D33=20),20,"") ->  | C54: =IF(D53>=$C$2,"",IF(B54<>"",IF($C$2<(Tool!E116-Tool!$D$98),"",IF(Tool!D117<>"",IF(Tool!$D$98<>0,Tool!E116-Tool!$D$98,Tool!E116),"")),"")) ->  | D54: =IF(C26>=$C$2,"",IF(C26="","",IF((Tool!E117-Tool!$D$98)>$C$2,$C$2,IF(C26="","",IF(Tool!E116<>"",IF(AND($C$2>=(Tool!E117-Tool!$D$98),(Tool!E118-Tool!$D$98)>=(Tool!E117-Tool!$D$98)),IF(Tool!$D$98<>"",Tool!E117-Tool!$D$98,Tool!E117),$C$2),""))))) ->  | E54: =IF(AND(B54<>"",D54<>"",Tool!F117="Raised Grass"),"TRUE","") ->  | F54: =IF(AND(E54="TRUE",Tool!I117>0),Tool!I117,"") ->  | G54: =IF(AND(E54="TRUE",Tool!J117>0),Tool!J117,"") ->  | L54: Avg. Interior Width: | M54: Avg. I'Shldr Width: | N54: Av Med. Width | O54: Total Length: | P54: Avg Median Area | Q54: Percent Type
K55: Depressed Grass: | L55: =H28 -> 0 | M55: =H29 -> 0 | N55: =L55+M55*2 -> 0 | O55: =H30 -> 0 | P55: =N55*O55*5280 -> 0 | Q55: =IF($P$59>0,P55/$P$59,0) -> 0
G56: Average Interior Width: | H56: =IF(AND(SUM(H35:H54)>0,SUM(G35:G54)>0),SUMPRODUCT(G35:G54,H35:H54)/SUM(H35:H54),0) -> 0 | K56: Raised Grass: | L56: =H56 -> 0 | M56: =H57 -> 0 | N56: =L56+M56*2 -> 0 | O56: =H58 -> 0 | P56: =N56*O56*5280 -> 0 | Q56: =IF($P$59>0,P56/$P$59,0) -> 0
G57: Avg. Inside Shoulder: | H57: =IF(SUM(H35:H54)>0,SUMPRODUCT(F35:F54,H35:H54)/SUM(H35:H54),0) -> 0 | K57: Raised Concrete: | L57: =H84 -> 0 | M57: =H85 -> 0 | N57: =L57+M57*2 -> 0 | O57: =H86 -> 0 | P57: =N57*O57*5280 -> 0 | Q57: =IF($P$59>0,P57/$P$59,0) -> 0
G58: Length: | H58: =SUM(H35:H54) -> 0 | K58: Barrier Wall: | L58: =H112 -> 0 | M58: =H113 -> 0 | N58: =L58+M58*2 -> 0 | O58: =H114 -> 0 | P58: =N58*O58*5280 -> 0 | Q58: =IF($P$59>0,P58/$P$59,0) -> 0
G59: Avg. Interior Area: | H59: =H56*SUM(H35:H54)*5280 -> 0 | K59: Overall: | L59: =IF(SUM($O$55:$O$58)>0,SUMPRODUCT(L55:L58,$O$55:$O$58)/SUM($O$55:$O$58),0) -> 0 | M59: =IF(SUM($O$55:$O$58)>0,SUMPRODUCT(M55:M58,$O$55:$O$58)/SUM($O$55:$O$58),0) -> 0 | N59: =IF(SUM($O$55:$O$58)>0,SUMPRODUCT(N55:N58,$O$55:$O$58)/SUM($O$55:$O$58),0) -> 0 | O59: =SUM(O55:O58) -> 0 | P59: =SUM(P55:P58) -> 0 | Q59: =SUM(Q55:Q58) -> 0
B60: Raised Concrete
B61: Segments: | D61: =Tool!$J$96 -> 1
B62: Segments | C62: Begin | D62: End | E62: Type | F62: Inside Shldr. Width (ft) | G62: Interior Width (ft) | H62: Length (ft)
B63: =IF(AND(D61>=1,D61<=20),1,"") -> 1 | C63: =IF(Tool!D98<>"",IF(B7<>"",IF(Tool!D98=0,Tool!D98,Tool!D98-Tool!D98),""),"") ->  | D63: =IF(C63="","",IF(Tool!E98<>"",IF(B7=1,IF($C$2<(Tool!E98-Tool!$D$98),$C$2,IF(Tool!D98<>0,(Tool!E98-Tool!D98),Tool!E98)),""))) ->  | E63: =IF(D63<=0,"",IF(AND(B63<>"",Tool!$F$98=Tool!$J$8),"TRUE","")) ->  | F63: =IF(AND(E63="TRUE",Tool!$I$98>0),Tool!$I$98,"") ->  | G63: =IF(AND(E63="TRUE",Tool!J98>0),Tool!J98,"") ->  | H63: =IF(OR(C63="",D63=""),"",IF(E63="TRUE",D63-C63,"")) -> 
B64: =IF(AND(D61>=2,D61<=20),2,"") ->  | C64: =IF(D35>=$C$2,"",IF(B36<>"",IF($C$2<(Tool!E98-Tool!$D$98),"",IF(Tool!D99<>"",IF(Tool!$D$98<>0,Tool!E98-Tool!$D$98,Tool!E98),"")),"")) ->  | D64: =IF(C8>=$C$2,"",IF(C8="","",IF((Tool!E99-Tool!$D$98)>$C$2,$C$2,IF(C8="","",IF(Tool!E98<>"",IF(AND($C$2>=(Tool!E99-Tool!$D$98),(Tool!E100-Tool!$D$98)>=(Tool!E99-Tool!$D$98)),IF(Tool!$D$98<>"",Tool!E99-Tool!$D$98,Tool!E99),$C$2),""))))) ->  | E64: =IF(D64<=0,"",IF(AND(B64<>"",Tool!$F$98=Tool!$J$8),"TRUE","")) ->  | F64: =IF(AND(E64="TRUE",Tool!I99>0),Tool!I99,"") ->  | G64: =IF(AND(E64="TRUE",Tool!J99>0),Tool!J99,"") ->  | H64: =IF(OR(C64="",D64=""),"",IF(E64="TRUE",D64-C64,"")) -> 
B65: =IF(AND(D61>=3,D61<=20),3,"") ->  | C65: =IF(D36>=$C$2,"",IF(B37<>"",IF($C$2<(Tool!E99-Tool!$D$98),"",IF(Tool!D100<>"",IF(Tool!$D$98<>0,Tool!E99-Tool!$D$98,Tool!E99),"")),"")) ->  | D65: =IF(C9>=$C$2,"",IF(C9="","",IF((Tool!E100-Tool!$D$98)>$C$2,$C$2,IF(C9="","",IF(Tool!E99<>"",IF(AND($C$2>=(Tool!E100-Tool!$D$98),(Tool!E101-Tool!$D$98)>=(Tool!E100-Tool!$D$98)),IF(Tool!$D$98<>"",Tool!E100-Tool!$D$98,Tool!E100),$C$2),""))))) ->  | E65: =IF(D65<=0,"",IF(AND(B65<>"",Tool!$F$98=Tool!$J$8),"TRUE","")) ->  | F65: =IF(AND(E65="TRUE",Tool!I100>0),Tool!I100,"") ->  | G65: =IF(AND(E65="TRUE",Tool!J100>0),Tool!J100,"") -> 
B66: =IF(AND(D61>=4,D61<=20),4,"") ->  | C66: =IF(D37>=$C$2,"",IF(B38<>"",IF($C$2<(Tool!E100-Tool!$D$98),"",IF(Tool!D101<>"",IF(Tool!$D$98<>0,Tool!E100-Tool!$D$98,Tool!E100),"")),"")) ->  | D66: =IF(C10>=$C$2,"",IF(C10="","",IF((Tool!E101-Tool!$D$98)>$C$2,$C$2,IF(C10="","",IF(Tool!E100<>"",IF(AND($C$2>=(Tool!E101-Tool!$D$98),(Tool!E102-Tool!$D$98)>=(Tool!E101-Tool!$D$98)),IF(Tool!$D$98<>"",Tool!E101-Tool!$D$98,Tool!E101),$C$2),""))))) ->  | E66: =IF(D66<=0,"",IF(AND(B66<>"",Tool!$F$98=Tool!$J$8),"TRUE","")) ->  | F66: =IF(AND(E66="TRUE",Tool!I101>0),Tool!I101,"") ->  | G66: =IF(AND(E66="TRUE",Tool!J101>0),Tool!J101,"") -> 
B67: =IF(AND(D61>=5,D61<=20),5,"") ->  | C67: =IF(D38>=$C$2,"",IF(B39<>"",IF($C$2<(Tool!E101-Tool!$D$98),"",IF(Tool!D102<>"",IF(Tool!$D$98<>0,Tool!E101-Tool!$D$98,Tool!E101),"")),"")) ->  | D67: =IF(C11>=$C$2,"",IF(C11="","",IF((Tool!E102-Tool!$D$98)>$C$2,$C$2,IF(C11="","",IF(Tool!E101<>"",IF(AND($C$2>=(Tool!E102-Tool!$D$98),(Tool!E103-Tool!$D$98)>=(Tool!E102-Tool!$D$98)),IF(Tool!$D$98<>"",Tool!E102-Tool!$D$98,Tool!E102),$C$2),""))))) ->  | E67: =IF(D67<=0,"",IF(AND(B67<>"",Tool!$F$98=Tool!$J$8),"TRUE","")) ->  | F67: =IF(AND(E67="TRUE",Tool!I102>0),Tool!I102,"") ->  | G67: =IF(AND(E67="TRUE",Tool!J102>0),Tool!J102,"") -> 
B68: =IF(AND(D61>=6,D61<=20),6,"") ->  | C68: =IF(D39>=$C$2,"",IF(B40<>"",IF($C$2<(Tool!E102-Tool!$D$98),"",IF(Tool!D103<>"",IF(Tool!$D$98<>0,Tool!E102-Tool!$D$98,Tool!E102),"")),"")) ->  | D68: =IF(C12>=$C$2,"",IF(C12="","",IF((Tool!E103-Tool!$D$98)>$C$2,$C$2,IF(C12="","",IF(Tool!E102<>"",IF(AND($C$2>=(Tool!E103-Tool!$D$98),(Tool!E104-Tool!$D$98)>=(Tool!E103-Tool!$D$98)),IF(Tool!$D$98<>"",Tool!E103-Tool!$D$98,Tool!E103),$C$2),""))))) ->  | E68: =IF(D68<=0,"",IF(AND(B68<>"",Tool!$F$98=Tool!$J$8),"TRUE","")) ->  | F68: =IF(AND(E68="TRUE",Tool!I103>0),Tool!I103,"") ->  | G68: =IF(AND(E68="TRUE",Tool!J103>0),Tool!J103,"") -> 
B69: =IF(AND(D61>=7,D61<=20),7,"") ->  | C69: =IF(D40>=$C$2,"",IF(B41<>"",IF($C$2<(Tool!E103-Tool!$D$98),"",IF(Tool!D104<>"",IF(Tool!$D$98<>0,Tool!E103-Tool!$D$98,Tool!E103),"")),"")) ->  | D69: =IF(C13>=$C$2,"",IF(C13="","",IF((Tool!E104-Tool!$D$98)>$C$2,$C$2,IF(C13="","",IF(Tool!E103<>"",IF(AND($C$2>=(Tool!E104-Tool!$D$98),(Tool!E105-Tool!$D$98)>=(Tool!E104-Tool!$D$98)),IF(Tool!$D$98<>"",Tool!E104-Tool!$D$98,Tool!E104),$C$2),""))))) ->  | E69: =IF(D69<=0,"",IF(AND(B69<>"",Tool!$F$98=Tool!$J$8),"TRUE","")) ->  | F69: =IF(AND(E69="TRUE",Tool!I104>0),Tool!I104,"") ->  | G69: =IF(AND(E69="TRUE",Tool!J104>0),Tool!J104,"") -> 
B70: =IF(AND(D61>=8,D61<=20),8,"") ->  | C70: =IF(D41>=$C$2,"",IF(B42<>"",IF($C$2<(Tool!E104-Tool!$D$98),"",IF(Tool!D105<>"",IF(Tool!$D$98<>0,Tool!E104-Tool!$D$98,Tool!E104),"")),"")) ->  | D70: =IF(C14>=$C$2,"",IF(C14="","",IF((Tool!E105-Tool!$D$98)>$C$2,$C$2,IF(C14="","",IF(Tool!E104<>"",IF(AND($C$2>=(Tool!E105-Tool!$D$98),(Tool!E106-Tool!$D$98)>=(Tool!E105-Tool!$D$98)),IF(Tool!$D$98<>"",Tool!E105-Tool!$D$98,Tool!E105),$C$2),""))))) ->  | E70: =IF(D70<=0,"",IF(AND(B70<>"",Tool!$F$98=Tool!$J$8),"TRUE","")) ->  | F70: =IF(AND(E70="TRUE",Tool!I105>0),Tool!I105,"") ->  | G70: =IF(AND(E70="TRUE",Tool!J105>0),Tool!J105,"") -> 
B71: =IF(AND(D61>=9,D61<=20),9,"") ->  | C71: =IF(D42>=$C$2,"",IF(B43<>"",IF($C$2<(Tool!E105-Tool!$D$98),"",IF(Tool!D106<>"",IF(Tool!$D$98<>0,Tool!E105-Tool!$D$98,Tool!E105),"")),"")) ->  | D71: =IF(C15>=$C$2,"",IF(C15="","",IF((Tool!E106-Tool!$D$98)>$C$2,$C$2,IF(C15="","",IF(Tool!E105<>"",IF(AND($C$2>=(Tool!E106-Tool!$D$98),(Tool!E107-Tool!$D$98)>=(Tool!E106-Tool!$D$98)),IF(Tool!$D$98<>"",Tool!E106-Tool!$D$98,Tool!E106),$C$2),""))))) ->  | E71: =IF(D71<=0,"",IF(AND(B71<>"",Tool!$F$98=Tool!$J$8),"TRUE","")) ->  | F71: =IF(AND(E71="TRUE",Tool!I106>0),Tool!I106,"") ->  | G71: =IF(AND(E71="TRUE",Tool!J106>0),Tool!J106,"") -> 
B72: =IF(AND(D61>=10,D61<=20),10,"") ->  | C72: =IF(D43>=$C$2,"",IF(B44<>"",IF($C$2<(Tool!E106-Tool!$D$98),"",IF(Tool!D107<>"",IF(Tool!$D$98<>0,Tool!E106-Tool!$D$98,Tool!E106),"")),"")) ->  | D72: =IF(C16>=$C$2,"",IF(C16="","",IF((Tool!E107-Tool!$D$98)>$C$2,$C$2,IF(C16="","",IF(Tool!E106<>"",IF(AND($C$2>=(Tool!E107-Tool!$D$98),(Tool!E108-Tool!$D$98)>=(Tool!E107-Tool!$D$98)),IF(Tool!$D$98<>"",Tool!E107-Tool!$D$98,Tool!E107),$C$2),""))))) ->  | E72: =IF(D72<=0,"",IF(AND(B72<>"",Tool!$F$98=Tool!$J$8),"TRUE","")) ->  | F72: =IF(AND(E72="TRUE",Tool!I107>0),Tool!I107,"") ->  | G72: =IF(AND(E72="TRUE",Tool!J107>0),Tool!J107,"") -> 
B73: =IF(AND(D61>=11,D61<=20),11,"") ->  | C73: =IF(D44>=$C$2,"",IF(B45<>"",IF($C$2<(Tool!E107-Tool!$D$98),"",IF(Tool!D108<>"",IF(Tool!$D$98<>0,Tool!E107-Tool!$D$98,Tool!E107),"")),"")) ->  | D73: =IF(C17>=$C$2,"",IF(C17="","",IF((Tool!E108-Tool!$D$98)>$C$2,$C$2,IF(C17="","",IF(Tool!E107<>"",IF(AND($C$2>=(Tool!E108-Tool!$D$98),(Tool!E109-Tool!$D$98)>=(Tool!E108-Tool!$D$98)),IF(Tool!$D$98<>"",Tool!E108-Tool!$D$98,Tool!E108),$C$2),""))))) ->  | E73: =IF(D73<=0,"",IF(AND(B73<>"",Tool!$F$98=Tool!$J$8),"TRUE","")) ->  | F73: =IF(AND(E73="TRUE",Tool!I108>0),Tool!I108,"") ->  | G73: =IF(AND(E73="TRUE",Tool!J108>0),Tool!J108,"") -> 
B74: =IF(AND(D61>=12,D61<=20),12,"") ->  | C74: =IF(D45>=$C$2,"",IF(B46<>"",IF($C$2<(Tool!E108-Tool!$D$98),"",IF(Tool!D109<>"",IF(Tool!$D$98<>0,Tool!E108-Tool!$D$98,Tool!E108),"")),"")) ->  | D74: =IF(C18>=$C$2,"",IF(C18="","",IF((Tool!E109-Tool!$D$98)>$C$2,$C$2,IF(C18="","",IF(Tool!E108<>"",IF(AND($C$2>=(Tool!E109-Tool!$D$98),(Tool!E110-Tool!$D$98)>=(Tool!E109-Tool!$D$98)),IF(Tool!$D$98<>"",Tool!E109-Tool!$D$98,Tool!E109),$C$2),""))))) ->  | E74: =IF(D74<=0,"",IF(AND(B74<>"",Tool!$F$98=Tool!$J$8),"TRUE","")) ->  | F74: =IF(AND(E74="TRUE",Tool!I109>0),Tool!I109,"") ->  | G74: =IF(AND(E74="TRUE",Tool!J109>0),Tool!J109,"") -> 
B75: =IF(AND(D61>=13,D61<=20),13,"") ->  | C75: =IF(D46>=$C$2,"",IF(B47<>"",IF($C$2<(Tool!E109-Tool!$D$98),"",IF(Tool!D110<>"",IF(Tool!$D$98<>0,Tool!E109-Tool!$D$98,Tool!E109),"")),"")) ->  | D75: =IF(C19>=$C$2,"",IF(C19="","",IF((Tool!E110-Tool!$D$98)>$C$2,$C$2,IF(C19="","",IF(Tool!E109<>"",IF(AND($C$2>=(Tool!E110-Tool!$D$98),(Tool!E111-Tool!$D$98)>=(Tool!E110-Tool!$D$98)),IF(Tool!$D$98<>"",Tool!E110-Tool!$D$98,Tool!E110),$C$2),""))))) ->  | E75: =IF(D75<=0,"",IF(AND(B75<>"",Tool!$F$98=Tool!$J$8),"TRUE","")) ->  | F75: =IF(AND(E75="TRUE",Tool!I110>0),Tool!I110,"") ->  | G75: =IF(AND(E75="TRUE",Tool!J110>0),Tool!J110,"") -> 
B76: =IF(AND(D61>=14,D61<=20),14,"") ->  | C76: =IF(D47>=$C$2,"",IF(B48<>"",IF($C$2<(Tool!E110-Tool!$D$98),"",IF(Tool!D111<>"",IF(Tool!$D$98<>0,Tool!E110-Tool!$D$98,Tool!E110),"")),"")) ->  | D76: =IF(C20>=$C$2,"",IF(C20="","",IF((Tool!E111-Tool!$D$98)>$C$2,$C$2,IF(C20="","",IF(Tool!E110<>"",IF(AND($C$2>=(Tool!E111-Tool!$D$98),(Tool!E112-Tool!$D$98)>=(Tool!E111-Tool!$D$98)),IF(Tool!$D$98<>"",Tool!E111-Tool!$D$98,Tool!E111),$C$2),""))))) ->  | E76: =IF(D76<=0,"",IF(AND(B76<>"",Tool!$F$98=Tool!$J$8),"TRUE","")) ->  | F76: =IF(AND(E76="TRUE",Tool!I111>0),Tool!I111,"") ->  | G76: =IF(AND(E76="TRUE",Tool!J111>0),Tool!J111,"") -> 
B77: =IF(AND(D61>=15,D61<=20),15,"") ->  | C77: =IF(D48>=$C$2,"",IF(B49<>"",IF($C$2<(Tool!E111-Tool!$D$98),"",IF(Tool!D112<>"",IF(Tool!$D$98<>0,Tool!E111-Tool!$D$98,Tool!E111),"")),"")) ->  | D77: =IF(C21>=$C$2,"",IF(C21="","",IF((Tool!E112-Tool!$D$98)>$C$2,$C$2,IF(C21="","",IF(Tool!E111<>"",IF(AND($C$2>=(Tool!E112-Tool!$D$98),(Tool!E113-Tool!$D$98)>=(Tool!E112-Tool!$D$98)),IF(Tool!$D$98<>"",Tool!E112-Tool!$D$98,Tool!E112),$C$2),""))))) ->  | E77: =IF(D77<=0,"",IF(AND(B77<>"",Tool!$F$98=Tool!$J$8),"TRUE","")) ->  | F77: =IF(AND(E77="TRUE",Tool!I112>0),Tool!I112,"") ->  | G77: =IF(AND(E77="TRUE",Tool!J112>0),Tool!J112,"") -> 
B78: =IF(AND(D61>=16,D61<=20),16,"") ->  | C78: =IF(D49>=$C$2,"",IF(B50<>"",IF($C$2<(Tool!E112-Tool!$D$98),"",IF(Tool!D113<>"",IF(Tool!$D$98<>0,Tool!E112-Tool!$D$98,Tool!E112),"")),"")) ->  | D78: =IF(C22>=$C$2,"",IF(C22="","",IF((Tool!E113-Tool!$D$98)>$C$2,$C$2,IF(C22="","",IF(Tool!E112<>"",IF(AND($C$2>=(Tool!E113-Tool!$D$98),(Tool!E114-Tool!$D$98)>=(Tool!E113-Tool!$D$98)),IF(Tool!$D$98<>"",Tool!E113-Tool!$D$98,Tool!E113),$C$2),""))))) ->  | E78: =IF(D78<=0,"",IF(AND(B78<>"",Tool!$F$98=Tool!$J$8),"TRUE","")) ->  | F78: =IF(AND(E78="TRUE",Tool!I113>0),Tool!I113,"") ->  | G78: =IF(AND(E78="TRUE",Tool!J113>0),Tool!J113,"") -> 
B79: =IF(AND(D61>=17,D61<=20),17,"") ->  | C79: =IF(D50>=$C$2,"",IF(B51<>"",IF($C$2<(Tool!E113-Tool!$D$98),"",IF(Tool!D114<>"",IF(Tool!$D$98<>0,Tool!E113-Tool!$D$98,Tool!E113),"")),"")) ->  | D79: =IF(C23>=$C$2,"",IF(C23="","",IF((Tool!E114-Tool!$D$98)>$C$2,$C$2,IF(C23="","",IF(Tool!E113<>"",IF(AND($C$2>=(Tool!E114-Tool!$D$98),(Tool!E115-Tool!$D$98)>=(Tool!E114-Tool!$D$98)),IF(Tool!$D$98<>"",Tool!E114-Tool!$D$98,Tool!E114),$C$2),""))))) ->  | E79: =IF(D79<=0,"",IF(AND(B79<>"",Tool!$F$98=Tool!$J$8),"TRUE","")) ->  | F79: =IF(AND(E79="TRUE",Tool!I114>0),Tool!I114,"") ->  | G79: =IF(AND(E79="TRUE",Tool!J114>0),Tool!J114,"") -> 
B80: =IF(AND(D61>=18,D61<=20),18,"") ->  | C80: =IF(D51>=$C$2,"",IF(B52<>"",IF($C$2<(Tool!E114-Tool!$D$98),"",IF(Tool!D115<>"",IF(Tool!$D$98<>0,Tool!E114-Tool!$D$98,Tool!E114),"")),"")) ->  | D80: =IF(C24>=$C$2,"",IF(C24="","",IF((Tool!E115-Tool!$D$98)>$C$2,$C$2,IF(C24="","",IF(Tool!E114<>"",IF(AND($C$2>=(Tool!E115-Tool!$D$98),(Tool!E116-Tool!$D$98)>=(Tool!E115-Tool!$D$98)),IF(Tool!$D$98<>"",Tool!E115-Tool!$D$98,Tool!E115),$C$2),""))))) ->  | E80: =IF(D80<=0,"",IF(AND(B80<>"",Tool!$F$98=Tool!$J$8),"TRUE","")) ->  | F80: =IF(AND(E80="TRUE",Tool!I115>0),Tool!I115,"") ->  | G80: =IF(AND(E80="TRUE",Tool!J115>0),Tool!J115,"") -> 
B81: =IF(AND(D61>=19,D61<=20),19,"") ->  | C81: =IF(D52>=$C$2,"",IF(B53<>"",IF($C$2<(Tool!E115-Tool!$D$98),"",IF(Tool!D116<>"",IF(Tool!$D$98<>0,Tool!E115-Tool!$D$98,Tool!E115),"")),"")) ->  | D81: =IF(C25>=$C$2,"",IF(C25="","",IF((Tool!E116-Tool!$D$98)>$C$2,$C$2,IF(C25="","",IF(Tool!E115<>"",IF(AND($C$2>=(Tool!E116-Tool!$D$98),(Tool!E117-Tool!$D$98)>=(Tool!E116-Tool!$D$98)),IF(Tool!$D$98<>"",Tool!E116-Tool!$D$98,Tool!E116),$C$2),""))))) ->  | E81: =IF(D81<=0,"",IF(AND(B81<>"",Tool!$F$98=Tool!$J$8),"TRUE","")) ->  | F81: =IF(AND(E81="TRUE",Tool!I116>0),Tool!I116,"") ->  | G81: =IF(AND(E81="TRUE",Tool!J116>0),Tool!J116,"") -> 
B82: =IF(AND(D61=20),20,"") ->  | C82: =IF(D53>=$C$2,"",IF(B54<>"",IF($C$2<(Tool!E116-Tool!$D$98),"",IF(Tool!D117<>"",IF(Tool!$D$98<>0,Tool!E116-Tool!$D$98,Tool!E116),"")),"")) ->  | D82: =IF(C26>=$C$2,"",IF(C26="","",IF((Tool!E117-Tool!$D$98)>$C$2,$C$2,IF(C26="","",IF(Tool!E116<>"",IF(AND($C$2>=(Tool!E117-Tool!$D$98),(Tool!E118-Tool!$D$98)>=(Tool!E117-Tool!$D$98)),IF(Tool!$D$98<>"",Tool!E117-Tool!$D$98,Tool!E117),$C$2),""))))) ->  | E82: =IF(D82<=0,"",IF(AND(B82<>"",Tool!$F$98=Tool!$J$8),"TRUE","")) ->  | F82: =IF(AND(E82="TRUE",Tool!I117>0),Tool!I117,"") ->  | G82: =IF(AND(E82="TRUE",Tool!J117>0),Tool!J117,"") -> 
G84: Average Interior Width: | H84: =IF(AND(SUM(H63:H82)>0,SUM(G63:G82)>0),SUMPRODUCT(G63:G82,H63:H82)/SUM(H63:H82),0) -> 0
G85: Avg. Inside Shoulder: | H85: =IF(SUM(H63:H82)>0,SUMPRODUCT(F63:F82,H63:H82)/SUM(H63:H82),0) -> 0
G86: Length: | H86: =SUM(H63:H82) -> 0
B88: Barrier Wall
B89: Segments: | D89: =Tool!$J$96 -> 1
B90: Segments | C90: Begin | D90: End | E90: Type | F90: Inside Shldr. Width (ft) | G90: Interior Width (ft) | H90: Length (ft)
B91: =IF(AND(D89>=1,D89<=20),1,"") -> 1 | C91: =IF(Tool!D98<>"",IF(B7<>"",IF(Tool!D98=0,Tool!D98,Tool!D98-Tool!D98),""),"") ->  | D91: =IF(C91="","",IF(Tool!E98<>"",IF(B7=1,IF($C$2<(Tool!E98-Tool!$D$98),$C$2,IF(Tool!D98<>0,(Tool!E98-Tool!D98),Tool!E98)),""))) ->  | E91: =IF(D91<=0,"",IF(AND(B91<>"",Tool!F98=Tool!$J$9),"TRUE","")) ->  | F91: =IF(AND(E91="TRUE",Tool!I98>0),Tool!I98,"") ->  | G91: =IF(AND(E91="TRUE",D91<>"",C91<>""),3,"") ->  | H91: =IF(OR(C91="",D91=""),"",IF(E91="TRUE",D91-C91,"")) -> 
B92: =IF(AND(D89>=2,D89<=20),2,"") ->  | C92: =IF(D35>=$C$2,"",IF(B36<>"",IF($C$2<(Tool!E98-Tool!$D$98),"",IF(Tool!D99<>"",IF(Tool!$D$98<>0,Tool!E98-Tool!$D$98,Tool!E98),"")),"")) ->  | D92: =IF(C8>=$C$2,"",IF(C8="","",IF((Tool!E99-Tool!$D$98)>$C$2,$C$2,IF(C8="","",IF(Tool!E98<>"",IF(AND($C$2>=(Tool!E99-Tool!$D$98),(Tool!E100-Tool!$D$98)>=(Tool!E99-Tool!$D$98)),IF(Tool!$D$98<>"",Tool!E99-Tool!$D$98,Tool!E99),$C$2),""))))) ->  | E92: =IF(D92<=0,"",IF(AND(B92<>"",Tool!F99=Tool!$J$9),"TRUE","")) ->  | F92: =IF(AND(E92="TRUE",Tool!I99>0),Tool!I99,"") ->  | G92: =IF(AND(E92="TRUE",D92<>"",C92<>""),3,"") ->  | H92: =IF(OR(C92="",D92=""),"",IF(E92="TRUE",D92-C92,"")) -> 
B93: =IF(AND(D89>=3,D89<=20),3,"") ->  | C93: =IF(D36>=$C$2,"",IF(B37<>"",IF($C$2<(Tool!E99-Tool!$D$98),"",IF(Tool!D100<>"",IF(Tool!$D$98<>0,Tool!E99-Tool!$D$98,Tool!E99),"")),"")) ->  | D93: =IF(C9>=$C$2,"",IF(C9="","",IF((Tool!E100-Tool!$D$98)>$C$2,$C$2,IF(C9="","",IF(Tool!E99<>"",IF(AND($C$2>=(Tool!E100-Tool!$D$98),(Tool!E101-Tool!$D$98)>=(Tool!E100-Tool!$D$98)),IF(Tool!$D$98<>"",Tool!E100-Tool!$D$98,Tool!E100),$C$2),""))))) ->  | E93: =IF(D93<=0,"",IF(AND(B93<>"",Tool!F100=Tool!$J$9),"TRUE","")) ->  | F93: =IF(AND(E93="TRUE",Tool!I100>0),Tool!I100,"") -> 
B94: =IF(AND(D89>=4,D89<=20),4,"") ->  | C94: =IF(D37>=$C$2,"",IF(B38<>"",IF($C$2<(Tool!E100-Tool!$D$98),"",IF(Tool!D101<>"",IF(Tool!$D$98<>0,Tool!E100-Tool!$D$98,Tool!E100),"")),"")) ->  | D94: =IF(C10>=$C$2,"",IF(C10="","",IF((Tool!E101-Tool!$D$98)>$C$2,$C$2,IF(C10="","",IF(Tool!E100<>"",IF(AND($C$2>=(Tool!E101-Tool!$D$98),(Tool!E102-Tool!$D$98)>=(Tool!E101-Tool!$D$98)),IF(Tool!$D$98<>"",Tool!E101-Tool!$D$98,Tool!E101),$C$2),""))))) ->  | E94: =IF(D94<=0,"",IF(AND(B94<>"",Tool!F101=Tool!$J$9),"TRUE","")) ->  | F94: =IF(AND(E94="TRUE",Tool!I101>0),Tool!I101,"") -> 
B95: =IF(AND(D89>=5,D89<=20),5,"") ->  | C95: =IF(D38>=$C$2,"",IF(B39<>"",IF($C$2<(Tool!E101-Tool!$D$98),"",IF(Tool!D102<>"",IF(Tool!$D$98<>0,Tool!E101-Tool!$D$98,Tool!E101),"")),"")) ->  | D95: =IF(C11>=$C$2,"",IF(C11="","",IF((Tool!E102-Tool!$D$98)>$C$2,$C$2,IF(C11="","",IF(Tool!E101<>"",IF(AND($C$2>=(Tool!E102-Tool!$D$98),(Tool!E103-Tool!$D$98)>=(Tool!E102-Tool!$D$98)),IF(Tool!$D$98<>"",Tool!E102-Tool!$D$98,Tool!E102),$C$2),""))))) ->  | E95: =IF(D95<=0,"",IF(AND(B95<>"",Tool!F102=Tool!$J$9),"TRUE","")) ->  | F95: =IF(AND(E95="TRUE",Tool!I102>0),Tool!I102,"") -> 
B96: =IF(AND(D89>=6,D89<=20),6,"") ->  | C96: =IF(D39>=$C$2,"",IF(B40<>"",IF($C$2<(Tool!E102-Tool!$D$98),"",IF(Tool!D103<>"",IF(Tool!$D$98<>0,Tool!E102-Tool!$D$98,Tool!E102),"")),"")) ->  | D96: =IF(C12>=$C$2,"",IF(C12="","",IF((Tool!E103-Tool!$D$98)>$C$2,$C$2,IF(C12="","",IF(Tool!E102<>"",IF(AND($C$2>=(Tool!E103-Tool!$D$98),(Tool!E104-Tool!$D$98)>=(Tool!E103-Tool!$D$98)),IF(Tool!$D$98<>"",Tool!E103-Tool!$D$98,Tool!E103),$C$2),""))))) ->  | E96: =IF(D96<=0,"",IF(AND(B96<>"",Tool!F103=Tool!$J$9),"TRUE","")) ->  | F96: =IF(AND(E96="TRUE",Tool!I103>0),Tool!I103,"") -> 
B97: =IF(AND(D89>=7,D89<=20),7,"") ->  | C97: =IF(D40>=$C$2,"",IF(B41<>"",IF($C$2<(Tool!E103-Tool!$D$98),"",IF(Tool!D104<>"",IF(Tool!$D$98<>0,Tool!E103-Tool!$D$98,Tool!E103),"")),"")) ->  | D97: =IF(C13>=$C$2,"",IF(C13="","",IF((Tool!E104-Tool!$D$98)>$C$2,$C$2,IF(C13="","",IF(Tool!E103<>"",IF(AND($C$2>=(Tool!E104-Tool!$D$98),(Tool!E105-Tool!$D$98)>=(Tool!E104-Tool!$D$98)),IF(Tool!$D$98<>"",Tool!E104-Tool!$D$98,Tool!E104),$C$2),""))))) ->  | E97: =IF(D97<=0,"",IF(AND(B97<>"",Tool!F104=Tool!$J$9),"TRUE","")) ->  | F97: =IF(AND(E97="TRUE",Tool!I104>0),Tool!I104,"") -> 
B98: =IF(AND(D89>=8,D89<=20),8,"") ->  | C98: =IF(D41>=$C$2,"",IF(B42<>"",IF($C$2<(Tool!E104-Tool!$D$98),"",IF(Tool!D105<>"",IF(Tool!$D$98<>0,Tool!E104-Tool!$D$98,Tool!E104),"")),"")) ->  | D98: =IF(C14>=$C$2,"",IF(C14="","",IF((Tool!E105-Tool!$D$98)>$C$2,$C$2,IF(C14="","",IF(Tool!E104<>"",IF(AND($C$2>=(Tool!E105-Tool!$D$98),(Tool!E106-Tool!$D$98)>=(Tool!E105-Tool!$D$98)),IF(Tool!$D$98<>"",Tool!E105-Tool!$D$98,Tool!E105),$C$2),""))))) ->  | E98: =IF(D98<=0,"",IF(AND(B98<>"",Tool!F105=Tool!$J$9),"TRUE","")) ->  | F98: =IF(AND(E98="TRUE",Tool!I105>0),Tool!I105,"") -> 
B99: =IF(AND(D89>=9,D89<=20),9,"") ->  | C99: =IF(D42>=$C$2,"",IF(B43<>"",IF($C$2<(Tool!E105-Tool!$D$98),"",IF(Tool!D106<>"",IF(Tool!$D$98<>0,Tool!E105-Tool!$D$98,Tool!E105),"")),"")) ->  | D99: =IF(C15>=$C$2,"",IF(C15="","",IF((Tool!E106-Tool!$D$98)>$C$2,$C$2,IF(C15="","",IF(Tool!E105<>"",IF(AND($C$2>=(Tool!E106-Tool!$D$98),(Tool!E107-Tool!$D$98)>=(Tool!E106-Tool!$D$98)),IF(Tool!$D$98<>"",Tool!E106-Tool!$D$98,Tool!E106),$C$2),""))))) ->  | E99: =IF(D99<=0,"",IF(AND(B99<>"",Tool!F106=Tool!$J$9),"TRUE","")) ->  | F99: =IF(AND(E99="TRUE",Tool!I106>0),Tool!I106,"") -> 
B100: =IF(AND(D89>=10,D89<=20),10,"") ->  | C100: =IF(D43>=$C$2,"",IF(B44<>"",IF($C$2<(Tool!E106-Tool!$D$98),"",IF(Tool!D107<>"",IF(Tool!$D$98<>0,Tool!E106-Tool!$D$98,Tool!E106),"")),"")) ->  | D100: =IF(C16>=$C$2,"",IF(C16="","",IF((Tool!E107-Tool!$D$98)>$C$2,$C$2,IF(C16="","",IF(Tool!E106<>"",IF(AND($C$2>=(Tool!E107-Tool!$D$98),(Tool!E108-Tool!$D$98)>=(Tool!E107-Tool!$D$98)),IF(Tool!$D$98<>"",Tool!E107-Tool!$D$98,Tool!E107),$C$2),""))))) ->  | E100: =IF(D100<=0,"",IF(AND(B100<>"",Tool!F107=Tool!$J$9),"TRUE","")) ->  | F100: =IF(AND(E100="TRUE",Tool!I107>0),Tool!I107,"") -> 
B101: =IF(AND(D89>=11,D89<=20),11,"") ->  | C101: =IF(D44>=$C$2,"",IF(B45<>"",IF($C$2<(Tool!E107-Tool!$D$98),"",IF(Tool!D108<>"",IF(Tool!$D$98<>0,Tool!E107-Tool!$D$98,Tool!E107),"")),"")) ->  | D101: =IF(C17>=$C$2,"",IF(C17="","",IF((Tool!E108-Tool!$D$98)>$C$2,$C$2,IF(C17="","",IF(Tool!E107<>"",IF(AND($C$2>=(Tool!E108-Tool!$D$98),(Tool!E109-Tool!$D$98)>=(Tool!E108-Tool!$D$98)),IF(Tool!$D$98<>"",Tool!E108-Tool!$D$98,Tool!E108),$C$2),""))))) ->  | E101: =IF(D101<=0,"",IF(AND(B101<>"",Tool!F108=Tool!$J$9),"TRUE","")) ->  | F101: =IF(AND(E101="TRUE",Tool!I108>0),Tool!I108,"") -> 
B102: =IF(AND(D89>=12,D89<=20),12,"") ->  | C102: =IF(D45>=$C$2,"",IF(B46<>"",IF($C$2<(Tool!E108-Tool!$D$98),"",IF(Tool!D109<>"",IF(Tool!$D$98<>0,Tool!E108-Tool!$D$98,Tool!E108),"")),"")) ->  | D102: =IF(C18>=$C$2,"",IF(C18="","",IF((Tool!E109-Tool!$D$98)>$C$2,$C$2,IF(C18="","",IF(Tool!E108<>"",IF(AND($C$2>=(Tool!E109-Tool!$D$98),(Tool!E110-Tool!$D$98)>=(Tool!E109-Tool!$D$98)),IF(Tool!$D$98<>"",Tool!E109-Tool!$D$98,Tool!E109),$C$2),""))))) ->  | E102: =IF(D102<=0,"",IF(AND(B102<>"",Tool!F109=Tool!$J$9),"TRUE","")) ->  | F102: =IF(AND(E102="TRUE",Tool!I109>0),Tool!I109,"") -> 
B103: =IF(AND(D89>=13,D89<=20),13,"") ->  | C103: =IF(D46>=$C$2,"",IF(B47<>"",IF($C$2<(Tool!E109-Tool!$D$98),"",IF(Tool!D110<>"",IF(Tool!$D$98<>0,Tool!E109-Tool!$D$98,Tool!E109),"")),"")) ->  | D103: =IF(C19>=$C$2,"",IF(C19="","",IF((Tool!E110-Tool!$D$98)>$C$2,$C$2,IF(C19="","",IF(Tool!E109<>"",IF(AND($C$2>=(Tool!E110-Tool!$D$98),(Tool!E111-Tool!$D$98)>=(Tool!E110-Tool!$D$98)),IF(Tool!$D$98<>"",Tool!E110-Tool!$D$98,Tool!E110),$C$2),""))))) ->  | E103: =IF(D103<=0,"",IF(AND(B103<>"",Tool!F110=Tool!$J$9),"TRUE","")) ->  | F103: =IF(AND(E103="TRUE",Tool!I110>0),Tool!I110,"") -> 
B104: =IF(AND(D89>=14,D89<=20),14,"") ->  | C104: =IF(D47>=$C$2,"",IF(B48<>"",IF($C$2<(Tool!E110-Tool!$D$98),"",IF(Tool!D111<>"",IF(Tool!$D$98<>0,Tool!E110-Tool!$D$98,Tool!E110),"")),"")) ->  | D104: =IF(C20>=$C$2,"",IF(C20="","",IF((Tool!E111-Tool!$D$98)>$C$2,$C$2,IF(C20="","",IF(Tool!E110<>"",IF(AND($C$2>=(Tool!E111-Tool!$D$98),(Tool!E112-Tool!$D$98)>=(Tool!E111-Tool!$D$98)),IF(Tool!$D$98<>"",Tool!E111-Tool!$D$98,Tool!E111),$C$2),""))))) ->  | E104: =IF(D104<=0,"",IF(AND(B104<>"",Tool!F111=Tool!$J$9),"TRUE","")) ->  | F104: =IF(AND(E104="TRUE",Tool!I111>0),Tool!I111,"") -> 
B105: =IF(AND(D89>=15,D89<=20),15,"") ->  | C105: =IF(D48>=$C$2,"",IF(B49<>"",IF($C$2<(Tool!E111-Tool!$D$98),"",IF(Tool!D112<>"",IF(Tool!$D$98<>0,Tool!E111-Tool!$D$98,Tool!E111),"")),"")) ->  | D105: =IF(C21>=$C$2,"",IF(C21="","",IF((Tool!E112-Tool!$D$98)>$C$2,$C$2,IF(C21="","",IF(Tool!E111<>"",IF(AND($C$2>=(Tool!E112-Tool!$D$98),(Tool!E113-Tool!$D$98)>=(Tool!E112-Tool!$D$98)),IF(Tool!$D$98<>"",Tool!E112-Tool!$D$98,Tool!E112),$C$2),""))))) ->  | E105: =IF(D105<=0,"",IF(AND(B105<>"",Tool!F112=Tool!$J$9),"TRUE","")) ->  | F105: =IF(AND(E105="TRUE",Tool!I112>0),Tool!I112,"") -> 
B106: =IF(AND(D89>=16,D89<=20),16,"") ->  | C106: =IF(D49>=$C$2,"",IF(B50<>"",IF($C$2<(Tool!E112-Tool!$D$98),"",IF(Tool!D113<>"",IF(Tool!$D$98<>0,Tool!E112-Tool!$D$98,Tool!E112),"")),"")) ->  | D106: =IF(C22>=$C$2,"",IF(C22="","",IF((Tool!E113-Tool!$D$98)>$C$2,$C$2,IF(C22="","",IF(Tool!E112<>"",IF(AND($C$2>=(Tool!E113-Tool!$D$98),(Tool!E114-Tool!$D$98)>=(Tool!E113-Tool!$D$98)),IF(Tool!$D$98<>"",Tool!E113-Tool!$D$98,Tool!E113),$C$2),""))))) ->  | E106: =IF(D106<=0,"",IF(AND(B106<>"",Tool!F113=Tool!$J$9),"TRUE","")) ->  | F106: =IF(AND(E106="TRUE",Tool!I113>0),Tool!I113,"") -> 
B107: =IF(AND(D89>=17,D89<=20),17,"") ->  | C107: =IF(D50>=$C$2,"",IF(B51<>"",IF($C$2<(Tool!E113-Tool!$D$98),"",IF(Tool!D114<>"",IF(Tool!$D$98<>0,Tool!E113-Tool!$D$98,Tool!E113),"")),"")) ->  | D107: =IF(C23>=$C$2,"",IF(C23="","",IF((Tool!E114-Tool!$D$98)>$C$2,$C$2,IF(C23="","",IF(Tool!E113<>"",IF(AND($C$2>=(Tool!E114-Tool!$D$98),(Tool!E115-Tool!$D$98)>=(Tool!E114-Tool!$D$98)),IF(Tool!$D$98<>"",Tool!E114-Tool!$D$98,Tool!E114),$C$2),""))))) ->  | E107: =IF(D107<=0,"",IF(AND(B107<>"",Tool!F114=Tool!$J$9),"TRUE","")) ->  | F107: =IF(AND(E107="TRUE",Tool!I114>0),Tool!I114,"") -> 
B108: =IF(AND(D89>=18,D89<=20),18,"") ->  | C108: =IF(D51>=$C$2,"",IF(B52<>"",IF($C$2<(Tool!E114-Tool!$D$98),"",IF(Tool!D115<>"",IF(Tool!$D$98<>0,Tool!E114-Tool!$D$98,Tool!E114),"")),"")) ->  | D108: =IF(C24>=$C$2,"",IF(C24="","",IF((Tool!E115-Tool!$D$98)>$C$2,$C$2,IF(C24="","",IF(Tool!E114<>"",IF(AND($C$2>=(Tool!E115-Tool!$D$98),(Tool!E116-Tool!$D$98)>=(Tool!E115-Tool!$D$98)),IF(Tool!$D$98<>"",Tool!E115-Tool!$D$98,Tool!E115),$C$2),""))))) ->  | E108: =IF(D108<=0,"",IF(AND(B108<>"",Tool!F115=Tool!$J$9),"TRUE","")) ->  | F108: =IF(AND(E108="TRUE",Tool!I115>0),Tool!I115,"") -> 
B109: =IF(AND(D89>=19,D89<=20),19,"") ->  | C109: =IF(D52>=$C$2,"",IF(B53<>"",IF($C$2<(Tool!E115-Tool!$D$98),"",IF(Tool!D116<>"",IF(Tool!$D$98<>0,Tool!E115-Tool!$D$98,Tool!E115),"")),"")) ->  | D109: =IF(C25>=$C$2,"",IF(C25="","",IF((Tool!E116-Tool!$D$98)>$C$2,$C$2,IF(C25="","",IF(Tool!E115<>"",IF(AND($C$2>=(Tool!E116-Tool!$D$98),(Tool!E117-Tool!$D$98)>=(Tool!E116-Tool!$D$98)),IF(Tool!$D$98<>"",Tool!E116-Tool!$D$98,Tool!E116),$C$2),""))))) ->  | E109: =IF(D109<=0,"",IF(AND(B109<>"",Tool!F116=Tool!$J$9),"TRUE","")) ->  | F109: =IF(AND(E109="TRUE",Tool!I116>0),Tool!I116,"") -> 
B110: =IF(AND(D89=20),20,"") ->  | C110: =IF(D53>=$C$2,"",IF(B54<>"",IF($C$2<(Tool!E116-Tool!$D$98),"",IF(Tool!D117<>"",IF(Tool!$D$98<>0,Tool!E116-Tool!$D$98,Tool!E116),"")),"")) ->  | D110: =IF(C26>=$C$2,"",IF(C26="","",IF((Tool!E117-Tool!$D$98)>$C$2,$C$2,IF(C26="","",IF(Tool!E116<>"",IF(AND($C$2>=(Tool!E117-Tool!$D$98),(Tool!E118-Tool!$D$98)>=(Tool!E117-Tool!$D$98)),IF(Tool!$D$98<>"",Tool!E117-Tool!$D$98,Tool!E117),$C$2),""))))) ->  | E110: =IF(D110<=0,"",IF(AND(B110<>"",Tool!F117=Tool!$J$9),"TRUE","")) ->  | F110: =IF(AND(E110="TRUE",Tool!I117>0),Tool!I117,"") -> 
G112: Average Interior Width: | H112: =IF(AND(SUM(H91:H110)>0,SUM(G91:G110)>0),SUMPRODUCT(G91:G110,H91:H110)/SUM(H91:H110),0) -> 0 | P112: Median Design
G113: Avg. Inside Shoulder: | H113: =IF(SUM(H91:H110)>0,SUMPRODUCT(F91:F110,H91:H110)/SUM(H91:H110),0) -> 0
G114: Length: | H114: =SUM(H91:H110) -> 0

Sheet ROW_Old (hidden)
C2: Project Length: | D2: =IF((Tool!$J$54-Tool!$J$52)>0,(Tool!$J$54-Tool!$J$52),0) -> 0 | F2: County: | G2: =Tool!H53 -> 0
B5: Segments: | C5: =Tool!#REF! -> 
B6: Land Only
B7: Segments | C7: Begin | D7: End | E7: Land Use | F7: Existing Width (ft) | G7: Proposed Width (ft) | H7: Length | J7: Properties Table
B8: =IF(AND(C5>=1,C5<=20),1,"") ->  | C8: =IF(Tool!H228<>"",IF(B8<>"",IF(Tool!H228=0,Tool!H228,Tool!H228-Tool!H228),""),"") ->  | D8: =IF(C8="","",IF((Tool!#REF!-Tool!H228)<(Tool!I228-Tool!H228),D2,IF(B8<>"",IF(Tool!I228<>"",IF(AND(B9="",Tool!I228-Tool!H228<$D$2),$D$2,IF(B8=1,IF($D$2<(Tool!I228-Tool!$H$228),$D$2,IF(Tool!H228<>0,(Tool!I228-Tool!H228),Tool!I228)),"")),""),""))) ->  | E8: =IF(B8="","",IF(C8<>"",IF(Tool!J228=Tool!$I$7,"Land Only",""),"")) ->  | F8: =IF(AND(E8="Land Only",Tool!#REF!>=0),Tool!#REF!,"") ->  | G8: =IF(E8="Land Only",IF(Tool!#REF!>Tool!#REF!,Tool!#REF!,IF(Tool!#REF!>=0,Tool!#REF!)),"") ->  | H8: =IF(OR(C8="",D8=""),"",IF(E8="Land Only",D8-C8,"")) ->  | K8: Avg Width Existing | L8: Avg. Width Proposed | M8: Length | N8: Area (sf) | O8: Area (Acre) | P8: Cost/Acre | Q8: Cost
B9: =IF(AND(C5>=2,C5<=20),2,"") ->  | C9: =IF(B9<>"",IF(D8>=$D$2,"",IF($D$2<(Tool!I228-Tool!$H$228),"",IF(Tool!H229<>"",IF(Tool!$H$228<>0,Tool!I228-Tool!$H$228,Tool!I228),""))),"") ->  | D9: =IF(C9="","",IF(B9="",$D$2,IF((D8-$C$8)>=$D$2,"",IF(Tool!#REF!<>"",IF(AND($D$2>=(Tool!#REF!-Tool!$H$228),(Tool!I230-Tool!$H$228)>=(Tool!#REF!-Tool!H228)),IF(Tool!$H$228<>"",Tool!#REF!-Tool!$H$228,Tool!#REF!),$D$2),"")))) ->  | E9: =IF(B9="","",IF(C9<>"",IF(Tool!I229=Tool!$I$7,"Land Only",""),"")) ->  | F9: =IF(AND(E9="Land Only",Tool!#REF!>=0),Tool!#REF!,"") ->  | G9: =IF(E9="Land Only",IF(Tool!#REF!>Tool!#REF!,Tool!#REF!,IF(Tool!#REF!>=0,Tool!#REF!)),"") ->  | H9: =IF(F9<>"",IF(OR(C9="",D9=""),"",IF(E9="Land Only",D9-C9,"")),"") ->  | J9: Land Only: | K9: =F29 ->  | L9: =F30 ->  | M9: =F31 ->  | N9: =(L9*M9*5280)-(K9*M9*5280) ->  | O9: =N9/43560 ->  | P9: =IF(Tool!H53<>"",VLOOKUP(G2,J16:N110,4,0),0) -> 0 | Q9: =O9*P9 -> 
B10: =IF(AND(C5>=3,C5<=20),3,"") ->  | C10: =IF(B10<>"",IF(D9>=$D$2,"",IF($D$2<(Tool!#REF!-Tool!$H$228),"",IF(Tool!H230<>"",IF(Tool!$H$228<>0,Tool!#REF!-Tool!$H$228,Tool!#REF!),""))),"") ->  | D10: =IF(C10="","",IF(B10="",$D$2,IF((D9-$C$8)>=$D$2,"",IF(Tool!I230<>"",IF(AND($D$2>=(Tool!I230-Tool!$H$228),(Tool!I231-Tool!$H$228)>=(Tool!I230-Tool!H229)),IF(Tool!$H$228<>"",Tool!I230-Tool!$H$228,Tool!I230),$D$2),"")))) ->  | E10: =IF(B10="","",IF(C10<>"",IF(Tool!J230=Tool!$I$7,"Land Only",""),"")) ->  | F10: =IF(AND(E10="Land Only",Tool!#REF!>=0),Tool!#REF!,"") ->  | G10: =IF(E10="Land Only",IF(Tool!#REF!>Tool!#REF!,Tool!#REF!,IF(Tool!#REF!>=0,Tool!#REF!)),"") ->  | J10: Residential: | K10: =F57 ->  | L10: =F58 ->  | M10: =F59 ->  | N10: =(L10*M10*5280)-(K10*M10*5280) ->  | O10: =N10/43560 ->  | P10: =IF(Tool!H53<>"",VLOOKUP(G2,J16:N110,3,0),0) -> 0 | Q10: =O10*P10 -> 
B11: =IF(AND(C5>=4,C5<=20),4,"") ->  | C11: =IF(B11<>"",IF(D10>=$D$2,"",IF($D$2<(Tool!I230-Tool!$H$228),"",IF(Tool!H231<>"",IF(Tool!$H$228<>0,Tool!I230-Tool!$H$228,Tool!I230),""))),"") ->  | D11: =IF(C11="","",IF(B11="",$D$2,IF((D10-$C$8)>=$D$2,"",IF(Tool!I231<>"",IF(AND($D$2>=(Tool!I231-Tool!$H$228),(Tool!I232-Tool!$H$228)>=(Tool!I231-Tool!H230)),IF(Tool!$H$228<>"",Tool!I231-Tool!$H$228,Tool!I231),$D$2),"")))) ->  | E11: =IF(B11="","",IF(C11<>"",IF(Tool!J231=Tool!$I$7,"Land Only",""),"")) ->  | F11: =IF(AND(E11="Land Only",Tool!#REF!>=0),Tool!#REF!,"") ->  | G11: =IF(E11="Land Only",IF(Tool!#REF!>Tool!#REF!,Tool!#REF!,IF(Tool!#REF!>=0,Tool!#REF!)),"") ->  | J11: Com/Ind: | K11: =F85 ->  | L11: =F86 ->  | M11: =F87 ->  | N11: =(L11*M11*5280)-(K11*M11*5280) ->  | O11: =N11/43560 ->  | P11: =IF(Tool!H53<>"",VLOOKUP(G2,J16:N110,5,0),0) -> 0 | Q11: =O11*P11 -> 
B12: =IF(AND(C5>=5,C5<=20),5,"") ->  | C12: =IF(B12<>"",IF(D11>=$D$2,"",IF($D$2<(Tool!I231-Tool!$H$228),"",IF(Tool!H232<>"",IF(Tool!$H$228<>0,Tool!I231-Tool!$H$228,Tool!I231),""))),"") ->  | D12: =IF(C12="","",IF(B12="",$D$2,IF((D11-$C$8)>=$D$2,"",IF(Tool!I232<>"",IF(AND($D$2>=(Tool!I232-Tool!$H$228),(Tool!I233-Tool!$H$228)>=(Tool!I232-Tool!H231)),IF(Tool!$H$228<>"",Tool!I232-Tool!$H$228,Tool!I232),$D$2),"")))) ->  | E12: =IF(B12="","",IF(C12<>"",IF(Tool!J232=Tool!$I$7,"Land Only",""),"")) ->  | F12: =IF(AND(E12="Land Only",Tool!#REF!>=0),Tool!#REF!,"") ->  | G12: =IF(E12="Land Only",IF(Tool!#REF!>Tool!#REF!,Tool!#REF!,IF(Tool!#REF!>=0,Tool!#REF!)),"") ->  | P12: Total: | Q12: =SUM(Q9:Q11) -> 
B13: =IF(AND(C5>=6,C5<=20),6,"") ->  | C13: =IF(B13<>"",IF(D12>=$D$2,"",IF($D$2<(Tool!I232-Tool!$H$228),"",IF(Tool!H233<>"",IF(Tool!$H$228<>0,Tool!I232-Tool!$H$228,Tool!I232),""))),"") ->  | D13: =IF(C13="","",IF(B13="",$D$2,IF((D12-$C$8)>=$D$2,"",IF(Tool!I233<>"",IF(AND($D$2>=(Tool!I233-Tool!$H$228),(Tool!E234-Tool!$H$228)>=(Tool!I233-Tool!H232)),IF(Tool!$H$228<>"",Tool!I233-Tool!$H$228,Tool!I233),$D$2),"")))) ->  | E13: =IF(B13="","",IF(C13<>"",IF(Tool!J233=Tool!$I$7,"Land Only",""),"")) ->  | F13: =IF(AND(E13="Land Only",Tool!#REF!>=0),Tool!#REF!,"") ->  | G13: =IF(E13="Land Only",IF(Tool!#REF!>Tool!#REF!,Tool!#REF!,IF(Tool!#REF!>=0,Tool!#REF!)),"") -> 
B14: =IF(AND(C5>=7,C5<=20),7,"") ->  | C14: =IF(B14<>"",IF(D13>=$D$2,"",IF($D$2<(Tool!I233-Tool!$H$228),"",IF(Tool!D234<>"",IF(Tool!$H$228<>0,Tool!I233-Tool!$H$228,Tool!I233),""))),"") ->  | D14: =IF(C14="","",IF(B14="",$D$2,IF((D13-$C$8)>=$D$2,"",IF(Tool!E234<>"",IF(AND($D$2>=(Tool!E234-Tool!$H$228),(Tool!E235-Tool!$H$228)>=(Tool!E234-Tool!H233)),IF(Tool!$H$228<>"",Tool!E234-Tool!$H$228,Tool!E234),$D$2),"")))) ->  | E14: =IF(B14="","",IF(C14<>"",IF(Tool!F234=Tool!$I$7,"Land Only",""),"")) ->  | F14: =IF(AND(E14="Land Only",Tool!#REF!>=0),Tool!#REF!,"") ->  | G14: =IF(E14="Land Only",IF(Tool!#REF!>Tool!#REF!,Tool!#REF!,IF(Tool!#REF!>=0,Tool!#REF!)),"") -> 
B15: =IF(AND(C5>=8,C5<=20),8,"") ->  | C15: =IF(B15<>"",IF(D14>=$D$2,"",IF($D$2<(Tool!E234-Tool!$H$228),"",IF(Tool!D235<>"",IF(Tool!$H$228<>0,Tool!E234-Tool!$H$228,Tool!E234),""))),"") ->  | D15: =IF(C15="","",IF(B15="",$D$2,IF((D14-$C$8)>=$D$2,"",IF(Tool!E235<>"",IF(AND($D$2>=(Tool!E235-Tool!$H$228),(Tool!#REF!-Tool!$H$228)>=(Tool!E235-Tool!D234)),IF(Tool!$H$228<>"",Tool!E235-Tool!$H$228,Tool!E235),$D$2),"")))) ->  | E15: =IF(B15="","",IF(C15<>"",IF(Tool!F235=Tool!$I$7,"Land Only",""),"")) ->  | F15: =IF(AND(E15="Land Only",Tool!G235>=0),Tool!G235,"") ->  | G15: =IF(E15="Land Only",IF(Tool!G235>Tool!H235,Tool!G235,IF(Tool!G235>=0,Tool!H235)),"") ->  | J15: County | K15: MSA County | L15: Residential | M15: Land Only | N15: Com/Ind | Q15: Residential | R15: Agricultural | S15: Comm/Ind
B16: =IF(AND(C5>=9,C5<=20),9,"") ->  | C16: =IF(B16<>"",IF(D15>=$D$2,"",IF($D$2<(Tool!E235-Tool!$H$228),"",IF(Tool!#REF!<>"",IF(Tool!$H$228<>0,Tool!E235-Tool!$H$228,Tool!E235),""))),"") ->  | D16: =IF(C16="","",IF(B16="",$D$2,IF((D15-$C$8)>=$D$2,"",IF(Tool!#REF!<>"",IF(AND($D$2>=(Tool!#REF!-Tool!$H$228),(Tool!#REF!-Tool!$H$228)>=(Tool!#REF!-Tool!D235)),IF(Tool!$H$228<>"",Tool!#REF!-Tool!$H$228,Tool!#REF!),$D$2),"")))) ->  | E16: =IF(B16="","",IF(C16<>"",IF(Tool!#REF!=Tool!$I$7,"Land Only",""),"")) ->  | F16: =IF(AND(E16="Land Only",Tool!G237>=0),Tool!G237,"") ->  | G16: =IF(E16="Land Only",IF(Tool!G237>Tool!H237,Tool!G237,IF(Tool!G237>=0,Tool!H237)),"") ->  | J16: Anderson | K16: Knox | L16: =Q22 -> 315000 | M16: =R22 -> 59000 | N16: =S22 -> 372272.7273 | P16: Hamilton | Q16: 215000 | R16: 30500 | S16: 757461.5385
B17: =IF(AND(C5>=10,C5<=20),10,"") ->  | C17: =IF(B17<>"",IF(D16>=$D$2,"",IF($D$2<(Tool!#REF!-Tool!$H$228),"",IF(Tool!#REF!<>"",IF(Tool!$H$228<>0,Tool!#REF!-Tool!$H$228,Tool!#REF!),""))),"") ->  | D17: =IF(C17="","",IF(B17="",$D$2,IF((D16-$C$8)>=$D$2,"",IF(Tool!#REF!<>"",IF(AND($D$2>=(Tool!#REF!-Tool!$H$228),(Tool!#REF!-Tool!$H$228)>=(Tool!#REF!-Tool!#REF!)),IF(Tool!$H$228<>"",Tool!#REF!-Tool!$H$228,Tool!#REF!),$D$2),"")))) ->  | E17: =IF(B17="","",IF(C17<>"",IF(Tool!#REF!=Tool!$I$7,"Land Only",""),"")) ->  | F17: =IF(AND(E17="Land Only",Tool!G238>=0),Tool!G238,"") ->  | G17: =IF(E17="Land Only",IF(Tool!G238>Tool!H238,Tool!G238,IF(Tool!G238>=0,Tool!H238)),"") ->  | J17: Bedford | K17: Montgomery | L17: =Q17 -> 185000 | M17: =R17 -> 14000 | N17: =S17 -> 700357.1429 | P17: Montgomery | Q17: 185000 | R17: 14000 | S17: 700357.1429
B18: =IF(AND(C5>=11,C5<=20),11,"") ->  | C18: =IF(B18<>"",IF(D17>=$D$2,"",IF($D$2<(Tool!#REF!-Tool!$H$228),"",IF(Tool!#REF!<>"",IF(Tool!$H$228<>0,Tool!#REF!-Tool!$H$228,Tool!#REF!),""))),"") ->  | D18: =IF(C18="","",IF(B18="",$D$2,IF((D17-$C$8)>=$D$2,"",IF(Tool!#REF!<>"",IF(AND($D$2>=(Tool!#REF!-Tool!$H$228),(Tool!#REF!-Tool!$H$228)>=(Tool!#REF!-Tool!#REF!)),IF(Tool!$H$228<>"",Tool!#REF!-Tool!$H$228,Tool!#REF!),$D$2),"")))) ->  | E18: =IF(B18="","",IF(C18<>"",IF(Tool!#REF!=Tool!$I$7,"Land Only",""),"")) ->  | F18: =IF(AND(E18="Land Only",Tool!G239>=0),Tool!G239,"") ->  | G18: =IF(E18="Land Only",IF(Tool!G239>Tool!H239,Tool!G239,IF(Tool!G239>=0,Tool!H239)),"") ->  | J18: Benton | K18: Madison | L18: =Q19 -> 180000 | M18: =R19 -> 10000 | N18: =S19 -> 375000 | P18: Bradley | Q18: 180000 | R18: 6500 | S18: 330000
B19: =IF(AND(C5>=12,C5<=20),12,"") ->  | C19: =IF(B19<>"",IF(D18>=$D$2,"",IF($D$2<(Tool!#REF!-Tool!$H$228),"",IF(Tool!#REF!<>"",IF(Tool!$H$228<>0,Tool!#REF!-Tool!$H$228,Tool!#REF!),""))),"") ->  | D19: =IF(C19="","",IF(B19="",$D$2,IF((D18-$C$8)>=$D$2,"",IF(Tool!#REF!<>"",IF(AND($D$2>=(Tool!#REF!-Tool!$H$228),(Tool!#REF!-Tool!$H$228)>=(Tool!#REF!-Tool!#REF!)),IF(Tool!$H$228<>"",Tool!#REF!-Tool!$H$228,Tool!#REF!),$D$2),"")))) ->  | E19: =IF(B19="","",IF(C19<>"",IF(Tool!#REF!=Tool!$I$7,"Land Only",""),"")) ->  | F19: =IF(AND(E19="Land Only",Tool!G240>=0),Tool!G240,"") ->  | G19: =IF(E19="Land Only",IF(Tool!G240>Tool!H240,Tool!G240,IF(Tool!G240>=0,Tool!H240)),"") ->  | J19: Bledsoe | K19: Bradley | L19: =Q18 -> 180000 | M19: =R18 -> 6500 | N19: =S18 -> 330000 | P19: Madison | Q19: 180000 | R19: 10000 | S19: 375000
B20: =IF(AND(C5>=13,C5<=20),13,"") ->  | C20: =IF(B20<>"",IF(D19>=$D$2,"",IF($D$2<(Tool!#REF!-Tool!$H$228),"",IF(Tool!#REF!<>"",IF(Tool!$H$228<>0,Tool!#REF!-Tool!$H$228,Tool!#REF!),""))),"") ->  | D20: =IF(C20="","",IF(B20="",$D$2,IF((D19-$C$8)>=$D$2,"",IF(Tool!#REF!<>"",IF(AND($D$2>=(Tool!#REF!-Tool!$H$228),(Tool!#REF!-Tool!$H$228)>=(Tool!#REF!-Tool!#REF!)),IF(Tool!$H$228<>"",Tool!#REF!-Tool!$H$228,Tool!#REF!),$D$2),"")))) ->  | E20: =IF(B20="","",IF(C20<>"",IF(Tool!#REF!=Tool!$I$7,"Land Only",""),"")) ->  | F20: =IF(AND(E20="Land Only",Tool!G241>=0),Tool!G241,"") ->  | G20: =IF(E20="Land Only",IF(Tool!G241>Tool!H241,Tool!G241,IF(Tool!G241>=0,Tool!H241)),"") ->  | J20: Blount | K20: Knox | L20: =Q22 -> 315000 | M20: =R22 -> 59000 | N20: =S22 -> 372272.7273 | P20: Washington | Q20: 195000 | R20: 18000 | S20: 281666.6667
B21: =IF(AND(C5>=14,C5<=20),14,"") ->  | C21: =IF(B21<>"",IF(D20>=$D$2,"",IF($D$2<(Tool!#REF!-Tool!$H$228),"",IF(Tool!#REF!<>"",IF(Tool!$H$228<>0,Tool!#REF!-Tool!$H$228,Tool!#REF!),""))),"") ->  | D21: =IF(C21="","",IF(B21="",$D$2,IF((D20-$C$8)>=$D$2,"",IF(Tool!#REF!<>"",IF(AND($D$2>=(Tool!#REF!-Tool!$H$228),(Tool!#REF!-Tool!$H$228)>=(Tool!#REF!-Tool!#REF!)),IF(Tool!$H$228<>"",Tool!#REF!-Tool!$H$228,Tool!#REF!),$D$2),"")))) ->  | E21: =IF(B21="","",IF(C21<>"",IF(Tool!#REF!=Tool!$I$7,"Land Only",""),"")) ->  | F21: =IF(AND(E21="Land Only",Tool!G242>=0),Tool!G242,"") ->  | G21: =IF(E21="Land Only",IF(Tool!G242>Tool!H242,Tool!G242,IF(Tool!G242>=0,Tool!H242)),"") ->  | J21: Bradley | K21: Bradley | L21: =Q18 -> 180000 | M21: =R18 -> 6500 | N21: =S18 -> 330000 | P21: Sullivan | Q21: 205000 | R21: 16500 | S21: 205000
B22: =IF(AND(C5>=15,C5<=20),15,"") ->  | C22: =IF(B22<>"",IF(D21>=$D$2,"",IF($D$2<(Tool!#REF!-Tool!$H$228),"",IF(Tool!#REF!<>"",IF(Tool!$H$228<>0,Tool!#REF!-Tool!$H$228,Tool!#REF!),""))),"") ->  | D22: =IF(C22="","",IF(B22="",$D$2,IF((D21-$C$8)>=$D$2,"",IF(Tool!#REF!<>"",IF(AND($D$2>=(Tool!#REF!-Tool!$H$228),(Tool!E243-Tool!$H$228)>=(Tool!#REF!-Tool!#REF!)),IF(Tool!$H$228<>"",Tool!#REF!-Tool!$H$228,Tool!#REF!),$D$2),"")))) ->  | E22: =IF(B22="","",IF(C22<>"",IF(Tool!#REF!=Tool!$I$7,"Land Only",""),"")) ->  | F22: =IF(AND(E22="Land Only",Tool!#REF!>=0),Tool!#REF!,"") ->  | G22: =IF(E22="Land Only",IF(Tool!#REF!>Tool!#REF!,Tool!#REF!,IF(Tool!#REF!>=0,Tool!#REF!)),"") ->  | J22: Campbell | K22: Knox | L22: =Q22 -> 315000 | M22: =R22 -> 59000 | N22: =S22 -> 372272.7273 | P22: Knox | Q22: 315000 | R22: 59000 | S22: 372272.7273
B23: =IF(AND(C5>=16,C5<=20),16,"") ->  | C23: =IF(B23<>"",IF(D22>=$D$2,"",IF($D$2<(Tool!#REF!-Tool!$H$228),"",IF(Tool!D243<>"",IF(Tool!$H$228<>0,Tool!#REF!-Tool!$H$228,Tool!#REF!),""))),"") ->  | D23: =IF(C23="","",IF(B23="",$D$2,IF((D22-$C$8)>=$D$2,"",IF(Tool!E243<>"",IF(AND($D$2>=(Tool!E243-Tool!$H$228),(Tool!#REF!-Tool!$H$228)>=(Tool!E243-Tool!#REF!)),IF(Tool!$H$228<>"",Tool!E243-Tool!$H$228,Tool!E243),$D$2),"")))) ->  | E23: =IF(B23="","",IF(C23<>"",IF(Tool!F243=Tool!$I$7,"Land Only",""),"")) ->  | F23: =IF(AND(E23="Land Only",Tool!G243>=0),Tool!G243,"") ->  | G23: =IF(E23="Land Only",IF(Tool!G243>Tool!H243,Tool!G243,IF(Tool!G243>=0,Tool!H243)),"") ->  | J23: Cannon | K23: Montgomery | L23: =Q17 -> 185000 | M23: =R17 -> 14000 | N23: =S17 -> 700357.1429 | P23: Shelby | Q23: 275000 | R23: 32500 | S23: 236500
B24: =IF(AND(C5>=17,C5<=20),17,"") ->  | C24: =IF(B24<>"",IF(D23>=$D$2,"",IF($D$2<(Tool!E243-Tool!$H$228),"",IF(Tool!#REF!<>"",IF(Tool!$H$228<>0,Tool!E243-Tool!$H$228,Tool!E243),""))),"") ->  | D24: =IF(C24="","",IF(B24="",$D$2,IF((D23-$C$8)>=$D$2,"",IF(Tool!#REF!<>"",IF(AND($D$2>=(Tool!#REF!-Tool!$H$228),(Tool!#REF!-Tool!$H$228)>=(Tool!#REF!-Tool!D243)),IF(Tool!$H$228<>"",Tool!#REF!-Tool!$H$228,Tool!#REF!),$D$2),"")))) ->  | E24: =IF(B24="","",IF(C24<>"",IF(Tool!#REF!=Tool!$I$7,"Land Only",""),"")) ->  | F24: =IF(AND(E24="Land Only",Tool!#REF!>=0),Tool!#REF!,"") ->  | G24: =IF(E24="Land Only",IF(Tool!#REF!>Tool!#REF!,Tool!#REF!,IF(Tool!#REF!>=0,Tool!#REF!)),"") ->  | J24: Carroll | K24: Madison | L24: =Q19 -> 180000 | M24: 10000 | N24: 375000 | P24: Hamblen | Q24: 213000 | R24: 11000 | S24: 287380.9524
B25: =IF(AND(C5>=18,C5<=20),18,"") ->  | C25: =IF(B25<>"",IF(D24>=$D$2,"",IF($D$2<(Tool!#REF!-Tool!$H$228),"",IF(Tool!#REF!<>"",IF(Tool!$H$228<>0,Tool!#REF!-Tool!$H$228,Tool!#REF!),""))),"") ->  | D25: =IF(C25="","",IF(B25="",$D$2,IF((D24-$C$8)>=$D$2,"",IF(Tool!#REF!<>"",IF(AND($D$2>=(Tool!#REF!-Tool!$H$228),(Tool!#REF!-Tool!$H$228)>=(Tool!#REF!-Tool!#REF!)),IF(Tool!$H$228<>"",Tool!#REF!-Tool!$H$228,Tool!#REF!),$D$2),"")))) ->  | E25: =IF(B25="","",IF(C25<>"",IF(Tool!#REF!=Tool!$I$7,"Land Only",""),"")) ->  | F25: =IF(AND(E25="Land Only",Tool!#REF!>=0),Tool!#REF!,"") ->  | G25: =IF(E25="Land Only",IF(Tool!#REF!>Tool!#REF!,Tool!#REF!,IF(Tool!#REF!>=0,Tool!#REF!)),"") ->  | J25: Carter | K25: Washington | L25: 195000 | M25: 18000 | N25: 281666.6667 | P25: Davidson | Q25: 290000 | R25: 30000 | S25: 310714.2857
B26: =IF(AND(C5>=19,C5<=20),19,"") ->  | C26: =IF(B26<>"",IF(D25>=$D$2,"",IF($D$2<(Tool!#REF!-Tool!$H$228),"",IF(Tool!#REF!<>"",IF(Tool!$H$228<>0,Tool!#REF!-Tool!$H$228,Tool!#REF!),""))),"") ->  | D26: =IF(C26="","",IF(B26="",$D$2,IF((D25-$C$8)>=$D$2,"",IF(Tool!#REF!<>"",IF(AND($D$2>=(Tool!#REF!-Tool!$H$228),(Tool!#REF!-Tool!$H$228)>=(Tool!#REF!-Tool!#REF!)),IF(Tool!$H$228<>"",Tool!#REF!-Tool!$H$228,Tool!#REF!),$D$2),"")))) ->  | E26: =IF(B26="","",IF(C26<>"",IF(Tool!#REF!=Tool!$I$7,"Land Only",""),"")) ->  | F26: =IF(AND(E26="Land Only",Tool!#REF!>=0),Tool!#REF!,"") ->  | G26: =IF(E26="Land Only",IF(Tool!#REF!>Tool!#REF!,Tool!#REF!,IF(Tool!#REF!>=0,Tool!#REF!)),"") ->  | J26: Cheatham | K26: Montgomery | L26: =Q17 -> 185000 | M26: =R17 -> 14000 | N26: =S17 -> 700357.1429 | P26: Rutherford | Q26: 223000 | R26: 26000 | S26: 687328.7671
B27: =IF(AND(C5=20),20,"") ->  | C27: =IF(B27<>"",IF(D26>=$D$2,"",IF($D$2<(Tool!#REF!-Tool!$H$228),"",IF(Tool!#REF!<>"",IF(Tool!$H$228<>0,Tool!#REF!-Tool!$H$228,Tool!#REF!),""))),"") ->  | D27: =IF(C27="","",IF(B27="",$D$2,IF((D26-$C$8)>=$D$2,"",IF(Tool!#REF!<>"",IF(AND($D$2>=(Tool!#REF!-Tool!$H$228),(Tool!#REF!-Tool!$H$228)>=(Tool!#REF!-Tool!#REF!)),IF(Tool!$H$228<>"",Tool!#REF!-Tool!$H$228,Tool!#REF!),$D$2),"")))) ->  | E27: =IF(B27="","",IF(C27<>"",IF(Tool!#REF!=Tool!$I$7,"Land Only",""),"")) ->  | F27: =IF(AND(E27="Land Only",Tool!#REF!>=0),Tool!#REF!,"") ->  | G27: =IF(E27="Land Only",IF(Tool!#REF!>Tool!#REF!,Tool!#REF!,IF(Tool!#REF!>=0,Tool!#REF!)),"") ->  | J27: Chester | K27: Madison | L27: =Q19 -> 180000 | M27: =R19 -> 10000 | N27: =S19 -> 375000 | P27: Williamson | Q27: 275000 | R27: 25000 | S27: 577500
J28: Claiborne | K28: Sullivan | L28: =Q21 -> 205000 | M28: =R21 -> 16500 | N28: =S21 -> 205000
E29: Average Existing Width: | F29: =IF(SUM(H8:H27)>0,SUMPRODUCT(F8:F27,H8:H27)/SUM(H8:H27),0) ->  | J29: Clay | K29: Bradley | L29: =Q18 -> 180000 | M29: =R18 -> 6500 | N29: =S18 -> 330000
E30: Average Proposed Width: | F30: =IF(SUM(H8:H27)>0,SUMPRODUCT(G8:G27,H8:H27)/SUM(H8:H27),0) ->  | J30: Cocke | K30: Hamblen | L30: =Q24 -> 213000 | M30: =R24 -> 11000 | N30: =S24 -> 287380.9524
E31: Length: | F31: =SUM(H8:H27) ->  | J31: Coffee | K31: Bradley | L31: =Q18 -> 180000 | M31: 6500 | N31: 330000
J32: Crockett | K32: Madison | L32: 180000 | M32: 10000 | N32: 375000
B33: Segments: | C33: =Tool!#REF! ->  | J33: Cumberland | K33: Bradley | L33: =Q18 -> 180000 | M33: =R18 -> 6500 | N33: =S18 -> 330000
B34: Residential | J34: Davidson | K34: Davidson | L34: =Q25 -> 290000 | M34: =R25 -> 30000 | N34: =S25 -> 310714.2857
B35: Segments | C35: Begin | D35: End | E35: Land Use | F35: Width (ft) | G35: Proposed Width (ft) | H35: Length | J35: Decatur | K35: Madison | L35: =Q19 -> 180000 | M35: =R19 -> 10000 | N35: =S19 -> 375000
B36: =IF(AND(C33>=1,C33<=20),1,"") ->  | C36: =IF(Tool!H228<>"",IF(B8<>"",IF(Tool!H228=0,Tool!H228,Tool!H228-Tool!H228),""),"") ->  | D36: =IF(C8="","",IF((Tool!#REF!-Tool!H228)<(Tool!I228-Tool!H228),D2,IF(B8<>"",IF(Tool!I228<>"",IF(AND(B9="",Tool!I228-Tool!H228<$D$2),$D$2,IF(B8=1,IF($D$2<(Tool!I228-Tool!$H$228),$D$2,IF(Tool!H228<>0,(Tool!I228-Tool!H228),Tool!I228)),"")),""),""))) ->  | E36: =IF(B36="","",IF(C36<>"",IF(Tool!J228=Tool!$I$8,"Residential",""),"")) ->  | F36: =IF(AND(E36="Residential",Tool!#REF!>=0),Tool!#REF!,"") ->  | G36: =IF(E36="Residential",IF(Tool!#REF!>Tool!#REF!,Tool!#REF!,IF(Tool!#REF!>=0,Tool!#REF!)),"") ->  | H36: =IF(F36<>"",IF(OR(C36="",D36=""),"",IF(E36="Residential",D36-C36,"")),"") ->  | J36: DeKalb | K36: Bradley | L36: =Q18 -> 180000 | M36: =R18 -> 6500 | N36: =S18 -> 330000
B37: =IF(AND(C33>=2,C33<=20),2,"") ->  | C37: =IF(B9<>"",IF(D8>=$D$2,"",IF($D$2<(Tool!I228-Tool!$H$228),"",IF(Tool!H229<>"",IF(Tool!$H$228<>0,Tool!I228-Tool!$H$228,Tool!I228),""))),"") ->  | D37: =IF(C9="","",IF(B37="",$D$2,IF((D8-$C$8)>=$D$2,"",IF(Tool!#REF!<>"",IF(AND($D$2>=(Tool!#REF!-Tool!$H$228),(Tool!I230-Tool!$H$228)>=(Tool!#REF!-Tool!H228)),IF(Tool!$H$228<>"",Tool!#REF!-Tool!$H$228,Tool!#REF!),$D$2),"")))) ->  | E37: =IF(B37="","",IF(C37<>"",IF(Tool!I229=Tool!$I$8,"Residential",""),"")) ->  | F37: =IF(AND(E37="Residential",Tool!#REF!>=0),Tool!#REF!,"") ->  | G37: =IF(E37="Residential",IF(Tool!#REF!>Tool!#REF!,Tool!#REF!,IF(Tool!#REF!>=0,Tool!#REF!)),"") ->  | H37: =IF(F37<>"",IF(OR(C37="",D37=""),"",IF(E37="Residential",D37-C37,"")),"") ->  | J37: Dickson | K37: Montgomery | L37: =Q17 -> 185000 | M37: =R17 -> 14000 | N37: =S17 -> 700357.1429
B38: =IF(AND(C33>=3,C33<=20),3,"") ->  | C38: =IF(B10<>"",IF(D9>=$D$2,"",IF($D$2<(Tool!#REF!-Tool!$H$228),"",IF(Tool!H230<>"",IF(Tool!$H$228<>0,Tool!#REF!-Tool!$H$228,Tool!#REF!),""))),"") ->  | D38: =IF(C10="","",IF(B38="",$D$2,IF((D9-$C$8)>=$D$2,"",IF(Tool!I230<>"",IF(AND($D$2>=(Tool!I230-Tool!$H$228),(Tool!I231-Tool!$H$228)>=(Tool!I230-Tool!H229)),IF(Tool!$H$228<>"",Tool!I230-Tool!$H$228,Tool!I230),$D$2),"")))) ->  | E38: =IF(B38="","",IF(C38<>"",IF(Tool!J230=Tool!$I$8,"Residential",""),"")) ->  | F38: =IF(AND(E38="Residential",Tool!#REF!>=0),Tool!#REF!,"") ->  | G38: =IF(E38="Residential",IF(Tool!#REF!>Tool!#REF!,Tool!#REF!,IF(Tool!#REF!>=0,Tool!#REF!)),"") ->  | J38: Dyer | K38: Madison | L38: =Q19 -> 180000 | M38: =R19 -> 10000 | N38: =S19 -> 375000
B39: =IF(AND(C33>=4,C33<=20),4,"") ->  | C39: =IF(B11<>"",IF(D10>=$D$2,"",IF($D$2<(Tool!I230-Tool!$H$228),"",IF(Tool!H231<>"",IF(Tool!$H$228<>0,Tool!I230-Tool!$H$228,Tool!I230),""))),"") ->  | D39: =IF(C11="","",IF(B39="",$D$2,IF((D10-$C$8)>=$D$2,"",IF(Tool!I231<>"",IF(AND($D$2>=(Tool!I231-Tool!$H$228),(Tool!I232-Tool!$H$228)>=(Tool!I231-Tool!H230)),IF(Tool!$H$228<>"",Tool!I231-Tool!$H$228,Tool!I231),$D$2),"")))) ->  | E39: =IF(B39="","",IF(C39<>"",IF(Tool!J231=Tool!$I$8,"Residential",""),"")) ->  | F39: =IF(AND(E39="Residential",Tool!#REF!>=0),Tool!#REF!,"") ->  | G39: =IF(E39="Residential",IF(Tool!#REF!>Tool!#REF!,Tool!#REF!,IF(Tool!#REF!>=0,Tool!#REF!)),"") ->  | J39: Fayette | K39: Shelby | L39: =Q23 -> 275000 | M39: =R23 -> 32500 | N39: =S23 -> 236500
B40: =IF(AND(C33>=5,C33<=20),5,"") ->  | C40: =IF(B12<>"",IF(D11>=$D$2,"",IF($D$2<(Tool!I231-Tool!$H$228),"",IF(Tool!H232<>"",IF(Tool!$H$228<>0,Tool!I231-Tool!$H$228,Tool!I231),""))),"") ->  | D40: =IF(C12="","",IF(B40="",$D$2,IF((D11-$C$8)>=$D$2,"",IF(Tool!I232<>"",IF(AND($D$2>=(Tool!I232-Tool!$H$228),(Tool!I233-Tool!$H$228)>=(Tool!I232-Tool!H231)),IF(Tool!$H$228<>"",Tool!I232-Tool!$H$228,Tool!I232),$D$2),"")))) ->  | E40: =IF(B40="","",IF(C40<>"",IF(Tool!J232=Tool!$I$8,"Residential",""),"")) ->  | F40: =IF(AND(E40="Residential",Tool!#REF!>=0),Tool!#REF!,"") ->  | G40: =IF(E40="Residential",IF(Tool!#REF!>Tool!#REF!,Tool!#REF!,IF(Tool!#REF!>=0,Tool!#REF!)),"") ->  | J40: Fentress | K40: Bradley | L40: =Q18 -> 180000 | M40: =R18 -> 6500 | N40: =S18 -> 330000
B41: =IF(AND(C33>=6,C33<=20),6,"") ->  | C41: =IF(B13<>"",IF(D12>=$D$2,"",IF($D$2<(Tool!I232-Tool!$H$228),"",IF(Tool!H233<>"",IF(Tool!$H$228<>0,Tool!I232-Tool!$H$228,Tool!I232),""))),"") ->  | D41: =IF(C13="","",IF(B41="",$D$2,IF((D12-$C$8)>=$D$2,"",IF(Tool!I233<>"",IF(AND($D$2>=(Tool!I233-Tool!$H$228),(Tool!E234-Tool!$H$228)>=(Tool!I233-Tool!H232)),IF(Tool!$H$228<>"",Tool!I233-Tool!$H$228,Tool!I233),$D$2),"")))) ->  | E41: =IF(B41="","",IF(C41<>"",IF(Tool!J233=Tool!$I$8,"Residential",""),"")) ->  | F41: =IF(AND(E41="Residential",Tool!#REF!>=0),Tool!#REF!,"") ->  | G41: =IF(E41="Residential",IF(Tool!#REF!>Tool!#REF!,Tool!#REF!,IF(Tool!#REF!>=0,Tool!#REF!)),"") ->  | J41: Franklin | K41: Bradley | L41: =Q18 -> 180000 | M41: 6500 | N41: 330000
B42: =IF(AND(C33>=7,C33<=20),7,"") ->  | C42: =IF(B14<>"",IF(D13>=$D$2,"",IF($D$2<(Tool!I233-Tool!$H$228),"",IF(Tool!D234<>"",IF(Tool!$H$228<>0,Tool!I233-Tool!$H$228,Tool!I233),""))),"") ->  | D42: =IF(C14="","",IF(B42="",$D$2,IF((D13-$C$8)>=$D$2,"",IF(Tool!E234<>"",IF(AND($D$2>=(Tool!E234-Tool!$H$228),(Tool!E235-Tool!$H$228)>=(Tool!E234-Tool!H233)),IF(Tool!$H$228<>"",Tool!E234-Tool!$H$228,Tool!E234),$D$2),"")))) ->  | E42: =IF(B42="","",IF(C42<>"",IF(Tool!F234=Tool!$I$8,"Residential",""),"")) ->  | F42: =IF(AND(E42="Residential",Tool!#REF!>=0),Tool!#REF!,"") ->  | G42: =IF(E42="Residential",IF(Tool!#REF!>Tool!#REF!,Tool!#REF!,IF(Tool!#REF!>=0,Tool!#REF!)),"") ->  | J42: Gibson | K42: Madison | L42: 180000 | M42: 10000 | N42: 375000
B43: =IF(AND(C33>=8,C33<=20),8,"") ->  | C43: =IF(B15<>"",IF(D14>=$D$2,"",IF($D$2<(Tool!E234-Tool!$H$228),"",IF(Tool!D235<>"",IF(Tool!$H$228<>0,Tool!E234-Tool!$H$228,Tool!E234),""))),"") ->  | D43: =IF(C15="","",IF(B43="",$D$2,IF((D14-$C$8)>=$D$2,"",IF(Tool!E235<>"",IF(AND($D$2>=(Tool!E235-Tool!$H$228),(Tool!#REF!-Tool!$H$228)>=(Tool!E235-Tool!D234)),IF(Tool!$H$228<>"",Tool!E235-Tool!$H$228,Tool!E235),$D$2),"")))) ->  | E43: =IF(B43="","",IF(C43<>"",IF(Tool!F235=Tool!$I$8,"Residential",""),"")) ->  | F43: =IF(AND(E43="Residential",Tool!G235>=0),Tool!G235,"") ->  | G43: =IF(E43="Residential",IF(Tool!G235>Tool!H235,Tool!G235,IF(Tool!G235>=0,Tool!H235)),"") ->  | J43: Giles | K43: Montgomery | L43: =Q17 -> 185000 | M43: =R17 -> 14000 | N43: =S17 -> 700357.1429
B44: =IF(AND(C33>=9,C33<=20),9,"") ->  | C44: =IF(B16<>"",IF(D15>=$D$2,"",IF($D$2<(Tool!E235-Tool!$H$228),"",IF(Tool!#REF!<>"",IF(Tool!$H$228<>0,Tool!E235-Tool!$H$228,Tool!E235),""))),"") ->  | D44: =IF(C16="","",IF(B44="",$D$2,IF((D15-$C$8)>=$D$2,"",IF(Tool!#REF!<>"",IF(AND($D$2>=(Tool!#REF!-Tool!$H$228),(Tool!#REF!-Tool!$H$228)>=(Tool!#REF!-Tool!D235)),IF(Tool!$H$228<>"",Tool!#REF!-Tool!$H$228,Tool!#REF!),$D$2),"")))) ->  | E44: =IF(B44="","",IF(C44<>"",IF(Tool!#REF!=Tool!$I$8,"Residential",""),"")) ->  | F44: =IF(AND(E44="Residential",Tool!G237>=0),Tool!G237,"") ->  | G44: =IF(E44="Residential",IF(Tool!G237>Tool!H237,Tool!G237,IF(Tool!G237>=0,Tool!H237)),"") ->  | J44: Grainger | K44: Knox | L44: =Q22 -> 315000 | M44: =R22 -> 59000 | N44: =S22 -> 372272.7273
B45: =IF(AND(C33>=10,C33<=20),10,"") ->  | C45: =IF(B17<>"",IF(D16>=$D$2,"",IF($D$2<(Tool!#REF!-Tool!$H$228),"",IF(Tool!#REF!<>"",IF(Tool!$H$228<>0,Tool!#REF!-Tool!$H$228,Tool!#REF!),""))),"") ->  | D45: =IF(C17="","",IF(B45="",$D$2,IF((D16-$C$8)>=$D$2,"",IF(Tool!#REF!<>"",IF(AND($D$2>=(Tool!#REF!-Tool!$H$228),(Tool!#REF!-Tool!$H$228)>=(Tool!#REF!-Tool!#REF!)),IF(Tool!$H$228<>"",Tool!#REF!-Tool!$H$228,Tool!#REF!),$D$2),"")))) ->  | E45: =IF(B45="","",IF(C45<>"",IF(Tool!#REF!=Tool!$I$8,"Residential",""),"")) ->  | F45: =IF(AND(E45="Residential",Tool!G238>=0),Tool!G238,"") ->  | G45: =IF(E45="Residential",IF(Tool!G238>Tool!H238,Tool!G238,IF(Tool!G238>=0,Tool!H238)),"") ->  | J45: Greene | K45: Washington | L45: =Q20 -> 195000 | M45: =R20 -> 18000 | N45: =S20 -> 281666.6667
B46: =IF(AND(C33>=11,C33<=20),11,"") ->  | C46: =IF(B18<>"",IF(D17>=$D$2,"",IF($D$2<(Tool!#REF!-Tool!$H$228),"",IF(Tool!#REF!<>"",IF(Tool!$H$228<>0,Tool!#REF!-Tool!$H$228,Tool!#REF!),""))),"") ->  | D46: =IF(C18="","",IF(B46="",$D$2,IF((D17-$C$8)>=$D$2,"",IF(Tool!#REF!<>"",IF(AND($D$2>=(Tool!#REF!-Tool!$H$228),(Tool!#REF!-Tool!$H$228)>=(Tool!#REF!-Tool!#REF!)),IF(Tool!$H$228<>"",Tool!#REF!-Tool!$H$228,Tool!#REF!),$D$2),"")))) ->  | E46: =IF(B46="","",IF(C46<>"",IF(Tool!#REF!=Tool!$I$8,"Residential",""),"")) ->  | F46: =IF(AND(E46="Residential",Tool!G239>=0),Tool!G239,"") ->  | G46: =IF(E46="Residential",IF(Tool!G239>Tool!H239,Tool!G239,IF(Tool!G239>=0,Tool!H239)),"") ->  | J46: Grundy | K46: Bradley | L46: =Q18 -> 180000 | M46: =R18 -> 6500 | N46: =S18 -> 330000
B47: =IF(AND(C33>=12,C33<=20),12,"") ->  | C47: =IF(B19<>"",IF(D18>=$D$2,"",IF($D$2<(Tool!#REF!-Tool!$H$228),"",IF(Tool!#REF!<>"",IF(Tool!$H$228<>0,Tool!#REF!-Tool!$H$228,Tool!#REF!),""))),"") ->  | D47: =IF(C19="","",IF(B47="",$D$2,IF((D18-$C$8)>=$D$2,"",IF(Tool!#REF!<>"",IF(AND($D$2>=(Tool!#REF!-Tool!$H$228),(Tool!#REF!-Tool!$H$228)>=(Tool!#REF!-Tool!#REF!)),IF(Tool!$H$228<>"",Tool!#REF!-Tool!$H$228,Tool!#REF!),$D$2),"")))) ->  | E47: =IF(B47="","",IF(C47<>"",IF(Tool!#REF!=Tool!$I$8,"Residential",""),"")) ->  | F47: =IF(AND(E47="Residential",Tool!G240>=0),Tool!G240,"") ->  | G47: =IF(E47="Residential",IF(Tool!G240>Tool!H240,Tool!G240,IF(Tool!G240>=0,Tool!H240)),"") ->  | J47: Hamblen | K47: Hamblen | L47: =Q24 -> 213000 | M47: =R24 -> 11000 | N47: =S24 -> 287380.9524
B48: =IF(AND(C33>=13,C33<=20),13,"") ->  | C48: =IF(B20<>"",IF(D19>=$D$2,"",IF($D$2<(Tool!#REF!-Tool!$H$228),"",IF(Tool!#REF!<>"",IF(Tool!$H$228<>0,Tool!#REF!-Tool!$H$228,Tool!#REF!),""))),"") ->  | D48: =IF(C20="","",IF(B48="",$D$2,IF((D19-$C$8)>=$D$2,"",IF(Tool!#REF!<>"",IF(AND($D$2>=(Tool!#REF!-Tool!$H$228),(Tool!#REF!-Tool!$H$228)>=(Tool!#REF!-Tool!#REF!)),IF(Tool!$H$228<>"",Tool!#REF!-Tool!$H$228,Tool!#REF!),$D$2),"")))) ->  | E48: =IF(B48="","",IF(C48<>"",IF(Tool!#REF!=Tool!$I$8,"Residential",""),"")) ->  | F48: =IF(AND(E48="Residential",Tool!G241>=0),Tool!G241,"") ->  | G48: =IF(E48="Residential",IF(Tool!G241>Tool!H241,Tool!G241,IF(Tool!G241>=0,Tool!H241)),"") ->  | J48: Hamilton | K48: Hamilton | L48: =Q16 -> 215000 | M48: =R16 -> 30500 | N48: =S16 -> 757461.5385
B49: =IF(AND(C33>=14,C33<=20),14,"") ->  | C49: =IF(B21<>"",IF(D20>=$D$2,"",IF($D$2<(Tool!#REF!-Tool!$H$228),"",IF(Tool!#REF!<>"",IF(Tool!$H$228<>0,Tool!#REF!-Tool!$H$228,Tool!#REF!),""))),"") ->  | D49: =IF(C21="","",IF(B49="",$D$2,IF((D20-$C$8)>=$D$2,"",IF(Tool!#REF!<>"",IF(AND($D$2>=(Tool!#REF!-Tool!$H$228),(Tool!#REF!-Tool!$H$228)>=(Tool!#REF!-Tool!#REF!)),IF(Tool!$H$228<>"",Tool!#REF!-Tool!$H$228,Tool!#REF!),$D$2),"")))) ->  | E49: =IF(B49="","",IF(C49<>"",IF(Tool!#REF!=Tool!$I$8,"Residential",""),"")) ->  | F49: =IF(AND(E49="Residential",Tool!G242>=0),Tool!G242,"") ->  | G49: =IF(E49="Residential",IF(Tool!G242>Tool!H242,Tool!G242,IF(Tool!G242>=0,Tool!H242)),"") ->  | J49: Hancock | K49: Sullivan | L49: =Q21 -> 205000 | M49: =R21 -> 16500 | N49: =S21 -> 205000
B50: =IF(AND(C33>=15,C33<=20),15,"") ->  | C50: =IF(B22<>"",IF(D21>=$D$2,"",IF($D$2<(Tool!#REF!-Tool!$H$228),"",IF(Tool!#REF!<>"",IF(Tool!$H$228<>0,Tool!#REF!-Tool!$H$228,Tool!#REF!),""))),"") ->  | D50: =IF(C22="","",IF(B50="",$D$2,IF((D21-$C$8)>=$D$2,"",IF(Tool!#REF!<>"",IF(AND($D$2>=(Tool!#REF!-Tool!$H$228),(Tool!E243-Tool!$H$228)>=(Tool!#REF!-Tool!#REF!)),IF(Tool!$H$228<>"",Tool!#REF!-Tool!$H$228,Tool!#REF!),$D$2),"")))) ->  | E50: =IF(B50="","",IF(C50<>"",IF(Tool!#REF!=Tool!$I$8,"Residential",""),"")) ->  | F50: =IF(AND(E50="Residential",Tool!#REF!>=0),Tool!#REF!,"") ->  | G50: =IF(E50="Residential",IF(Tool!#REF!>Tool!#REF!,Tool!#REF!,IF(Tool!#REF!>=0,Tool!#REF!)),"") ->  | J50: Hardeman | K50: Madison | L50: =Q19 -> 180000 | M50: =R19 -> 10000 | N50: =S19 -> 375000
B51: =IF(AND(C33>=16,C33<=20),16,"") ->  | C51: =IF(B23<>"",IF(D22>=$D$2,"",IF($D$2<(Tool!#REF!-Tool!$H$228),"",IF(Tool!D243<>"",IF(Tool!$H$228<>0,Tool!#REF!-Tool!$H$228,Tool!#REF!),""))),"") ->  | D51: =IF(C23="","",IF(B51="",$D$2,IF((D22-$C$8)>=$D$2,"",IF(Tool!E243<>"",IF(AND($D$2>=(Tool!E243-Tool!$H$228),(Tool!#REF!-Tool!$H$228)>=(Tool!E243-Tool!#REF!)),IF(Tool!$H$228<>"",Tool!E243-Tool!$H$228,Tool!E243),$D$2),"")))) ->  | E51: =IF(B51="","",IF(C51<>"",IF(Tool!F243=Tool!$I$8,"Residential",""),"")) ->  | F51: =IF(AND(E51="Residential",Tool!G243>=0),Tool!G243,"") ->  | G51: =IF(E51="Residential",IF(Tool!G243>Tool!H243,Tool!G243,IF(Tool!G243>=0,Tool!H243)),"") ->  | J51: Hardin | K51: Madison | L51: =Q19 -> 180000 | M51: =R19 -> 10000 | N51: =S19 -> 375000
B52: =IF(AND(C33>=17,C33<=20),17,"") ->  | C52: =IF(B24<>"",IF(D23>=$D$2,"",IF($D$2<(Tool!E243-Tool!$H$228),"",IF(Tool!#REF!<>"",IF(Tool!$H$228<>0,Tool!E243-Tool!$H$228,Tool!E243),""))),"") ->  | D52: =IF(C24="","",IF(B52="",$D$2,IF((D23-$C$8)>=$D$2,"",IF(Tool!#REF!<>"",IF(AND($D$2>=(Tool!#REF!-Tool!$H$228),(Tool!#REF!-Tool!$H$228)>=(Tool!#REF!-Tool!D243)),IF(Tool!$H$228<>"",Tool!#REF!-Tool!$H$228,Tool!#REF!),$D$2),"")))) ->  | E52: =IF(B52="","",IF(C52<>"",IF(Tool!#REF!=Tool!$I$8,"Residential",""),"")) ->  | F52: =IF(AND(E52="Residential",Tool!#REF!>=0),Tool!#REF!,"") ->  | G52: =IF(E52="Residential",IF(Tool!#REF!>Tool!#REF!,Tool!#REF!,IF(Tool!#REF!>=0,Tool!#REF!)),"") ->  | J52: Hawkins | K52: Sullivan | L52: =Q21 -> 205000 | M52: =R21 -> 16500 | N52: =S21 -> 205000
B53: =IF(AND(C33>=18,C33<=20),18,"") ->  | C53: =IF(B25<>"",IF(D24>=$D$2,"",IF($D$2<(Tool!#REF!-Tool!$H$228),"",IF(Tool!#REF!<>"",IF(Tool!$H$228<>0,Tool!#REF!-Tool!$H$228,Tool!#REF!),""))),"") ->  | D53: =IF(C25="","",IF(B53="",$D$2,IF((D24-$C$8)>=$D$2,"",IF(Tool!#REF!<>"",IF(AND($D$2>=(Tool!#REF!-Tool!$H$228),(Tool!#REF!-Tool!$H$228)>=(Tool!#REF!-Tool!#REF!)),IF(Tool!$H$228<>"",Tool!#REF!-Tool!$H$228,Tool!#REF!),$D$2),"")))) ->  | E53: =IF(B53="","",IF(C53<>"",IF(Tool!#REF!=Tool!$I$8,"Residential",""),"")) ->  | F53: =IF(AND(E53="Residential",Tool!#REF!>=0),Tool!#REF!,"") ->  | G53: =IF(E53="Residential",IF(Tool!#REF!>Tool!#REF!,Tool!#REF!,IF(Tool!#REF!>=0,Tool!#REF!)),"") ->  | J53: Haywood | K53: Madison | L53: =Q19 -> 180000 | M53: =R19 -> 10000 | N53: =S19 -> 375000
B54: =IF(AND(C33>=19,C33<=20),19,"") ->  | C54: =IF(B26<>"",IF(D25>=$D$2,"",IF($D$2<(Tool!#REF!-Tool!$H$228),"",IF(Tool!#REF!<>"",IF(Tool!$H$228<>0,Tool!#REF!-Tool!$H$228,Tool!#REF!),""))),"") ->  | D54: =IF(C26="","",IF(B54="",$D$2,IF((D25-$C$8)>=$D$2,"",IF(Tool!#REF!<>"",IF(AND($D$2>=(Tool!#REF!-Tool!$H$228),(Tool!#REF!-Tool!$H$228)>=(Tool!#REF!-Tool!#REF!)),IF(Tool!$H$228<>"",Tool!#REF!-Tool!$H$228,Tool!#REF!),$D$2),"")))) ->  | E54: =IF(B54="","",IF(C54<>"",IF(Tool!#REF!=Tool!$I$8,"Residential",""),"")) ->  | F54: =IF(AND(E54="Residential",Tool!#REF!>=0),Tool!#REF!,"") ->  | G54: =IF(E54="Residential",IF(Tool!#REF!>Tool!#REF!,Tool!#REF!,IF(Tool!#REF!>=0,Tool!#REF!)),"") ->  | J54: Henderson | K54: Madison | L54: =Q19 -> 180000 | M54: =R19 -> 10000 | N54: =S19 -> 375000
B55: =IF(AND(C33=20),20,"") ->  | C55: =IF(B27<>"",IF(D26>=$D$2,"",IF($D$2<(Tool!#REF!-Tool!$H$228),"",IF(Tool!#REF!<>"",IF(Tool!$H$228<>0,Tool!#REF!-Tool!$H$228,Tool!#REF!),""))),"") ->  | D55: =IF(C27="","",IF(B55="",$D$2,IF((D26-$C$8)>=$D$2,"",IF(Tool!#REF!<>"",IF(AND($D$2>=(Tool!#REF!-Tool!$H$228),(Tool!#REF!-Tool!$H$228)>=(Tool!#REF!-Tool!#REF!)),IF(Tool!$H$228<>"",Tool!#REF!-Tool!$H$228,Tool!#REF!),$D$2),"")))) ->  | E55: =IF(B55="","",IF(C55<>"",IF(Tool!#REF!=Tool!$I$8,"Residential",""),"")) ->  | F55: =IF(AND(E55="Residential",Tool!#REF!>=0),Tool!#REF!,"") ->  | G55: =IF(E55="Residential",IF(Tool!#REF!>Tool!#REF!,Tool!#REF!,IF(Tool!#REF!>=0,Tool!#REF!)),"") ->  | J55: Henry | K55: Madison | L55: =Q19 -> 180000 | M55: =R19 -> 10000 | N55: =S19 -> 375000
J56: Hickman | K56: Montgomery | L56: =Q17 -> 185000 | M56: =R17 -> 14000 | N56: =S17 -> 700357.1429
E57: Average Existing Width: | F57: =IF(SUM(H36:H55)>0,SUMPRODUCT(F36:F55,H36:H55)/SUM(H36:H55),0) ->  | J57: Houston | K57: Montgomery | L57: =Q17 -> 185000 | M57: =R17 -> 14000 | N57: =S17 -> 700357.1429
E58: Average Proposed Width: | F58: =IF(SUM(H36:H55)>0,SUMPRODUCT(G36:G55,H36:H55)/SUM(H36:H55),0) ->  | J58: Humphreys | K58: Montgomery | L58: =Q17 -> 185000 | M58: 14000 | N58: 700357.1429
E59: Length: | F59: =SUM(H36:H55) ->  | J59: Jackson | K59: Bradley | L59: 180000 | M59: 6500 | N59: 330000
J60: Jefferson | K60: Hamblen | L60: =Q24 -> 213000 | M60: =R24 -> 11000 | N60: =S24 -> 287380.9524
B61: Segments: | C61: =Tool!#REF! ->  | J61: Johnson | K61: Sullivan | L61: =Q21 -> 205000 | M61: 16500 | N61: 205000
B62: Commercial/Industrial | J62: Knox | K62: Knox | L62: 315000 | M62: 59000 | N62: 372272.7273
B63: Segments | C63: Begin | D63: End | E63: Land Use | F63: Width (ft) | G63: Proposed Width (ft) | H63: Length | J63: Lake | K63: Madison | L63: =Q19 -> 180000 | M63: =R19 -> 10000 | N63: =S19 -> 375000
B64: =IF(AND(C61>=1,C61<=20),1,"") ->  | C64: =IF(Tool!H228<>"",IF(B8<>"",IF(Tool!H228=0,Tool!H228,Tool!H228-Tool!H228),""),"") ->  | D64: =IF(C8="","",IF((Tool!#REF!-Tool!H228)<(Tool!I228-Tool!H228),D2,IF(B8<>"",IF(Tool!I228<>"",IF(AND(B9="",Tool!I228-Tool!H228<$D$2),$D$2,IF(B8=1,IF($D$2<(Tool!I228-Tool!$H$228),$D$2,IF(Tool!H228<>0,(Tool!I228-Tool!H228),Tool!I228)),"")),""),""))) ->  | E64: =IF(B64="","",IF(C64<>"",IF(Tool!J228=Tool!$I$9,"Com/Ind",""),"")) ->  | F64: =IF(AND(E64="Com/Ind",Tool!#REF!>=0),Tool!#REF!,"") ->  | G64: =IF(E64="Com/Ind",IF(Tool!#REF!>Tool!#REF!,Tool!#REF!,IF(Tool!#REF!>=0,Tool!#REF!)),"") ->  | H64: =IF(F64<>"",IF(OR(C64="",D64=""),"",IF(E64="Com/Ind",D64-C64,"")),"") ->  | J64: Lauderdale | K64: Madison | L64: =Q19 -> 180000 | M64: =R19 -> 10000 | N64: =S19 -> 375000
B65: =IF(AND(C61>=2,C61<=20),2,"") ->  | C65: =IF(B9<>"",IF(D8>=$D$2,"",IF($D$2<(Tool!I228-Tool!$H$228),"",IF(Tool!H229<>"",IF(Tool!$H$228<>0,Tool!I228-Tool!$H$228,Tool!I228),""))),"") ->  | D65: =IF(C9="","",IF(B65="",$D$2,IF((D8-$C$8)>=$D$2,"",IF(Tool!#REF!<>"",IF(AND($D$2>=(Tool!#REF!-Tool!$H$228),(Tool!I230-Tool!$H$228)>=(Tool!#REF!-Tool!H228)),IF(Tool!$H$228<>"",Tool!#REF!-Tool!$H$228,Tool!#REF!),$D$2),"")))) ->  | E65: =IF(B65="","",IF(C65<>"",IF(Tool!I229=Tool!$I$9,"Com/Ind",""),"")) ->  | F65: =IF(AND(E65="Com/Ind",Tool!#REF!>=0),Tool!#REF!,"") ->  | G65: =IF(E65="Com/Ind",IF(Tool!#REF!>Tool!#REF!,Tool!#REF!,IF(Tool!#REF!>=0,Tool!#REF!)),"") ->  | H65: =IF(F65<>"",IF(OR(C65="",D65=""),"",IF(E65="Com/Ind",D65-C65,"")),"") ->  | J65: Lawrence | K65: Montgomery | L65: =Q17 -> 185000 | M65: =R17 -> 14000 | N65: =S17 -> 700357.1429
B66: =IF(AND(C61>=3,C61<=20),3,"") ->  | C66: =IF(B10<>"",IF(D9>=$D$2,"",IF($D$2<(Tool!#REF!-Tool!$H$228),"",IF(Tool!H230<>"",IF(Tool!$H$228<>0,Tool!#REF!-Tool!$H$228,Tool!#REF!),""))),"") ->  | D66: =IF(C10="","",IF(B66="",$D$2,IF((D9-$C$8)>=$D$2,"",IF(Tool!I230<>"",IF(AND($D$2>=(Tool!I230-Tool!$H$228),(Tool!I231-Tool!$H$228)>=(Tool!I230-Tool!H229)),IF(Tool!$H$228<>"",Tool!I230-Tool!$H$228,Tool!I230),$D$2),"")))) ->  | E66: =IF(B66="","",IF(C66<>"",IF(Tool!J230=Tool!$I$9,"Com/Ind",""),"")) ->  | F66: =IF(AND(E66="Com/Ind",Tool!#REF!>=0),Tool!#REF!,"") ->  | G66: =IF(E66="Com/Ind",IF(Tool!#REF!>Tool!#REF!,Tool!#REF!,IF(Tool!#REF!>=0,Tool!#REF!)),"") ->  | J66: Lewis | K66: Montgomery | L66: =Q17 -> 185000 | M66: =R17 -> 14000 | N66: =S17 -> 700357.1429
B67: =IF(AND(C61>=4,C61<=20),4,"") ->  | C67: =IF(B11<>"",IF(D10>=$D$2,"",IF($D$2<(Tool!I230-Tool!$H$228),"",IF(Tool!H231<>"",IF(Tool!$H$228<>0,Tool!I230-Tool!$H$228,Tool!I230),""))),"") ->  | D67: =IF(C11="","",IF(B67="",$D$2,IF((D10-$C$8)>=$D$2,"",IF(Tool!I231<>"",IF(AND($D$2>=(Tool!I231-Tool!$H$228),(Tool!I232-Tool!$H$228)>=(Tool!I231-Tool!H230)),IF(Tool!$H$228<>"",Tool!I231-Tool!$H$228,Tool!I231),$D$2),"")))) ->  | E67: =IF(B67="","",IF(C67<>"",IF(Tool!J231=Tool!$I$9,"Com/Ind",""),"")) ->  | F67: =IF(AND(E67="Com/Ind",Tool!#REF!>=0),Tool!#REF!,"") ->  | G67: =IF(E67="Com/Ind",IF(Tool!#REF!>Tool!#REF!,Tool!#REF!,IF(Tool!#REF!>=0,Tool!#REF!)),"") ->  | J67: Lincoln | K67: Montgomery | L67: =Q17 -> 185000 | M67: =R17 -> 14000 | N67: =S17 -> 700357.1429
B68: =IF(AND(C61>=5,C61<=20),5,"") ->  | C68: =IF(B12<>"",IF(D11>=$D$2,"",IF($D$2<(Tool!I231-Tool!$H$228),"",IF(Tool!H232<>"",IF(Tool!$H$228<>0,Tool!I231-Tool!$H$228,Tool!I231),""))),"") ->  | D68: =IF(C12="","",IF(B68="",$D$2,IF((D11-$C$8)>=$D$2,"",IF(Tool!I232<>"",IF(AND($D$2>=(Tool!I232-Tool!$H$228),(Tool!I233-Tool!$H$228)>=(Tool!I232-Tool!H231)),IF(Tool!$H$228<>"",Tool!I232-Tool!$H$228,Tool!I232),$D$2),"")))) ->  | E68: =IF(B68="","",IF(C68<>"",IF(Tool!J232=Tool!$I$9,"Com/Ind",""),"")) ->  | F68: =IF(AND(E68="Com/Ind",Tool!#REF!>=0),Tool!#REF!,"") ->  | G68: =IF(E68="Com/Ind",IF(Tool!#REF!>Tool!#REF!,Tool!#REF!,IF(Tool!#REF!>=0,Tool!#REF!)),"") ->  | J68: Loudon | K68: Knox | L68: =Q22 -> 315000 | M68: =R22 -> 59000 | N68: =S22 -> 372272.7273
B69: =IF(AND(C61>=6,C61<=20),6,"") ->  | C69: =IF(B13<>"",IF(D12>=$D$2,"",IF($D$2<(Tool!I232-Tool!$H$228),"",IF(Tool!H233<>"",IF(Tool!$H$228<>0,Tool!I232-Tool!$H$228,Tool!I232),""))),"") ->  | D69: =IF(C13="","",IF(B69="",$D$2,IF((D12-$C$8)>=$D$2,"",IF(Tool!I233<>"",IF(AND($D$2>=(Tool!I233-Tool!$H$228),(Tool!E234-Tool!$H$228)>=(Tool!I233-Tool!H232)),IF(Tool!$H$228<>"",Tool!I233-Tool!$H$228,Tool!I233),$D$2),"")))) ->  | E69: =IF(B69="","",IF(C69<>"",IF(Tool!J233=Tool!$I$9,"Com/Ind",""),"")) ->  | F69: =IF(AND(E69="Com/Ind",Tool!#REF!>=0),Tool!#REF!,"") ->  | G69: =IF(E69="Com/Ind",IF(Tool!#REF!>Tool!#REF!,Tool!#REF!,IF(Tool!#REF!>=0,Tool!#REF!)),"") ->  | J69: Macon | K69: Montgomery | L69: =Q17 -> 185000 | M69: =R17 -> 14000 | N69: =S17 -> 700357.1429
B70: =IF(AND(C61>=7,C61<=20),7,"") ->  | C70: =IF(B14<>"",IF(D13>=$D$2,"",IF($D$2<(Tool!I233-Tool!$H$228),"",IF(Tool!D234<>"",IF(Tool!$H$228<>0,Tool!I233-Tool!$H$228,Tool!I233),""))),"") ->  | D70: =IF(C14="","",IF(B70="",$D$2,IF((D13-$C$8)>=$D$2,"",IF(Tool!E234<>"",IF(AND($D$2>=(Tool!E234-Tool!$H$228),(Tool!E235-Tool!$H$228)>=(Tool!E234-Tool!H233)),IF(Tool!$H$228<>"",Tool!E234-Tool!$H$228,Tool!E234),$D$2),"")))) ->  | E70: =IF(B70="","",IF(C70<>"",IF(Tool!F234=Tool!$I$9,"Com/Ind",""),"")) ->  | F70: =IF(AND(E70="Com/Ind",Tool!#REF!>=0),Tool!#REF!,"") ->  | G70: =IF(E70="Com/Ind",IF(Tool!#REF!>Tool!#REF!,Tool!#REF!,IF(Tool!#REF!>=0,Tool!#REF!)),"") ->  | J70: Madison | K70: Madison | L70: =Q19 -> 180000 | M70: =R19 -> 10000 | N70: =S19 -> 375000
B71: =IF(AND(C61>=8,C61<=20),8,"") ->  | C71: =IF(B15<>"",IF(D14>=$D$2,"",IF($D$2<(Tool!E234-Tool!$H$228),"",IF(Tool!D235<>"",IF(Tool!$H$228<>0,Tool!E234-Tool!$H$228,Tool!E234),""))),"") ->  | D71: =IF(C15="","",IF(B71="",$D$2,IF((D14-$C$8)>=$D$2,"",IF(Tool!E235<>"",IF(AND($D$2>=(Tool!E235-Tool!$H$228),(Tool!#REF!-Tool!$H$228)>=(Tool!E235-Tool!D234)),IF(Tool!$H$228<>"",Tool!E235-Tool!$H$228,Tool!E235),$D$2),"")))) ->  | E71: =IF(B71="","",IF(C71<>"",IF(Tool!F235=Tool!$I$9,"Com/Ind",""),"")) ->  | F71: =IF(AND(E71="Com/Ind",Tool!G235>=0),Tool!G235,"") ->  | G71: =IF(E71="Com/Ind",IF(Tool!G235>Tool!H235,Tool!G235,IF(Tool!G235>=0,Tool!H235)),"") ->  | J71: Marion | K71: Hamilton | L71: =Q24 -> 213000 | M71: =R24 -> 11000 | N71: =S24 -> 287380.9524
B72: =IF(AND(C61>=9,C61<=20),9,"") ->  | C72: =IF(B16<>"",IF(D15>=$D$2,"",IF($D$2<(Tool!E235-Tool!$H$228),"",IF(Tool!#REF!<>"",IF(Tool!$H$228<>0,Tool!E235-Tool!$H$228,Tool!E235),""))),"") ->  | D72: =IF(C16="","",IF(B72="",$D$2,IF((D15-$C$8)>=$D$2,"",IF(Tool!#REF!<>"",IF(AND($D$2>=(Tool!#REF!-Tool!$H$228),(Tool!#REF!-Tool!$H$228)>=(Tool!#REF!-Tool!D235)),IF(Tool!$H$228<>"",Tool!#REF!-Tool!$H$228,Tool!#REF!),$D$2),"")))) ->  | E72: =IF(B72="","",IF(C72<>"",IF(Tool!#REF!=Tool!$I$9,"Com/Ind",""),"")) ->  | F72: =IF(AND(E72="Com/Ind",Tool!G237>=0),Tool!G237,"") ->  | G72: =IF(E72="Com/Ind",IF(Tool!G237>Tool!H237,Tool!G237,IF(Tool!G237>=0,Tool!H237)),"") ->  | J72: Marshall | K72: Montgomery | L72: =Q17 -> 185000 | M72: =R17 -> 14000 | N72: =S17 -> 700357.1429
B73: =IF(AND(C61>=10,C61<=20),10,"") ->  | C73: =IF(B17<>"",IF(D16>=$D$2,"",IF($D$2<(Tool!#REF!-Tool!$H$228),"",IF(Tool!#REF!<>"",IF(Tool!$H$228<>0,Tool!#REF!-Tool!$H$228,Tool!#REF!),""))),"") ->  | D73: =IF(C17="","",IF(B73="",$D$2,IF((D16-$C$8)>=$D$2,"",IF(Tool!#REF!<>"",IF(AND($D$2>=(Tool!#REF!-Tool!$H$228),(Tool!#REF!-Tool!$H$228)>=(Tool!#REF!-Tool!#REF!)),IF(Tool!$H$228<>"",Tool!#REF!-Tool!$H$228,Tool!#REF!),$D$2),"")))) ->  | E73: =IF(B73="","",IF(C73<>"",IF(Tool!#REF!=Tool!$I$9,"Com/Ind",""),"")) ->  | F73: =IF(AND(E73="Com/Ind",Tool!G238>=0),Tool!G238,"") ->  | G73: =IF(E73="Com/Ind",IF(Tool!G238>Tool!H238,Tool!G238,IF(Tool!G238>=0,Tool!H238)),"") ->  | J73: Maury | K73: Montgomery | L73: =Q17 -> 185000 | M73: 14000 | N73: 700357.1429
B74: =IF(AND(C61>=11,C61<=20),11,"") ->  | C74: =IF(B18<>"",IF(D17>=$D$2,"",IF($D$2<(Tool!#REF!-Tool!$H$228),"",IF(Tool!#REF!<>"",IF(Tool!$H$228<>0,Tool!#REF!-Tool!$H$228,Tool!#REF!),""))),"") ->  | D74: =IF(C18="","",IF(B74="",$D$2,IF((D17-$C$8)>=$D$2,"",IF(Tool!#REF!<>"",IF(AND($D$2>=(Tool!#REF!-Tool!$H$228),(Tool!#REF!-Tool!$H$228)>=(Tool!#REF!-Tool!#REF!)),IF(Tool!$H$228<>"",Tool!#REF!-Tool!$H$228,Tool!#REF!),$D$2),"")))) ->  | E74: =IF(B74="","",IF(C74<>"",IF(Tool!#REF!=Tool!$I$9,"Com/Ind",""),"")) ->  | F74: =IF(AND(E74="Com/Ind",Tool!G239>=0),Tool!G239,"") ->  | G74: =IF(E74="Com/Ind",IF(Tool!G239>Tool!H239,Tool!G239,IF(Tool!G239>=0,Tool!H239)),"") ->  | J74: McMinn | K74: Bradley | L74: 180000 | M74: 6500 | N74: 330000
B75: =IF(AND(C61>=12,C61<=20),12,"") ->  | C75: =IF(B19<>"",IF(D18>=$D$2,"",IF($D$2<(Tool!#REF!-Tool!$H$228),"",IF(Tool!#REF!<>"",IF(Tool!$H$228<>0,Tool!#REF!-Tool!$H$228,Tool!#REF!),""))),"") ->  | D75: =IF(C19="","",IF(B75="",$D$2,IF((D18-$C$8)>=$D$2,"",IF(Tool!#REF!<>"",IF(AND($D$2>=(Tool!#REF!-Tool!$H$228),(Tool!#REF!-Tool!$H$228)>=(Tool!#REF!-Tool!#REF!)),IF(Tool!$H$228<>"",Tool!#REF!-Tool!$H$228,Tool!#REF!),$D$2),"")))) ->  | E75: =IF(B75="","",IF(C75<>"",IF(Tool!#REF!=Tool!$I$9,"Com/Ind",""),"")) ->  | F75: =IF(AND(E75="Com/Ind",Tool!G240>=0),Tool!G240,"") ->  | G75: =IF(E75="Com/Ind",IF(Tool!G240>Tool!H240,Tool!G240,IF(Tool!G240>=0,Tool!H240)),"") ->  | J75: McNairy | K75: Madison | L75: 180000 | M75: 10000 | N75: 375000
B76: =IF(AND(C61>=13,C61<=20),13,"") ->  | C76: =IF(B20<>"",IF(D19>=$D$2,"",IF($D$2<(Tool!#REF!-Tool!$H$228),"",IF(Tool!#REF!<>"",IF(Tool!$H$228<>0,Tool!#REF!-Tool!$H$228,Tool!#REF!),""))),"") ->  | D76: =IF(C20="","",IF(B76="",$D$2,IF((D19-$C$8)>=$D$2,"",IF(Tool!#REF!<>"",IF(AND($D$2>=(Tool!#REF!-Tool!$H$228),(Tool!#REF!-Tool!$H$228)>=(Tool!#REF!-Tool!#REF!)),IF(Tool!$H$228<>"",Tool!#REF!-Tool!$H$228,Tool!#REF!),$D$2),"")))) ->  | E76: =IF(B76="","",IF(C76<>"",IF(Tool!#REF!=Tool!$I$9,"Com/Ind",""),"")) ->  | F76: =IF(AND(E76="Com/Ind",Tool!G241>=0),Tool!G241,"") ->  | G76: =IF(E76="Com/Ind",IF(Tool!G241>Tool!H241,Tool!G241,IF(Tool!G241>=0,Tool!H241)),"") ->  | J76: Meigs | K76: Bradley | L76: =Q18 -> 180000 | M76: =R18 -> 6500 | N76: =S18 -> 330000
B77: =IF(AND(C61>=14,C61<=20),14,"") ->  | C77: =IF(B21<>"",IF(D20>=$D$2,"",IF($D$2<(Tool!#REF!-Tool!$H$228),"",IF(Tool!#REF!<>"",IF(Tool!$H$228<>0,Tool!#REF!-Tool!$H$228,Tool!#REF!),""))),"") ->  | D77: =IF(C21="","",IF(B77="",$D$2,IF((D20-$C$8)>=$D$2,"",IF(Tool!#REF!<>"",IF(AND($D$2>=(Tool!#REF!-Tool!$H$228),(Tool!#REF!-Tool!$H$228)>=(Tool!#REF!-Tool!#REF!)),IF(Tool!$H$228<>"",Tool!#REF!-Tool!$H$228,Tool!#REF!),$D$2),"")))) ->  | E77: =IF(B77="","",IF(C77<>"",IF(Tool!#REF!=Tool!$I$9,"Com/Ind",""),"")) ->  | F77: =IF(AND(E77="Com/Ind",Tool!G242>=0),Tool!G242,"") ->  | G77: =IF(E77="Com/Ind",IF(Tool!G242>Tool!H242,Tool!G242,IF(Tool!G242>=0,Tool!H242)),"") ->  | J77: Monroe | K77: Bradley | L77: =Q18 -> 180000 | M77: =R18 -> 6500 | N77: =S18 -> 330000
B78: =IF(AND(C61>=15,C61<=20),15,"") ->  | C78: =IF(B22<>"",IF(D21>=$D$2,"",IF($D$2<(Tool!#REF!-Tool!$H$228),"",IF(Tool!#REF!<>"",IF(Tool!$H$228<>0,Tool!#REF!-Tool!$H$228,Tool!#REF!),""))),"") ->  | D78: =IF(C22="","",IF(B78="",$D$2,IF((D21-$C$8)>=$D$2,"",IF(Tool!#REF!<>"",IF(AND($D$2>=(Tool!#REF!-Tool!$H$228),(Tool!E243-Tool!$H$228)>=(Tool!#REF!-Tool!#REF!)),IF(Tool!$H$228<>"",Tool!#REF!-Tool!$H$228,Tool!#REF!),$D$2),"")))) ->  | E78: =IF(B78="","",IF(C78<>"",IF(Tool!#REF!=Tool!$I$9,"Com/Ind",""),"")) ->  | F78: =IF(AND(E78="Com/Ind",Tool!#REF!>=0),Tool!#REF!,"") ->  | G78: =IF(E78="Com/Ind",IF(Tool!#REF!>Tool!#REF!,Tool!#REF!,IF(Tool!#REF!>=0,Tool!#REF!)),"") ->  | J78: Montgomery | K78: Montgomery | L78: =Q17 -> 185000 | M78: =R17 -> 14000 | N78: =S17 -> 700357.1429
B79: =IF(AND(C61>=16,C61<=20),16,"") ->  | C79: =IF(B23<>"",IF(D22>=$D$2,"",IF($D$2<(Tool!#REF!-Tool!$H$228),"",IF(Tool!D243<>"",IF(Tool!$H$228<>0,Tool!#REF!-Tool!$H$228,Tool!#REF!),""))),"") ->  | D79: =IF(C23="","",IF(B79="",$D$2,IF((D22-$C$8)>=$D$2,"",IF(Tool!E243<>"",IF(AND($D$2>=(Tool!E243-Tool!$H$228),(Tool!#REF!-Tool!$H$228)>=(Tool!E243-Tool!#REF!)),IF(Tool!$H$228<>"",Tool!E243-Tool!$H$228,Tool!E243),$D$2),"")))) ->  | E79: =IF(B79="","",IF(C79<>"",IF(Tool!F243=Tool!$I$9,"Com/Ind",""),"")) ->  | F79: =IF(AND(E79="Com/Ind",Tool!G243>=0),Tool!G243,"") ->  | G79: =IF(E79="Com/Ind",IF(Tool!G243>Tool!H243,Tool!G243,IF(Tool!G243>=0,Tool!H243)),"") ->  | J79: Moore | K79: Montgomery | L79: =Q17 -> 185000 | M79: =R17 -> 14000 | N79: =S17 -> 700357.1429
B80: =IF(AND(C61>=17,C61<=20),17,"") ->  | C80: =IF(B24<>"",IF(D23>=$D$2,"",IF($D$2<(Tool!E243-Tool!$H$228),"",IF(Tool!#REF!<>"",IF(Tool!$H$228<>0,Tool!E243-Tool!$H$228,Tool!E243),""))),"") ->  | D80: =IF(C24="","",IF(B80="",$D$2,IF((D23-$C$8)>=$D$2,"",IF(Tool!#REF!<>"",IF(AND($D$2>=(Tool!#REF!-Tool!$H$228),(Tool!#REF!-Tool!$H$228)>=(Tool!#REF!-Tool!D243)),IF(Tool!$H$228<>"",Tool!#REF!-Tool!$H$228,Tool!#REF!),$D$2),"")))) ->  | E80: =IF(B80="","",IF(C80<>"",IF(Tool!#REF!=Tool!$I$9,"Com/Ind",""),"")) ->  | F80: =IF(AND(E80="Com/Ind",Tool!#REF!>=0),Tool!#REF!,"") ->  | G80: =IF(E80="Com/Ind",IF(Tool!#REF!>Tool!#REF!,Tool!#REF!,IF(Tool!#REF!>=0,Tool!#REF!)),"") ->  | J80: Morgan | K80: Knox | L80: =Q22 -> 315000 | M80: =R22 -> 59000 | N80: =S22 -> 372272.7273
B81: =IF(AND(C61>=18,C61<=20),18,"") ->  | C81: =IF(B25<>"",IF(D24>=$D$2,"",IF($D$2<(Tool!#REF!-Tool!$H$228),"",IF(Tool!#REF!<>"",IF(Tool!$H$228<>0,Tool!#REF!-Tool!$H$228,Tool!#REF!),""))),"") ->  | D81: =IF(C25="","",IF(B81="",$D$2,IF((D24-$C$8)>=$D$2,"",IF(Tool!#REF!<>"",IF(AND($D$2>=(Tool!#REF!-Tool!$H$228),(Tool!#REF!-Tool!$H$228)>=(Tool!#REF!-Tool!#REF!)),IF(Tool!$H$228<>"",Tool!#REF!-Tool!$H$228,Tool!#REF!),$D$2),"")))) ->  | E81: =IF(B81="","",IF(C81<>"",IF(Tool!#REF!=Tool!$I$9,"Com/Ind",""),"")) ->  | F81: =IF(AND(E81="Com/Ind",Tool!#REF!>=0),Tool!#REF!,"") ->  | G81: =IF(E81="Com/Ind",IF(Tool!#REF!>Tool!#REF!,Tool!#REF!,IF(Tool!#REF!>=0,Tool!#REF!)),"") ->  | J81: Obion | K81: Madison | L81: =Q19 -> 180000 | M81: =R19 -> 10000 | N81: =S19 -> 375000
B82: =IF(AND(C61>=19,C61<=20),19,"") ->  | C82: =IF(B26<>"",IF(D25>=$D$2,"",IF($D$2<(Tool!#REF!-Tool!$H$228),"",IF(Tool!#REF!<>"",IF(Tool!$H$228<>0,Tool!#REF!-Tool!$H$228,Tool!#REF!),""))),"") ->  | D82: =IF(C26="","",IF(B82="",$D$2,IF((D25-$C$8)>=$D$2,"",IF(Tool!#REF!<>"",IF(AND($D$2>=(Tool!#REF!-Tool!$H$228),(Tool!#REF!-Tool!$H$228)>=(Tool!#REF!-Tool!#REF!)),IF(Tool!$H$228<>"",Tool!#REF!-Tool!$H$228,Tool!#REF!),$D$2),"")))) ->  | E82: =IF(B82="","",IF(C82<>"",IF(Tool!#REF!=Tool!$I$9,"Com/Ind",""),"")) ->  | F82: =IF(AND(E82="Com/Ind",Tool!#REF!>=0),Tool!#REF!,"") ->  | G82: =IF(E82="Com/Ind",IF(Tool!#REF!>Tool!#REF!,Tool!#REF!,IF(Tool!#REF!>=0,Tool!#REF!)),"") ->  | J82: Overton | K82: Bradley | L82: =Q18 -> 180000 | M82: =R18 -> 6500 | N82: =S18 -> 330000
B83: =IF(AND(C61=20),20,"") ->  | C83: =IF(B27<>"",IF(D26>=$D$2,"",IF($D$2<(Tool!#REF!-Tool!$H$228),"",IF(Tool!#REF!<>"",IF(Tool!$H$228<>0,Tool!#REF!-Tool!$H$228,Tool!#REF!),""))),"") ->  | D83: =IF(C27="","",IF(B83="",$D$2,IF((D26-$C$8)>=$D$2,"",IF(Tool!#REF!<>"",IF(AND($D$2>=(Tool!#REF!-Tool!$H$228),(Tool!#REF!-Tool!$H$228)>=(Tool!#REF!-Tool!#REF!)),IF(Tool!$H$228<>"",Tool!#REF!-Tool!$H$228,Tool!#REF!),$D$2),"")))) ->  | E83: =IF(B83="","",IF(C83<>"",IF(Tool!#REF!=Tool!$I$9,"Com/Ind",""),"")) ->  | F83: =IF(AND(E83="Com/Ind",Tool!#REF!>=0),Tool!#REF!,"") ->  | G83: =IF(E83="Com/Ind",IF(Tool!#REF!>Tool!#REF!,Tool!#REF!,IF(Tool!#REF!>=0,Tool!#REF!)),"") ->  | J83: Perry | K83: Montgomery | L83: =Q17 -> 185000 | M83: 14000 | N83: 700357.1429
J84: Pickett | K84: Bradley | L84: 180000 | M84: 6500 | N84: 330000
E85: Average Existing Width: | F85: =IF(SUM(H64:H83)>0,SUMPRODUCT(F64:F83,H64:H83)/SUM(H64:H83),0) ->  | J85: Polk | K85: Bradley | L85: =Q18 -> 180000 | M85: =R18 -> 6500 | N85: =S18 -> 330000
E86: Average Proposed Width: | F86: =IF(SUM(H64:H83)>0,SUMPRODUCT(G64:G83,H64:H83)/SUM(H64:H83),0) ->  | J86: Putnam | K86: Bradley | L86: =Q18 -> 180000 | M86: =R18 -> 6500 | N86: =S18 -> 330000
E87: Length: | F87: =SUM(H64:H83) ->  | J87: Rhea | K87: Bradley | L87: =Q18 -> 180000 | M87: =R18 -> 6500 | N87: =S18 -> 330000
J88: Roane | K88: Knox | L88: =Q22 -> 315000 | M88: =R22 -> 59000 | N88: =S22 -> 372272.7273
J89: Robertson | K89: Montgomery | L89: =Q17 -> 185000 | M89: =R17 -> 14000 | N89: =S17 -> 700357.1429
J90: Rutherford | K90: Rutherford | L90: =Q26 -> 223000 | M90: =R26 -> 26000 | N90: =S26 -> 687328.7671
J91: Scott | K91: Washington | L91: =Q20 -> 195000 | M91: =R20 -> 18000 | N91: =S20 -> 281666.6667
J92: Sequatchie | K92: Hamilton | L92: =Q24 -> 213000 | M92: =R24 -> 11000 | N92: =S24 -> 287380.9524
J93: Sevier | K93: Knox | L93: =Q22 -> 315000 | M93: 59000 | N93: 372272.7273
J94: Shelby | K94: Shelby | L94: 275000 | M94: 32500 | N94: 236500
J95: Smith | K95: Montgomery | L95: =Q17 -> 185000 | M95: =R17 -> 14000 | N95: =S17 -> 700357.1429
J96: Stewart | K96: Montgomery | L96: =Q17 -> 185000 | M96: =R17 -> 14000 | N96: =S17 -> 700357.1429
J97: Sullivan | K97: Sullivan | L97: =Q21 -> 205000 | M97: =R21 -> 16500 | N97: =S21 -> 205000
J98: Sumner | K98: Montgomery | L98: =Q17 -> 185000 | M98: =R17 -> 14000 | N98: =S17 -> 700357.1429
J99: Tipton | K99: Shelby | L99: =Q23 -> 275000 | M99: =R23 -> 32500 | N99: =S23 -> 236500
J100: Trousdale | K100: Montgomery | L100: =Q17 -> 185000 | M100: =R17 -> 14000 | N100: =S17 -> 700357.1429
J101: Unicoi | K101: Washington | L101: =Q20 -> 195000 | M101: =R20 -> 18000 | N101: =S20 -> 281666.6667
J102: Union | K102: Knox | L102: =Q22 -> 315000 | M102: =R22 -> 59000 | N102: =S22 -> 372272.7273
J103: Van Buren | K103: Bradley | L103: =Q18 -> 180000 | M103: =R18 -> 6500 | N103: =S18 -> 330000
J104: Warren | K104: Bradley | L104: =Q18 -> 180000 | M104: =R18 -> 6500 | N104: =S18 -> 330000
J105: Washington | K105: Washington | L105: =Q20 -> 195000 | M105: =R20 -> 18000 | N105: =S20 -> 281666.6667
J106: Wayne | K106: Montgomery | L106: =Q17 -> 185000 | M106: =R17 -> 14000 | N106: =S17 -> 700357.1429
J107: Weakley | K107: Madison | L107: =Q19 -> 180000 | M107: =R19 -> 10000 | N107: =S19 -> 375000
J108: White | K108: Bradley | L108: =Q18 -> 180000 | M108: =R18 -> 6500 | N108: =S18 -> 330000
J109: Williamson | K109: Williamson | L109: =Q27 -> 275000 | M109: =R27 -> 25000 | N109: =S27 -> 577500
J110: Wilson | K110: Montgomery | L110: =Q17 -> 185000 | M110: =R17 -> 14000 | N110: =S17 -> 700357.1429
Q113: Right-of-Way

Sheet AUP Library (hidden)
A1: TDOT PAY ITEM | B1: TDOT DESCRIPTION | C1: UNIT | D1: 2005 | E1: 2006 | F1: 2007 | G1: 2008 | H1: 2009 | I1: 2010 | J1: 2011 | K1: 2012 | L1: 2013 | M1: 2014 | N1: Region 1 - 2016 | O1: Region 2 - 2016 | P1: Region 3 - 2016 | Q1: Region 4 - 2016 | R1: Statewide - 2016 | S1: Statewide 3-Year | T1: Statistical
A3: Pavment Removal | U3: TN - 2005 | V3: 4
A4: 202-03.01 | B4: Removal of Asphalt Pavement | C4: SY | D4: 2.71 | E4: 1.52 | F4: 3.88 | G4: 2.56 | H4: 2.56 | I4: 3.86 | J4: 9.48 | K4: 6.81 | L4: 4.22 | M4: 10.56 | N4: =IF(IFERROR(VLOOKUP('AUP Library'!A4,#REF!,4,0),R4)="",R4,IFERROR(VLOOKUP('AUP Library'!A4,#REF!,4,0),R4)) -> 15.32 | O4: =IF(IFERROR(VLOOKUP('AUP Library'!A4,#REF!,5,0),R4)="",R4,IFERROR(VLOOKUP('AUP Library'!A4,#REF!,5,0),R4)) -> 15.32 | P4: =IF(IFERROR(VLOOKUP('AUP Library'!A4,#REF!,6,0),R4)="",R4,IFERROR(VLOOKUP('AUP Library'!A4,#REF!,6,0),R4)) -> 15.32 | Q4: =IF(IFERROR(VLOOKUP('AUP Library'!A4,#REF!,7,0),R4)="",R4,IFERROR(VLOOKUP('AUP Library'!A4,#REF!,7,0),R4)) -> 15.32 | R4: 15.32 | S4: =IFERROR(VLOOKUP('AUP Library'!A4,#REF!,4,0),R4) -> 15.32 | U4: TN -2006 | V4: 5
A5: 202-03.02 | B5: Removal of Rigid Pavement | C5: CY | D5: 18.76 | E5: 175 | F5: 17.15 | G5: 48.17 | H5: 48.17 | I5: 11.31 | J5: 12 | K5: 28.08 | L5: 12.36 | M5: 39.64 | N5: =IF(IFERROR(VLOOKUP('AUP Library'!A5,#REF!,4,0),R5)="",R5,IFERROR(VLOOKUP('AUP Library'!A5,#REF!,4,0),R5)) -> 14.81 | O5: =IF(IFERROR(VLOOKUP('AUP Library'!A5,#REF!,5,0),R5)="",R5,IFERROR(VLOOKUP('AUP Library'!A5,#REF!,5,0),R5)) -> 14.81 | P5: =IF(IFERROR(VLOOKUP('AUP Library'!A5,#REF!,6,0),R5)="",R5,IFERROR(VLOOKUP('AUP Library'!A5,#REF!,6,0),R5)) -> 14.81 | Q5: =IF(IFERROR(VLOOKUP('AUP Library'!A5,#REF!,7,0),R5)="",R5,IFERROR(VLOOKUP('AUP Library'!A5,#REF!,7,0),R5)) -> 14.81 | R5: 14.81 | S5: =IFERROR(VLOOKUP('AUP Library'!A5,#REF!,4,0),R5) -> 14.81 | U5: TN - 2007 | V5: 6
A6: 202-08.15 | B6: Removal of Curb and Gutter | C6: LF | D6: 3.38 | E6: 3.38 | F6: 3.38 | G6: 3.38 | H6: 3.38 | I6: 3.38 | J6: 3.38 | K6: 3.38 | L6: 3.38 | M6: 3.38 | N6: =IF(IFERROR(VLOOKUP('AUP Library'!A6,#REF!,4,0),R6)="",R6,IFERROR(VLOOKUP('AUP Library'!A6,#REF!,4,0),R6)) -> 3.38 | O6: =IF(IFERROR(VLOOKUP('AUP Library'!A6,#REF!,5,0),R6)="",R6,IFERROR(VLOOKUP('AUP Library'!A6,#REF!,5,0),R6)) -> 3.38 | P6: =IF(IFERROR(VLOOKUP('AUP Library'!A6,#REF!,6,0),R6)="",R6,IFERROR(VLOOKUP('AUP Library'!A6,#REF!,6,0),R6)) -> 3.38 | Q6: =IF(IFERROR(VLOOKUP('AUP Library'!A6,#REF!,7,0),R6)="",R6,IFERROR(VLOOKUP('AUP Library'!A6,#REF!,7,0),R6)) -> 3.38 | R6: 3.38 | S6: =IFERROR(VLOOKUP('AUP Library'!A6,#REF!,4,0),R6) -> 3.38 | U6: TN - 2008 | V6: 7
A7: 202-08.28 | B7: Removal of Median Barrier | C7: LF | D7: 85 | E7: 85 | F7: 85 | G7: 85 | H7: 85 | I7: 85 | J7: 85 | K7: 85 | L7: 85 | M7: 85 | N7: =IF(IFERROR(VLOOKUP('AUP Library'!A7,#REF!,4,0),R7)="",R7,IFERROR(VLOOKUP('AUP Library'!A7,#REF!,4,0),R7)) -> 85 | O7: =IF(IFERROR(VLOOKUP('AUP Library'!A7,#REF!,5,0),R7)="",R7,IFERROR(VLOOKUP('AUP Library'!A7,#REF!,5,0),R7)) -> 85 | P7: =IF(IFERROR(VLOOKUP('AUP Library'!A7,#REF!,6,0),R7)="",R7,IFERROR(VLOOKUP('AUP Library'!A7,#REF!,6,0),R7)) -> 85 | Q7: =IF(IFERROR(VLOOKUP('AUP Library'!A7,#REF!,7,0),R7)="",R7,IFERROR(VLOOKUP('AUP Library'!A7,#REF!,7,0),R7)) -> 85 | R7: 85 | S7: =IFERROR(VLOOKUP('AUP Library'!A7,#REF!,4,0),R7) -> 85 | U7: TN - 2009 | V7: 8
A8: 411-12.01 | B8: Scoring Shoulders (Cont. 16") | C8: L.M. | D8: 526.25 | E8: 526.25 | F8: 526.25 | G8: 526.25 | H8: 526.25 | I8: 526.25 | J8: 526.25 | K8: 526.25 | L8: 526.25 | M8: 526.25 | N8: =IF(IFERROR(VLOOKUP('AUP Library'!A8,#REF!,4,0),R8)="",R8,IFERROR(VLOOKUP('AUP Library'!A8,#REF!,4,0),R8)) -> 526.25 | O8: =IF(IFERROR(VLOOKUP('AUP Library'!A8,#REF!,5,0),R8)="",R8,IFERROR(VLOOKUP('AUP Library'!A8,#REF!,5,0),R8)) -> 526.25 | P8: =IF(IFERROR(VLOOKUP('AUP Library'!A8,#REF!,6,0),R8)="",R8,IFERROR(VLOOKUP('AUP Library'!A8,#REF!,6,0),R8)) -> 526.25 | Q8: =IF(IFERROR(VLOOKUP('AUP Library'!A8,#REF!,7,0),R8)="",R8,IFERROR(VLOOKUP('AUP Library'!A8,#REF!,7,0),R8)) -> 526.25 | R8: 526.25 | S8: =IFERROR(VLOOKUP('AUP Library'!A8,#REF!,4,0),R8) -> 526.25 | U8: TN - 2010 | V8: 9
A9: 411-12.02 | B9: Scoring Shoulders (Non- Cont. 16") | C9: L.M. | D9: 848.51 | E9: 848.51 | F9: 848.51 | G9: 848.51 | H9: 848.51 | I9: 848.51 | J9: 848.51 | K9: 848.51 | L9: 848.51 | M9: 848.51 | N9: =IF(IFERROR(VLOOKUP('AUP Library'!A9,#REF!,4,0),R9)="",R9,IFERROR(VLOOKUP('AUP Library'!A9,#REF!,4,0),R9)) -> 848.51 | O9: =IF(IFERROR(VLOOKUP('AUP Library'!A9,#REF!,5,0),R9)="",R9,IFERROR(VLOOKUP('AUP Library'!A9,#REF!,5,0),R9)) -> 848.51 | P9: =IF(IFERROR(VLOOKUP('AUP Library'!A9,#REF!,6,0),R9)="",R9,IFERROR(VLOOKUP('AUP Library'!A9,#REF!,6,0),R9)) -> 848.51 | Q9: =IF(IFERROR(VLOOKUP('AUP Library'!A9,#REF!,7,0),R9)="",R9,IFERROR(VLOOKUP('AUP Library'!A9,#REF!,7,0),R9)) -> 848.51 | R9: 848.51 | S9: =IFERROR(VLOOKUP('AUP Library'!A9,#REF!,4,0),R9) -> 848.51 | U9: TN - 2011 | V9: 10
A10: 411-12.03 | B10: Scoring Shoulder (Non-Cont. 8") | C10: L.M. | D10: 594.86 | E10: 594.86 | F10: 594.86 | G10: 594.86 | H10: 594.86 | I10: 594.86 | J10: 594.86 | K10: 594.86 | L10: 594.86 | M10: 594.86 | N10: =IF(IFERROR(VLOOKUP('AUP Library'!A10,#REF!,4,0),R10)="",R10,IFERROR(VLOOKUP('AUP Library'!A10,#REF!,4,0),R10)) -> 594.86 | O10: =IF(IFERROR(VLOOKUP('AUP Library'!A10,#REF!,5,0),R10)="",R10,IFERROR(VLOOKUP('AUP Library'!A10,#REF!,5,0),R10)) -> 594.86 | P10: =IF(IFERROR(VLOOKUP('AUP Library'!A10,#REF!,6,0),R10)="",R10,IFERROR(VLOOKUP('AUP Library'!A10,#REF!,6,0),R10)) -> 594.86 | Q10: =IF(IFERROR(VLOOKUP('AUP Library'!A10,#REF!,7,0),R10)="",R10,IFERROR(VLOOKUP('AUP Library'!A10,#REF!,7,0),R10)) -> 594.86 | R10: 594.86 | S10: =IFERROR(VLOOKUP('AUP Library'!A10,#REF!,4,0),R10) -> 594.86 | U10: TN - 2012 | V10: 11
A11: 411-12.04 | B11: Scoring Shoulder (Non-Cont. 4") | C11: L.M. | D11: 580.49 | E11: 580.49 | F11: 580.49 | G11: 580.49 | H11: 580.49 | I11: 580.49 | J11: 580.49 | K11: 580.49 | L11: 580.49 | M11: 580.49 | N11: =IF(IFERROR(VLOOKUP('AUP Library'!A11,#REF!,4,0),R11)="",R11,IFERROR(VLOOKUP('AUP Library'!A11,#REF!,4,0),R11)) -> 580.49 | O11: =IF(IFERROR(VLOOKUP('AUP Library'!A11,#REF!,5,0),R11)="",R11,IFERROR(VLOOKUP('AUP Library'!A11,#REF!,5,0),R11)) -> 580.49 | P11: =IF(IFERROR(VLOOKUP('AUP Library'!A11,#REF!,6,0),R11)="",R11,IFERROR(VLOOKUP('AUP Library'!A11,#REF!,6,0),R11)) -> 580.49 | Q11: =IF(IFERROR(VLOOKUP('AUP Library'!A11,#REF!,7,0),R11)="",R11,IFERROR(VLOOKUP('AUP Library'!A11,#REF!,7,0),R11)) -> 580.49 | R11: 580.49 | S11: =IFERROR(VLOOKUP('AUP Library'!A11,#REF!,4,0),R11) -> 580.49 | U11: TN - 2013 | V11: 12
A12: 411-12.05 | B12: Scoring For Centerline Rumble (4" Width) | C12: L.M. | D12: 563.51 | E12: 563.51 | F12: 563.51 | G12: 563.51 | H12: 563.51 | I12: 563.51 | J12: 563.51 | K12: 563.51 | L12: 563.51 | M12: 563.51 | N12: =IF(IFERROR(VLOOKUP('AUP Library'!A12,#REF!,4,0),R12)="",R12,IFERROR(VLOOKUP('AUP Library'!A12,#REF!,4,0),R12)) -> 563.51 | O12: =IF(IFERROR(VLOOKUP('AUP Library'!A12,#REF!,5,0),R12)="",R12,IFERROR(VLOOKUP('AUP Library'!A12,#REF!,5,0),R12)) -> 563.51 | P12: =IF(IFERROR(VLOOKUP('AUP Library'!A12,#REF!,6,0),R12)="",R12,IFERROR(VLOOKUP('AUP Library'!A12,#REF!,6,0),R12)) -> 563.51 | Q12: =IF(IFERROR(VLOOKUP('AUP Library'!A12,#REF!,7,0),R12)="",R12,IFERROR(VLOOKUP('AUP Library'!A12,#REF!,7,0),R12)) -> 563.51 | R12: 563.51 | S12: =IFERROR(VLOOKUP('AUP Library'!A12,#REF!,4,0),R12) -> 563.51 | U12: TN - 2014 | V12: 13
A13: 415-01.02 | B13: Cold Planning Bituminous Pavement | C13: SY | D13: 1.26 | E13: 1.67 | F13: 1.25 | G13: 1.25 | H13: 1.25 | I13: 1.03 | J13: 0.95 | K13: 0.93 | L13: 1.3 | M13: 1.47 | N13: =IF(IFERROR(VLOOKUP('AUP Library'!A13,#REF!,4,0),R13)="",R13,IFERROR(VLOOKUP('AUP Library'!A13,#REF!,4,0),R13)) -> 1.74 | O13: =IF(IFERROR(VLOOKUP('AUP Library'!A13,#REF!,5,0),R13)="",R13,IFERROR(VLOOKUP('AUP Library'!A13,#REF!,5,0),R13)) -> 1.74 | P13: =IF(IFERROR(VLOOKUP('AUP Library'!A13,#REF!,6,0),R13)="",R13,IFERROR(VLOOKUP('AUP Library'!A13,#REF!,6,0),R13)) -> 1.74 | Q13: =IF(IFERROR(VLOOKUP('AUP Library'!A13,#REF!,7,0),R13)="",R13,IFERROR(VLOOKUP('AUP Library'!A13,#REF!,7,0),R13)) -> 1.74 | R13: 1.74 | S13: =IFERROR(VLOOKUP('AUP Library'!A13,#REF!,4,0),R13) -> 1.74 | U13: Statewide - 2016 | V13: 18
A14: 415-01.03 | B14: Cold Planning Bituminous Pavement | C14: CY | D14: 59.06 | E14: 59.06 | F14: 59.06 | G14: 59.06 | H14: 59.06 | I14: 59.06 | J14: 59.06 | K14: 59.06 | L14: 59.06 | M14: 59.06 | N14: =IF(IFERROR(VLOOKUP('AUP Library'!A14,#REF!,4,0),R14)="",R14,IFERROR(VLOOKUP('AUP Library'!A14,#REF!,4,0),R14)) -> 59.06 | O14: =IF(IFERROR(VLOOKUP('AUP Library'!A14,#REF!,5,0),R14)="",R14,IFERROR(VLOOKUP('AUP Library'!A14,#REF!,5,0),R14)) -> 59.06 | P14: =IF(IFERROR(VLOOKUP('AUP Library'!A14,#REF!,6,0),R14)="",R14,IFERROR(VLOOKUP('AUP Library'!A14,#REF!,6,0),R14)) -> 59.06 | Q14: =IF(IFERROR(VLOOKUP('AUP Library'!A14,#REF!,7,0),R14)="",R14,IFERROR(VLOOKUP('AUP Library'!A14,#REF!,7,0),R14)) -> 59.06 | R14: 59.06 | S14: =IFERROR(VLOOKUP('AUP Library'!A14,#REF!,4,0),R14) -> 59.06 | U14: Region 1 | V14: 14
U15: Region 2 | V15: 15
U16: Region 3 | V16: 16
A17: Asphalt Roads | U17: Region 4 | V17: 17
A18: 203-06 | B18: Water | C18: MG | D18: 10.27 | E18: 10.27 | F18: 10.27 | G18: 10.27 | H18: 10.27 | I18: 10.27 | J18: 10.27 | K18: 10.27 | L18: 10.27 | M18: 10.27 | N18: =IF(IFERROR(VLOOKUP('AUP Library'!A18,#REF!,4,0),R18)="",R18,IFERROR(VLOOKUP('AUP Library'!A18,#REF!,4,0),R18)) -> 10.27 | O18: =IF(IFERROR(VLOOKUP('AUP Library'!A18,#REF!,5,0),R18)="",R18,IFERROR(VLOOKUP('AUP Library'!A18,#REF!,5,0),R18)) -> 10.27 | P18: =IF(IFERROR(VLOOKUP('AUP Library'!A18,#REF!,6,0),R18)="",R18,IFERROR(VLOOKUP('AUP Library'!A18,#REF!,6,0),R18)) -> 10.27 | Q18: =IF(IFERROR(VLOOKUP('AUP Library'!A18,#REF!,7,0),R18)="",R18,IFERROR(VLOOKUP('AUP Library'!A18,#REF!,7,0),R18)) -> 10.27 | R18: 10.27 | S18: =IFERROR(VLOOKUP('AUP Library'!A18,#REF!,4,0),R18) -> 10.27 | U18: Statewide | V18: 19
A19: 303-01 | B19: Mineral Aggregate, Type A Base, Grading D | C19: TON | D19: 13.09 | E19: 14.11 | F19: 14.18 | G19: 15.33 | H19: 15.33 | I19: 14.93 | J19: 16.13 | K19: 18.08 | L19: 15.56 | M19: 19 | N19: =IF(IFERROR(VLOOKUP('AUP Library'!A19,#REF!,4,0),R19)="",R19,IFERROR(VLOOKUP('AUP Library'!A19,#REF!,4,0),R19)) -> 21.76 | O19: =IF(IFERROR(VLOOKUP('AUP Library'!A19,#REF!,5,0),R19)="",R19,IFERROR(VLOOKUP('AUP Library'!A19,#REF!,5,0),R19)) -> 21.76 | P19: =IF(IFERROR(VLOOKUP('AUP Library'!A19,#REF!,6,0),R19)="",R19,IFERROR(VLOOKUP('AUP Library'!A19,#REF!,6,0),R19)) -> 21.76 | Q19: =IF(IFERROR(VLOOKUP('AUP Library'!A19,#REF!,7,0),R19)="",R19,IFERROR(VLOOKUP('AUP Library'!A19,#REF!,7,0),R19)) -> 21.76 | R19: 21.76 | S19: =IFERROR(VLOOKUP('AUP Library'!A19,#REF!,4,0),R19) -> 21.76
A20: 307-01.01 | B20: Asphalt Concrete Mix (PG64-22) (BPMB-HM) Grading A | C20: TON | D20: 78.76 | E20: 78.76 | F20: 78.76 | G20: 78.76 | H20: 78.76 | I20: 78.76 | J20: 78.76 | K20: 78.76 | L20: 78.76 | M20: 78.76 | N20: =IF(IFERROR(VLOOKUP('AUP Library'!A20,#REF!,4,0),R20)="",R20,IFERROR(VLOOKUP('AUP Library'!A20,#REF!,4,0),R20)) -> 78.76 | O20: =IF(IFERROR(VLOOKUP('AUP Library'!A20,#REF!,5,0),R20)="",R20,IFERROR(VLOOKUP('AUP Library'!A20,#REF!,5,0),R20)) -> 78.76 | P20: =IF(IFERROR(VLOOKUP('AUP Library'!A20,#REF!,6,0),R20)="",R20,IFERROR(VLOOKUP('AUP Library'!A20,#REF!,6,0),R20)) -> 78.76 | Q20: =IF(IFERROR(VLOOKUP('AUP Library'!A20,#REF!,7,0),R20)="",R20,IFERROR(VLOOKUP('AUP Library'!A20,#REF!,7,0),R20)) -> 78.76 | R20: 78.76 | S20: =IFERROR(VLOOKUP('AUP Library'!A20,#REF!,4,0),R20) -> 78.76
A21: 307-01.02 | B21: Asphalt Cem. (PG64-22)(BPMB-HM) GR. A-S | C21: TON | D21: 750.3 | E21: 750.3 | F21: 750.3 | G21: 750.3 | H21: 750.3 | I21: 750.3 | J21: 750.3 | K21: 750.3 | L21: 750.3 | M21: 750.3 | N21: =IF(IFERROR(VLOOKUP('AUP Library'!A21,#REF!,4,0),R21)="",R21,IFERROR(VLOOKUP('AUP Library'!A21,#REF!,4,0),R21)) -> 750.3 | O21: =IF(IFERROR(VLOOKUP('AUP Library'!A21,#REF!,5,0),R21)="",R21,IFERROR(VLOOKUP('AUP Library'!A21,#REF!,5,0),R21)) -> 750.3 | P21: =IF(IFERROR(VLOOKUP('AUP Library'!A21,#REF!,6,0),R21)="",R21,IFERROR(VLOOKUP('AUP Library'!A21,#REF!,6,0),R21)) -> 750.3 | Q21: =IF(IFERROR(VLOOKUP('AUP Library'!A21,#REF!,7,0),R21)="",R21,IFERROR(VLOOKUP('AUP Library'!A21,#REF!,7,0),R21)) -> 750.3 | R21: 750.3 | S21: =IFERROR(VLOOKUP('AUP Library'!A21,#REF!,4,0),R21) -> 750.3
A22: 307-01.03 | B22: Aggregate (BPMB-HM) Grading A-S Mix | C22: TON | D22: 54.15 | E22: 54.15 | F22: 54.15 | G22: 54.15 | H22: 54.15 | I22: 54.15 | J22: 54.15 | K22: 54.15 | L22: 54.15 | M22: 54.15 | N22: =IF(IFERROR(VLOOKUP('AUP Library'!A22,#REF!,4,0),R22)="",R22,IFERROR(VLOOKUP('AUP Library'!A22,#REF!,4,0),R22)) -> 54.15 | O22: =IF(IFERROR(VLOOKUP('AUP Library'!A22,#REF!,5,0),R22)="",R22,IFERROR(VLOOKUP('AUP Library'!A22,#REF!,5,0),R22)) -> 54.15 | P22: =IF(IFERROR(VLOOKUP('AUP Library'!A22,#REF!,6,0),R22)="",R22,IFERROR(VLOOKUP('AUP Library'!A22,#REF!,6,0),R22)) -> 54.15 | Q22: =IF(IFERROR(VLOOKUP('AUP Library'!A22,#REF!,7,0),R22)="",R22,IFERROR(VLOOKUP('AUP Library'!A22,#REF!,7,0),R22)) -> 54.15 | R22: 54.15 | S22: =IFERROR(VLOOKUP('AUP Library'!A22,#REF!,4,0),R22) -> 54.15
A23: 307-01.07 | B23: Asphalt Conc Mix (PG64-22) (BPMB-HM) GR B-M | C23: TON | D23: 85.88 | E23: 85.88 | F23: 85.88 | G23: 85.88 | H23: 85.88 | I23: 85.88 | J23: 85.88 | K23: 85.88 | L23: 85.88 | M23: 85.88 | N23: =IF(IFERROR(VLOOKUP('AUP Library'!A23,#REF!,4,0),R23)="",R23,IFERROR(VLOOKUP('AUP Library'!A23,#REF!,4,0),R23)) -> 85.88 | O23: =IF(IFERROR(VLOOKUP('AUP Library'!A23,#REF!,5,0),R23)="",R23,IFERROR(VLOOKUP('AUP Library'!A23,#REF!,5,0),R23)) -> 85.88 | P23: =IF(IFERROR(VLOOKUP('AUP Library'!A23,#REF!,6,0),R23)="",R23,IFERROR(VLOOKUP('AUP Library'!A23,#REF!,6,0),R23)) -> 85.88 | Q23: =IF(IFERROR(VLOOKUP('AUP Library'!A23,#REF!,7,0),R23)="",R23,IFERROR(VLOOKUP('AUP Library'!A23,#REF!,7,0),R23)) -> 85.88 | R23: 85.88 | S23: =IFERROR(VLOOKUP('AUP Library'!A23,#REF!,4,0),R23) -> 85.88
A24: 307-01.08 | B24: Asphalt Conc MIX (PG64-22) (BPMB-HM) GR B-M2 | C24: TON | D24: 81.76 | E24: 81.76 | F24: 81.76 | G24: 81.76 | H24: 81.76 | I24: 81.76 | J24: 81.76 | K24: 81.76 | L24: 81.76 | M24: 81.76 | N24: =IF(IFERROR(VLOOKUP('AUP Library'!A24,#REF!,4,0),R24)="",R24,IFERROR(VLOOKUP('AUP Library'!A24,#REF!,4,0),R24)) -> 81.76 | O24: =IF(IFERROR(VLOOKUP('AUP Library'!A24,#REF!,5,0),R24)="",R24,IFERROR(VLOOKUP('AUP Library'!A24,#REF!,5,0),R24)) -> 81.76 | P24: =IF(IFERROR(VLOOKUP('AUP Library'!A24,#REF!,6,0),R24)="",R24,IFERROR(VLOOKUP('AUP Library'!A24,#REF!,6,0),R24)) -> 81.76 | Q24: =IF(IFERROR(VLOOKUP('AUP Library'!A24,#REF!,7,0),R24)="",R24,IFERROR(VLOOKUP('AUP Library'!A24,#REF!,7,0),R24)) -> 81.76 | R24: 81.76 | S24: =IFERROR(VLOOKUP('AUP Library'!A24,#REF!,4,0),R24) -> 81.76
A25: 307-01.10 | B25: Asphalt Conc Mix (PG64-22)(BPMB-HM) GR C-W | C25: TON | D25: 91 | E25: 91 | F25: 91 | G25: 91 | H25: 91 | I25: 91 | J25: 91 | K25: 91 | L25: 91 | M25: 91 | N25: =IF(IFERROR(VLOOKUP('AUP Library'!A25,#REF!,4,0),R25)="",R25,IFERROR(VLOOKUP('AUP Library'!A25,#REF!,4,0),R25)) -> 91 | O25: =IF(IFERROR(VLOOKUP('AUP Library'!A25,#REF!,5,0),R25)="",R25,IFERROR(VLOOKUP('AUP Library'!A25,#REF!,5,0),R25)) -> 91 | P25: =IF(IFERROR(VLOOKUP('AUP Library'!A25,#REF!,6,0),R25)="",R25,IFERROR(VLOOKUP('AUP Library'!A25,#REF!,6,0),R25)) -> 91 | Q25: =IF(IFERROR(VLOOKUP('AUP Library'!A25,#REF!,7,0),R25)="",R25,IFERROR(VLOOKUP('AUP Library'!A25,#REF!,7,0),R25)) -> 91 | R25: 91 | S25: =IFERROR(VLOOKUP('AUP Library'!A25,#REF!,4,0),R25) -> 91
A26: 307-01.15 | B26: ASC Mix (PG64-22)(BPMLC-HM) GR.CS | C26: TON | D26: 98.66 | E26: 98.66 | F26: 98.66 | G26: 98.66 | H26: 98.66 | I26: 98.66 | J26: 98.66 | K26: 98.66 | L26: 98.66 | M26: 98.66 | N26: =IF(IFERROR(VLOOKUP('AUP Library'!A26,#REF!,4,0),R26)="",R26,IFERROR(VLOOKUP('AUP Library'!A26,#REF!,4,0),R26)) -> 98.66 | O26: =IF(IFERROR(VLOOKUP('AUP Library'!A26,#REF!,5,0),R26)="",R26,IFERROR(VLOOKUP('AUP Library'!A26,#REF!,5,0),R26)) -> 98.66 | P26: =IF(IFERROR(VLOOKUP('AUP Library'!A26,#REF!,6,0),R26)="",R26,IFERROR(VLOOKUP('AUP Library'!A26,#REF!,6,0),R26)) -> 98.66 | Q26: =IF(IFERROR(VLOOKUP('AUP Library'!A26,#REF!,7,0),R26)="",R26,IFERROR(VLOOKUP('AUP Library'!A26,#REF!,7,0),R26)) -> 98.66 | R26: 98.66 | S26: =IFERROR(VLOOKUP('AUP Library'!A26,#REF!,4,0),R26) -> 98.66
A27: 307-02.01 | B27: Asphalt Concrete Mix (PG70-22) (BPMB-HM) Grading A | C27: TON | D27: 40.08 | E27: 52.88 | F27: 55.79 | G27: 69.15 | H27: 69.15 | I27: 66.76 | J27: 77.46 | K27: 72.81 | L27: 59.92 | M27: 78.76 | N27: =IF(IFERROR(VLOOKUP('AUP Library'!A27,#REF!,4,0),R27)="",R27,IFERROR(VLOOKUP('AUP Library'!A27,#REF!,4,0),R27)) -> 65.48 | O27: =IF(IFERROR(VLOOKUP('AUP Library'!A27,#REF!,5,0),R27)="",R27,IFERROR(VLOOKUP('AUP Library'!A27,#REF!,5,0),R27)) -> 65.48 | P27: =IF(IFERROR(VLOOKUP('AUP Library'!A27,#REF!,6,0),R27)="",R27,IFERROR(VLOOKUP('AUP Library'!A27,#REF!,6,0),R27)) -> 65.48 | Q27: =IF(IFERROR(VLOOKUP('AUP Library'!A27,#REF!,7,0),R27)="",R27,IFERROR(VLOOKUP('AUP Library'!A27,#REF!,7,0),R27)) -> 65.48 | R27: 65.48 | S27: =IFERROR(VLOOKUP('AUP Library'!A27,#REF!,4,0),R27) -> 65.48
A28: 307-02.02 | B28: Asphalt Cement (PG70-22)(BPMB-HM) Grading A-S | C28: TON | D28: 330.41 | E28: 462.54 | F28: 492.3 | G28: 763.2 | H28: 763.2 | I28: 688.28 | J28: 849.06 | K28: 888.11 | L28: 526.78 | M28: 842.76 | N28: =IF(IFERROR(VLOOKUP('AUP Library'!A28,#REF!,4,0),R28)="",R28,IFERROR(VLOOKUP('AUP Library'!A28,#REF!,4,0),R28)) -> 769.56 | O28: =IF(IFERROR(VLOOKUP('AUP Library'!A28,#REF!,5,0),R28)="",R28,IFERROR(VLOOKUP('AUP Library'!A28,#REF!,5,0),R28)) -> 769.56 | P28: =IF(IFERROR(VLOOKUP('AUP Library'!A28,#REF!,6,0),R28)="",R28,IFERROR(VLOOKUP('AUP Library'!A28,#REF!,6,0),R28)) -> 769.56 | Q28: =IF(IFERROR(VLOOKUP('AUP Library'!A28,#REF!,7,0),R28)="",R28,IFERROR(VLOOKUP('AUP Library'!A28,#REF!,7,0),R28)) -> 769.56 | R28: 769.56 | S28: =IFERROR(VLOOKUP('AUP Library'!A28,#REF!,4,0),R28) -> 769.56
A29: 307-02.03 | B29: Aggregate (BPMB-HM) Grading A-S Mix | C29: TON | D29: 28.26 | E29: 34.31 | F29: 39.88 | G29: 37.13 | H29: 37.13 | I29: 46.54 | J29: 48.88 | K29: 42.27 | L29: 45.77 | M29: 49.99 | N29: =IF(IFERROR(VLOOKUP('AUP Library'!A29,#REF!,4,0),R29)="",R29,IFERROR(VLOOKUP('AUP Library'!A29,#REF!,4,0),R29)) -> 49.56 | O29: =IF(IFERROR(VLOOKUP('AUP Library'!A29,#REF!,5,0),R29)="",R29,IFERROR(VLOOKUP('AUP Library'!A29,#REF!,5,0),R29)) -> 49.56 | P29: =IF(IFERROR(VLOOKUP('AUP Library'!A29,#REF!,6,0),R29)="",R29,IFERROR(VLOOKUP('AUP Library'!A29,#REF!,6,0),R29)) -> 49.56 | Q29: =IF(IFERROR(VLOOKUP('AUP Library'!A29,#REF!,7,0),R29)="",R29,IFERROR(VLOOKUP('AUP Library'!A29,#REF!,7,0),R29)) -> 49.56 | R29: 49.56 | S29: =IFERROR(VLOOKUP('AUP Library'!A29,#REF!,4,0),R29) -> 49.56
A30: 307-02.08 | B30: Asphalt Concrete Mix (PG70-22) (BPMB-HM) Grading B-M2 | C30: TON | D30: 39.95 | E30: 56.55 | F30: 57.47 | G30: 71.94 | H30: 71.94 | I30: 69.43 | J30: 80.78 | K30: 77.65 | L30: 64.46 | M30: 78.99 | N30: =IF(IFERROR(VLOOKUP('AUP Library'!A30,#REF!,4,0),R30)="",R30,IFERROR(VLOOKUP('AUP Library'!A30,#REF!,4,0),R30)) -> 87.13 | O30: =IF(IFERROR(VLOOKUP('AUP Library'!A30,#REF!,5,0),R30)="",R30,IFERROR(VLOOKUP('AUP Library'!A30,#REF!,5,0),R30)) -> 87.13 | P30: =IF(IFERROR(VLOOKUP('AUP Library'!A30,#REF!,6,0),R30)="",R30,IFERROR(VLOOKUP('AUP Library'!A30,#REF!,6,0),R30)) -> 87.13 | Q30: =IF(IFERROR(VLOOKUP('AUP Library'!A30,#REF!,7,0),R30)="",R30,IFERROR(VLOOKUP('AUP Library'!A30,#REF!,7,0),R30)) -> 87.13 | R30: 87.13 | S30: =IFERROR(VLOOKUP('AUP Library'!A30,#REF!,4,0),R30) -> 87.13
A31: 307-03.01 | B31: Asphalt Conc Mix (PG76-22)(BPMB-HM) GR A | C31: TON | D31: 84.24 | E31: 84.24 | F31: 84.24 | G31: 84.24 | H31: 84.24 | I31: 84.24 | J31: 84.24 | K31: 84.24 | L31: 84.24 | M31: 84.24 | N31: =IF(IFERROR(VLOOKUP('AUP Library'!A31,#REF!,4,0),R31)="",R31,IFERROR(VLOOKUP('AUP Library'!A31,#REF!,4,0),R31)) -> 84.24 | O31: =IF(IFERROR(VLOOKUP('AUP Library'!A31,#REF!,5,0),R31)="",R31,IFERROR(VLOOKUP('AUP Library'!A31,#REF!,5,0),R31)) -> 84.24 | P31: =IF(IFERROR(VLOOKUP('AUP Library'!A31,#REF!,6,0),R31)="",R31,IFERROR(VLOOKUP('AUP Library'!A31,#REF!,6,0),R31)) -> 84.24 | Q31: =IF(IFERROR(VLOOKUP('AUP Library'!A31,#REF!,7,0),R31)="",R31,IFERROR(VLOOKUP('AUP Library'!A31,#REF!,7,0),R31)) -> 84.24 | R31: 84.24 | S31: =IFERROR(VLOOKUP('AUP Library'!A31,#REF!,4,0),R31) -> 84.24
A32: 307-03.02 | B32: Perf. Grade Asph. Cement (PG76-22) GR AS | C32: TON | D32: 942.31 | E32: 942.31 | F32: 942.31 | G32: 942.31 | H32: 942.31 | I32: 942.31 | J32: 942.31 | K32: 942.31 | L32: 942.31 | M32: 942.31 | N32: =IF(IFERROR(VLOOKUP('AUP Library'!A32,#REF!,4,0),R32)="",R32,IFERROR(VLOOKUP('AUP Library'!A32,#REF!,4,0),R32)) -> 942.31 | O32: =IF(IFERROR(VLOOKUP('AUP Library'!A32,#REF!,5,0),R32)="",R32,IFERROR(VLOOKUP('AUP Library'!A32,#REF!,5,0),R32)) -> 942.31 | P32: =IF(IFERROR(VLOOKUP('AUP Library'!A32,#REF!,6,0),R32)="",R32,IFERROR(VLOOKUP('AUP Library'!A32,#REF!,6,0),R32)) -> 942.31 | Q32: =IF(IFERROR(VLOOKUP('AUP Library'!A32,#REF!,7,0),R32)="",R32,IFERROR(VLOOKUP('AUP Library'!A32,#REF!,7,0),R32)) -> 942.31 | R32: 942.31 | S32: =IFERROR(VLOOKUP('AUP Library'!A32,#REF!,4,0),R32) -> 942.31
A33: 307-03.03 | B33: Aggregate (BPMB-HM) Grading AS | C33: TON | D33: 67.48 | E33: 67.48 | F33: 67.48 | G33: 67.48 | H33: 67.48 | I33: 67.48 | J33: 67.48 | K33: 67.48 | L33: 67.48 | M33: 67.48 | N33: =IF(IFERROR(VLOOKUP('AUP Library'!A33,#REF!,4,0),R33)="",R33,IFERROR(VLOOKUP('AUP Library'!A33,#REF!,4,0),R33)) -> 67.48 | O33: =IF(IFERROR(VLOOKUP('AUP Library'!A33,#REF!,5,0),R33)="",R33,IFERROR(VLOOKUP('AUP Library'!A33,#REF!,5,0),R33)) -> 67.48 | P33: =IF(IFERROR(VLOOKUP('AUP Library'!A33,#REF!,6,0),R33)="",R33,IFERROR(VLOOKUP('AUP Library'!A33,#REF!,6,0),R33)) -> 67.48 | Q33: =IF(IFERROR(VLOOKUP('AUP Library'!A33,#REF!,7,0),R33)="",R33,IFERROR(VLOOKUP('AUP Library'!A33,#REF!,7,0),R33)) -> 67.48 | R33: 67.48 | S33: =IFERROR(VLOOKUP('AUP Library'!A33,#REF!,4,0),R33) -> 67.48
A34: 307-03.08 | B34: Asphalt Conc MX (PG76-22)(BPMB-HM) GR B-M2 | C34: TON | D34: 79.28 | E34: 79.28 | F34: 79.28 | G34: 79.28 | H34: 79.28 | I34: 79.28 | J34: 79.28 | K34: 79.28 | L34: 79.28 | M34: 79.28 | N34: =IF(IFERROR(VLOOKUP('AUP Library'!A34,#REF!,4,0),R34)="",R34,IFERROR(VLOOKUP('AUP Library'!A34,#REF!,4,0),R34)) -> 79.28 | O34: =IF(IFERROR(VLOOKUP('AUP Library'!A34,#REF!,5,0),R34)="",R34,IFERROR(VLOOKUP('AUP Library'!A34,#REF!,5,0),R34)) -> 79.28 | P34: =IF(IFERROR(VLOOKUP('AUP Library'!A34,#REF!,6,0),R34)="",R34,IFERROR(VLOOKUP('AUP Library'!A34,#REF!,6,0),R34)) -> 79.28 | Q34: =IF(IFERROR(VLOOKUP('AUP Library'!A34,#REF!,7,0),R34)="",R34,IFERROR(VLOOKUP('AUP Library'!A34,#REF!,7,0),R34)) -> 79.28 | R34: 79.28 | S34: =IFERROR(VLOOKUP('AUP Library'!A34,#REF!,4,0),R34) -> 79.28
A35: 307-03.10 | B35: Asphalt Conc Mix (PG76-22) (BPMB-HM) GR CS | C35: TON | D35: 89.8 | E35: 89.8 | F35: 89.8 | G35: 89.8 | H35: 89.8 | I35: 89.8 | J35: 89.8 | K35: 89.8 | L35: 89.8 | M35: 89.8 | N35: =IF(IFERROR(VLOOKUP('AUP Library'!A35,#REF!,4,0),R35)="",R35,IFERROR(VLOOKUP('AUP Library'!A35,#REF!,4,0),R35)) -> 89.8 | O35: =IF(IFERROR(VLOOKUP('AUP Library'!A35,#REF!,5,0),R35)="",R35,IFERROR(VLOOKUP('AUP Library'!A35,#REF!,5,0),R35)) -> 89.8 | P35: =IF(IFERROR(VLOOKUP('AUP Library'!A35,#REF!,6,0),R35)="",R35,IFERROR(VLOOKUP('AUP Library'!A35,#REF!,6,0),R35)) -> 89.8 | Q35: =IF(IFERROR(VLOOKUP('AUP Library'!A35,#REF!,7,0),R35)="",R35,IFERROR(VLOOKUP('AUP Library'!A35,#REF!,7,0),R35)) -> 89.8 | R35: 89.8 | S35: =IFERROR(VLOOKUP('AUP Library'!A35,#REF!,4,0),R35) -> 89.8
A36: 309-01.01 | B36: Mineral Aggregate (A-CBC) | C36: TON | D36: 18.37 | E36: 18.37 | F36: 18.37 | G36: 18.37 | H36: 18.37 | I36: 18.37 | J36: 18.37 | K36: 18.37 | L36: 18.37 | M36: 18.37 | N36: =IF(IFERROR(VLOOKUP('AUP Library'!A36,#REF!,4,0),R36)="",R36,IFERROR(VLOOKUP('AUP Library'!A36,#REF!,4,0),R36)) -> 18.37 | O36: =IF(IFERROR(VLOOKUP('AUP Library'!A36,#REF!,5,0),R36)="",R36,IFERROR(VLOOKUP('AUP Library'!A36,#REF!,5,0),R36)) -> 18.37 | P36: =IF(IFERROR(VLOOKUP('AUP Library'!A36,#REF!,6,0),R36)="",R36,IFERROR(VLOOKUP('AUP Library'!A36,#REF!,6,0),R36)) -> 18.37 | Q36: =IF(IFERROR(VLOOKUP('AUP Library'!A36,#REF!,7,0),R36)="",R36,IFERROR(VLOOKUP('AUP Library'!A36,#REF!,7,0),R36)) -> 18.37 | R36: 18.37 | S36: =IFERROR(VLOOKUP('AUP Library'!A36,#REF!,4,0),R36) -> 18.37
A37: 309-01.02 | B37: Portland Cement (A-CBC) | C37: TON | D37: 187.3 | E37: 187.3 | F37: 187.3 | G37: 187.3 | H37: 187.3 | I37: 187.3 | J37: 187.3 | K37: 187.3 | L37: 187.3 | M37: 187.3 | N37: =IF(IFERROR(VLOOKUP('AUP Library'!A37,#REF!,4,0),R37)="",R37,IFERROR(VLOOKUP('AUP Library'!A37,#REF!,4,0),R37)) -> 187.3 | O37: =IF(IFERROR(VLOOKUP('AUP Library'!A37,#REF!,5,0),R37)="",R37,IFERROR(VLOOKUP('AUP Library'!A37,#REF!,5,0),R37)) -> 187.3 | P37: =IF(IFERROR(VLOOKUP('AUP Library'!A37,#REF!,6,0),R37)="",R37,IFERROR(VLOOKUP('AUP Library'!A37,#REF!,6,0),R37)) -> 187.3 | Q37: =IF(IFERROR(VLOOKUP('AUP Library'!A37,#REF!,7,0),R37)="",R37,IFERROR(VLOOKUP('AUP Library'!A37,#REF!,7,0),R37)) -> 187.3 | R37: 187.3 | S37: =IFERROR(VLOOKUP('AUP Library'!A37,#REF!,4,0),R37) -> 187.3
A38: 309-02 | B38: Bituminous Material (A-CBC) | C38: TON | D38: 673.26 | E38: 673.26 | F38: 673.26 | G38: 673.26 | H38: 673.26 | I38: 673.26 | J38: 673.26 | K38: 673.26 | L38: 673.26 | M38: 673.26 | N38: =IF(IFERROR(VLOOKUP('AUP Library'!A38,#REF!,4,0),R38)="",R38,IFERROR(VLOOKUP('AUP Library'!A38,#REF!,4,0),R38)) -> 673.26 | O38: =IF(IFERROR(VLOOKUP('AUP Library'!A38,#REF!,5,0),R38)="",R38,IFERROR(VLOOKUP('AUP Library'!A38,#REF!,5,0),R38)) -> 673.26 | P38: =IF(IFERROR(VLOOKUP('AUP Library'!A38,#REF!,6,0),R38)="",R38,IFERROR(VLOOKUP('AUP Library'!A38,#REF!,6,0),R38)) -> 673.26 | Q38: =IF(IFERROR(VLOOKUP('AUP Library'!A38,#REF!,7,0),R38)="",R38,IFERROR(VLOOKUP('AUP Library'!A38,#REF!,7,0),R38)) -> 673.26 | R38: 673.26 | S38: =IFERROR(VLOOKUP('AUP Library'!A38,#REF!,4,0),R38) -> 673.26
A39: 402-01 | B39: Bituminous Material For Prime Coat (PC) | C39: TON | D39: 231.71 | E39: 337.5 | F39: 382.39 | G39: 491.95 | H39: 491.95 | I39: 472.5 | J39: 558.36 | K39: 508.44 | L39: 452.98 | M39: 497.96 | N39: =IF(IFERROR(VLOOKUP('AUP Library'!A39,#REF!,4,0),R39)="",R39,IFERROR(VLOOKUP('AUP Library'!A39,#REF!,4,0),R39)) -> 535.72 | O39: =IF(IFERROR(VLOOKUP('AUP Library'!A39,#REF!,5,0),R39)="",R39,IFERROR(VLOOKUP('AUP Library'!A39,#REF!,5,0),R39)) -> 535.72 | P39: =IF(IFERROR(VLOOKUP('AUP Library'!A39,#REF!,6,0),R39)="",R39,IFERROR(VLOOKUP('AUP Library'!A39,#REF!,6,0),R39)) -> 535.72 | Q39: =IF(IFERROR(VLOOKUP('AUP Library'!A39,#REF!,7,0),R39)="",R39,IFERROR(VLOOKUP('AUP Library'!A39,#REF!,7,0),R39)) -> 535.72 | R39: 535.72 | S39: =IFERROR(VLOOKUP('AUP Library'!A39,#REF!,4,0),R39) -> 535.72
A40: 402-02 | B40: Aggregate For Cover Material (PC) | C40: TON | D40: 16.38 | E40: 16.14 | F40: 18.19 | G40: 23.67 | H40: 23.67 | I40: 18.06 | J40: 20.81 | K40: 23.27 | L40: 24.74 | M40: 23.81 | N40: =IF(IFERROR(VLOOKUP('AUP Library'!A40,#REF!,4,0),R40)="",R40,IFERROR(VLOOKUP('AUP Library'!A40,#REF!,4,0),R40)) -> 34.19 | O40: =IF(IFERROR(VLOOKUP('AUP Library'!A40,#REF!,5,0),R40)="",R40,IFERROR(VLOOKUP('AUP Library'!A40,#REF!,5,0),R40)) -> 34.19 | P40: =IF(IFERROR(VLOOKUP('AUP Library'!A40,#REF!,6,0),R40)="",R40,IFERROR(VLOOKUP('AUP Library'!A40,#REF!,6,0),R40)) -> 34.19 | Q40: =IF(IFERROR(VLOOKUP('AUP Library'!A40,#REF!,7,0),R40)="",R40,IFERROR(VLOOKUP('AUP Library'!A40,#REF!,7,0),R40)) -> 34.19 | R40: 34.19 | S40: =IFERROR(VLOOKUP('AUP Library'!A40,#REF!,4,0),R40) -> 34.19
A41: 403-01 | B41: Bituminous Material For Tack Coat (TC) | C41: TON | D41: 260.45 | E41: 327.15 | F41: 339.5 | G41: 413.86 | H41: 413.86 | I41: 453.48 | J41: 517.73 | K41: 571.21 | L41: 561.91 | M41: 626.55 | N41: =IF(IFERROR(VLOOKUP('AUP Library'!A41,#REF!,4,0),R41)="",R41,IFERROR(VLOOKUP('AUP Library'!A41,#REF!,4,0),R41)) -> 589.1 | O41: =IF(IFERROR(VLOOKUP('AUP Library'!A41,#REF!,5,0),R41)="",R41,IFERROR(VLOOKUP('AUP Library'!A41,#REF!,5,0),R41)) -> 589.1 | P41: =IF(IFERROR(VLOOKUP('AUP Library'!A41,#REF!,6,0),R41)="",R41,IFERROR(VLOOKUP('AUP Library'!A41,#REF!,6,0),R41)) -> 589.1 | Q41: =IF(IFERROR(VLOOKUP('AUP Library'!A41,#REF!,7,0),R41)="",R41,IFERROR(VLOOKUP('AUP Library'!A41,#REF!,7,0),R41)) -> 589.1 | R41: 589.1 | S41: =IFERROR(VLOOKUP('AUP Library'!A41,#REF!,4,0),R41) -> 589.1
A42: 404-01.01 | B42: Bituminous Material (DBST) | C42: TON | D42: 1575 | E42: 1575 | F42: 1575 | G42: 1575 | H42: 1575 | I42: 1575 | J42: 1575 | K42: 1575 | L42: 1575 | M42: 1575 | N42: =IF(IFERROR(VLOOKUP('AUP Library'!A42,#REF!,4,0),R42)="",R42,IFERROR(VLOOKUP('AUP Library'!A42,#REF!,4,0),R42)) -> 1575 | O42: =IF(IFERROR(VLOOKUP('AUP Library'!A42,#REF!,5,0),R42)="",R42,IFERROR(VLOOKUP('AUP Library'!A42,#REF!,5,0),R42)) -> 1575 | P42: =IF(IFERROR(VLOOKUP('AUP Library'!A42,#REF!,6,0),R42)="",R42,IFERROR(VLOOKUP('AUP Library'!A42,#REF!,6,0),R42)) -> 1575 | Q42: =IF(IFERROR(VLOOKUP('AUP Library'!A42,#REF!,7,0),R42)="",R42,IFERROR(VLOOKUP('AUP Library'!A42,#REF!,7,0),R42)) -> 1575 | R42: 1575 | S42: =IFERROR(VLOOKUP('AUP Library'!A42,#REF!,4,0),R42) -> 1575
A43: 404-01.02 | B43: Mineral Aggregate (DBST) | C43: TON | D43: 61.85 | E43: 61.85 | F43: 61.85 | G43: 61.85 | H43: 61.85 | I43: 61.85 | J43: 61.85 | K43: 61.85 | L43: 61.85 | M43: 61.85 | N43: =IF(IFERROR(VLOOKUP('AUP Library'!A43,#REF!,4,0),R43)="",R43,IFERROR(VLOOKUP('AUP Library'!A43,#REF!,4,0),R43)) -> 61.85 | O43: =IF(IFERROR(VLOOKUP('AUP Library'!A43,#REF!,5,0),R43)="",R43,IFERROR(VLOOKUP('AUP Library'!A43,#REF!,5,0),R43)) -> 61.85 | P43: =IF(IFERROR(VLOOKUP('AUP Library'!A43,#REF!,6,0),R43)="",R43,IFERROR(VLOOKUP('AUP Library'!A43,#REF!,6,0),R43)) -> 61.85 | Q43: =IF(IFERROR(VLOOKUP('AUP Library'!A43,#REF!,7,0),R43)="",R43,IFERROR(VLOOKUP('AUP Library'!A43,#REF!,7,0),R43)) -> 61.85 | R43: 61.85 | S43: =IFERROR(VLOOKUP('AUP Library'!A43,#REF!,4,0),R43) -> 61.85
A44: 405-01.01 | B44: Bituminous Material (BSC) | C44: TON | D44: 668.02 | E44: 668.02 | F44: 668.02 | G44: 668.02 | H44: 668.02 | I44: 668.02 | J44: 668.02 | K44: 668.02 | L44: 668.02 | M44: 668.02 | N44: =IF(IFERROR(VLOOKUP('AUP Library'!A44,#REF!,4,0),R44)="",R44,IFERROR(VLOOKUP('AUP Library'!A44,#REF!,4,0),R44)) -> 668.02 | O44: =IF(IFERROR(VLOOKUP('AUP Library'!A44,#REF!,5,0),R44)="",R44,IFERROR(VLOOKUP('AUP Library'!A44,#REF!,5,0),R44)) -> 668.02 | P44: =IF(IFERROR(VLOOKUP('AUP Library'!A44,#REF!,6,0),R44)="",R44,IFERROR(VLOOKUP('AUP Library'!A44,#REF!,6,0),R44)) -> 668.02 | Q44: =IF(IFERROR(VLOOKUP('AUP Library'!A44,#REF!,7,0),R44)="",R44,IFERROR(VLOOKUP('AUP Library'!A44,#REF!,7,0),R44)) -> 668.02 | R44: 668.02 | S44: =IFERROR(VLOOKUP('AUP Library'!A44,#REF!,4,0),R44) -> 668.02
A45: 405-01.02 | B45: Mineral Aggregate (BSC) | C45: TON | D45: 38.32 | E45: 38.32 | F45: 38.32 | G45: 38.32 | H45: 38.32 | I45: 38.32 | J45: 38.32 | K45: 38.32 | L45: 38.32 | M45: 38.32 | N45: =IF(IFERROR(VLOOKUP('AUP Library'!A45,#REF!,4,0),R45)="",R45,IFERROR(VLOOKUP('AUP Library'!A45,#REF!,4,0),R45)) -> 38.32 | O45: =IF(IFERROR(VLOOKUP('AUP Library'!A45,#REF!,5,0),R45)="",R45,IFERROR(VLOOKUP('AUP Library'!A45,#REF!,5,0),R45)) -> 38.32 | P45: =IF(IFERROR(VLOOKUP('AUP Library'!A45,#REF!,6,0),R45)="",R45,IFERROR(VLOOKUP('AUP Library'!A45,#REF!,6,0),R45)) -> 38.32 | Q45: =IF(IFERROR(VLOOKUP('AUP Library'!A45,#REF!,7,0),R45)="",R45,IFERROR(VLOOKUP('AUP Library'!A45,#REF!,7,0),R45)) -> 38.32 | R45: 38.32 | S45: =IFERROR(VLOOKUP('AUP Library'!A45,#REF!,4,0),R45) -> 38.32
A46: 406-04.01 | B46: Polymer Modfified Epoxy Pavement Overlay | C46: SY | D46: 22 | E46: 22 | F46: 22 | G46: 22 | H46: 22 | I46: 22 | J46: 22 | K46: 22 | L46: 22 | M46: 22 | N46: =IF(IFERROR(VLOOKUP('AUP Library'!A46,#REF!,4,0),R46)="",R46,IFERROR(VLOOKUP('AUP Library'!A46,#REF!,4,0),R46)) -> 22 | O46: =IF(IFERROR(VLOOKUP('AUP Library'!A46,#REF!,5,0),R46)="",R46,IFERROR(VLOOKUP('AUP Library'!A46,#REF!,5,0),R46)) -> 22 | P46: =IF(IFERROR(VLOOKUP('AUP Library'!A46,#REF!,6,0),R46)="",R46,IFERROR(VLOOKUP('AUP Library'!A46,#REF!,6,0),R46)) -> 22 | Q46: =IF(IFERROR(VLOOKUP('AUP Library'!A46,#REF!,7,0),R46)="",R46,IFERROR(VLOOKUP('AUP Library'!A46,#REF!,7,0),R46)) -> 22 | R46: 22 | S46: =IFERROR(VLOOKUP('AUP Library'!A46,#REF!,4,0),R46) -> 22
A47: 406-04.02 | B47: High Friction Surface Treatment | C47: SY | D47: 20.94 | E47: 20.94 | F47: 20.94 | G47: 20.94 | H47: 20.94 | I47: 20.94 | J47: 20.94 | K47: 20.94 | L47: 20.94 | M47: 20.94 | N47: =IF(IFERROR(VLOOKUP('AUP Library'!A47,#REF!,4,0),R47)="",R47,IFERROR(VLOOKUP('AUP Library'!A47,#REF!,4,0),R47)) -> 20.94 | O47: =IF(IFERROR(VLOOKUP('AUP Library'!A47,#REF!,5,0),R47)="",R47,IFERROR(VLOOKUP('AUP Library'!A47,#REF!,5,0),R47)) -> 20.94 | P47: =IF(IFERROR(VLOOKUP('AUP Library'!A47,#REF!,6,0),R47)="",R47,IFERROR(VLOOKUP('AUP Library'!A47,#REF!,6,0),R47)) -> 20.94 | Q47: =IF(IFERROR(VLOOKUP('AUP Library'!A47,#REF!,7,0),R47)="",R47,IFERROR(VLOOKUP('AUP Library'!A47,#REF!,7,0),R47)) -> 20.94 | R47: 20.94 | S47: =IFERROR(VLOOKUP('AUP Library'!A47,#REF!,4,0),R47) -> 20.94
A48: 406-04.03 | B48: High Friction Surface Treatment (Single Lift) | C48: SY | D48: 18.54 | E48: 18.54 | F48: 18.54 | G48: 18.54 | H48: 18.54 | I48: 18.54 | J48: 18.54 | K48: 18.54 | L48: 18.54 | M48: 18.54 | N48: =IF(IFERROR(VLOOKUP('AUP Library'!A48,#REF!,4,0),R48)="",R48,IFERROR(VLOOKUP('AUP Library'!A48,#REF!,4,0),R48)) -> 18.54 | O48: =IF(IFERROR(VLOOKUP('AUP Library'!A48,#REF!,5,0),R48)="",R48,IFERROR(VLOOKUP('AUP Library'!A48,#REF!,5,0),R48)) -> 18.54 | P48: =IF(IFERROR(VLOOKUP('AUP Library'!A48,#REF!,6,0),R48)="",R48,IFERROR(VLOOKUP('AUP Library'!A48,#REF!,6,0),R48)) -> 18.54 | Q48: =IF(IFERROR(VLOOKUP('AUP Library'!A48,#REF!,7,0),R48)="",R48,IFERROR(VLOOKUP('AUP Library'!A48,#REF!,7,0),R48)) -> 18.54 | R48: 18.54 | S48: =IFERROR(VLOOKUP('AUP Library'!A48,#REF!,4,0),R48) -> 18.54
A49: 406-04.04 | B49: High Friction Surface Treatment (Double Lift) | C49: SY | D49: 36.85 | E49: 36.85 | F49: 36.85 | G49: 36.85 | H49: 36.85 | I49: 36.85 | J49: 36.85 | K49: 36.85 | L49: 36.85 | M49: 36.85 | N49: =IF(IFERROR(VLOOKUP('AUP Library'!A49,#REF!,4,0),R49)="",R49,IFERROR(VLOOKUP('AUP Library'!A49,#REF!,4,0),R49)) -> 36.85 | O49: =IF(IFERROR(VLOOKUP('AUP Library'!A49,#REF!,5,0),R49)="",R49,IFERROR(VLOOKUP('AUP Library'!A49,#REF!,5,0),R49)) -> 36.85 | P49: =IF(IFERROR(VLOOKUP('AUP Library'!A49,#REF!,6,0),R49)="",R49,IFERROR(VLOOKUP('AUP Library'!A49,#REF!,6,0),R49)) -> 36.85 | Q49: =IF(IFERROR(VLOOKUP('AUP Library'!A49,#REF!,7,0),R49)="",R49,IFERROR(VLOOKUP('AUP Library'!A49,#REF!,7,0),R49)) -> 36.85 | R49: 36.85 | S49: =IFERROR(VLOOKUP('AUP Library'!A49,#REF!,4,0),R49) -> 36.85
A50: 407-02.11 | B50: Removal & Disposal Existing Asphalt Pavement | C50: CY | D50: 10 | E50: 10 | F50: 10 | G50: 10 | H50: 10 | I50: 10 | J50: 10 | K50: 10 | L50: 10 | M50: 10 | N50: =IF(IFERROR(VLOOKUP('AUP Library'!A50,#REF!,4,0),R50)="",R50,IFERROR(VLOOKUP('AUP Library'!A50,#REF!,4,0),R50)) -> 10 | O50: =IF(IFERROR(VLOOKUP('AUP Library'!A50,#REF!,5,0),R50)="",R50,IFERROR(VLOOKUP('AUP Library'!A50,#REF!,5,0),R50)) -> 10 | P50: =IF(IFERROR(VLOOKUP('AUP Library'!A50,#REF!,6,0),R50)="",R50,IFERROR(VLOOKUP('AUP Library'!A50,#REF!,6,0),R50)) -> 10 | Q50: =IF(IFERROR(VLOOKUP('AUP Library'!A50,#REF!,7,0),R50)="",R50,IFERROR(VLOOKUP('AUP Library'!A50,#REF!,7,0),R50)) -> 10 | R50: 10 | S50: =IFERROR(VLOOKUP('AUP Library'!A50,#REF!,4,0),R50) -> 10
A51: 407-02.12 | B51: Removal & Disposal Existing Asphalt Pavement | C51: TON | D51: 17.76 | E51: 17.76 | F51: 17.76 | G51: 17.76 | H51: 17.76 | I51: 17.76 | J51: 17.76 | K51: 17.76 | L51: 17.76 | M51: 17.76 | N51: =IF(IFERROR(VLOOKUP('AUP Library'!A51,#REF!,4,0),R51)="",R51,IFERROR(VLOOKUP('AUP Library'!A51,#REF!,4,0),R51)) -> 17.76 | O51: =IF(IFERROR(VLOOKUP('AUP Library'!A51,#REF!,5,0),R51)="",R51,IFERROR(VLOOKUP('AUP Library'!A51,#REF!,5,0),R51)) -> 17.76 | P51: =IF(IFERROR(VLOOKUP('AUP Library'!A51,#REF!,6,0),R51)="",R51,IFERROR(VLOOKUP('AUP Library'!A51,#REF!,6,0),R51)) -> 17.76 | Q51: =IF(IFERROR(VLOOKUP('AUP Library'!A51,#REF!,7,0),R51)="",R51,IFERROR(VLOOKUP('AUP Library'!A51,#REF!,7,0),R51)) -> 17.76 | R51: 17.76 | S51: =IFERROR(VLOOKUP('AUP Library'!A51,#REF!,4,0),R51) -> 17.76
A52: 407-02.13 | B52: Removal & Disposal Existing Asphalt Pavement | C52: SY | D52: 4.31 | E52: 4.31 | F52: 4.31 | G52: 4.31 | H52: 4.31 | I52: 4.31 | J52: 4.31 | K52: 4.31 | L52: 4.31 | M52: 4.31 | N52: =IF(IFERROR(VLOOKUP('AUP Library'!A52,#REF!,4,0),R52)="",R52,IFERROR(VLOOKUP('AUP Library'!A52,#REF!,4,0),R52)) -> 4.31 | O52: =IF(IFERROR(VLOOKUP('AUP Library'!A52,#REF!,5,0),R52)="",R52,IFERROR(VLOOKUP('AUP Library'!A52,#REF!,5,0),R52)) -> 4.31 | P52: =IF(IFERROR(VLOOKUP('AUP Library'!A52,#REF!,6,0),R52)="",R52,IFERROR(VLOOKUP('AUP Library'!A52,#REF!,6,0),R52)) -> 4.31 | Q52: =IF(IFERROR(VLOOKUP('AUP Library'!A52,#REF!,7,0),R52)="",R52,IFERROR(VLOOKUP('AUP Library'!A52,#REF!,7,0),R52)) -> 4.31 | R52: 4.31 | S52: =IFERROR(VLOOKUP('AUP Library'!A52,#REF!,4,0),R52) -> 4.31
A53: 407-02.14 | B53: Asphalt Pavement Repair | C53: SY | D53: 60 | E53: 60 | F53: 60 | G53: 60 | H53: 60 | I53: 60 | J53: 60 | K53: 60 | L53: 60 | M53: 60 | N53: =IF(IFERROR(VLOOKUP('AUP Library'!A53,#REF!,4,0),R53)="",R53,IFERROR(VLOOKUP('AUP Library'!A53,#REF!,4,0),R53)) -> 60 | O53: =IF(IFERROR(VLOOKUP('AUP Library'!A53,#REF!,5,0),R53)="",R53,IFERROR(VLOOKUP('AUP Library'!A53,#REF!,5,0),R53)) -> 60 | P53: =IF(IFERROR(VLOOKUP('AUP Library'!A53,#REF!,6,0),R53)="",R53,IFERROR(VLOOKUP('AUP Library'!A53,#REF!,6,0),R53)) -> 60 | Q53: =IF(IFERROR(VLOOKUP('AUP Library'!A53,#REF!,7,0),R53)="",R53,IFERROR(VLOOKUP('AUP Library'!A53,#REF!,7,0),R53)) -> 60 | R53: 60 | S53: =IFERROR(VLOOKUP('AUP Library'!A53,#REF!,4,0),R53) -> 60
A54: 407-07.01 | B54: Intelligent Compaction Equipment | C54: LS | D54: 90930 | E54: 90930 | F54: 90930 | G54: 90930 | H54: 90930 | I54: 90930 | J54: 90930 | K54: 90930 | L54: 90930 | M54: 90930 | N54: =IF(IFERROR(VLOOKUP('AUP Library'!A54,#REF!,4,0),R54)="",R54,IFERROR(VLOOKUP('AUP Library'!A54,#REF!,4,0),R54)) -> 90930 | O54: =IF(IFERROR(VLOOKUP('AUP Library'!A54,#REF!,5,0),R54)="",R54,IFERROR(VLOOKUP('AUP Library'!A54,#REF!,5,0),R54)) -> 90930 | P54: =IF(IFERROR(VLOOKUP('AUP Library'!A54,#REF!,6,0),R54)="",R54,IFERROR(VLOOKUP('AUP Library'!A54,#REF!,6,0),R54)) -> 90930 | Q54: =IF(IFERROR(VLOOKUP('AUP Library'!A54,#REF!,7,0),R54)="",R54,IFERROR(VLOOKUP('AUP Library'!A54,#REF!,7,0),R54)) -> 90930 | R54: 90930 | S54: =IFERROR(VLOOKUP('AUP Library'!A54,#REF!,4,0),R54) -> 90930
A55: 407-10.03 | B55: Fiber Glass Mat (Pavement Reinforcing) | C55: SY | D55: 1.8 | E55: 1.8 | F55: 1.8 | G55: 1.8 | H55: 1.8 | I55: 1.8 | J55: 1.8 | K55: 1.8 | L55: 1.8 | M55: 1.8 | N55: =IF(IFERROR(VLOOKUP('AUP Library'!A55,#REF!,4,0),R55)="",R55,IFERROR(VLOOKUP('AUP Library'!A55,#REF!,4,0),R55)) -> 1.8 | O55: =IF(IFERROR(VLOOKUP('AUP Library'!A55,#REF!,5,0),R55)="",R55,IFERROR(VLOOKUP('AUP Library'!A55,#REF!,5,0),R55)) -> 1.8 | P55: =IF(IFERROR(VLOOKUP('AUP Library'!A55,#REF!,6,0),R55)="",R55,IFERROR(VLOOKUP('AUP Library'!A55,#REF!,6,0),R55)) -> 1.8 | Q55: =IF(IFERROR(VLOOKUP('AUP Library'!A55,#REF!,7,0),R55)="",R55,IFERROR(VLOOKUP('AUP Library'!A55,#REF!,7,0),R55)) -> 1.8 | R55: 1.8 | S55: =IFERROR(VLOOKUP('AUP Library'!A55,#REF!,4,0),R55) -> 1.8
A56: 407-10.05 | B56: Asphalt Overlay Reinforcement (Installation) | C56: LS | D56: 20000 | E56: 20000 | F56: 20000 | G56: 20000 | H56: 20000 | I56: 20000 | J56: 20000 | K56: 20000 | L56: 20000 | M56: 20000 | N56: =IF(IFERROR(VLOOKUP('AUP Library'!A56,#REF!,4,0),R56)="",R56,IFERROR(VLOOKUP('AUP Library'!A56,#REF!,4,0),R56)) -> 20000 | O56: =IF(IFERROR(VLOOKUP('AUP Library'!A56,#REF!,5,0),R56)="",R56,IFERROR(VLOOKUP('AUP Library'!A56,#REF!,5,0),R56)) -> 20000 | P56: =IF(IFERROR(VLOOKUP('AUP Library'!A56,#REF!,6,0),R56)="",R56,IFERROR(VLOOKUP('AUP Library'!A56,#REF!,6,0),R56)) -> 20000 | Q56: =IF(IFERROR(VLOOKUP('AUP Library'!A56,#REF!,7,0),R56)="",R56,IFERROR(VLOOKUP('AUP Library'!A56,#REF!,7,0),R56)) -> 20000 | R56: 20000 | S56: =IFERROR(VLOOKUP('AUP Library'!A56,#REF!,4,0),R56) -> 20000
A57: 407-10.50 | B57: Design-Build Bituminous Pavement | C57: LS | D57: 57827.5 | E57: 57827.5 | F57: 57827.5 | G57: 57827.5 | H57: 57827.5 | I57: 57827.5 | J57: 57827.5 | K57: 57827.5 | L57: 57827.5 | M57: 57827.5 | N57: =IF(IFERROR(VLOOKUP('AUP Library'!A57,#REF!,4,0),R57)="",R57,IFERROR(VLOOKUP('AUP Library'!A57,#REF!,4,0),R57)) -> 57827.5 | O57: =IF(IFERROR(VLOOKUP('AUP Library'!A57,#REF!,5,0),R57)="",R57,IFERROR(VLOOKUP('AUP Library'!A57,#REF!,5,0),R57)) -> 57827.5 | P57: =IF(IFERROR(VLOOKUP('AUP Library'!A57,#REF!,6,0),R57)="",R57,IFERROR(VLOOKUP('AUP Library'!A57,#REF!,6,0),R57)) -> 57827.5 | Q57: =IF(IFERROR(VLOOKUP('AUP Library'!A57,#REF!,7,0),R57)="",R57,IFERROR(VLOOKUP('AUP Library'!A57,#REF!,7,0),R57)) -> 57827.5 | R57: 57827.5 | S57: =IFERROR(VLOOKUP('AUP Library'!A57,#REF!,4,0),R57) -> 57827.5
A58: 407-20.05 | B58: Saw Cutting Asphalt Pavement | C58: LS | D58: 3.1 | E58: 3.1 | F58: 3.1 | G58: 3.1 | H58: 3.1 | I58: 3.1 | J58: 3.1 | K58: 3.1 | L58: 3.1 | M58: 3.1 | N58: =IF(IFERROR(VLOOKUP('AUP Library'!A58,#REF!,4,0),R58)="",R58,IFERROR(VLOOKUP('AUP Library'!A58,#REF!,4,0),R58)) -> 3.1 | O58: =IF(IFERROR(VLOOKUP('AUP Library'!A58,#REF!,5,0),R58)="",R58,IFERROR(VLOOKUP('AUP Library'!A58,#REF!,5,0),R58)) -> 3.1 | P58: =IF(IFERROR(VLOOKUP('AUP Library'!A58,#REF!,6,0),R58)="",R58,IFERROR(VLOOKUP('AUP Library'!A58,#REF!,6,0),R58)) -> 3.1 | Q58: =IF(IFERROR(VLOOKUP('AUP Library'!A58,#REF!,7,0),R58)="",R58,IFERROR(VLOOKUP('AUP Library'!A58,#REF!,7,0),R58)) -> 3.1 | R58: 3.1 | S58: =IFERROR(VLOOKUP('AUP Library'!A58,#REF!,4,0),R58) -> 3.1
A59: 411-01.07 | B59: ACS (PG64-22) GR "E" | C59: TON | D59: 40.4 | E59: 52.14 | F59: 56.92 | G59: 73.65 | H59: 73.65 | I59: 73.36 | J59: 75.77 | K59: 82.94 | L59: 75.56 | M59: 92.37 | N59: =IF(IFERROR(VLOOKUP('AUP Library'!A59,#REF!,4,0),R59)="",R59,IFERROR(VLOOKUP('AUP Library'!A59,#REF!,4,0),R59)) -> 84.51 | O59: =IF(IFERROR(VLOOKUP('AUP Library'!A59,#REF!,5,0),R59)="",R59,IFERROR(VLOOKUP('AUP Library'!A59,#REF!,5,0),R59)) -> 84.51 | P59: =IF(IFERROR(VLOOKUP('AUP Library'!A59,#REF!,6,0),R59)="",R59,IFERROR(VLOOKUP('AUP Library'!A59,#REF!,6,0),R59)) -> 84.51 | Q59: =IF(IFERROR(VLOOKUP('AUP Library'!A59,#REF!,7,0),R59)="",R59,IFERROR(VLOOKUP('AUP Library'!A59,#REF!,7,0),R59)) -> 84.51 | R59: 84.51 | S59: =IFERROR(VLOOKUP('AUP Library'!A59,#REF!,4,0),R59) -> 84.51
A60: 411-01.10 | B60: ACS Mix(PG64-22) Grading D | C60: TON | D60: 93.96 | E60: 93.96 | F60: 93.96 | G60: 93.96 | H60: 93.96 | I60: 93.96 | J60: 93.96 | K60: 93.96 | L60: 93.96 | M60: 93.96 | N60: =IF(IFERROR(VLOOKUP('AUP Library'!A60,#REF!,4,0),R60)="",R60,IFERROR(VLOOKUP('AUP Library'!A60,#REF!,4,0),R60)) -> 94.96 | O60: =IF(IFERROR(VLOOKUP('AUP Library'!A60,#REF!,5,0),R60)="",R60,IFERROR(VLOOKUP('AUP Library'!A60,#REF!,5,0),R60)) -> 94.96 | P60: =IF(IFERROR(VLOOKUP('AUP Library'!A60,#REF!,6,0),R60)="",R60,IFERROR(VLOOKUP('AUP Library'!A60,#REF!,6,0),R60)) -> 94.96 | Q60: =IF(IFERROR(VLOOKUP('AUP Library'!A60,#REF!,7,0),R60)="",R60,IFERROR(VLOOKUP('AUP Library'!A60,#REF!,7,0),R60)) -> 94.96 | R60: 94.96 | S60: =IFERROR(VLOOKUP('AUP Library'!A60,#REF!,4,0),R60) -> 94.96
A61: 411-01.11 | B61: ACS Mix (PG64-22) Grading E Rdwy | C61: TON | D61: 85.61 | E61: 85.61 | F61: 85.61 | G61: 85.61 | H61: 85.61 | I61: 85.61 | J61: 85.61 | K61: 85.61 | L61: 85.61 | M61: 85.61 | N61: =IF(IFERROR(VLOOKUP('AUP Library'!A61,#REF!,4,0),R61)="",R61,IFERROR(VLOOKUP('AUP Library'!A61,#REF!,4,0),R61)) -> 85.61 | O61: =IF(IFERROR(VLOOKUP('AUP Library'!A61,#REF!,5,0),R61)="",R61,IFERROR(VLOOKUP('AUP Library'!A61,#REF!,5,0),R61)) -> 85.61 | P61: =IF(IFERROR(VLOOKUP('AUP Library'!A61,#REF!,6,0),R61)="",R61,IFERROR(VLOOKUP('AUP Library'!A61,#REF!,6,0),R61)) -> 85.61 | Q61: =IF(IFERROR(VLOOKUP('AUP Library'!A61,#REF!,7,0),R61)="",R61,IFERROR(VLOOKUP('AUP Library'!A61,#REF!,7,0),R61)) -> 85.61 | R61: 85.61 | S61: =IFERROR(VLOOKUP('AUP Library'!A61,#REF!,4,0),R61) -> 85.61
A62: 411-01.12 | B62: Longitudinal Joint Stabilization | C62: SF | D62: 0.09 | E62: 0.09 | F62: 0.09 | G62: 0.09 | H62: 0.09 | I62: 0.09 | J62: 0.09 | K62: 0.09 | L62: 0.09 | M62: 0.09 | N62: =IF(IFERROR(VLOOKUP('AUP Library'!A62,#REF!,4,0),R62)="",R62,IFERROR(VLOOKUP('AUP Library'!A62,#REF!,4,0),R62)) -> 0.09 | O62: =IF(IFERROR(VLOOKUP('AUP Library'!A62,#REF!,5,0),R62)="",R62,IFERROR(VLOOKUP('AUP Library'!A62,#REF!,5,0),R62)) -> 0.09 | P62: =IF(IFERROR(VLOOKUP('AUP Library'!A62,#REF!,6,0),R62)="",R62,IFERROR(VLOOKUP('AUP Library'!A62,#REF!,6,0),R62)) -> 0.09 | Q62: =IF(IFERROR(VLOOKUP('AUP Library'!A62,#REF!,7,0),R62)="",R62,IFERROR(VLOOKUP('AUP Library'!A62,#REF!,7,0),R62)) -> 0.09 | R62: 0.09 | S62: =IFERROR(VLOOKUP('AUP Library'!A62,#REF!,4,0),R62) -> 0.09
A63: 411-02.10 | B63: ACS Mix(PG70-22) Grading D | C63: TON | D63: 44.51 | E63: 58.53 | F63: 60.66 | G63: 75.61 | H63: 75.61 | I63: 80.46 | J63: 84.45 | K63: 86.65 | L63: 85.98 | M63: 93.96 | N63: =IF(IFERROR(VLOOKUP('AUP Library'!A63,#REF!,4,0),R63)="",R63,IFERROR(VLOOKUP('AUP Library'!A63,#REF!,4,0),R63)) -> 85.82 | O63: =IF(IFERROR(VLOOKUP('AUP Library'!A63,#REF!,5,0),R63)="",R63,IFERROR(VLOOKUP('AUP Library'!A63,#REF!,5,0),R63)) -> 85.82 | P63: =IF(IFERROR(VLOOKUP('AUP Library'!A63,#REF!,6,0),R63)="",R63,IFERROR(VLOOKUP('AUP Library'!A63,#REF!,6,0),R63)) -> 85.82 | Q63: =IF(IFERROR(VLOOKUP('AUP Library'!A63,#REF!,7,0),R63)="",R63,IFERROR(VLOOKUP('AUP Library'!A63,#REF!,7,0),R63)) -> 85.82 | R63: 85.82 | S63: =IFERROR(VLOOKUP('AUP Library'!A63,#REF!,4,0),R63) -> 85.82
A64: 411-03.05 | B64: ACS Mix (PG64-22) Thing Lift CS Asphalt | C64: SY | D64: 3.1 | E64: 3.1 | F64: 3.1 | G64: 3.1 | H64: 3.1 | I64: 3.1 | J64: 3.1 | K64: 3.1 | L64: 3.1 | M64: 3.1 | N64: =IF(IFERROR(VLOOKUP('AUP Library'!A64,#REF!,4,0),R64)="",R64,IFERROR(VLOOKUP('AUP Library'!A64,#REF!,4,0),R64)) -> 3.1 | O64: =IF(IFERROR(VLOOKUP('AUP Library'!A64,#REF!,5,0),R64)="",R64,IFERROR(VLOOKUP('AUP Library'!A64,#REF!,5,0),R64)) -> 3.1 | P64: =IF(IFERROR(VLOOKUP('AUP Library'!A64,#REF!,6,0),R64)="",R64,IFERROR(VLOOKUP('AUP Library'!A64,#REF!,6,0),R64)) -> 3.1 | Q64: =IF(IFERROR(VLOOKUP('AUP Library'!A64,#REF!,7,0),R64)="",R64,IFERROR(VLOOKUP('AUP Library'!A64,#REF!,7,0),R64)) -> 3.1 | R64: 3.1 | S64: =IFERROR(VLOOKUP('AUP Library'!A64,#REF!,4,0),R64) -> 3.1
A65: 411-03.07 | B65: ASC Mix (PG64-22) Thin Lift CS Asphalt | C65: TON | D65: 64.91 | E65: 64.91 | F65: 64.91 | G65: 64.91 | H65: 64.91 | I65: 64.91 | J65: 64.91 | K65: 64.91 | L65: 64.91 | M65: 64.91 | N65: =IF(IFERROR(VLOOKUP('AUP Library'!A65,#REF!,4,0),R65)="",R65,IFERROR(VLOOKUP('AUP Library'!A65,#REF!,4,0),R65)) -> 64.91 | O65: =IF(IFERROR(VLOOKUP('AUP Library'!A65,#REF!,5,0),R65)="",R65,IFERROR(VLOOKUP('AUP Library'!A65,#REF!,5,0),R65)) -> 64.91 | P65: =IF(IFERROR(VLOOKUP('AUP Library'!A65,#REF!,6,0),R65)="",R65,IFERROR(VLOOKUP('AUP Library'!A65,#REF!,6,0),R65)) -> 64.91 | Q65: =IF(IFERROR(VLOOKUP('AUP Library'!A65,#REF!,7,0),R65)="",R65,IFERROR(VLOOKUP('AUP Library'!A65,#REF!,7,0),R65)) -> 64.91 | R65: 64.91 | S65: =IFERROR(VLOOKUP('AUP Library'!A65,#REF!,4,0),R65) -> 64.91
A66: 411-03.08 | B66: ACS Mix (PG70-22) Thin Lift CS Asphalt | C66: TON | D66: 96.75 | E66: 96.75 | F66: 96.75 | G66: 96.75 | H66: 96.75 | I66: 96.75 | J66: 96.75 | K66: 96.75 | L66: 96.75 | M66: 96.75 | N66: =IF(IFERROR(VLOOKUP('AUP Library'!A66,#REF!,4,0),R66)="",R66,IFERROR(VLOOKUP('AUP Library'!A66,#REF!,4,0),R66)) -> 96.75 | O66: =IF(IFERROR(VLOOKUP('AUP Library'!A66,#REF!,5,0),R66)="",R66,IFERROR(VLOOKUP('AUP Library'!A66,#REF!,5,0),R66)) -> 96.75 | P66: =IF(IFERROR(VLOOKUP('AUP Library'!A66,#REF!,6,0),R66)="",R66,IFERROR(VLOOKUP('AUP Library'!A66,#REF!,6,0),R66)) -> 96.75 | Q66: =IF(IFERROR(VLOOKUP('AUP Library'!A66,#REF!,7,0),R66)="",R66,IFERROR(VLOOKUP('AUP Library'!A66,#REF!,7,0),R66)) -> 96.75 | R66: 96.75 | S66: =IFERROR(VLOOKUP('AUP Library'!A66,#REF!,4,0),R66) -> 96.75
A67: 411-03.09 | B67: ACS Mix (PG76-22) Thin Lift CS Asphalt | C67: TON | D67: 88.03 | E67: 88.03 | F67: 88.03 | G67: 88.03 | H67: 88.03 | I67: 88.03 | J67: 88.03 | K67: 88.03 | L67: 88.03 | M67: 88.03 | N67: =IF(IFERROR(VLOOKUP('AUP Library'!A67,#REF!,4,0),R67)="",R67,IFERROR(VLOOKUP('AUP Library'!A67,#REF!,4,0),R67)) -> 88.03 | O67: =IF(IFERROR(VLOOKUP('AUP Library'!A67,#REF!,5,0),R67)="",R67,IFERROR(VLOOKUP('AUP Library'!A67,#REF!,5,0),R67)) -> 88.03 | P67: =IF(IFERROR(VLOOKUP('AUP Library'!A67,#REF!,6,0),R67)="",R67,IFERROR(VLOOKUP('AUP Library'!A67,#REF!,6,0),R67)) -> 88.03 | Q67: =IF(IFERROR(VLOOKUP('AUP Library'!A67,#REF!,7,0),R67)="",R67,IFERROR(VLOOKUP('AUP Library'!A67,#REF!,7,0),R67)) -> 88.03 | R67: 88.03 | S67: =IFERROR(VLOOKUP('AUP Library'!A67,#REF!,4,0),R67) -> 88.03
A68: 411-03.10 | B68: ACS Mix (PG76-22) Grading D | C68: TON | D68: 72.44 | E68: 72.44 | F68: 72.44 | G68: 72.44 | H68: 72.44 | I68: 72.44 | J68: 72.44 | K68: 72.44 | L68: 72.44 | M68: 72.44 | N68: =IF(IFERROR(VLOOKUP('AUP Library'!A68,#REF!,4,0),R68)="",R68,IFERROR(VLOOKUP('AUP Library'!A68,#REF!,4,0),R68)) -> 72.44 | O68: =IF(IFERROR(VLOOKUP('AUP Library'!A68,#REF!,5,0),R68)="",R68,IFERROR(VLOOKUP('AUP Library'!A68,#REF!,5,0),R68)) -> 72.44 | P68: =IF(IFERROR(VLOOKUP('AUP Library'!A68,#REF!,6,0),R68)="",R68,IFERROR(VLOOKUP('AUP Library'!A68,#REF!,6,0),R68)) -> 72.44 | Q68: =IF(IFERROR(VLOOKUP('AUP Library'!A68,#REF!,7,0),R68)="",R68,IFERROR(VLOOKUP('AUP Library'!A68,#REF!,7,0),R68)) -> 72.44 | R68: 72.44 | S68: =IFERROR(VLOOKUP('AUP Library'!A68,#REF!,4,0),R68) -> 72.44
A69: 411-03.12 | B69: ACS Mix (PG64-22) Thin Lift D Asphalt | C69: TON | D69: 0.31 | E69: 0.31 | F69: 0.31 | G69: 0.31 | H69: 0.31 | I69: 0.31 | J69: 0.31 | K69: 0.31 | L69: 0.31 | M69: 0.31 | N69: =IF(IFERROR(VLOOKUP('AUP Library'!A69,#REF!,4,0),R69)="",R69,IFERROR(VLOOKUP('AUP Library'!A69,#REF!,4,0),R69)) -> 0.31 | O69: =IF(IFERROR(VLOOKUP('AUP Library'!A69,#REF!,5,0),R69)="",R69,IFERROR(VLOOKUP('AUP Library'!A69,#REF!,5,0),R69)) -> 0.31 | P69: =IF(IFERROR(VLOOKUP('AUP Library'!A69,#REF!,6,0),R69)="",R69,IFERROR(VLOOKUP('AUP Library'!A69,#REF!,6,0),R69)) -> 0.31 | Q69: =IF(IFERROR(VLOOKUP('AUP Library'!A69,#REF!,7,0),R69)="",R69,IFERROR(VLOOKUP('AUP Library'!A69,#REF!,7,0),R69)) -> 0.31 | R69: 0.31 | S69: =IFERROR(VLOOKUP('AUP Library'!A69,#REF!,4,0),R69) -> 0.31
A70: 411-03.13 | B70: ACS Mix (PG70-22) Thin Lift D Asphalt | C70: TON | D70: 82.15 | E70: 82.15 | F70: 82.15 | G70: 82.15 | H70: 82.15 | I70: 82.15 | J70: 82.15 | K70: 82.15 | L70: 82.15 | M70: 82.15 | N70: =IF(IFERROR(VLOOKUP('AUP Library'!A70,#REF!,4,0),R70)="",R70,IFERROR(VLOOKUP('AUP Library'!A70,#REF!,4,0),R70)) -> 82.15 | O70: =IF(IFERROR(VLOOKUP('AUP Library'!A70,#REF!,5,0),R70)="",R70,IFERROR(VLOOKUP('AUP Library'!A70,#REF!,5,0),R70)) -> 82.15 | P70: =IF(IFERROR(VLOOKUP('AUP Library'!A70,#REF!,6,0),R70)="",R70,IFERROR(VLOOKUP('AUP Library'!A70,#REF!,6,0),R70)) -> 82.15 | Q70: =IF(IFERROR(VLOOKUP('AUP Library'!A70,#REF!,7,0),R70)="",R70,IFERROR(VLOOKUP('AUP Library'!A70,#REF!,7,0),R70)) -> 82.15 | R70: 82.15 | S70: =IFERROR(VLOOKUP('AUP Library'!A70,#REF!,4,0),R70) -> 82.15
A71: 411-03.14 | B71: ACS Mix (PG76-22) Thin Lift D Asphalt | C71: TON | D71: 100.86 | E71: 100.86 | F71: 100.86 | G71: 100.86 | H71: 100.86 | I71: 100.86 | J71: 100.86 | K71: 100.86 | L71: 100.86 | M71: 100.86 | N71: =IF(IFERROR(VLOOKUP('AUP Library'!A71,#REF!,4,0),R71)="",R71,IFERROR(VLOOKUP('AUP Library'!A71,#REF!,4,0),R71)) -> 100.86 | O71: =IF(IFERROR(VLOOKUP('AUP Library'!A71,#REF!,5,0),R71)="",R71,IFERROR(VLOOKUP('AUP Library'!A71,#REF!,5,0),R71)) -> 100.86 | P71: =IF(IFERROR(VLOOKUP('AUP Library'!A71,#REF!,6,0),R71)="",R71,IFERROR(VLOOKUP('AUP Library'!A71,#REF!,6,0),R71)) -> 100.86 | Q71: =IF(IFERROR(VLOOKUP('AUP Library'!A71,#REF!,7,0),R71)="",R71,IFERROR(VLOOKUP('AUP Library'!A71,#REF!,7,0),R71)) -> 100.86 | R71: 100.86 | S71: =IFERROR(VLOOKUP('AUP Library'!A71,#REF!,4,0),R71) -> 100.86
A72: 411-03.15 | B72: ASP Cem(PG76-22) For OGFC Mix | C72: TON | D72: 935.84 | E72: 935.84 | F72: 935.84 | G72: 935.84 | H72: 935.84 | I72: 935.84 | J72: 935.84 | K72: 935.84 | L72: 935.84 | M72: 935.84 | N72: =IF(IFERROR(VLOOKUP('AUP Library'!A72,#REF!,4,0),R72)="",R72,IFERROR(VLOOKUP('AUP Library'!A72,#REF!,4,0),R72)) -> 935.84 | O72: =IF(IFERROR(VLOOKUP('AUP Library'!A72,#REF!,5,0),R72)="",R72,IFERROR(VLOOKUP('AUP Library'!A72,#REF!,5,0),R72)) -> 935.84 | P72: =IF(IFERROR(VLOOKUP('AUP Library'!A72,#REF!,6,0),R72)="",R72,IFERROR(VLOOKUP('AUP Library'!A72,#REF!,6,0),R72)) -> 935.84 | Q72: =IF(IFERROR(VLOOKUP('AUP Library'!A72,#REF!,7,0),R72)="",R72,IFERROR(VLOOKUP('AUP Library'!A72,#REF!,7,0),R72)) -> 935.84 | R72: 935.84 | S72: =IFERROR(VLOOKUP('AUP Library'!A72,#REF!,4,0),R72) -> 935.84
A73: 411-03.16 | B73: Aggregate for OGFC Mix | C73: TON | D73: 54.05 | E73: 54.05 | F73: 54.05 | G73: 54.05 | H73: 54.05 | I73: 54.05 | J73: 54.05 | K73: 54.05 | L73: 54.05 | M73: 54.05 | N73: =IF(IFERROR(VLOOKUP('AUP Library'!A73,#REF!,4,0),R73)="",R73,IFERROR(VLOOKUP('AUP Library'!A73,#REF!,4,0),R73)) -> 54.05 | O73: =IF(IFERROR(VLOOKUP('AUP Library'!A73,#REF!,5,0),R73)="",R73,IFERROR(VLOOKUP('AUP Library'!A73,#REF!,5,0),R73)) -> 54.05 | P73: =IF(IFERROR(VLOOKUP('AUP Library'!A73,#REF!,6,0),R73)="",R73,IFERROR(VLOOKUP('AUP Library'!A73,#REF!,6,0),R73)) -> 54.05 | Q73: =IF(IFERROR(VLOOKUP('AUP Library'!A73,#REF!,7,0),R73)="",R73,IFERROR(VLOOKUP('AUP Library'!A73,#REF!,7,0),R73)) -> 54.05 | R73: 54.05 | S73: =IFERROR(VLOOKUP('AUP Library'!A73,#REF!,4,0),R73) -> 54.05
A74: 411-04 | B74: Crack Sealant | C74: LB | D74: 1.1 | E74: 1.1 | F74: 1.1 | G74: 1.1 | H74: 1.1 | I74: 1.1 | J74: 1.1 | K74: 1.1 | L74: 1.1 | M74: 1.1 | N74: =IF(IFERROR(VLOOKUP('AUP Library'!A74,#REF!,4,0),R74)="",R74,IFERROR(VLOOKUP('AUP Library'!A74,#REF!,4,0),R74)) -> 1.1 | O74: =IF(IFERROR(VLOOKUP('AUP Library'!A74,#REF!,5,0),R74)="",R74,IFERROR(VLOOKUP('AUP Library'!A74,#REF!,5,0),R74)) -> 1.1 | P74: =IF(IFERROR(VLOOKUP('AUP Library'!A74,#REF!,6,0),R74)="",R74,IFERROR(VLOOKUP('AUP Library'!A74,#REF!,6,0),R74)) -> 1.1 | Q74: =IF(IFERROR(VLOOKUP('AUP Library'!A74,#REF!,7,0),R74)="",R74,IFERROR(VLOOKUP('AUP Library'!A74,#REF!,7,0),R74)) -> 1.1 | R74: 1.1 | S74: =IFERROR(VLOOKUP('AUP Library'!A74,#REF!,4,0),R74) -> 1.1
A75: 411-04.10 | B75: ACS Mix (PG82-22) Grading D | C75: TON | D75: 90 | E75: 90 | F75: 90 | G75: 90 | H75: 90 | I75: 90 | J75: 90 | K75: 90 | L75: 90 | M75: 90 | N75: =IF(IFERROR(VLOOKUP('AUP Library'!A75,#REF!,4,0),R75)="",R75,IFERROR(VLOOKUP('AUP Library'!A75,#REF!,4,0),R75)) -> 90 | O75: =IF(IFERROR(VLOOKUP('AUP Library'!A75,#REF!,5,0),R75)="",R75,IFERROR(VLOOKUP('AUP Library'!A75,#REF!,5,0),R75)) -> 90 | P75: =IF(IFERROR(VLOOKUP('AUP Library'!A75,#REF!,6,0),R75)="",R75,IFERROR(VLOOKUP('AUP Library'!A75,#REF!,6,0),R75)) -> 90 | Q75: =IF(IFERROR(VLOOKUP('AUP Library'!A75,#REF!,7,0),R75)="",R75,IFERROR(VLOOKUP('AUP Library'!A75,#REF!,7,0),R75)) -> 90 | R75: 90 | S75: =IFERROR(VLOOKUP('AUP Library'!A75,#REF!,4,0),R75) -> 90
A76: 414-03.01 | B76: Emulsified Asphalt for Micro-Surfacing | C76: TON | D76: 722.07 | E76: 722.07 | F76: 722.07 | G76: 722.07 | H76: 722.07 | I76: 722.07 | J76: 722.07 | K76: 722.07 | L76: 722.07 | M76: 722.07 | N76: =IF(IFERROR(VLOOKUP('AUP Library'!A76,#REF!,4,0),R76)="",R76,IFERROR(VLOOKUP('AUP Library'!A76,#REF!,4,0),R76)) -> 722.07 | O76: =IF(IFERROR(VLOOKUP('AUP Library'!A76,#REF!,5,0),R76)="",R76,IFERROR(VLOOKUP('AUP Library'!A76,#REF!,5,0),R76)) -> 722.07 | P76: =IF(IFERROR(VLOOKUP('AUP Library'!A76,#REF!,6,0),R76)="",R76,IFERROR(VLOOKUP('AUP Library'!A76,#REF!,6,0),R76)) -> 722.07 | Q76: =IF(IFERROR(VLOOKUP('AUP Library'!A76,#REF!,7,0),R76)="",R76,IFERROR(VLOOKUP('AUP Library'!A76,#REF!,7,0),R76)) -> 722.07 | R76: 722.07 | S76: =IFERROR(VLOOKUP('AUP Library'!A76,#REF!,4,0),R76) -> 722.07
A77: 414-03.02 | B77: Aggregate for Micro Surfacing | C77: TON | D77: 99.36 | E77: 99.36 | F77: 99.36 | G77: 99.36 | H77: 99.36 | I77: 99.36 | J77: 99.36 | K77: 99.36 | L77: 99.36 | M77: 99.36 | N77: =IF(IFERROR(VLOOKUP('AUP Library'!A77,#REF!,4,0),R77)="",R77,IFERROR(VLOOKUP('AUP Library'!A77,#REF!,4,0),R77)) -> 99.36 | O77: =IF(IFERROR(VLOOKUP('AUP Library'!A77,#REF!,5,0),R77)="",R77,IFERROR(VLOOKUP('AUP Library'!A77,#REF!,5,0),R77)) -> 99.36 | P77: =IF(IFERROR(VLOOKUP('AUP Library'!A77,#REF!,6,0),R77)="",R77,IFERROR(VLOOKUP('AUP Library'!A77,#REF!,6,0),R77)) -> 99.36 | Q77: =IF(IFERROR(VLOOKUP('AUP Library'!A77,#REF!,7,0),R77)="",R77,IFERROR(VLOOKUP('AUP Library'!A77,#REF!,7,0),R77)) -> 99.36 | R77: 99.36 | S77: =IFERROR(VLOOKUP('AUP Library'!A77,#REF!,4,0),R77) -> 99.36
A78: 414-03.03 | B78: Micro Surfacing | C78: SY | D78: 2.15 | E78: 2.15 | F78: 2.15 | G78: 2.15 | H78: 2.15 | I78: 2.15 | J78: 2.15 | K78: 2.15 | L78: 2.15 | M78: 2.15 | N78: =IF(IFERROR(VLOOKUP('AUP Library'!A78,#REF!,4,0),R78)="",R78,IFERROR(VLOOKUP('AUP Library'!A78,#REF!,4,0),R78)) -> 2.15 | O78: =IF(IFERROR(VLOOKUP('AUP Library'!A78,#REF!,5,0),R78)="",R78,IFERROR(VLOOKUP('AUP Library'!A78,#REF!,5,0),R78)) -> 2.15 | P78: =IF(IFERROR(VLOOKUP('AUP Library'!A78,#REF!,6,0),R78)="",R78,IFERROR(VLOOKUP('AUP Library'!A78,#REF!,6,0),R78)) -> 2.15 | Q78: =IF(IFERROR(VLOOKUP('AUP Library'!A78,#REF!,7,0),R78)="",R78,IFERROR(VLOOKUP('AUP Library'!A78,#REF!,7,0),R78)) -> 2.15 | R78: 2.15 | S78: =IFERROR(VLOOKUP('AUP Library'!A78,#REF!,4,0),R78) -> 2.15
A81: Concrete Roads
A82: 303-01 | B82: Mineral Aggregate, Type A Base, Grading D | C82: TON | D82: 19 | E82: 19 | F82: 19 | G82: 19 | H82: 19 | I82: 19 | J82: 19 | K82: 19 | L82: 19 | M82: 19 | N82: =IF(IFERROR(VLOOKUP('AUP Library'!A82,#REF!,4,0),R82)="",R82,IFERROR(VLOOKUP('AUP Library'!A82,#REF!,4,0),R82)) -> 19 | O82: =IF(IFERROR(VLOOKUP('AUP Library'!A82,#REF!,5,0),R82)="",R82,IFERROR(VLOOKUP('AUP Library'!A82,#REF!,5,0),R82)) -> 19 | P82: =IF(IFERROR(VLOOKUP('AUP Library'!A82,#REF!,6,0),R82)="",R82,IFERROR(VLOOKUP('AUP Library'!A82,#REF!,6,0),R82)) -> 19 | Q82: =IF(IFERROR(VLOOKUP('AUP Library'!A82,#REF!,7,0),R82)="",R82,IFERROR(VLOOKUP('AUP Library'!A82,#REF!,7,0),R82)) -> 19 | R82: 19 | S82: =IFERROR(VLOOKUP('AUP Library'!A82,#REF!,4,0),R82) -> 19
A83: 313-03 | B83: Treated Permeable Base | C83: SY | D83: 9.4 | E83: 9.33 | F83: 9.63 | G83: 11.58 | H83: 11.58 | I83: 14.47 | J83: 16.47 | K83: 12.88 | L83: 15.82 | M83: 18.31 | N83: =IF(IFERROR(VLOOKUP('AUP Library'!A83,#REF!,4,0),R83)="",R83,IFERROR(VLOOKUP('AUP Library'!A83,#REF!,4,0),R83)) -> 17.88 | O83: =IF(IFERROR(VLOOKUP('AUP Library'!A83,#REF!,5,0),R83)="",R83,IFERROR(VLOOKUP('AUP Library'!A83,#REF!,5,0),R83)) -> 17.88 | P83: =IF(IFERROR(VLOOKUP('AUP Library'!A83,#REF!,6,0),R83)="",R83,IFERROR(VLOOKUP('AUP Library'!A83,#REF!,6,0),R83)) -> 17.88 | Q83: =IF(IFERROR(VLOOKUP('AUP Library'!A83,#REF!,7,0),R83)="",R83,IFERROR(VLOOKUP('AUP Library'!A83,#REF!,7,0),R83)) -> 17.88 | R83: 17.88 | S83: =IFERROR(VLOOKUP('AUP Library'!A83,#REF!,4,0),R83) -> 17.88
A84: 501-01.01 | B84: Portland Cement Concrete Pvmt 8" | C84: SY | D84: 68.86 | E84: 68.86 | F84: 68.86 | G84: 68.86 | H84: 68.86 | I84: 68.86 | J84: 68.86 | K84: 68.86 | L84: 68.86 | M84: 68.86 | N84: =IF(IFERROR(VLOOKUP('AUP Library'!A84,#REF!,4,0),R84)="",R84,IFERROR(VLOOKUP('AUP Library'!A84,#REF!,4,0),R84)) -> 68.86 | O84: =IF(IFERROR(VLOOKUP('AUP Library'!A84,#REF!,5,0),R84)="",R84,IFERROR(VLOOKUP('AUP Library'!A84,#REF!,5,0),R84)) -> 68.86 | P84: =IF(IFERROR(VLOOKUP('AUP Library'!A84,#REF!,6,0),R84)="",R84,IFERROR(VLOOKUP('AUP Library'!A84,#REF!,6,0),R84)) -> 68.86 | Q84: =IF(IFERROR(VLOOKUP('AUP Library'!A84,#REF!,7,0),R84)="",R84,IFERROR(VLOOKUP('AUP Library'!A84,#REF!,7,0),R84)) -> 68.86 | R84: 68.86 | S84: =IFERROR(VLOOKUP('AUP Library'!A84,#REF!,4,0),R84) -> 68.86
A85: 501-01.02 | B85: Portland Cement Concrete Pvmt 9" | C85: SY | D85: 85 | E85: 85 | F85: 85 | G85: 85 | H85: 85 | I85: 85 | J85: 85 | K85: 85 | L85: 85 | M85: 85 | N85: =IF(IFERROR(VLOOKUP('AUP Library'!A85,#REF!,4,0),R85)="",R85,IFERROR(VLOOKUP('AUP Library'!A85,#REF!,4,0),R85)) -> 85 | O85: =IF(IFERROR(VLOOKUP('AUP Library'!A85,#REF!,5,0),R85)="",R85,IFERROR(VLOOKUP('AUP Library'!A85,#REF!,5,0),R85)) -> 85 | P85: =IF(IFERROR(VLOOKUP('AUP Library'!A85,#REF!,6,0),R85)="",R85,IFERROR(VLOOKUP('AUP Library'!A85,#REF!,6,0),R85)) -> 85 | Q85: =IF(IFERROR(VLOOKUP('AUP Library'!A85,#REF!,7,0),R85)="",R85,IFERROR(VLOOKUP('AUP Library'!A85,#REF!,7,0),R85)) -> 85 | R85: 85 | S85: =IFERROR(VLOOKUP('AUP Library'!A85,#REF!,4,0),R85) -> 85
A86: 501-01.03 | B86: Portland Cement Concrete Pvmt 10" | C86: SY | D86: 46.75 | E86: 45.24 | F86: 41.91 | G86: 46.36 | H86: 46.36 | I86: 45.55 | J86: 46.82 | K86: 53.43 | L86: 56.13 | M86: 61.06 | N86: =IF(IFERROR(VLOOKUP('AUP Library'!A86,#REF!,4,0),R86)="",R86,IFERROR(VLOOKUP('AUP Library'!A86,#REF!,4,0),R86)) -> 38.53 | O86: =IF(IFERROR(VLOOKUP('AUP Library'!A86,#REF!,5,0),R86)="",R86,IFERROR(VLOOKUP('AUP Library'!A86,#REF!,5,0),R86)) -> 38.53 | P86: =IF(IFERROR(VLOOKUP('AUP Library'!A86,#REF!,6,0),R86)="",R86,IFERROR(VLOOKUP('AUP Library'!A86,#REF!,6,0),R86)) -> 38.53 | Q86: =IF(IFERROR(VLOOKUP('AUP Library'!A86,#REF!,7,0),R86)="",R86,IFERROR(VLOOKUP('AUP Library'!A86,#REF!,7,0),R86)) -> 38.53 | R86: 38.53 | S86: =IFERROR(VLOOKUP('AUP Library'!A86,#REF!,4,0),R86) -> 38.53
A87: 501-01.04 | B87: Portland Cement Concrete Pvmt 11" | C87: SY | D87: 56.82 | E87: 56.82 | F87: 56.82 | G87: 56.82 | H87: 56.82 | I87: 56.82 | J87: 56.82 | K87: 56.82 | L87: 56.82 | M87: 56.82 | N87: =IF(IFERROR(VLOOKUP('AUP Library'!A87,#REF!,4,0),R87)="",R87,IFERROR(VLOOKUP('AUP Library'!A87,#REF!,4,0),R87)) -> 56.82 | O87: =IF(IFERROR(VLOOKUP('AUP Library'!A87,#REF!,5,0),R87)="",R87,IFERROR(VLOOKUP('AUP Library'!A87,#REF!,5,0),R87)) -> 56.82 | P87: =IF(IFERROR(VLOOKUP('AUP Library'!A87,#REF!,6,0),R87)="",R87,IFERROR(VLOOKUP('AUP Library'!A87,#REF!,6,0),R87)) -> 56.82 | Q87: =IF(IFERROR(VLOOKUP('AUP Library'!A87,#REF!,7,0),R87)="",R87,IFERROR(VLOOKUP('AUP Library'!A87,#REF!,7,0),R87)) -> 56.82 | R87: 56.82 | S87: =IFERROR(VLOOKUP('AUP Library'!A87,#REF!,4,0),R87) -> 56.82
A88: 502-01 | B88: CLEANING AND SEALING JOINTS | C88: LF | D88: 3.76 | E88: 3.76 | F88: 3.76 | G88: 3.76 | H88: 3.76 | I88: 3.76 | J88: 3.76 | K88: 3.76 | L88: 3.76 | M88: 3.76 | N88: =IF(IFERROR(VLOOKUP('AUP Library'!A88,#REF!,4,0),R88)="",R88,IFERROR(VLOOKUP('AUP Library'!A88,#REF!,4,0),R88)) -> 3.76 | O88: =IF(IFERROR(VLOOKUP('AUP Library'!A88,#REF!,5,0),R88)="",R88,IFERROR(VLOOKUP('AUP Library'!A88,#REF!,5,0),R88)) -> 3.76 | P88: =IF(IFERROR(VLOOKUP('AUP Library'!A88,#REF!,6,0),R88)="",R88,IFERROR(VLOOKUP('AUP Library'!A88,#REF!,6,0),R88)) -> 3.76 | Q88: =IF(IFERROR(VLOOKUP('AUP Library'!A88,#REF!,7,0),R88)="",R88,IFERROR(VLOOKUP('AUP Library'!A88,#REF!,7,0),R88)) -> 3.76 | R88: 3.76 | S88: =IFERROR(VLOOKUP('AUP Library'!A88,#REF!,4,0),R88) -> 3.76
A89: 502-03.01 | B89: CEMENT GROUTING | C89: CF | D89: 11.58 | E89: 11.58 | F89: 11.58 | G89: 11.58 | H89: 11.58 | I89: 11.58 | J89: 11.58 | K89: 11.58 | L89: 11.58 | M89: 11.58 | N89: =IF(IFERROR(VLOOKUP('AUP Library'!A89,#REF!,4,0),R89)="",R89,IFERROR(VLOOKUP('AUP Library'!A89,#REF!,4,0),R89)) -> 11.58 | O89: =IF(IFERROR(VLOOKUP('AUP Library'!A89,#REF!,5,0),R89)="",R89,IFERROR(VLOOKUP('AUP Library'!A89,#REF!,5,0),R89)) -> 11.58 | P89: =IF(IFERROR(VLOOKUP('AUP Library'!A89,#REF!,6,0),R89)="",R89,IFERROR(VLOOKUP('AUP Library'!A89,#REF!,6,0),R89)) -> 11.58 | Q89: =IF(IFERROR(VLOOKUP('AUP Library'!A89,#REF!,7,0),R89)="",R89,IFERROR(VLOOKUP('AUP Library'!A89,#REF!,7,0),R89)) -> 11.58 | R89: 11.58 | S89: =IFERROR(VLOOKUP('AUP Library'!A89,#REF!,4,0),R89) -> 11.58
A90: 502-03.10 | B90: FULL DEPTH P.C.C. PAVEMENT REPAIR | C90: SY | D90: 340 | E90: 340 | F90: 340 | G90: 340 | H90: 340 | I90: 340 | J90: 340 | K90: 340 | L90: 340 | M90: 340 | N90: =IF(IFERROR(VLOOKUP('AUP Library'!A90,#REF!,4,0),R90)="",R90,IFERROR(VLOOKUP('AUP Library'!A90,#REF!,4,0),R90)) -> 340 | O90: =IF(IFERROR(VLOOKUP('AUP Library'!A90,#REF!,5,0),R90)="",R90,IFERROR(VLOOKUP('AUP Library'!A90,#REF!,5,0),R90)) -> 340 | P90: =IF(IFERROR(VLOOKUP('AUP Library'!A90,#REF!,6,0),R90)="",R90,IFERROR(VLOOKUP('AUP Library'!A90,#REF!,6,0),R90)) -> 340 | Q90: =IF(IFERROR(VLOOKUP('AUP Library'!A90,#REF!,7,0),R90)="",R90,IFERROR(VLOOKUP('AUP Library'!A90,#REF!,7,0),R90)) -> 340 | R90: 340 | S90: =IFERROR(VLOOKUP('AUP Library'!A90,#REF!,4,0),R90) -> 340
A91: 502-03.13 | B91: CONCRETE PAVEMENT REMOVAL | C91: SY | D91: 7 | E91: 7 | F91: 7 | G91: 7 | H91: 7 | I91: 7 | J91: 7 | K91: 7 | L91: 7 | M91: 7 | N91: =IF(IFERROR(VLOOKUP('AUP Library'!A91,#REF!,4,0),R91)="",R91,IFERROR(VLOOKUP('AUP Library'!A91,#REF!,4,0),R91)) -> 7 | O91: =IF(IFERROR(VLOOKUP('AUP Library'!A91,#REF!,5,0),R91)="",R91,IFERROR(VLOOKUP('AUP Library'!A91,#REF!,5,0),R91)) -> 7 | P91: =IF(IFERROR(VLOOKUP('AUP Library'!A91,#REF!,6,0),R91)="",R91,IFERROR(VLOOKUP('AUP Library'!A91,#REF!,6,0),R91)) -> 7 | Q91: =IF(IFERROR(VLOOKUP('AUP Library'!A91,#REF!,7,0),R91)="",R91,IFERROR(VLOOKUP('AUP Library'!A91,#REF!,7,0),R91)) -> 7 | R91: 7 | S91: =IFERROR(VLOOKUP('AUP Library'!A91,#REF!,4,0),R91) -> 7
A92: 502-04.01 | B92: SAWING CONCRETE PAVEMENT (FULL DEPTH) | C92: LF | D92: 6.4 | E92: 6.4 | F92: 6.4 | G92: 6.4 | H92: 6.4 | I92: 6.4 | J92: 6.4 | K92: 6.4 | L92: 6.4 | M92: 6.4 | N92: =IF(IFERROR(VLOOKUP('AUP Library'!A92,#REF!,4,0),R92)="",R92,IFERROR(VLOOKUP('AUP Library'!A92,#REF!,4,0),R92)) -> 6.4 | O92: =IF(IFERROR(VLOOKUP('AUP Library'!A92,#REF!,5,0),R92)="",R92,IFERROR(VLOOKUP('AUP Library'!A92,#REF!,5,0),R92)) -> 6.4 | P92: =IF(IFERROR(VLOOKUP('AUP Library'!A92,#REF!,6,0),R92)="",R92,IFERROR(VLOOKUP('AUP Library'!A92,#REF!,6,0),R92)) -> 6.4 | Q92: =IF(IFERROR(VLOOKUP('AUP Library'!A92,#REF!,7,0),R92)="",R92,IFERROR(VLOOKUP('AUP Library'!A92,#REF!,7,0),R92)) -> 6.4 | R92: 6.4 | S92: =IFERROR(VLOOKUP('AUP Library'!A92,#REF!,4,0),R92) -> 6.4
A93: 502-04.02 | B93: LOAD TRANSFER DOWELS | C93: EACH | D93: 9.63 | E93: 9.63 | F93: 9.63 | G93: 9.63 | H93: 9.63 | I93: 9.63 | J93: 9.63 | K93: 9.63 | L93: 9.63 | M93: 9.63 | N93: =IF(IFERROR(VLOOKUP('AUP Library'!A93,#REF!,4,0),R93)="",R93,IFERROR(VLOOKUP('AUP Library'!A93,#REF!,4,0),R93)) -> 9.63 | O93: =IF(IFERROR(VLOOKUP('AUP Library'!A93,#REF!,5,0),R93)="",R93,IFERROR(VLOOKUP('AUP Library'!A93,#REF!,5,0),R93)) -> 9.63 | P93: =IF(IFERROR(VLOOKUP('AUP Library'!A93,#REF!,6,0),R93)="",R93,IFERROR(VLOOKUP('AUP Library'!A93,#REF!,6,0),R93)) -> 9.63 | Q93: =IF(IFERROR(VLOOKUP('AUP Library'!A93,#REF!,7,0),R93)="",R93,IFERROR(VLOOKUP('AUP Library'!A93,#REF!,7,0),R93)) -> 9.63 | R93: 9.63 | S93: =IFERROR(VLOOKUP('AUP Library'!A93,#REF!,4,0),R93) -> 9.63
A94: 502-04.03 | B94: TRANSVERSE TIE-BARS | C94: EACH | D94: 8.67 | E94: 8.67 | F94: 8.67 | G94: 8.67 | H94: 8.67 | I94: 8.67 | J94: 8.67 | K94: 8.67 | L94: 8.67 | M94: 8.67 | N94: =IF(IFERROR(VLOOKUP('AUP Library'!A94,#REF!,4,0),R94)="",R94,IFERROR(VLOOKUP('AUP Library'!A94,#REF!,4,0),R94)) -> 8.67 | O94: =IF(IFERROR(VLOOKUP('AUP Library'!A94,#REF!,5,0),R94)="",R94,IFERROR(VLOOKUP('AUP Library'!A94,#REF!,5,0),R94)) -> 8.67 | P94: =IF(IFERROR(VLOOKUP('AUP Library'!A94,#REF!,6,0),R94)="",R94,IFERROR(VLOOKUP('AUP Library'!A94,#REF!,6,0),R94)) -> 8.67 | Q94: =IF(IFERROR(VLOOKUP('AUP Library'!A94,#REF!,7,0),R94)="",R94,IFERROR(VLOOKUP('AUP Library'!A94,#REF!,7,0),R94)) -> 8.67 | R94: 8.67 | S94: =IFERROR(VLOOKUP('AUP Library'!A94,#REF!,4,0),R94) -> 8.67
A95: 502-07 | B95: SPALL REPAIR | C95: SY | D95: 115 | E95: 115 | F95: 115 | G95: 115 | H95: 115 | I95: 115 | J95: 115 | K95: 115 | L95: 115 | M95: 115 | N95: =IF(IFERROR(VLOOKUP('AUP Library'!A95,#REF!,4,0),R95)="",R95,IFERROR(VLOOKUP('AUP Library'!A95,#REF!,4,0),R95)) -> 115 | O95: =IF(IFERROR(VLOOKUP('AUP Library'!A95,#REF!,5,0),R95)="",R95,IFERROR(VLOOKUP('AUP Library'!A95,#REF!,5,0),R95)) -> 115 | P95: =IF(IFERROR(VLOOKUP('AUP Library'!A95,#REF!,6,0),R95)="",R95,IFERROR(VLOOKUP('AUP Library'!A95,#REF!,6,0),R95)) -> 115 | Q95: =IF(IFERROR(VLOOKUP('AUP Library'!A95,#REF!,7,0),R95)="",R95,IFERROR(VLOOKUP('AUP Library'!A95,#REF!,7,0),R95)) -> 115 | R95: 115 | S95: =IFERROR(VLOOKUP('AUP Library'!A95,#REF!,4,0),R95) -> 115
A96: 502-08.01 | B96: RESEALING JOINTS (HOT POURED ELASTIC) | C96: LF | D96: 1.42 | E96: 1.42 | F96: 1.42 | G96: 1.42 | H96: 1.42 | I96: 1.42 | J96: 1.42 | K96: 1.42 | L96: 1.42 | M96: 1.42 | N96: =IF(IFERROR(VLOOKUP('AUP Library'!A96,#REF!,4,0),R96)="",R96,IFERROR(VLOOKUP('AUP Library'!A96,#REF!,4,0),R96)) -> 1.42 | O96: =IF(IFERROR(VLOOKUP('AUP Library'!A96,#REF!,5,0),R96)="",R96,IFERROR(VLOOKUP('AUP Library'!A96,#REF!,5,0),R96)) -> 1.42 | P96: =IF(IFERROR(VLOOKUP('AUP Library'!A96,#REF!,6,0),R96)="",R96,IFERROR(VLOOKUP('AUP Library'!A96,#REF!,6,0),R96)) -> 1.42 | Q96: =IF(IFERROR(VLOOKUP('AUP Library'!A96,#REF!,7,0),R96)="",R96,IFERROR(VLOOKUP('AUP Library'!A96,#REF!,7,0),R96)) -> 1.42 | R96: 1.42 | S96: =IFERROR(VLOOKUP('AUP Library'!A96,#REF!,4,0),R96) -> 1.42
A97: 502-08.02 | B97: RESEALING JOINTS (SILICONE SEALANT) | C97: LF | D97: 1.73 | E97: 1.73 | F97: 1.73 | G97: 1.73 | H97: 1.73 | I97: 1.73 | J97: 1.73 | K97: 1.73 | L97: 1.73 | M97: 1.73 | N97: =IF(IFERROR(VLOOKUP('AUP Library'!A97,#REF!,4,0),R97)="",R97,IFERROR(VLOOKUP('AUP Library'!A97,#REF!,4,0),R97)) -> 1.73 | O97: =IF(IFERROR(VLOOKUP('AUP Library'!A97,#REF!,5,0),R97)="",R97,IFERROR(VLOOKUP('AUP Library'!A97,#REF!,5,0),R97)) -> 1.73 | P97: =IF(IFERROR(VLOOKUP('AUP Library'!A97,#REF!,6,0),R97)="",R97,IFERROR(VLOOKUP('AUP Library'!A97,#REF!,6,0),R97)) -> 1.73 | Q97: =IF(IFERROR(VLOOKUP('AUP Library'!A97,#REF!,7,0),R97)="",R97,IFERROR(VLOOKUP('AUP Library'!A97,#REF!,7,0),R97)) -> 1.73 | R97: 1.73 | S97: =IFERROR(VLOOKUP('AUP Library'!A97,#REF!,4,0),R97) -> 1.73
A98: 502-08.03 | B98: SEALING SHOULDER JOINTS | C98: LF | D98: 1.36 | E98: 1.36 | F98: 1.36 | G98: 1.36 | H98: 1.36 | I98: 1.36 | J98: 1.36 | K98: 1.36 | L98: 1.36 | M98: 1.36 | N98: =IF(IFERROR(VLOOKUP('AUP Library'!A98,#REF!,4,0),R98)="",R98,IFERROR(VLOOKUP('AUP Library'!A98,#REF!,4,0),R98)) -> 1.36 | O98: =IF(IFERROR(VLOOKUP('AUP Library'!A98,#REF!,5,0),R98)="",R98,IFERROR(VLOOKUP('AUP Library'!A98,#REF!,5,0),R98)) -> 1.36 | P98: =IF(IFERROR(VLOOKUP('AUP Library'!A98,#REF!,6,0),R98)="",R98,IFERROR(VLOOKUP('AUP Library'!A98,#REF!,6,0),R98)) -> 1.36 | Q98: =IF(IFERROR(VLOOKUP('AUP Library'!A98,#REF!,7,0),R98)="",R98,IFERROR(VLOOKUP('AUP Library'!A98,#REF!,7,0),R98)) -> 1.36 | R98: 1.36 | S98: =IFERROR(VLOOKUP('AUP Library'!A98,#REF!,4,0),R98) -> 1.36
A99: 502-08.04 | B99: SEALING RANDOM CRCK (HOT POURED ELASTIC) | C99: LF | D99: 1.8 | E99: 1.8 | F99: 1.8 | G99: 1.8 | H99: 1.8 | I99: 1.8 | J99: 1.8 | K99: 1.8 | L99: 1.8 | M99: 1.8 | N99: =IF(IFERROR(VLOOKUP('AUP Library'!A99,#REF!,4,0),R99)="",R99,IFERROR(VLOOKUP('AUP Library'!A99,#REF!,4,0),R99)) -> 1.8 | O99: =IF(IFERROR(VLOOKUP('AUP Library'!A99,#REF!,5,0),R99)="",R99,IFERROR(VLOOKUP('AUP Library'!A99,#REF!,5,0),R99)) -> 1.8 | P99: =IF(IFERROR(VLOOKUP('AUP Library'!A99,#REF!,6,0),R99)="",R99,IFERROR(VLOOKUP('AUP Library'!A99,#REF!,6,0),R99)) -> 1.8 | Q99: =IF(IFERROR(VLOOKUP('AUP Library'!A99,#REF!,7,0),R99)="",R99,IFERROR(VLOOKUP('AUP Library'!A99,#REF!,7,0),R99)) -> 1.8 | R99: 1.8 | S99: =IFERROR(VLOOKUP('AUP Library'!A99,#REF!,4,0),R99) -> 1.8
A100: 502-08.07 | B100: SEALING RANDOM CRACKS (SILICONE SEALANT) | C100: LF | D100: 3.64 | E100: 3.64 | F100: 3.64 | G100: 3.64 | H100: 3.64 | I100: 3.64 | J100: 3.64 | K100: 3.64 | L100: 3.64 | M100: 3.64 | N100: =IF(IFERROR(VLOOKUP('AUP Library'!A100,#REF!,4,0),R100)="",R100,IFERROR(VLOOKUP('AUP Library'!A100,#REF!,4,0),R100)) -> 3.64 | O100: =IF(IFERROR(VLOOKUP('AUP Library'!A100,#REF!,5,0),R100)="",R100,IFERROR(VLOOKUP('AUP Library'!A100,#REF!,5,0),R100)) -> 3.64 | P100: =IF(IFERROR(VLOOKUP('AUP Library'!A100,#REF!,6,0),R100)="",R100,IFERROR(VLOOKUP('AUP Library'!A100,#REF!,6,0),R100)) -> 3.64 | Q100: =IF(IFERROR(VLOOKUP('AUP Library'!A100,#REF!,7,0),R100)="",R100,IFERROR(VLOOKUP('AUP Library'!A100,#REF!,7,0),R100)) -> 3.64 | R100: 3.64 | S100: =IFERROR(VLOOKUP('AUP Library'!A100,#REF!,4,0),R100) -> 3.64
A101: 502-08.10 | B101: SAWING & RESEAL JOINTS (SILICONE SLNT) | C101: LF | D101: 1.8 | E101: 1.8 | F101: 1.8 | G101: 1.8 | H101: 1.8 | I101: 1.8 | J101: 1.8 | K101: 1.8 | L101: 1.8 | M101: 1.8 | N101: =IF(IFERROR(VLOOKUP('AUP Library'!A101,#REF!,4,0),R101)="",R101,IFERROR(VLOOKUP('AUP Library'!A101,#REF!,4,0),R101)) -> 1.8 | O101: =IF(IFERROR(VLOOKUP('AUP Library'!A101,#REF!,5,0),R101)="",R101,IFERROR(VLOOKUP('AUP Library'!A101,#REF!,5,0),R101)) -> 1.8 | P101: =IF(IFERROR(VLOOKUP('AUP Library'!A101,#REF!,6,0),R101)="",R101,IFERROR(VLOOKUP('AUP Library'!A101,#REF!,6,0),R101)) -> 1.8 | Q101: =IF(IFERROR(VLOOKUP('AUP Library'!A101,#REF!,7,0),R101)="",R101,IFERROR(VLOOKUP('AUP Library'!A101,#REF!,7,0),R101)) -> 1.8 | R101: 1.8 | S101: =IFERROR(VLOOKUP('AUP Library'!A101,#REF!,4,0),R101) -> 1.8
A102: 502-08.23 | B102: CLEANING AND RESEALING JOINTS AND CRACKS | C102: LF | D102: 2.25 | E102: 2.25 | F102: 2.25 | G102: 2.25 | H102: 2.25 | I102: 2.25 | J102: 2.25 | K102: 2.25 | L102: 2.25 | M102: 2.25 | N102: =IF(IFERROR(VLOOKUP('AUP Library'!A102,#REF!,4,0),R102)="",R102,IFERROR(VLOOKUP('AUP Library'!A102,#REF!,4,0),R102)) -> 2.25 | O102: =IF(IFERROR(VLOOKUP('AUP Library'!A102,#REF!,5,0),R102)="",R102,IFERROR(VLOOKUP('AUP Library'!A102,#REF!,5,0),R102)) -> 2.25 | P102: =IF(IFERROR(VLOOKUP('AUP Library'!A102,#REF!,6,0),R102)="",R102,IFERROR(VLOOKUP('AUP Library'!A102,#REF!,6,0),R102)) -> 2.25 | Q102: =IF(IFERROR(VLOOKUP('AUP Library'!A102,#REF!,7,0),R102)="",R102,IFERROR(VLOOKUP('AUP Library'!A102,#REF!,7,0),R102)) -> 2.25 | R102: 2.25 | S102: =IFERROR(VLOOKUP('AUP Library'!A102,#REF!,4,0),R102) -> 2.25
A103: 503-01 | B103: GRINDING CONCRETE PAVEMENT | C103: SY | D103: 1.94 | E103: 1.94 | F103: 1.94 | G103: 1.94 | H103: 1.94 | I103: 1.94 | J103: 1.94 | K103: 1.94 | L103: 1.94 | M103: 1.94 | N103: =IF(IFERROR(VLOOKUP('AUP Library'!A103,#REF!,4,0),R103)="",R103,IFERROR(VLOOKUP('AUP Library'!A103,#REF!,4,0),R103)) -> 1.94 | O103: =IF(IFERROR(VLOOKUP('AUP Library'!A103,#REF!,5,0),R103)="",R103,IFERROR(VLOOKUP('AUP Library'!A103,#REF!,5,0),R103)) -> 1.94 | P103: =IF(IFERROR(VLOOKUP('AUP Library'!A103,#REF!,6,0),R103)="",R103,IFERROR(VLOOKUP('AUP Library'!A103,#REF!,6,0),R103)) -> 1.94 | Q103: =IF(IFERROR(VLOOKUP('AUP Library'!A103,#REF!,7,0),R103)="",R103,IFERROR(VLOOKUP('AUP Library'!A103,#REF!,7,0),R103)) -> 1.94 | R103: 1.94 | S103: =IFERROR(VLOOKUP('AUP Library'!A103,#REF!,4,0),R103) -> 1.94
A104: 503-01.01 | B104: MILLING CONCRETE PAVEMENT | C104: SY | D104: 1.94 | E104: 1.94 | F104: 1.94 | G104: 1.94 | H104: 1.94 | I104: 1.94 | J104: 1.94 | K104: 1.94 | L104: 1.94 | M104: 1.94 | N104: =IF(IFERROR(VLOOKUP('AUP Library'!A104,#REF!,4,0),R104)="",R104,IFERROR(VLOOKUP('AUP Library'!A104,#REF!,4,0),R104)) -> 1.94 | O104: =IF(IFERROR(VLOOKUP('AUP Library'!A104,#REF!,5,0),R104)="",R104,IFERROR(VLOOKUP('AUP Library'!A104,#REF!,5,0),R104)) -> 1.94 | P104: =IF(IFERROR(VLOOKUP('AUP Library'!A104,#REF!,6,0),R104)="",R104,IFERROR(VLOOKUP('AUP Library'!A104,#REF!,6,0),R104)) -> 1.94 | Q104: =IF(IFERROR(VLOOKUP('AUP Library'!A104,#REF!,7,0),R104)="",R104,IFERROR(VLOOKUP('AUP Library'!A104,#REF!,7,0),R104)) -> 1.94 | R104: 1.94 | S104: =IFERROR(VLOOKUP('AUP Library'!A104,#REF!,4,0),R104) -> 1.94
A105: 503-60 | B105: RETROFIT DOWEL BAR | C105: EACH | D105: 45.24 | E105: 45.24 | F105: 45.24 | G105: 45.24 | H105: 45.24 | I105: 45.24 | J105: 45.24 | K105: 45.24 | L105: 45.24 | M105: 45.24 | N105: =IF(IFERROR(VLOOKUP('AUP Library'!A105,#REF!,4,0),R105)="",R105,IFERROR(VLOOKUP('AUP Library'!A105,#REF!,4,0),R105)) -> 45.24 | O105: =IF(IFERROR(VLOOKUP('AUP Library'!A105,#REF!,5,0),R105)="",R105,IFERROR(VLOOKUP('AUP Library'!A105,#REF!,5,0),R105)) -> 45.24 | P105: =IF(IFERROR(VLOOKUP('AUP Library'!A105,#REF!,6,0),R105)="",R105,IFERROR(VLOOKUP('AUP Library'!A105,#REF!,6,0),R105)) -> 45.24 | Q105: =IF(IFERROR(VLOOKUP('AUP Library'!A105,#REF!,7,0),R105)="",R105,IFERROR(VLOOKUP('AUP Library'!A105,#REF!,7,0),R105)) -> 45.24 | R105: 45.24 | S105: =IFERROR(VLOOKUP('AUP Library'!A105,#REF!,4,0),R105) -> 45.24
A106: 504-01 | B106: CRACKING & SEATING CONCRETE PAVEMENT | C106: SY | D106: 1.9 | E106: 1.9 | F106: 1.9 | G106: 1.9 | H106: 1.9 | I106: 1.9 | J106: 1.9 | K106: 1.9 | L106: 1.9 | M106: 1.9 | N106: =IF(IFERROR(VLOOKUP('AUP Library'!A106,#REF!,4,0),R106)="",R106,IFERROR(VLOOKUP('AUP Library'!A106,#REF!,4,0),R106)) -> 1.9 | O106: =IF(IFERROR(VLOOKUP('AUP Library'!A106,#REF!,5,0),R106)="",R106,IFERROR(VLOOKUP('AUP Library'!A106,#REF!,5,0),R106)) -> 1.9 | P106: =IF(IFERROR(VLOOKUP('AUP Library'!A106,#REF!,6,0),R106)="",R106,IFERROR(VLOOKUP('AUP Library'!A106,#REF!,6,0),R106)) -> 1.9 | Q106: =IF(IFERROR(VLOOKUP('AUP Library'!A106,#REF!,7,0),R106)="",R106,IFERROR(VLOOKUP('AUP Library'!A106,#REF!,7,0),R106)) -> 1.9 | R106: 1.9 | S106: =IFERROR(VLOOKUP('AUP Library'!A106,#REF!,4,0),R106) -> 1.9
A107: 604-01.01 | B107: Class A Concrete (Roadway) | C107: CY | D107: 450.86 | E107: 450.86 | F107: 450.86 | G107: 450.86 | H107: 450.86 | I107: 450.86 | J107: 450.86 | K107: 450.86 | L107: 450.86 | M107: 450.86 | N107: =IF(IFERROR(VLOOKUP('AUP Library'!A107,#REF!,4,0),R107)="",R107,IFERROR(VLOOKUP('AUP Library'!A107,#REF!,4,0),R107)) -> 450.86 | O107: =IF(IFERROR(VLOOKUP('AUP Library'!A107,#REF!,5,0),R107)="",R107,IFERROR(VLOOKUP('AUP Library'!A107,#REF!,5,0),R107)) -> 450.86 | P107: =IF(IFERROR(VLOOKUP('AUP Library'!A107,#REF!,6,0),R107)="",R107,IFERROR(VLOOKUP('AUP Library'!A107,#REF!,6,0),R107)) -> 450.86 | Q107: =IF(IFERROR(VLOOKUP('AUP Library'!A107,#REF!,7,0),R107)="",R107,IFERROR(VLOOKUP('AUP Library'!A107,#REF!,7,0),R107)) -> 450.86 | R107: 450.86 | S107: =IFERROR(VLOOKUP('AUP Library'!A107,#REF!,4,0),R107) -> 450.86
A108: 604-01.02 | B108: Steel Bar Reinforcement (Roadway) | C108: LB | D108: 0.93 | E108: 0.93 | F108: 0.93 | G108: 0.93 | H108: 0.93 | I108: 0.93 | J108: 0.93 | K108: 0.93 | L108: 0.93 | M108: 0.93 | N108: =IF(IFERROR(VLOOKUP('AUP Library'!A108,#REF!,4,0),R108)="",R108,IFERROR(VLOOKUP('AUP Library'!A108,#REF!,4,0),R108)) -> 0.93 | O108: =IF(IFERROR(VLOOKUP('AUP Library'!A108,#REF!,5,0),R108)="",R108,IFERROR(VLOOKUP('AUP Library'!A108,#REF!,5,0),R108)) -> 0.93 | P108: =IF(IFERROR(VLOOKUP('AUP Library'!A108,#REF!,6,0),R108)="",R108,IFERROR(VLOOKUP('AUP Library'!A108,#REF!,6,0),R108)) -> 0.93 | Q108: =IF(IFERROR(VLOOKUP('AUP Library'!A108,#REF!,7,0),R108)="",R108,IFERROR(VLOOKUP('AUP Library'!A108,#REF!,7,0),R108)) -> 0.93 | R108: 0.93 | S108: =IFERROR(VLOOKUP('AUP Library'!A108,#REF!,4,0),R108) -> 0.93
A111: Drainage
A112: 202-01.13 | B112: Removal of Pipe | C112: LF | D112: 15 | E112: 15 | F112: 15 | G112: 15 | H112: 15 | I112: 15 | J112: 15 | K112: 15 | L112: 15 | M112: 15 | N112: =IF(IFERROR(VLOOKUP('AUP Library'!A112,#REF!,4,0),R112)="",R112,IFERROR(VLOOKUP('AUP Library'!A112,#REF!,4,0),R112)) -> 15 | O112: =IF(IFERROR(VLOOKUP('AUP Library'!A112,#REF!,5,0),R112)="",R112,IFERROR(VLOOKUP('AUP Library'!A112,#REF!,5,0),R112)) -> 15 | P112: =IF(IFERROR(VLOOKUP('AUP Library'!A112,#REF!,6,0),R112)="",R112,IFERROR(VLOOKUP('AUP Library'!A112,#REF!,6,0),R112)) -> 15 | Q112: =IF(IFERROR(VLOOKUP('AUP Library'!A112,#REF!,7,0),R112)="",R112,IFERROR(VLOOKUP('AUP Library'!A112,#REF!,7,0),R112)) -> 15 | R112: 15 | S112: =IFERROR(VLOOKUP('AUP Library'!A112,#REF!,4,0),R112) -> 15
A113: 202-02.01 | B113: Removal of Pipe | C113: LF | D113: 23.65 | E113: 23.65 | F113: 23.65 | G113: 23.65 | H113: 23.65 | I113: 23.65 | J113: 23.65 | K113: 23.65 | L113: 23.65 | M113: 23.65 | N113: =IF(IFERROR(VLOOKUP('AUP Library'!A113,#REF!,4,0),R113)="",R113,IFERROR(VLOOKUP('AUP Library'!A113,#REF!,4,0),R113)) -> 23.65 | O113: =IF(IFERROR(VLOOKUP('AUP Library'!A113,#REF!,5,0),R113)="",R113,IFERROR(VLOOKUP('AUP Library'!A113,#REF!,5,0),R113)) -> 23.65 | P113: =IF(IFERROR(VLOOKUP('AUP Library'!A113,#REF!,6,0),R113)="",R113,IFERROR(VLOOKUP('AUP Library'!A113,#REF!,6,0),R113)) -> 23.65 | Q113: =IF(IFERROR(VLOOKUP('AUP Library'!A113,#REF!,7,0),R113)="",R113,IFERROR(VLOOKUP('AUP Library'!A113,#REF!,7,0),R113)) -> 23.65 | R113: 23.65 | S113: =IFERROR(VLOOKUP('AUP Library'!A113,#REF!,4,0),R113) -> 23.65
A114: 202-02.02 | B114: Removal of Pipe | C114: LF | D114: 12.43 | E114: 12.43 | F114: 12.43 | G114: 12.43 | H114: 12.43 | I114: 12.43 | J114: 12.43 | K114: 12.43 | L114: 12.43 | M114: 12.43 | N114: =IF(IFERROR(VLOOKUP('AUP Library'!A114,#REF!,4,0),R114)="",R114,IFERROR(VLOOKUP('AUP Library'!A114,#REF!,4,0),R114)) -> 12.43 | O114: =IF(IFERROR(VLOOKUP('AUP Library'!A114,#REF!,5,0),R114)="",R114,IFERROR(VLOOKUP('AUP Library'!A114,#REF!,5,0),R114)) -> 12.43 | P114: =IF(IFERROR(VLOOKUP('AUP Library'!A114,#REF!,6,0),R114)="",R114,IFERROR(VLOOKUP('AUP Library'!A114,#REF!,6,0),R114)) -> 12.43 | Q114: =IF(IFERROR(VLOOKUP('AUP Library'!A114,#REF!,7,0),R114)="",R114,IFERROR(VLOOKUP('AUP Library'!A114,#REF!,7,0),R114)) -> 12.43 | R114: 12.43 | S114: =IFERROR(VLOOKUP('AUP Library'!A114,#REF!,4,0),R114) -> 12.43
A115: 202-02.03 | B115: Removal of Pipe | C115: LF | D115: 10.4 | E115: 10.4 | F115: 10.4 | G115: 10.4 | H115: 10.4 | I115: 10.4 | J115: 10.4 | K115: 10.4 | L115: 10.4 | M115: 10.4 | N115: =IF(IFERROR(VLOOKUP('AUP Library'!A115,#REF!,4,0),R115)="",R115,IFERROR(VLOOKUP('AUP Library'!A115,#REF!,4,0),R115)) -> 10.4 | O115: =IF(IFERROR(VLOOKUP('AUP Library'!A115,#REF!,5,0),R115)="",R115,IFERROR(VLOOKUP('AUP Library'!A115,#REF!,5,0),R115)) -> 10.4 | P115: =IF(IFERROR(VLOOKUP('AUP Library'!A115,#REF!,6,0),R115)="",R115,IFERROR(VLOOKUP('AUP Library'!A115,#REF!,6,0),R115)) -> 10.4 | Q115: =IF(IFERROR(VLOOKUP('AUP Library'!A115,#REF!,7,0),R115)="",R115,IFERROR(VLOOKUP('AUP Library'!A115,#REF!,7,0),R115)) -> 10.4 | R115: 10.4 | S115: =IFERROR(VLOOKUP('AUP Library'!A115,#REF!,4,0),R115) -> 10.4
A116: 202-02.04 | B116: Removal of Pipe | C116: LF | D116: 12.5 | E116: 12.5 | F116: 12.5 | G116: 12.5 | H116: 12.5 | I116: 12.5 | J116: 12.5 | K116: 12.5 | L116: 12.5 | M116: 12.5 | N116: =IF(IFERROR(VLOOKUP('AUP Library'!A116,#REF!,4,0),R116)="",R116,IFERROR(VLOOKUP('AUP Library'!A116,#REF!,4,0),R116)) -> 12.5 | O116: =IF(IFERROR(VLOOKUP('AUP Library'!A116,#REF!,5,0),R116)="",R116,IFERROR(VLOOKUP('AUP Library'!A116,#REF!,5,0),R116)) -> 12.5 | P116: =IF(IFERROR(VLOOKUP('AUP Library'!A116,#REF!,6,0),R116)="",R116,IFERROR(VLOOKUP('AUP Library'!A116,#REF!,6,0),R116)) -> 12.5 | Q116: =IF(IFERROR(VLOOKUP('AUP Library'!A116,#REF!,7,0),R116)="",R116,IFERROR(VLOOKUP('AUP Library'!A116,#REF!,7,0),R116)) -> 12.5 | R116: 12.5 | S116: =IFERROR(VLOOKUP('AUP Library'!A116,#REF!,4,0),R116) -> 12.5
A117: 202-02.05 | B117: Removal of Pipe | C117: LF | D117: 12.65 | E117: 12.65 | F117: 12.65 | G117: 12.65 | H117: 12.65 | I117: 12.65 | J117: 12.65 | K117: 12.65 | L117: 12.65 | M117: 12.65 | N117: =IF(IFERROR(VLOOKUP('AUP Library'!A117,#REF!,4,0),R117)="",R117,IFERROR(VLOOKUP('AUP Library'!A117,#REF!,4,0),R117)) -> 12.65 | O117: =IF(IFERROR(VLOOKUP('AUP Library'!A117,#REF!,5,0),R117)="",R117,IFERROR(VLOOKUP('AUP Library'!A117,#REF!,5,0),R117)) -> 12.65 | P117: =IF(IFERROR(VLOOKUP('AUP Library'!A117,#REF!,6,0),R117)="",R117,IFERROR(VLOOKUP('AUP Library'!A117,#REF!,6,0),R117)) -> 12.65 | Q117: =IF(IFERROR(VLOOKUP('AUP Library'!A117,#REF!,7,0),R117)="",R117,IFERROR(VLOOKUP('AUP Library'!A117,#REF!,7,0),R117)) -> 12.65 | R117: 12.65 | S117: =IFERROR(VLOOKUP('AUP Library'!A117,#REF!,4,0),R117) -> 12.65
A118: 202-02.06 | B118: Removal of Pipe | C118: LF | D118: 9.47 | E118: 9.47 | F118: 9.47 | G118: 9.47 | H118: 9.47 | I118: 9.47 | J118: 9.47 | K118: 9.47 | L118: 9.47 | M118: 9.47 | N118: =IF(IFERROR(VLOOKUP('AUP Library'!A118,#REF!,4,0),R118)="",R118,IFERROR(VLOOKUP('AUP Library'!A118,#REF!,4,0),R118)) -> 9.47 | O118: =IF(IFERROR(VLOOKUP('AUP Library'!A118,#REF!,5,0),R118)="",R118,IFERROR(VLOOKUP('AUP Library'!A118,#REF!,5,0),R118)) -> 9.47 | P118: =IF(IFERROR(VLOOKUP('AUP Library'!A118,#REF!,6,0),R118)="",R118,IFERROR(VLOOKUP('AUP Library'!A118,#REF!,6,0),R118)) -> 9.47 | Q118: =IF(IFERROR(VLOOKUP('AUP Library'!A118,#REF!,7,0),R118)="",R118,IFERROR(VLOOKUP('AUP Library'!A118,#REF!,7,0),R118)) -> 9.47 | R118: 9.47 | S118: =IFERROR(VLOOKUP('AUP Library'!A118,#REF!,4,0),R118) -> 9.47
A119: 202-02.07 | B119: Removal of Pipe | C119: LF | D119: 10.88 | E119: 10.88 | F119: 10.88 | G119: 10.88 | H119: 10.88 | I119: 10.88 | J119: 10.88 | K119: 10.88 | L119: 10.88 | M119: 10.88 | N119: =IF(IFERROR(VLOOKUP('AUP Library'!A119,#REF!,4,0),R119)="",R119,IFERROR(VLOOKUP('AUP Library'!A119,#REF!,4,0),R119)) -> 10.88 | O119: =IF(IFERROR(VLOOKUP('AUP Library'!A119,#REF!,5,0),R119)="",R119,IFERROR(VLOOKUP('AUP Library'!A119,#REF!,5,0),R119)) -> 10.88 | P119: =IF(IFERROR(VLOOKUP('AUP Library'!A119,#REF!,6,0),R119)="",R119,IFERROR(VLOOKUP('AUP Library'!A119,#REF!,6,0),R119)) -> 10.88 | Q119: =IF(IFERROR(VLOOKUP('AUP Library'!A119,#REF!,7,0),R119)="",R119,IFERROR(VLOOKUP('AUP Library'!A119,#REF!,7,0),R119)) -> 10.88 | R119: 10.88 | S119: =IFERROR(VLOOKUP('AUP Library'!A119,#REF!,4,0),R119) -> 10.88
A120: 202-02.08 | B120: Removal of Pipe | C120: LF | D120: 11.51 | E120: 11.51 | F120: 11.51 | G120: 11.51 | H120: 11.51 | I120: 11.51 | J120: 11.51 | K120: 11.51 | L120: 11.51 | M120: 11.51 | N120: =IF(IFERROR(VLOOKUP('AUP Library'!A120,#REF!,4,0),R120)="",R120,IFERROR(VLOOKUP('AUP Library'!A120,#REF!,4,0),R120)) -> 11.51 | O120: =IF(IFERROR(VLOOKUP('AUP Library'!A120,#REF!,5,0),R120)="",R120,IFERROR(VLOOKUP('AUP Library'!A120,#REF!,5,0),R120)) -> 11.51 | P120: =IF(IFERROR(VLOOKUP('AUP Library'!A120,#REF!,6,0),R120)="",R120,IFERROR(VLOOKUP('AUP Library'!A120,#REF!,6,0),R120)) -> 11.51 | Q120: =IF(IFERROR(VLOOKUP('AUP Library'!A120,#REF!,7,0),R120)="",R120,IFERROR(VLOOKUP('AUP Library'!A120,#REF!,7,0),R120)) -> 11.51 | R120: 11.51 | S120: =IFERROR(VLOOKUP('AUP Library'!A120,#REF!,4,0),R120) -> 11.51
A121: 202-02.09 | B121: Removal of Pipe | C121: LF | D121: 16.17 | E121: 16.17 | F121: 16.17 | G121: 16.17 | H121: 16.17 | I121: 16.17 | J121: 16.17 | K121: 16.17 | L121: 16.17 | M121: 16.17 | N121: =IF(IFERROR(VLOOKUP('AUP Library'!A121,#REF!,4,0),R121)="",R121,IFERROR(VLOOKUP('AUP Library'!A121,#REF!,4,0),R121)) -> 16.17 | O121: =IF(IFERROR(VLOOKUP('AUP Library'!A121,#REF!,5,0),R121)="",R121,IFERROR(VLOOKUP('AUP Library'!A121,#REF!,5,0),R121)) -> 16.17 | P121: =IF(IFERROR(VLOOKUP('AUP Library'!A121,#REF!,6,0),R121)="",R121,IFERROR(VLOOKUP('AUP Library'!A121,#REF!,6,0),R121)) -> 16.17 | Q121: =IF(IFERROR(VLOOKUP('AUP Library'!A121,#REF!,7,0),R121)="",R121,IFERROR(VLOOKUP('AUP Library'!A121,#REF!,7,0),R121)) -> 16.17 | R121: 16.17 | S121: =IFERROR(VLOOKUP('AUP Library'!A121,#REF!,4,0),R121) -> 16.17
A122: 202-02.10 | B122: Removal of Pipe | C122: LF | D122: 15.6 | E122: 15.6 | F122: 15.6 | G122: 15.6 | H122: 15.6 | I122: 15.6 | J122: 15.6 | K122: 15.6 | L122: 15.6 | M122: 15.6 | N122: =IF(IFERROR(VLOOKUP('AUP Library'!A122,#REF!,4,0),R122)="",R122,IFERROR(VLOOKUP('AUP Library'!A122,#REF!,4,0),R122)) -> 15.6 | O122: =IF(IFERROR(VLOOKUP('AUP Library'!A122,#REF!,5,0),R122)="",R122,IFERROR(VLOOKUP('AUP Library'!A122,#REF!,5,0),R122)) -> 15.6 | P122: =IF(IFERROR(VLOOKUP('AUP Library'!A122,#REF!,6,0),R122)="",R122,IFERROR(VLOOKUP('AUP Library'!A122,#REF!,6,0),R122)) -> 15.6 | Q122: =IF(IFERROR(VLOOKUP('AUP Library'!A122,#REF!,7,0),R122)="",R122,IFERROR(VLOOKUP('AUP Library'!A122,#REF!,7,0),R122)) -> 15.6 | R122: 15.6 | S122: =IFERROR(VLOOKUP('AUP Library'!A122,#REF!,4,0),R122) -> 15.6
A123: 202-02.11 | B123: Removal of Pipe | C123: LF | D123: 21.5 | E123: 21.5 | F123: 21.5 | G123: 21.5 | H123: 21.5 | I123: 21.5 | J123: 21.5 | K123: 21.5 | L123: 21.5 | M123: 21.5 | N123: =IF(IFERROR(VLOOKUP('AUP Library'!A123,#REF!,4,0),R123)="",R123,IFERROR(VLOOKUP('AUP Library'!A123,#REF!,4,0),R123)) -> 21.5 | O123: =IF(IFERROR(VLOOKUP('AUP Library'!A123,#REF!,5,0),R123)="",R123,IFERROR(VLOOKUP('AUP Library'!A123,#REF!,5,0),R123)) -> 21.5 | P123: =IF(IFERROR(VLOOKUP('AUP Library'!A123,#REF!,6,0),R123)="",R123,IFERROR(VLOOKUP('AUP Library'!A123,#REF!,6,0),R123)) -> 21.5 | Q123: =IF(IFERROR(VLOOKUP('AUP Library'!A123,#REF!,7,0),R123)="",R123,IFERROR(VLOOKUP('AUP Library'!A123,#REF!,7,0),R123)) -> 21.5 | R123: 21.5 | S123: =IFERROR(VLOOKUP('AUP Library'!A123,#REF!,4,0),R123) -> 21.5
A124: 202-02.12 | B124: Removal of Pipe | C124: LF | D124: 13.36 | E124: 13.36 | F124: 13.36 | G124: 13.36 | H124: 13.36 | I124: 13.36 | J124: 13.36 | K124: 13.36 | L124: 13.36 | M124: 13.36 | N124: =IF(IFERROR(VLOOKUP('AUP Library'!A124,#REF!,4,0),R124)="",R124,IFERROR(VLOOKUP('AUP Library'!A124,#REF!,4,0),R124)) -> 13.36 | O124: =IF(IFERROR(VLOOKUP('AUP Library'!A124,#REF!,5,0),R124)="",R124,IFERROR(VLOOKUP('AUP Library'!A124,#REF!,5,0),R124)) -> 13.36 | P124: =IF(IFERROR(VLOOKUP('AUP Library'!A124,#REF!,6,0),R124)="",R124,IFERROR(VLOOKUP('AUP Library'!A124,#REF!,6,0),R124)) -> 13.36 | Q124: =IF(IFERROR(VLOOKUP('AUP Library'!A124,#REF!,7,0),R124)="",R124,IFERROR(VLOOKUP('AUP Library'!A124,#REF!,7,0),R124)) -> 13.36 | R124: 13.36 | S124: =IFERROR(VLOOKUP('AUP Library'!A124,#REF!,4,0),R124) -> 13.36
A125: 202-02.13 | B125: Removal of Pipe | C125: LF | D125: 14.5 | E125: 14.5 | F125: 14.5 | G125: 14.5 | H125: 14.5 | I125: 14.5 | J125: 14.5 | K125: 14.5 | L125: 14.5 | M125: 14.5 | N125: =IF(IFERROR(VLOOKUP('AUP Library'!A125,#REF!,4,0),R125)="",R125,IFERROR(VLOOKUP('AUP Library'!A125,#REF!,4,0),R125)) -> 14.5 | O125: =IF(IFERROR(VLOOKUP('AUP Library'!A125,#REF!,5,0),R125)="",R125,IFERROR(VLOOKUP('AUP Library'!A125,#REF!,5,0),R125)) -> 14.5 | P125: =IF(IFERROR(VLOOKUP('AUP Library'!A125,#REF!,6,0),R125)="",R125,IFERROR(VLOOKUP('AUP Library'!A125,#REF!,6,0),R125)) -> 14.5 | Q125: =IF(IFERROR(VLOOKUP('AUP Library'!A125,#REF!,7,0),R125)="",R125,IFERROR(VLOOKUP('AUP Library'!A125,#REF!,7,0),R125)) -> 14.5 | R125: 14.5 | S125: =IFERROR(VLOOKUP('AUP Library'!A125,#REF!,4,0),R125) -> 14.5
A126: 202-02.14 | B126: Removal of Pipe | C126: LF | D126: 7.5 | E126: 7.5 | F126: 7.5 | G126: 7.5 | H126: 7.5 | I126: 7.5 | J126: 7.5 | K126: 7.5 | L126: 7.5 | M126: 7.5 | N126: =IF(IFERROR(VLOOKUP('AUP Library'!A126,#REF!,4,0),R126)="",R126,IFERROR(VLOOKUP('AUP Library'!A126,#REF!,4,0),R126)) -> 7.5 | O126: =IF(IFERROR(VLOOKUP('AUP Library'!A126,#REF!,5,0),R126)="",R126,IFERROR(VLOOKUP('AUP Library'!A126,#REF!,5,0),R126)) -> 7.5 | P126: =IF(IFERROR(VLOOKUP('AUP Library'!A126,#REF!,6,0),R126)="",R126,IFERROR(VLOOKUP('AUP Library'!A126,#REF!,6,0),R126)) -> 7.5 | Q126: =IF(IFERROR(VLOOKUP('AUP Library'!A126,#REF!,7,0),R126)="",R126,IFERROR(VLOOKUP('AUP Library'!A126,#REF!,7,0),R126)) -> 7.5 | R126: 7.5 | S126: =IFERROR(VLOOKUP('AUP Library'!A126,#REF!,4,0),R126) -> 7.5
A127: 202-02.15 | B127: Removal of Pipe | C127: LF | D127: 11.73 | E127: 11.73 | F127: 11.73 | G127: 11.73 | H127: 11.73 | I127: 11.73 | J127: 11.73 | K127: 11.73 | L127: 11.73 | M127: 11.73 | N127: =IF(IFERROR(VLOOKUP('AUP Library'!A127,#REF!,4,0),R127)="",R127,IFERROR(VLOOKUP('AUP Library'!A127,#REF!,4,0),R127)) -> 11.73 | O127: =IF(IFERROR(VLOOKUP('AUP Library'!A127,#REF!,5,0),R127)="",R127,IFERROR(VLOOKUP('AUP Library'!A127,#REF!,5,0),R127)) -> 11.73 | P127: =IF(IFERROR(VLOOKUP('AUP Library'!A127,#REF!,6,0),R127)="",R127,IFERROR(VLOOKUP('AUP Library'!A127,#REF!,6,0),R127)) -> 11.73 | Q127: =IF(IFERROR(VLOOKUP('AUP Library'!A127,#REF!,7,0),R127)="",R127,IFERROR(VLOOKUP('AUP Library'!A127,#REF!,7,0),R127)) -> 11.73 | R127: 11.73 | S127: =IFERROR(VLOOKUP('AUP Library'!A127,#REF!,4,0),R127) -> 11.73
A128: 202-02.16 | B128: Removal of Pipe | C128: LF | D128: 11.74 | E128: 11.74 | F128: 11.74 | G128: 11.74 | H128: 11.74 | I128: 11.74 | J128: 11.74 | K128: 11.74 | L128: 11.74 | M128: 11.74 | N128: =IF(IFERROR(VLOOKUP('AUP Library'!A128,#REF!,4,0),R128)="",R128,IFERROR(VLOOKUP('AUP Library'!A128,#REF!,4,0),R128)) -> 11.74 | O128: =IF(IFERROR(VLOOKUP('AUP Library'!A128,#REF!,5,0),R128)="",R128,IFERROR(VLOOKUP('AUP Library'!A128,#REF!,5,0),R128)) -> 11.74 | P128: =IF(IFERROR(VLOOKUP('AUP Library'!A128,#REF!,6,0),R128)="",R128,IFERROR(VLOOKUP('AUP Library'!A128,#REF!,6,0),R128)) -> 11.74 | Q128: =IF(IFERROR(VLOOKUP('AUP Library'!A128,#REF!,7,0),R128)="",R128,IFERROR(VLOOKUP('AUP Library'!A128,#REF!,7,0),R128)) -> 11.74 | R128: 11.74 | S128: =IFERROR(VLOOKUP('AUP Library'!A128,#REF!,4,0),R128) -> 11.74
A129: 202-02.17 | B129: Removal of Pipe | C129: LF | D129: 11.74 | E129: 11.74 | F129: 11.74 | G129: 11.74 | H129: 11.74 | I129: 11.74 | J129: 11.74 | K129: 11.74 | L129: 11.74 | M129: 11.74 | N129: =IF(IFERROR(VLOOKUP('AUP Library'!A129,#REF!,4,0),R129)="",R129,IFERROR(VLOOKUP('AUP Library'!A129,#REF!,4,0),R129)) -> 11.74 | O129: =IF(IFERROR(VLOOKUP('AUP Library'!A129,#REF!,5,0),R129)="",R129,IFERROR(VLOOKUP('AUP Library'!A129,#REF!,5,0),R129)) -> 11.74 | P129: =IF(IFERROR(VLOOKUP('AUP Library'!A129,#REF!,6,0),R129)="",R129,IFERROR(VLOOKUP('AUP Library'!A129,#REF!,6,0),R129)) -> 11.74 | Q129: =IF(IFERROR(VLOOKUP('AUP Library'!A129,#REF!,7,0),R129)="",R129,IFERROR(VLOOKUP('AUP Library'!A129,#REF!,7,0),R129)) -> 11.74 | R129: 11.74 | S129: =IFERROR(VLOOKUP('AUP Library'!A129,#REF!,4,0),R129) -> 11.74
A130: 202-02.18 | B130: Removal of Pipe | C130: LF | D130: 11.72 | E130: 11.72 | F130: 11.72 | G130: 11.72 | H130: 11.72 | I130: 11.72 | J130: 11.72 | K130: 11.72 | L130: 11.72 | M130: 11.72 | N130: =IF(IFERROR(VLOOKUP('AUP Library'!A130,#REF!,4,0),R130)="",R130,IFERROR(VLOOKUP('AUP Library'!A130,#REF!,4,0),R130)) -> 11.72 | O130: =IF(IFERROR(VLOOKUP('AUP Library'!A130,#REF!,5,0),R130)="",R130,IFERROR(VLOOKUP('AUP Library'!A130,#REF!,5,0),R130)) -> 11.72 | P130: =IF(IFERROR(VLOOKUP('AUP Library'!A130,#REF!,6,0),R130)="",R130,IFERROR(VLOOKUP('AUP Library'!A130,#REF!,6,0),R130)) -> 11.72 | Q130: =IF(IFERROR(VLOOKUP('AUP Library'!A130,#REF!,7,0),R130)="",R130,IFERROR(VLOOKUP('AUP Library'!A130,#REF!,7,0),R130)) -> 11.72 | R130: 11.72 | S130: =IFERROR(VLOOKUP('AUP Library'!A130,#REF!,4,0),R130) -> 11.72
A131: 202-02.19 | B131: Removal of Pipe | C131: LF | D131: 60 | E131: 60 | F131: 60 | G131: 60 | H131: 60 | I131: 60 | J131: 60 | K131: 60 | L131: 60 | M131: 60 | N131: =IF(IFERROR(VLOOKUP('AUP Library'!A131,#REF!,4,0),R131)="",R131,IFERROR(VLOOKUP('AUP Library'!A131,#REF!,4,0),R131)) -> 60 | O131: =IF(IFERROR(VLOOKUP('AUP Library'!A131,#REF!,5,0),R131)="",R131,IFERROR(VLOOKUP('AUP Library'!A131,#REF!,5,0),R131)) -> 60 | P131: =IF(IFERROR(VLOOKUP('AUP Library'!A131,#REF!,6,0),R131)="",R131,IFERROR(VLOOKUP('AUP Library'!A131,#REF!,6,0),R131)) -> 60 | Q131: =IF(IFERROR(VLOOKUP('AUP Library'!A131,#REF!,7,0),R131)="",R131,IFERROR(VLOOKUP('AUP Library'!A131,#REF!,7,0),R131)) -> 60 | R131: 60 | S131: =IFERROR(VLOOKUP('AUP Library'!A131,#REF!,4,0),R131) -> 60
A132: 202-02.20 | B132: Removal of Pipe | C132: LF | D132: 60 | E132: 60 | F132: 60 | G132: 60 | H132: 60 | I132: 60 | J132: 60 | K132: 60 | L132: 60 | M132: 60 | N132: =IF(IFERROR(VLOOKUP('AUP Library'!A132,#REF!,4,0),R132)="",R132,IFERROR(VLOOKUP('AUP Library'!A132,#REF!,4,0),R132)) -> 60 | O132: =IF(IFERROR(VLOOKUP('AUP Library'!A132,#REF!,5,0),R132)="",R132,IFERROR(VLOOKUP('AUP Library'!A132,#REF!,5,0),R132)) -> 60 | P132: =IF(IFERROR(VLOOKUP('AUP Library'!A132,#REF!,6,0),R132)="",R132,IFERROR(VLOOKUP('AUP Library'!A132,#REF!,6,0),R132)) -> 60 | Q132: =IF(IFERROR(VLOOKUP('AUP Library'!A132,#REF!,7,0),R132)="",R132,IFERROR(VLOOKUP('AUP Library'!A132,#REF!,7,0),R132)) -> 60 | R132: 60 | S132: =IFERROR(VLOOKUP('AUP Library'!A132,#REF!,4,0),R132) -> 60
A133: 202-02.21 | B133: Removal of Pipe | C133: LF | D133: 60 | E133: 60 | F133: 60 | G133: 60 | H133: 60 | I133: 60 | J133: 60 | K133: 60 | L133: 60 | M133: 60 | N133: =IF(IFERROR(VLOOKUP('AUP Library'!A133,#REF!,4,0),R133)="",R133,IFERROR(VLOOKUP('AUP Library'!A133,#REF!,4,0),R133)) -> 60 | O133: =IF(IFERROR(VLOOKUP('AUP Library'!A133,#REF!,5,0),R133)="",R133,IFERROR(VLOOKUP('AUP Library'!A133,#REF!,5,0),R133)) -> 60 | P133: =IF(IFERROR(VLOOKUP('AUP Library'!A133,#REF!,6,0),R133)="",R133,IFERROR(VLOOKUP('AUP Library'!A133,#REF!,6,0),R133)) -> 60 | Q133: =IF(IFERROR(VLOOKUP('AUP Library'!A133,#REF!,7,0),R133)="",R133,IFERROR(VLOOKUP('AUP Library'!A133,#REF!,7,0),R133)) -> 60 | R133: 60 | S133: =IFERROR(VLOOKUP('AUP Library'!A133,#REF!,4,0),R133) -> 60
A134: 202-02.22 | B134: Removal of Pipe | C134: LF | D134: 60 | E134: 60 | F134: 60 | G134: 60 | H134: 60 | I134: 60 | J134: 60 | K134: 60 | L134: 60 | M134: 60 | N134: =IF(IFERROR(VLOOKUP('AUP Library'!A134,#REF!,4,0),R134)="",R134,IFERROR(VLOOKUP('AUP Library'!A134,#REF!,4,0),R134)) -> 60 | O134: =IF(IFERROR(VLOOKUP('AUP Library'!A134,#REF!,5,0),R134)="",R134,IFERROR(VLOOKUP('AUP Library'!A134,#REF!,5,0),R134)) -> 60 | P134: =IF(IFERROR(VLOOKUP('AUP Library'!A134,#REF!,6,0),R134)="",R134,IFERROR(VLOOKUP('AUP Library'!A134,#REF!,6,0),R134)) -> 60 | Q134: =IF(IFERROR(VLOOKUP('AUP Library'!A134,#REF!,7,0),R134)="",R134,IFERROR(VLOOKUP('AUP Library'!A134,#REF!,7,0),R134)) -> 60 | R134: 60 | S134: =IFERROR(VLOOKUP('AUP Library'!A134,#REF!,4,0),R134) -> 60
A135: 202-02.23 | B135: Removal of Pipe | C135: LF | D135: 60 | E135: 60 | F135: 60 | G135: 60 | H135: 60 | I135: 60 | J135: 60 | K135: 60 | L135: 60 | M135: 60 | N135: =IF(IFERROR(VLOOKUP('AUP Library'!A135,#REF!,4,0),R135)="",R135,IFERROR(VLOOKUP('AUP Library'!A135,#REF!,4,0),R135)) -> 60 | O135: =IF(IFERROR(VLOOKUP('AUP Library'!A135,#REF!,5,0),R135)="",R135,IFERROR(VLOOKUP('AUP Library'!A135,#REF!,5,0),R135)) -> 60 | P135: =IF(IFERROR(VLOOKUP('AUP Library'!A135,#REF!,6,0),R135)="",R135,IFERROR(VLOOKUP('AUP Library'!A135,#REF!,6,0),R135)) -> 60 | Q135: =IF(IFERROR(VLOOKUP('AUP Library'!A135,#REF!,7,0),R135)="",R135,IFERROR(VLOOKUP('AUP Library'!A135,#REF!,7,0),R135)) -> 60 | R135: 60 | S135: =IFERROR(VLOOKUP('AUP Library'!A135,#REF!,4,0),R135) -> 60
A136: 202-02.51 | B136: Remove Concrete Endwall & Pipe From Existing Driveway | C136: LS | D136: 500 | E136: 500 | F136: 500 | G136: 500 | H136: 500 | I136: 500 | J136: 500 | K136: 500 | L136: 500 | M136: 500 | N136: =IF(IFERROR(VLOOKUP('AUP Library'!A136,#REF!,4,0),R136)="",R136,IFERROR(VLOOKUP('AUP Library'!A136,#REF!,4,0),R136)) -> 500 | O136: =IF(IFERROR(VLOOKUP('AUP Library'!A136,#REF!,5,0),R136)="",R136,IFERROR(VLOOKUP('AUP Library'!A136,#REF!,5,0),R136)) -> 500 | P136: =IF(IFERROR(VLOOKUP('AUP Library'!A136,#REF!,6,0),R136)="",R136,IFERROR(VLOOKUP('AUP Library'!A136,#REF!,6,0),R136)) -> 500 | Q136: =IF(IFERROR(VLOOKUP('AUP Library'!A136,#REF!,7,0),R136)="",R136,IFERROR(VLOOKUP('AUP Library'!A136,#REF!,7,0),R136)) -> 500 | R136: 500 | S136: =IFERROR(VLOOKUP('AUP Library'!A136,#REF!,4,0),R136) -> 500
A137: 209-01.10 | B137: Erosion and Silt Control (Description) | C137: LS | D137: 2500 | E137: 2500 | F137: 2500 | G137: 2500 | H137: 2500 | I137: 2500 | J137: 2500 | K137: 2500 | L137: 2500 | M137: 2500 | N137: =IF(IFERROR(VLOOKUP('AUP Library'!A137,#REF!,4,0),R137)="",R137,IFERROR(VLOOKUP('AUP Library'!A137,#REF!,4,0),R137)) -> 2500 | O137: =IF(IFERROR(VLOOKUP('AUP Library'!A137,#REF!,5,0),R137)="",R137,IFERROR(VLOOKUP('AUP Library'!A137,#REF!,5,0),R137)) -> 2500 | P137: =IF(IFERROR(VLOOKUP('AUP Library'!A137,#REF!,6,0),R137)="",R137,IFERROR(VLOOKUP('AUP Library'!A137,#REF!,6,0),R137)) -> 2500 | Q137: =IF(IFERROR(VLOOKUP('AUP Library'!A137,#REF!,7,0),R137)="",R137,IFERROR(VLOOKUP('AUP Library'!A137,#REF!,7,0),R137)) -> 2500 | R137: 2500 | S137: =IFERROR(VLOOKUP('AUP Library'!A137,#REF!,4,0),R137) -> 2500
A138: 209-01.11 | B138: Construction Access | C138: LS | D138: 10710 | E138: 10710 | F138: 10710 | G138: 10710 | H138: 10710 | I138: 10710 | J138: 10710 | K138: 10710 | L138: 10710 | M138: 10710 | N138: =IF(IFERROR(VLOOKUP('AUP Library'!A138,#REF!,4,0),R138)="",R138,IFERROR(VLOOKUP('AUP Library'!A138,#REF!,4,0),R138)) -> 10710 | O138: =IF(IFERROR(VLOOKUP('AUP Library'!A138,#REF!,5,0),R138)="",R138,IFERROR(VLOOKUP('AUP Library'!A138,#REF!,5,0),R138)) -> 10710 | P138: =IF(IFERROR(VLOOKUP('AUP Library'!A138,#REF!,6,0),R138)="",R138,IFERROR(VLOOKUP('AUP Library'!A138,#REF!,6,0),R138)) -> 10710 | Q138: =IF(IFERROR(VLOOKUP('AUP Library'!A138,#REF!,7,0),R138)="",R138,IFERROR(VLOOKUP('AUP Library'!A138,#REF!,7,0),R138)) -> 10710 | R138: 10710 | S138: =IFERROR(VLOOKUP('AUP Library'!A138,#REF!,4,0),R138) -> 10710
A139: 209-01.30 | B139: Temporary Compost Filter Berm | C139: CY | D139: 16.59 | E139: 16.59 | F139: 16.59 | G139: 16.59 | H139: 16.59 | I139: 16.59 | J139: 16.59 | K139: 16.59 | L139: 16.59 | M139: 16.59 | N139: =IF(IFERROR(VLOOKUP('AUP Library'!A139,#REF!,4,0),R139)="",R139,IFERROR(VLOOKUP('AUP Library'!A139,#REF!,4,0),R139)) -> 16.59 | O139: =IF(IFERROR(VLOOKUP('AUP Library'!A139,#REF!,5,0),R139)="",R139,IFERROR(VLOOKUP('AUP Library'!A139,#REF!,5,0),R139)) -> 16.59 | P139: =IF(IFERROR(VLOOKUP('AUP Library'!A139,#REF!,6,0),R139)="",R139,IFERROR(VLOOKUP('AUP Library'!A139,#REF!,6,0),R139)) -> 16.59 | Q139: =IF(IFERROR(VLOOKUP('AUP Library'!A139,#REF!,7,0),R139)="",R139,IFERROR(VLOOKUP('AUP Library'!A139,#REF!,7,0),R139)) -> 16.59 | R139: 16.59 | S139: =IFERROR(VLOOKUP('AUP Library'!A139,#REF!,4,0),R139) -> 16.59
A140: 209-01.31 | B140: Temporary Mulch Filter Berm | C140: CY | D140: 16.38 | E140: 16.38 | F140: 16.38 | G140: 16.38 | H140: 16.38 | I140: 16.38 | J140: 16.38 | K140: 16.38 | L140: 16.38 | M140: 16.38 | N140: =IF(IFERROR(VLOOKUP('AUP Library'!A140,#REF!,4,0),R140)="",R140,IFERROR(VLOOKUP('AUP Library'!A140,#REF!,4,0),R140)) -> 16.38 | O140: =IF(IFERROR(VLOOKUP('AUP Library'!A140,#REF!,5,0),R140)="",R140,IFERROR(VLOOKUP('AUP Library'!A140,#REF!,5,0),R140)) -> 16.38 | P140: =IF(IFERROR(VLOOKUP('AUP Library'!A140,#REF!,6,0),R140)="",R140,IFERROR(VLOOKUP('AUP Library'!A140,#REF!,6,0),R140)) -> 16.38 | Q140: =IF(IFERROR(VLOOKUP('AUP Library'!A140,#REF!,7,0),R140)="",R140,IFERROR(VLOOKUP('AUP Library'!A140,#REF!,7,0),R140)) -> 16.38 | R140: 16.38 | S140: =IFERROR(VLOOKUP('AUP Library'!A140,#REF!,4,0),R140) -> 16.38
A141: 209-02.02 | B141: 6" Temporary Slope Drain | C141: LF | D141: 12 | E141: 12 | F141: 12 | G141: 12 | H141: 12 | I141: 12 | J141: 12 | K141: 12 | L141: 12 | M141: 12 | N141: =IF(IFERROR(VLOOKUP('AUP Library'!A141,#REF!,4,0),R141)="",R141,IFERROR(VLOOKUP('AUP Library'!A141,#REF!,4,0),R141)) -> 12 | O141: =IF(IFERROR(VLOOKUP('AUP Library'!A141,#REF!,5,0),R141)="",R141,IFERROR(VLOOKUP('AUP Library'!A141,#REF!,5,0),R141)) -> 12 | P141: =IF(IFERROR(VLOOKUP('AUP Library'!A141,#REF!,6,0),R141)="",R141,IFERROR(VLOOKUP('AUP Library'!A141,#REF!,6,0),R141)) -> 12 | Q141: =IF(IFERROR(VLOOKUP('AUP Library'!A141,#REF!,7,0),R141)="",R141,IFERROR(VLOOKUP('AUP Library'!A141,#REF!,7,0),R141)) -> 12 | R141: 12 | S141: =IFERROR(VLOOKUP('AUP Library'!A141,#REF!,4,0),R141) -> 12
A142: 209-02.03 | B142: 8" Temporary Slope Drain | C142: LF | D142: 9.96 | E142: 9.96 | F142: 9.96 | G142: 9.96 | H142: 9.96 | I142: 9.96 | J142: 9.96 | K142: 9.96 | L142: 9.96 | M142: 9.96 | N142: =IF(IFERROR(VLOOKUP('AUP Library'!A142,#REF!,4,0),R142)="",R142,IFERROR(VLOOKUP('AUP Library'!A142,#REF!,4,0),R142)) -> 9.96 | O142: =IF(IFERROR(VLOOKUP('AUP Library'!A142,#REF!,5,0),R142)="",R142,IFERROR(VLOOKUP('AUP Library'!A142,#REF!,5,0),R142)) -> 9.96 | P142: =IF(IFERROR(VLOOKUP('AUP Library'!A142,#REF!,6,0),R142)="",R142,IFERROR(VLOOKUP('AUP Library'!A142,#REF!,6,0),R142)) -> 9.96 | Q142: =IF(IFERROR(VLOOKUP('AUP Library'!A142,#REF!,7,0),R142)="",R142,IFERROR(VLOOKUP('AUP Library'!A142,#REF!,7,0),R142)) -> 9.96 | R142: 9.96 | S142: =IFERROR(VLOOKUP('AUP Library'!A142,#REF!,4,0),R142) -> 9.96
A143: 209-02.04 | B143: 10" Temporary Slope Drain | C143: LF | D143: 15.99 | E143: 15.99 | F143: 15.99 | G143: 15.99 | H143: 15.99 | I143: 15.99 | J143: 15.99 | K143: 15.99 | L143: 15.99 | M143: 15.99 | N143: =IF(IFERROR(VLOOKUP('AUP Library'!A143,#REF!,4,0),R143)="",R143,IFERROR(VLOOKUP('AUP Library'!A143,#REF!,4,0),R143)) -> 15.99 | O143: =IF(IFERROR(VLOOKUP('AUP Library'!A143,#REF!,5,0),R143)="",R143,IFERROR(VLOOKUP('AUP Library'!A143,#REF!,5,0),R143)) -> 15.99 | P143: =IF(IFERROR(VLOOKUP('AUP Library'!A143,#REF!,6,0),R143)="",R143,IFERROR(VLOOKUP('AUP Library'!A143,#REF!,6,0),R143)) -> 15.99 | Q143: =IF(IFERROR(VLOOKUP('AUP Library'!A143,#REF!,7,0),R143)="",R143,IFERROR(VLOOKUP('AUP Library'!A143,#REF!,7,0),R143)) -> 15.99 | R143: 15.99 | S143: =IFERROR(VLOOKUP('AUP Library'!A143,#REF!,4,0),R143) -> 15.99
A144: 209-02.05 | B144: 12" Temporary Slope Drain | C144: LF | D144: 11.77 | E144: 11.77 | F144: 11.77 | G144: 11.77 | H144: 11.77 | I144: 11.77 | J144: 11.77 | K144: 11.77 | L144: 11.77 | M144: 11.77 | N144: =IF(IFERROR(VLOOKUP('AUP Library'!A144,#REF!,4,0),R144)="",R144,IFERROR(VLOOKUP('AUP Library'!A144,#REF!,4,0),R144)) -> 11.77 | O144: =IF(IFERROR(VLOOKUP('AUP Library'!A144,#REF!,5,0),R144)="",R144,IFERROR(VLOOKUP('AUP Library'!A144,#REF!,5,0),R144)) -> 11.77 | P144: =IF(IFERROR(VLOOKUP('AUP Library'!A144,#REF!,6,0),R144)="",R144,IFERROR(VLOOKUP('AUP Library'!A144,#REF!,6,0),R144)) -> 11.77 | Q144: =IF(IFERROR(VLOOKUP('AUP Library'!A144,#REF!,7,0),R144)="",R144,IFERROR(VLOOKUP('AUP Library'!A144,#REF!,7,0),R144)) -> 11.77 | R144: 11.77 | S144: =IFERROR(VLOOKUP('AUP Library'!A144,#REF!,4,0),R144) -> 11.77
A145: 209-02.06 | B145: 15" Temporary Slope Drain | C145: LF | D145: 13.94 | E145: 13.94 | F145: 13.94 | G145: 13.94 | H145: 13.94 | I145: 13.94 | J145: 13.94 | K145: 13.94 | L145: 13.94 | M145: 13.94 | N145: =IF(IFERROR(VLOOKUP('AUP Library'!A145,#REF!,4,0),R145)="",R145,IFERROR(VLOOKUP('AUP Library'!A145,#REF!,4,0),R145)) -> 13.94 | O145: =IF(IFERROR(VLOOKUP('AUP Library'!A145,#REF!,5,0),R145)="",R145,IFERROR(VLOOKUP('AUP Library'!A145,#REF!,5,0),R145)) -> 13.94 | P145: =IF(IFERROR(VLOOKUP('AUP Library'!A145,#REF!,6,0),R145)="",R145,IFERROR(VLOOKUP('AUP Library'!A145,#REF!,6,0),R145)) -> 13.94 | Q145: =IF(IFERROR(VLOOKUP('AUP Library'!A145,#REF!,7,0),R145)="",R145,IFERROR(VLOOKUP('AUP Library'!A145,#REF!,7,0),R145)) -> 13.94 | R145: 13.94 | S145: =IFERROR(VLOOKUP('AUP Library'!A145,#REF!,4,0),R145) -> 13.94
A146: 209-02.07 | B146: 18" Temporary Slope Drain | C146: LF | D146: 10.22 | E146: 10.22 | F146: 10.22 | G146: 10.22 | H146: 10.22 | I146: 10.22 | J146: 10.22 | K146: 10.22 | L146: 10.22 | M146: 10.22 | N146: =IF(IFERROR(VLOOKUP('AUP Library'!A146,#REF!,4,0),R146)="",R146,IFERROR(VLOOKUP('AUP Library'!A146,#REF!,4,0),R146)) -> 10.22 | O146: =IF(IFERROR(VLOOKUP('AUP Library'!A146,#REF!,5,0),R146)="",R146,IFERROR(VLOOKUP('AUP Library'!A146,#REF!,5,0),R146)) -> 10.22 | P146: =IF(IFERROR(VLOOKUP('AUP Library'!A146,#REF!,6,0),R146)="",R146,IFERROR(VLOOKUP('AUP Library'!A146,#REF!,6,0),R146)) -> 10.22 | Q146: =IF(IFERROR(VLOOKUP('AUP Library'!A146,#REF!,7,0),R146)="",R146,IFERROR(VLOOKUP('AUP Library'!A146,#REF!,7,0),R146)) -> 10.22 | R146: 10.22 | S146: =IFERROR(VLOOKUP('AUP Library'!A146,#REF!,4,0),R146) -> 10.22
